Workbook

Sheet Multas Geradores
A1: Considerar | B1: Ato Legal | D1: Produto | E1: Valor nominal das multas | F1: Valor atualizado das multas | G1: Valor atualizado já revertido à modicidade | H1: Diferença a ser revertida
A2: S | B2: Desp. nº 4.863/2023 | C2: Goiânia II | D2: 2009-T15 | E2: =SUMIFS($Q:$Q,$T:$T,CAPA!$C$22,$K:$K,$C2,$P:$P,'Multas Geradores'!$D2) -> 7668.47 | F2: =SUMIFS($S:$S,$T:$T,CAPA!$C$22,$K:$K,$C2,$P:$P,'Multas Geradores'!$D2) -> 10605.85724 | G2: =SUMIFS($X:$X,$T:$T,CAPA!$C$22,$K:$K,$C2,$P:$P,'Multas Geradores'!$D2) -> -8846.523511 | H2: =IF(A2="S",F2+G2,0) -> 1759.333731
A3: S | B3: Desp. nº 2.495/2024 | C3: Termoceará | D3: 2009-T15 | E3: =SUMIFS($Q:$Q,$T:$T,CAPA!$C$22,$K:$K,$C3,$P:$P,'Multas Geradores'!$D3) -> 38083.1 | F3: =SUMIFS($S:$S,$T:$T,CAPA!$C$22,$K:$K,$C3,$P:$P,'Multas Geradores'!$D3) -> 53153.18867 | G3: =SUMIFS($X:$X,$T:$T,CAPA!$C$22,$K:$K,$C3,$P:$P,'Multas Geradores'!$D3) -> -54421.83799 | H3: =IF(A3="S",F3+G3,0) -> -1268.649323
A4: S | B4: Desp. nº 2.495/2024 | C4: Termoceará | D4: 2010-T15 | E4: =SUMIFS($Q:$Q,$T:$T,CAPA!$C$22,$K:$K,$C4,$P:$P,'Multas Geradores'!$D4) -> 323180.57 | F4: =SUMIFS($S:$S,$T:$T,CAPA!$C$22,$K:$K,$C4,$P:$P,'Multas Geradores'!$D4) -> 451068.2641 | G4: =SUMIFS($X:$X,$T:$T,CAPA!$C$22,$K:$K,$C4,$P:$P,'Multas Geradores'!$D4) -> -461834.2683 | H4: -10766.00412
J6: Ato legal | K6: Usina | L6: Perfil agente VENDEDOR | M6: Perfil agente COMPRADOR | N6: Código do Contrato CliqCCEE | O6: Leilão | P6: Produto | Q6: Valor da Multa | R6: Data Base Recisão | S6: Valor atualizado da multa | T6: Código Empresa | U6: Já revertida em processo anterior (S/N) | V6: Quanto foi revertido? | W6: Data reversão | X6: Valor já revertido atualizado
J7: Desp. nº 4.863/2023 | K7: Goiânia II | L7: BRENTECH 1LN | M7: AMPLA | N7: 17327 | O7: 1º LEN | P7: 2009-T15 | Q7: 15929.44 | R7: 45280 | S7: =Q7*VLOOKUP(CAPA!$C$15,Índices!$B$8:$F$1000,5)/VLOOKUP(EDATE('Multas Geradores'!R7,-1),Índices!$B$8:$F$1000,5) -> 22031.17005 | T7: =VLOOKUP(M7,$Z$7:$AD$64,2) -> 383 | U7: N | X7: =IFERROR(V7*VLOOKUP(CAPA!$C$15,Índices!$B$8:$F$1000,5)/VLOOKUP(EDATE('Multas Geradores'!W7,-1),Índices!$B$8:$F$1000,5),0) -> 0 | Z7: AMPLA | AA7: 383 | AB7: ENEL RJ | AC7: Ampla Energia e Serviços S.A. | AD7: 103
J8: Desp. nº 4.863/2023 | K8: Goiânia II | L8: BRENTECH 1LN | M8: BANDEIRANTE | N8: 17329 | O8: 1º LEN | P8: 2009-T15 | Q8: 18568.15 | R8: 45280 | S8: =Q8*VLOOKUP(CAPA!$C$15,Índices!$B$8:$F$1000,5)/VLOOKUP(EDATE('Multas Geradores'!R8,-1),Índices!$B$8:$F$1000,5) -> 25680.63097 | T8: 391 | U8: N | X8: =IFERROR(V8*VLOOKUP(CAPA!$C$15,Índices!$B$8:$F$1000,5)/VLOOKUP(EDATE('Multas Geradores'!W8,-1),Índices!$B$8:$F$1000,5),0) -> 0 | Z8: BANDEIRANTE | AA8: 391 | AB8: EDP SP | AC8: EDP São Paulo Distribuição de Energia S.A. | AD8: 104
J9: Desp. nº 4.863/2023 | K9: Goiânia II | L9: BRENTECH 1LN | M9: CEAL | N9: 17324 | O9: 1º LEN | P9: 2009-T15 | Q9: 3361.81 | R9: 45280 | S9: =Q9*VLOOKUP(CAPA!$C$15,Índices!$B$8:$F$1000,5)/VLOOKUP(EDATE('Multas Geradores'!R9,-1),Índices!$B$8:$F$1000,5) -> 4649.542469 | T9: 44 | U9: N | X9: =IFERROR(V9*VLOOKUP(CAPA!$C$15,Índices!$B$8:$F$1000,5)/VLOOKUP(EDATE('Multas Geradores'!W9,-1),Índices!$B$8:$F$1000,5),0) -> 0 | Z9: CEAL | AA9: 44 | AB9: Equatorial AL | AC9: Equatorial Alagoas Distribuidora de Energia S.A. | AD9: 108
J10: Desp. nº 4.863/2023 | K10: Goiânia II | L10: BRENTECH 1LN | M10: CEB DISTRIBUIC | N10: 17325 | O10: 1º LEN | P10: 2009-T15 | Q10: 21286.28 | R10: 45280 | S10: =Q10*VLOOKUP(CAPA!$C$15,Índices!$B$8:$F$1000,5)/VLOOKUP(EDATE('Multas Geradores'!R10,-1),Índices!$B$8:$F$1000,5) -> 29439.93351 | T10: 5160 | U10: N | X10: =IFERROR(V10*VLOOKUP(CAPA!$C$15,Índices!$B$8:$F$1000,5)/VLOOKUP(EDATE('Multas Geradores'!W10,-1),Índices!$B$8:$F$1000,5),0) -> 0 | Z10: CEB DISTRIBUIC | AA10: 5160 | AB10: Neoenergia Brasília | AC10: Neoenergia Distribuição Brasília S.A. | AD10: 109
J11: Desp. nº 4.863/2023 | K11: Goiânia II | L11: BRENTECH 1LN | M11: CEEE DISTRIB | N11: 17333 | O11: 1º LEN | P11: 2009-T15 | Q11: 13746.78 | R11: 45280 | S11: =Q11*VLOOKUP(CAPA!$C$15,Índices!$B$8:$F$1000,5)/VLOOKUP(EDATE('Multas Geradores'!R11,-1),Índices!$B$8:$F$1000,5) -> 19012.44788 | T11: 5707 | U11: N | X11: =IFERROR(V11*VLOOKUP(CAPA!$C$15,Índices!$B$8:$F$1000,5)/VLOOKUP(EDATE('Multas Geradores'!W11,-1),Índices!$B$8:$F$1000,5),0) -> 0 | Z11: CEEE DISTRIB | AA11: 5707 | AB11: CEEE-D | AC11: Companhia Estadual de Distribuição de Energia Elétrica | AD11: 110
J12: Desp. nº 4.863/2023 | K12: Goiânia II | L12: BRENTECH 1LN | M12: CELESC DIST | N12: 17308 | O12: 1º LEN | P12: 2009-T15 | Q12: 58245.53 | R12: 45280 | S12: =Q12*VLOOKUP(CAPA!$C$15,Índices!$B$8:$F$1000,5)/VLOOKUP(EDATE('Multas Geradores'!R12,-1),Índices!$B$8:$F$1000,5) -> 80556.3269 | T12: 5697 | U12: N | X12: =IFERROR(V12*VLOOKUP(CAPA!$C$15,Índices!$B$8:$F$1000,5)/VLOOKUP(EDATE('Multas Geradores'!W12,-1),Índices!$B$8:$F$1000,5),0) -> 0 | Z12: CELESC DIST | AA12: 5697 | AB12: Celesc-Dis | AC12: Celesc Distribuição S.A. | AD12: 111
J13: Desp. nº 4.863/2023 | K13: Goiânia II | L13: BRENTECH 1LN | M13: CELG | N13: 17332 | O13: 1º LEN | P13: 2009-T15 | Q13: 21717.13 | R13: 45280 | S13: =Q13*VLOOKUP(CAPA!$C$15,Índices!$B$8:$F$1000,5)/VLOOKUP(EDATE('Multas Geradores'!R13,-1),Índices!$B$8:$F$1000,5) -> 30035.81946 | T13: 6072 | U13: N | X13: =IFERROR(V13*VLOOKUP(CAPA!$C$15,Índices!$B$8:$F$1000,5)/VLOOKUP(EDATE('Multas Geradores'!W13,-1),Índices!$B$8:$F$1000,5),0) -> 0 | Z13: CELG | AA13: 6072 | AB13: ENEL GO | AC13: Enel Distribuição Goiás | AD13: 112
J14: Desp. nº 4.863/2023 | K14: Goiânia II | L14: BRENTECH 1LN | M14: CELPA | N14: 17313 | O14: 1º LEN | P14: 2009-T15 | Q14: 19498.83 | R14: 45280 | S14: =Q14*VLOOKUP(CAPA!$C$15,Índices!$B$8:$F$1000,5)/VLOOKUP(EDATE('Multas Geradores'!R14,-1),Índices!$B$8:$F$1000,5) -> 26967.80549 | T14: 371 | U14: N | X14: =IFERROR(V14*VLOOKUP(CAPA!$C$15,Índices!$B$8:$F$1000,5)/VLOOKUP(EDATE('Multas Geradores'!W14,-1),Índices!$B$8:$F$1000,5),0) -> 0 | Z14: CELPA | AA14: 371 | AB14: Equatorial PA | AC14: Equatorial Pará Distribuidora de Energia S.A. | AD14: 113
J15: Desp. nº 4.863/2023 | K15: Goiânia II | L15: BRENTECH 1LN | M15: CELPE | N15: 17306 | O15: 1º LEN | P15: 2009-T15 | Q15: 33171 | R15: 45280 | S15: =Q15*VLOOKUP(CAPA!$C$15,Índices!$B$8:$F$1000,5)/VLOOKUP(EDATE('Multas Geradores'!R15,-1),Índices!$B$8:$F$1000,5) -> 45877.06421 | T15: 43 | U15: N | X15: =IFERROR(V15*VLOOKUP(CAPA!$C$15,Índices!$B$8:$F$1000,5)/VLOOKUP(EDATE('Multas Geradores'!W15,-1),Índices!$B$8:$F$1000,5),0) -> 0 | Z15: CELPE | AA15: 43 | AB15: Neoenergia Pernambuco | AC15: Companhia Energética de Pernambuco | AD15: 114
J16: Desp. nº 4.863/2023 | K16: Goiânia II | L16: BRENTECH 1LN | M16: CEMAR | N16: 17338 | O16: 1º LEN | P16: 2009-T15 | Q16: 11687.45 | R16: 45280 | S16: =Q16*VLOOKUP(CAPA!$C$15,Índices!$B$8:$F$1000,5)/VLOOKUP(EDATE('Multas Geradores'!R16,-1),Índices!$B$8:$F$1000,5) -> 16164.29695 | T16: 37 | U16: N | X16: =IFERROR(V16*VLOOKUP(CAPA!$C$15,Índices!$B$8:$F$1000,5)/VLOOKUP(EDATE('Multas Geradores'!W16,-1),Índices!$B$8:$F$1000,5),0) -> 0 | Z16: CEMAR | AA16: 37 | AB16: Equatorial MA | AC16: Equatorial Maranhão Distribuidora de Energia S.A. | AD16: 116
J17: Desp. nº 4.863/2023 | K17: Goiânia II | L17: BRENTECH 1LN | M17: CEMIG DISTRIB | N17: 17321 | O17: 1º LEN | P17: 2009-T15 | Q17: 45542.57 | R17: 45280 | S17: =Q17*VLOOKUP(CAPA!$C$15,Índices!$B$8:$F$1000,5)/VLOOKUP(EDATE('Multas Geradores'!R17,-1),Índices!$B$8:$F$1000,5) -> 62987.53152 | T17: 4950 | U17: N | X17: =IFERROR(V17*VLOOKUP(CAPA!$C$15,Índices!$B$8:$F$1000,5)/VLOOKUP(EDATE('Multas Geradores'!W17,-1),Índices!$B$8:$F$1000,5),0) -> 0 | Z17: CEMIG DISTRIB | AA17: 4950 | AB17: Cemig-D | AC17: Cemig Distribuição S.A. | AD17: 118
J18: Desp. nº 4.863/2023 | K18: Goiânia II | L18: BRENTECH 1LN | M18: CEPISA | N18: 17314 | O18: 1º LEN | P18: 2009-T15 | Q18: 9214.03 | R18: 45280 | S18: =Q18*VLOOKUP(CAPA!$C$15,Índices!$B$8:$F$1000,5)/VLOOKUP(EDATE('Multas Geradores'!R18,-1),Índices!$B$8:$F$1000,5) -> 12743.43993 | T18: 4950 | U18: N | X18: =IFERROR(V18*VLOOKUP(CAPA!$C$15,Índices!$B$8:$F$1000,5)/VLOOKUP(EDATE('Multas Geradores'!W18,-1),Índices!$B$8:$F$1000,5),0) -> 0 | Z18: COELBA | AA18: 47 | AB18: Neoenergia Coelba | AC18: Companhia de Eletricidadedo Estado da Bahia | AD18: 129
J19: Desp. nº 4.863/2023 | K19: Goiânia II | L19: BRENTECH 1LN | M19: COELBA | N19: 17322 | O19: 1º LEN | P19: 2009-T15 | Q19: 37317.37 | R19: 45280 | S19: =Q19*VLOOKUP(CAPA!$C$15,Índices!$B$8:$F$1000,5)/VLOOKUP(EDATE('Multas Geradores'!R19,-1),Índices!$B$8:$F$1000,5) -> 51611.69032 | T19: 47 | U19: S | V19: -41525.5207 | W19: 45748 | X19: =IFERROR(V19*VLOOKUP(CAPA!$C$15,Índices!$B$8:$F$1000,5)/VLOOKUP(EDATE('Multas Geradores'!W19,-1),Índices!$B$8:$F$1000,5),0) -> -49847.56999 | Z19: COELCE | AA19: 39 | AB19: ENEL CE | AC19: Companhia Energética do Ceará | AD19: 130
J20: Desp. nº 4.863/2023 | K20: Goiânia II | L20: BRENTECH 1LN | M20: COELCE | N20: 17309 | O20: 1º LEN | P20: 2009-T15 | Q20: 22642.66 | R20: 45280 | S20: =Q20*VLOOKUP(CAPA!$C$15,Índices!$B$8:$F$1000,5)/VLOOKUP(EDATE('Multas Geradores'!R20,-1),Índices!$B$8:$F$1000,5) -> 31315.87129 | T20: 39 | U20: N | X20: =IFERROR(V20*VLOOKUP(CAPA!$C$15,Índices!$B$8:$F$1000,5)/VLOOKUP(EDATE('Multas Geradores'!W20,-1),Índices!$B$8:$F$1000,5),0) -> 0 | Z20: COPEL DISTRIB | AA20: 2866 | AB20: Copel-Dis | AC20: Copel Distribuição S.A. | AD20: 132
J21: Desp. nº 4.863/2023 | K21: Goiânia II | L21: BRENTECH 1LN | M21: COPEL DISTRIB | N21: 17330 | O21: 1º LEN | P21: 2009-T15 | Q21: 47040.61 | R21: 45280 | S21: =Q21*VLOOKUP(CAPA!$C$15,Índices!$B$8:$F$1000,5)/VLOOKUP(EDATE('Multas Geradores'!R21,-1),Índices!$B$8:$F$1000,5) -> 65059.3918 | T21: 2866 | U21: N | X21: =IFERROR(V21*VLOOKUP(CAPA!$C$15,Índices!$B$8:$F$1000,5)/VLOOKUP(EDATE('Multas Geradores'!W21,-1),Índices!$B$8:$F$1000,5),0) -> 0 | Z21: COSERN | AA21: 40 | AB21: Neoenergia Cosern | AC21: Companhia Energetica do Rio Grande do Norte | AD21: 133
J22: Desp. nº 4.863/2023 | K22: Goiânia II | L22: BRENTECH 1LN | M22: COSERN | N22: 17311 | O22: 1º LEN | P22: 2009-T15 | Q22: 16239.97 | R22: 45280 | S22: =Q22*VLOOKUP(CAPA!$C$15,Índices!$B$8:$F$1000,5)/VLOOKUP(EDATE('Multas Geradores'!R22,-1),Índices!$B$8:$F$1000,5) -> 22460.64775 | T22: 40 | U22: N | X22: =IFERROR(V22*VLOOKUP(CAPA!$C$15,Índices!$B$8:$F$1000,5)/VLOOKUP(EDATE('Multas Geradores'!W22,-1),Índices!$B$8:$F$1000,5),0) -> 0 | Z22: CPFL LESTE PAULISTA | AA22: 1000041 | AB22: CPFL Santa Cruz | AC22: Companhia Jaguari de Energia | AD22: 166
J23: Desp. nº 4.863/2023 | K23: Goiânia II | L23: BRENTECH 1LN | M23: CPFL PAULISTA | N23: 17307 | O23: 1º LEN | P23: 2009-T15 | Q23: 73736.37 | R23: 45280 | S23: =Q23*VLOOKUP(CAPA!$C$15,Índices!$B$8:$F$1000,5)/VLOOKUP(EDATE('Multas Geradores'!R23,-1),Índices!$B$8:$F$1000,5) -> 101980.8924 | T23: 63 | U23: S | V23: -99212.53901 | W23: 45748 | X23: =IFERROR(V23*VLOOKUP(CAPA!$C$15,Índices!$B$8:$F$1000,5)/VLOOKUP(EDATE('Multas Geradores'!W23,-1),Índices!$B$8:$F$1000,5),0) -> -119095.5321 | Z23: CPFL PAULISTA | AA23: 63 | AB23: CPFL Paulista | AC23: Companhia Paulista de Força e Luz | AD23: 136
J24: Desp. nº 4.863/2023 | K24: Goiânia II | L24: BRENTECH 1LN | M24: CPFL SANTA CRUZ | N24: 17316 | O24: 1º LEN | P24: 2009-T15 | Q24: 1715.42 | R24: 45280 | S24: =Q24*VLOOKUP(CAPA!$C$15,Índices!$B$8:$F$1000,5)/VLOOKUP(EDATE('Multas Geradores'!R24,-1),Índices!$B$8:$F$1000,5) -> 2372.507114 | T24: 1000041 | U24: S | V24: -1890.64 | W24: 45717 | X24: =IFERROR(V24*VLOOKUP(CAPA!$C$15,Índices!$B$8:$F$1000,5)/VLOOKUP(EDATE('Multas Geradores'!W24,-1),Índices!$B$8:$F$1000,5),0) -> -2291.418537 | Z24: CPFL PIRATINGA | AA24: 2937 | AB24: CPFL Piratininga | AC24: Companhia Piratininga de Força e Luz | AD24: 135
J25: Desp. nº 4.863/2023 | K25: Goiânia II | L25: BRENTECH 1LN | M25: ELEKTRO | N25: 17323 | O25: 1º LEN | P25: 2009-T15 | Q25: 27188.21 | R25: 45280 | S25: =Q25*VLOOKUP(CAPA!$C$15,Índices!$B$8:$F$1000,5)/VLOOKUP(EDATE('Multas Geradores'!R25,-1),Índices!$B$8:$F$1000,5) -> 37602.58225 | T25: 385 | U25: S | V25: -31659.78 | W25: 45870 | X25: =IFERROR(V25*VLOOKUP(CAPA!$C$15,Índices!$B$8:$F$1000,5)/VLOOKUP(EDATE('Multas Geradores'!W25,-1),Índices!$B$8:$F$1000,5),0) -> -36317.30694 | Z25: CPFL SANTA CRUZ | AA25: 1000041 | AB25: CPFL Santa Cruz | AC25: Companhia Jaguari de Energia | AD25: 166
J26: Desp. nº 4.863/2023 | K26: Goiânia II | L26: BRENTECH 1LN | M26: ELETROPAULO | N26: 17326 | O26: 1º LEN | P26: 2009-T15 | Q26: 52745.37 | R26: 45280 | S26: =Q26*VLOOKUP(CAPA!$C$15,Índices!$B$8:$F$1000,5)/VLOOKUP(EDATE('Multas Geradores'!R26,-1),Índices!$B$8:$F$1000,5) -> 72949.3451 | T26: 390 | U26: N | X26: =IFERROR(V26*VLOOKUP(CAPA!$C$15,Índices!$B$8:$F$1000,5)/VLOOKUP(EDATE('Multas Geradores'!W26,-1),Índices!$B$8:$F$1000,5),0) -> 0 | Z26: ELEKTRO | AA26: 385 | AB26: Neoenergia Elektro | AC26: Elektro Redes S.A. | AD26: 145
J27: Desp. nº 4.863/2023 | K27: Goiânia II | L27: BRENTECH 1LN | M27: ENERGISA BORBOREMA | N27: 17317 | O27: 1º LEN | P27: 2009-T15 | Q27: 1045.7 | R27: 45280 | S27: =Q27*VLOOKUP(CAPA!$C$15,Índices!$B$8:$F$1000,5)/VLOOKUP(EDATE('Multas Geradores'!R27,-1),Índices!$B$8:$F$1000,5) -> 1446.252632 | T27: 6600 | U27: N | X27: =IFERROR(V27*VLOOKUP(CAPA!$C$15,Índices!$B$8:$F$1000,5)/VLOOKUP(EDATE('Multas Geradores'!W27,-1),Índices!$B$8:$F$1000,5),0) -> 0 | Z27: ELETROPAULO | AA27: 390 | AB27: ENEL SP | AC27: Eletropaulo Metropolitana Eletricidade de São Paulo S.A. | AD27: 148
J28: Desp. nº 4.863/2023 | K28: Goiânia II | L28: BRENTECH 1LN | M28: ENERGISA BR | N28: 17320 | O28: 1º LEN | P28: 2009-T15 | Q28: 1003.04 | R28: 45280 | S28: =Q28*VLOOKUP(CAPA!$C$15,Índices!$B$8:$F$1000,5)/VLOOKUP(EDATE('Multas Geradores'!R28,-1),Índices!$B$8:$F$1000,5) -> 1387.251831 | T28: 1000040 | U28: N | X28: =IFERROR(V28*VLOOKUP(CAPA!$C$15,Índices!$B$8:$F$1000,5)/VLOOKUP(EDATE('Multas Geradores'!W28,-1),Índices!$B$8:$F$1000,5),0) -> 0 | Z28: ENERGISA BORBOREMA | AA28: 6600 | AB28: EPB | AC28: Energisa Paraíba - Distribuidora de Energia S.A. | AD28: 153
J29: Desp. nº 4.863/2023 | K29: Goiânia II | L29: BRENTECH 1LN | M29: ENERGISA MR | N29: 17337 | O29: 1º LEN | P29: 2009-T15 | Q29: 1742.24 | R29: 45280 | S29: =Q29*VLOOKUP(CAPA!$C$15,Índices!$B$8:$F$1000,5)/VLOOKUP(EDATE('Multas Geradores'!R29,-1),Índices!$B$8:$F$1000,5) -> 2409.600445 | T29: 6585 | U29: S | V29: -1787.073087 | W29: 45444 | X29: =IFERROR(V29*VLOOKUP(CAPA!$C$15,Índices!$B$8:$F$1000,5)/VLOOKUP(EDATE('Multas Geradores'!W29,-1),Índices!$B$8:$F$1000,5),0) -> -2346.593806 | Z29: ENERGISA BR | AA29: 1000040 | AB29: ESS | AC29: Energisa Sul-Sudeste - Distribuidora de Energia S.A. | AD29: 165
J30: Desp. nº 4.863/2023 | K30: Goiânia II | L30: BRENTECH 1LN | M30: ENERGISA MS | N30: 17319 | O30: 1º LEN | P30: 2009-T15 | Q30: 7504.94 | R30: 45280 | S30: =Q30*VLOOKUP(CAPA!$C$15,Índices!$B$8:$F$1000,5)/VLOOKUP(EDATE('Multas Geradores'!R30,-1),Índices!$B$8:$F$1000,5) -> 10379.68751 | T30: 404 | U30: S | V30: -7504.94 | W30: 45383 | X30: =IFERROR(V30*VLOOKUP(CAPA!$C$15,Índices!$B$8:$F$1000,5)/VLOOKUP(EDATE('Multas Geradores'!W30,-1),Índices!$B$8:$F$1000,5),0) -> -10024.9032 | Z30: ENERGISA MR | AA30: 6585 | AB30: EMG | AC30: Energisa Minas Gerais - Distribuidora de Energia S.A. | AD30: 150
J31: Desp. nº 4.863/2023 | K31: Goiânia II | L31: BRENTECH 1LN | M31: ENERGISA MT | N31: 17335 | O31: 1º LEN | P31: 2009-T15 | Q31: 13185.48 | R31: 45280 | S31: =Q31*VLOOKUP(CAPA!$C$15,Índices!$B$8:$F$1000,5)/VLOOKUP(EDATE('Multas Geradores'!R31,-1),Índices!$B$8:$F$1000,5) -> 18236.1434 | T31: 405 | U31: S | V31: -13185.48 | W31: 45383 | X31: =IFERROR(V31*VLOOKUP(CAPA!$C$15,Índices!$B$8:$F$1000,5)/VLOOKUP(EDATE('Multas Geradores'!W31,-1),Índices!$B$8:$F$1000,5),0) -> -17612.82044 | Z31: ENERGISA MS | AA31: 404 | AB31: EMS | AC31: Energisa Mato Grossodo Sul - Distribuidora de Energia S.A. | AD31: 151
J32: Desp. nº 4.863/2023 | K32: Goiânia II | L32: BRENTECH 1LN | M32: ENERGISA PB | N32: 17328 | O32: 1º LEN | P32: 2009-T15 | Q32: 6622.77 | R32: 45280 | S32: =Q32*VLOOKUP(CAPA!$C$15,Índices!$B$8:$F$1000,5)/VLOOKUP(EDATE('Multas Geradores'!R32,-1),Índices!$B$8:$F$1000,5) -> 9159.60461 | T32: 6600 | U32: S | V32: -6851.87026 | W32: 45505 | X32: =IFERROR(V32*VLOOKUP(CAPA!$C$15,Índices!$B$8:$F$1000,5)/VLOOKUP(EDATE('Multas Geradores'!W32,-1),Índices!$B$8:$F$1000,5),0) -> -8846.523511 | Z32: ENERGISA MT | AA32: 405 | AB32: EMT | AC32: Energisa Mato Grosso - Distribuidora de Energia S.A. | AD32: 117
J33: Desp. nº 4.863/2023 | K33: Goiânia II | L33: BRENTECH 1LN | M33: ENERGISA SE | N33: 17331 | O33: 1º LEN | P33: 2009-T15 | Q33: 5874.03 | R33: 45280 | S33: =Q33*VLOOKUP(CAPA!$C$15,Índices!$B$8:$F$1000,5)/VLOOKUP(EDATE('Multas Geradores'!R33,-1),Índices!$B$8:$F$1000,5) -> 8124.061725 | T33: 6587 | U33: N | X33: =IFERROR(V33*VLOOKUP(CAPA!$C$15,Índices!$B$8:$F$1000,5)/VLOOKUP(EDATE('Multas Geradores'!W33,-1),Índices!$B$8:$F$1000,5),0) -> 0 | Z33: ENERGISA NA | AA33: 1000040 | AB33: ESS | AC33: Energisa Sul-Sudeste - Distribuidora de Energia S.A. | AD33: 165
J34: Desp. nº 4.863/2023 | K34: Goiânia II | L34: BRENTECH 1LN | M34: ENERGISA SS | N34: 17318 | O34: 1º LEN | P34: 2009-T15 | Q34: 2003.62 | R34: 45280 | S34: =Q34*VLOOKUP(CAPA!$C$15,Índices!$B$8:$F$1000,5)/VLOOKUP(EDATE('Multas Geradores'!R34,-1),Índices!$B$8:$F$1000,5) -> 2771.101365 | T34: 1000040 | U34: S | V34: -2003.62 | W34: 45474 | X34: =IFERROR(V34*VLOOKUP(CAPA!$C$15,Índices!$B$8:$F$1000,5)/VLOOKUP(EDATE('Multas Geradores'!W34,-1),Índices!$B$8:$F$1000,5),0) -> -2610.361674 | Z34: ENERGISA PB | AA34: 6600 | AB34: EPB | AC34: Energisa Paraíba - Distribuidora de Energia S.A. | AD34: 153
J35: Desp. nº 4.863/2023 | K35: Goiânia II | L35: BRENTECH 1LN | M35: ENERGISA TO | N35: 17334 | O35: 1º LEN | P35: 2009-T15 | Q35: 2667.56 | R35: 45280 | S35: =Q35*VLOOKUP(CAPA!$C$15,Índices!$B$8:$F$1000,5)/VLOOKUP(EDATE('Multas Geradores'!R35,-1),Índices!$B$8:$F$1000,5) -> 3689.361834 | T35: 32 | U35: S | V35: -2757.774871 | W35: 45839 | X35: =IFERROR(V35*VLOOKUP(CAPA!$C$15,Índices!$B$8:$F$1000,5)/VLOOKUP(EDATE('Multas Geradores'!W35,-1),Índices!$B$8:$F$1000,5),0) -> -3203.833564 | Z35: ENERGISA SE | AA35: 6587 | AB35: ESE | AC35: Energisa Sergipe - Distribuidora de Energia S.A. | AD35: 155
J36: Desp. nº 4.863/2023 | K36: Goiânia II | L36: BRENTECH 1LN | M36: ENERGISA VP | N36: 17336 | O36: 1º LEN | P36: 2009-T15 | Q36: 1257.19 | R36: 45280 | S36: =Q36*VLOOKUP(CAPA!$C$15,Índices!$B$8:$F$1000,5)/VLOOKUP(EDATE('Multas Geradores'!R36,-1),Índices!$B$8:$F$1000,5) -> 1738.753319 | T36: 1000040 | U36: N | X36: =IFERROR(V36*VLOOKUP(CAPA!$C$15,Índices!$B$8:$F$1000,5)/VLOOKUP(EDATE('Multas Geradores'!W36,-1),Índices!$B$8:$F$1000,5),0) -> 0 | Z36: ENERGISA SS | AA36: 1000040 | AB36: ESS | AC36: Energisa Sul-Sudeste - Distribuidora de Energia S.A. | AD36: 165
J37: Desp. nº 4.863/2023 | K37: Goiânia II | L37: BRENTECH 1LN | M37: ESCELSA | N37: 17310 | O37: 1º LEN | P37: 2009-T15 | Q37: 15085.97 | R37: 45280 | S37: =Q37*VLOOKUP(CAPA!$C$15,Índices!$B$8:$F$1000,5)/VLOOKUP(EDATE('Multas Geradores'!R37,-1),Índices!$B$8:$F$1000,5) -> 20864.61109 | T37: 380 | U37: N | V37: 0 | X37: =IFERROR(V37*VLOOKUP(CAPA!$C$15,Índices!$B$8:$F$1000,5)/VLOOKUP(EDATE('Multas Geradores'!W37,-1),Índices!$B$8:$F$1000,5),0) -> 0 | Z37: ENERGISA TO | AA37: 32 | AB37: ETO | AC37: Energisa Tocantins Distribuidora de Energia S.A. | AD37: 115
J38: Desp. nº 4.863/2023 | K38: Goiânia II | L38: BRENTECH 1LN | M38: LIGHT | N38: 17312 | O38: 1º LEN | P38: 2009-T15 | Q38: 34994.68 | R38: 45280 | S38: =Q38*VLOOKUP(CAPA!$C$15,Índices!$B$8:$F$1000,5)/VLOOKUP(EDATE('Multas Geradores'!R38,-1),Índices!$B$8:$F$1000,5) -> 48399.30003 | T38: 382 | U38: N | X38: =IFERROR(V38*VLOOKUP(CAPA!$C$15,Índices!$B$8:$F$1000,5)/VLOOKUP(EDATE('Multas Geradores'!W38,-1),Índices!$B$8:$F$1000,5),0) -> 0 | Z38: ENERGISA VP | AA38: 1000040 | AB38: ESS | AC38: Energisa Sul-Sudeste - Distribuidora de Energia S.A. | AD38: 165
J39: Desp. nº 4.863/2023 | K39: Goiânia II | L39: BRENTECH 1LN | M39: RGE SUL | N39: 17315 | O39: 1º LEN | P39: 2009-T15 | Q39: 18189.04 | R39: 45280 | S39: =Q39*VLOOKUP(CAPA!$C$15,Índices!$B$8:$F$1000,5)/VLOOKUP(EDATE('Multas Geradores'!R39,-1),Índices!$B$8:$F$1000,5) -> 25156.30388 | T39: =VLOOKUP(M39,$Z$7:$AD$64,2) -> 1000042 | U39: S | V39: -20504.82 | W39: 45809 | X39: =IFERROR(V39*VLOOKUP(CAPA!$C$15,Índices!$B$8:$F$1000,5)/VLOOKUP(EDATE('Multas Geradores'!W39,-1),Índices!$B$8:$F$1000,5),0) -> -24082.72279 | Z39: ESCELSA | AA39: 380 | AB39: EDP ES | AC39: EDP Espírito Santo Distribuição de Energia S.A. | AD39: 154
J40: Desp. nº 2.495/2024 | K40: Termoceará | L40: PETROB PIE 1LN | M40: AMPLA | N40: 16299 | O40: 1º LEN | P40: 2009-T15 | Q40: 79105.63 | R40: 45231 | S40: =Q40*VLOOKUP(CAPA!$C$15,Índices!$B$8:$F$1000,5)/VLOOKUP(EDATE('Multas Geradores'!R40,-1),Índices!$B$8:$F$1000,5) -> 110408.9866 | T40: 383 | U40: N | X40: =IFERROR(V40*VLOOKUP(CAPA!$C$15,Índices!$B$8:$F$1000,5)/VLOOKUP(EDATE('Multas Geradores'!W40,-1),Índices!$B$8:$F$1000,5),0) -> 0 | Z40: LIGHT | AA40: 382 | AB40: Light | AC40: Light Serviços de Eletricidade S.A. | AD40: 160
J41: Desp. nº 2.495/2024 | K41: Termoceará | L41: PETROB PIE 1LN | M41: BANDEIRANTE | N41: 16301 | O41: 1º LEN | P41: 2009-T15 | Q41: 88987.05 | R41: 45231 | S41: =Q41*VLOOKUP(CAPA!$C$15,Índices!$B$8:$F$1000,5)/VLOOKUP(EDATE('Multas Geradores'!R41,-1),Índices!$B$8:$F$1000,5) -> 124200.6417 | T41: 391 | U41: N | X41: =IFERROR(V41*VLOOKUP(CAPA!$C$15,Índices!$B$8:$F$1000,5)/VLOOKUP(EDATE('Multas Geradores'!W41,-1),Índices!$B$8:$F$1000,5),0) -> 0 | Z41: RGE SUL | AA41: 1000042 | AB41: RGE | AC41: RGE Sul Distribuidora de Energia S.A. | AD41: 167
J42: Desp. nº 2.495/2024 | K42: Termoceará | L42: PETROB PIE 1LN | M42: CEAL | N42: 16296 | O42: 1º LEN | P42: 2009-T15 | Q42: 16693.61 | R42: 45231 | S42: =Q42*VLOOKUP(CAPA!$C$15,Índices!$B$8:$F$1000,5)/VLOOKUP(EDATE('Multas Geradores'!R42,-1),Índices!$B$8:$F$1000,5) -> 23299.53711 | T42: 44 | U42: N | X42: =IFERROR(V42*VLOOKUP(CAPA!$C$15,Índices!$B$8:$F$1000,5)/VLOOKUP(EDATE('Multas Geradores'!W42,-1),Índices!$B$8:$F$1000,5),0) -> 0 | AA42: 7019 | AB42: Amazonas Energia | AC42: Amazonas Energia S.A. | AD42: 102
J43: Desp. nº 2.495/2024 | K43: Termoceará | L43: PETROB PIE 1LN | M43: CEB DISTRIBUIC | N43: 16297 | O43: 1º LEN | P43: 2009-T15 | Q43: 102183.96 | R43: 45231 | S43: =Q43*VLOOKUP(CAPA!$C$15,Índices!$B$8:$F$1000,5)/VLOOKUP(EDATE('Multas Geradores'!R43,-1),Índices!$B$8:$F$1000,5) -> 142619.779 | T43: 5160 | U43: N | X43: =IFERROR(V43*VLOOKUP(CAPA!$C$15,Índices!$B$8:$F$1000,5)/VLOOKUP(EDATE('Multas Geradores'!W43,-1),Índices!$B$8:$F$1000,5),0) -> 0 | AA43: 31 | AB43: CEA | AC43: Companhia de Eletricidade do Amapá | AD43: 107
J44: Desp. nº 2.495/2024 | K44: Termoceará | L44: PETROB PIE 1LN | M44: CEEE DISTRIB | N44: 16305 | O44: 1º LEN | P44: 2009-T15 | Q44: 65125.68 | R44: 45231 | S44: =Q44*VLOOKUP(CAPA!$C$15,Índices!$B$8:$F$1000,5)/VLOOKUP(EDATE('Multas Geradores'!R44,-1),Índices!$B$8:$F$1000,5) -> 90896.94789 | T44: 5707 | U44: N | X44: =IFERROR(V44*VLOOKUP(CAPA!$C$15,Índices!$B$8:$F$1000,5)/VLOOKUP(EDATE('Multas Geradores'!W44,-1),Índices!$B$8:$F$1000,5),0) -> 0 | AA44: 103 | AB44: CHESP | AC44: Companhia Hidroelétrica São Patrício | AD44: 123
J45: Desp. nº 2.495/2024 | K45: Termoceará | L45: PETROB PIE 1LN | M45: CELESC DIST | N45: 16280 | O45: 1º LEN | P45: 2009-T15 | Q45: 289258.62 | R45: 45231 | S45: =Q45*VLOOKUP(CAPA!$C$15,Índices!$B$8:$F$1000,5)/VLOOKUP(EDATE('Multas Geradores'!R45,-1),Índices!$B$8:$F$1000,5) -> 403722.8587 | T45: 5697 | U45: N | X45: =IFERROR(V45*VLOOKUP(CAPA!$C$15,Índices!$B$8:$F$1000,5)/VLOOKUP(EDATE('Multas Geradores'!W45,-1),Índices!$B$8:$F$1000,5),0) -> 0 | AA45: 82 | AB45: Cocel | AC45: Companhia Campolarguense de Energia | AD45: 128
J46: Desp. nº 2.495/2024 | K46: Termoceará | L46: PETROB PIE 1LN | M46: CELG | N46: 16304 | O46: 1º LEN | P46: 2009-T15 | Q46: 104252.17 | R46: 45231 | S46: =Q46*VLOOKUP(CAPA!$C$15,Índices!$B$8:$F$1000,5)/VLOOKUP(EDATE('Multas Geradores'!R46,-1),Índices!$B$8:$F$1000,5) -> 145506.4126 | T46: 6072 | U46: N | X46: =IFERROR(V46*VLOOKUP(CAPA!$C$15,Índices!$B$8:$F$1000,5)/VLOOKUP(EDATE('Multas Geradores'!W46,-1),Índices!$B$8:$F$1000,5),0) -> 0 | AA46: 2904 | AB46: Cooperaliança | AC46: Cooperativa Aliança | AD46: 131
J47: Desp. nº 2.495/2024 | K47: Termoceará | L47: PETROB PIE 1LN | M47: CELPA | N47: 16285 | O47: 1º LEN | P47: 2009-T15 | Q47: 96834.97 | R47: 45231 | S47: =Q47*VLOOKUP(CAPA!$C$15,Índices!$B$8:$F$1000,5)/VLOOKUP(EDATE('Multas Geradores'!R47,-1),Índices!$B$8:$F$1000,5) -> 135154.1085 | T47: 371 | U47: N | X47: =IFERROR(V47*VLOOKUP(CAPA!$C$15,Índices!$B$8:$F$1000,5)/VLOOKUP(EDATE('Multas Geradores'!W47,-1),Índices!$B$8:$F$1000,5),0) -> 0 | AA47: 87 | AB47: DCELT | AC47: Distribuidora Catarinense de Energia Elétrica Ltda | AD47: 158
J48: Desp. nº 2.495/2024 | K48: Termoceará | L48: PETROB PIE 1LN | M48: CELPE | N48: 16278 | O48: 1º LEN | P48: 2009-T15 | Q48: 164722.26 | R48: 45231 | S48: =Q48*VLOOKUP(CAPA!$C$15,Índices!$B$8:$F$1000,5)/VLOOKUP(EDATE('Multas Geradores'!R48,-1),Índices!$B$8:$F$1000,5) -> 229905.4794 | T48: 43 | U48: N | X48: =IFERROR(V48*VLOOKUP(CAPA!$C$15,Índices!$B$8:$F$1000,5)/VLOOKUP(EDATE('Multas Geradores'!W48,-1),Índices!$B$8:$F$1000,5),0) -> 0 | AA48: 95 | AB48: Demei | AC48: Departamento Municipal de Energia de Ijuí | AD48: 138
J49: Desp. nº 2.495/2024 | K49: Termoceará | L49: PETROB PIE 1LN | M49: CEMAR | N49: 16310 | O49: 1º LEN | P49: 2009-T15 | Q49: 58042.11 | R49: 45231 | S49: =Q49*VLOOKUP(CAPA!$C$15,Índices!$B$8:$F$1000,5)/VLOOKUP(EDATE('Multas Geradores'!R49,-1),Índices!$B$8:$F$1000,5) -> 81010.29652 | T49: 37 | U49: N | X49: =IFERROR(V49*VLOOKUP(CAPA!$C$15,Índices!$B$8:$F$1000,5)/VLOOKUP(EDATE('Multas Geradores'!W49,-1),Índices!$B$8:$F$1000,5),0) -> 0 | AA49: 51 | AB49: DME-D | AC49: DME Distribuição S.A. | AD49: 139
J50: Desp. nº 2.495/2024 | K50: Termoceará | L50: PETROB PIE 1LN | M50: CEMIG DISTRIB | N50: 16293 | O50: 1º LEN | P50: 2009-T15 | Q50: 226149.29 | R50: 45231 | S50: =Q50*VLOOKUP(CAPA!$C$15,Índices!$B$8:$F$1000,5)/VLOOKUP(EDATE('Multas Geradores'!R50,-1),Índices!$B$8:$F$1000,5) -> 315640.1626 | T50: 4950 | U50: N | X50: =IFERROR(V50*VLOOKUP(CAPA!$C$15,Índices!$B$8:$F$1000,5)/VLOOKUP(EDATE('Multas Geradores'!W50,-1),Índices!$B$8:$F$1000,5),0) -> 0 | AA50: 26 | AB50: EAC | AC50: Energisa Acre - Distribuidora de Energia S.A | AD50: 146
J51: Desp. nº 2.495/2024 | K51: Termoceará | L51: PETROB PIE 1LN | M51: CEPISA | N51: 16286 | O51: 1º LEN | P51: 2009-T15 | Q51: 43811.33 | R51: 45231 | S51: =Q51*VLOOKUP(CAPA!$C$15,Índices!$B$8:$F$1000,5)/VLOOKUP(EDATE('Multas Geradores'!R51,-1),Índices!$B$8:$F$1000,5) -> 61148.17043 | T51: 4950 | U51: N | X51: =IFERROR(V51*VLOOKUP(CAPA!$C$15,Índices!$B$8:$F$1000,5)/VLOOKUP(EDATE('Multas Geradores'!W51,-1),Índices!$B$8:$F$1000,5),0) -> 0 | AA51: 6611 | AB51: EBO | AC51: Energisa Borborema - Distribuidora de Energia S.A | AD51: 140
J52: Desp. nº 2.495/2024 | K52: Termoceará | L52: PETROB PIE 1LN | M52: COELBA | N52: 16294 | O52: 1º LEN | P52: 2009-T15 | Q52: 185312.57 | R52: 45231 | S52: =Q52*VLOOKUP(CAPA!$C$15,Índices!$B$8:$F$1000,5)/VLOOKUP(EDATE('Multas Geradores'!R52,-1),Índices!$B$8:$F$1000,5) -> 258643.7027 | T52: 47 | U52: S | V52: =-1801895.84088413*185312.57/(185312.57+1598898.52) -> -187149.3519 | W52: 45748 | X52: =IFERROR(V52*VLOOKUP(CAPA!$C$15,Índices!$B$8:$F$1000,5)/VLOOKUP(EDATE('Multas Geradores'!W52,-1),Índices!$B$8:$F$1000,5),0) -> -224655.5915 | AA52: 86 | AB52: EFLUL | AC52: Empresa Força e Luz de Urussanga Ltda | AD52: 144
J53: Desp. nº 2.495/2024 | K53: Termoceará | L53: PETROB PIE 1LN | M53: COELCE | N53: 16281 | O53: 1º LEN | P53: 2009-T15 | Q53: 112440.14 | R53: 45231 | S53: =Q53*VLOOKUP(CAPA!$C$15,Índices!$B$8:$F$1000,5)/VLOOKUP(EDATE('Multas Geradores'!R53,-1),Índices!$B$8:$F$1000,5) -> 156934.4926 | T53: 39 | U53: N | X53: =IFERROR(V53*VLOOKUP(CAPA!$C$15,Índices!$B$8:$F$1000,5)/VLOOKUP(EDATE('Multas Geradores'!W53,-1),Índices!$B$8:$F$1000,5),0) -> 0 | AA53: 398 | AB53: Eletrocar | AC53: Centrais Elétricas de Carazinho S.A. | AD53: 147
J54: Desp. nº 2.495/2024 | K54: Termoceará | L54: PETROB PIE 1LN | M54: COPEL DISTRIB | N54: 16302 | O54: 1º LEN | P54: 2009-T15 | Q54: 233592.3 | R54: 45231 | S54: =Q54*VLOOKUP(CAPA!$C$15,Índices!$B$8:$F$1000,5)/VLOOKUP(EDATE('Multas Geradores'!R54,-1),Índices!$B$8:$F$1000,5) -> 326028.4901 | T54: 2866 | U54: N | X54: =IFERROR(V54*VLOOKUP(CAPA!$C$15,Índices!$B$8:$F$1000,5)/VLOOKUP(EDATE('Multas Geradores'!W54,-1),Índices!$B$8:$F$1000,5),0) -> 0 | AA54: 6612 | AB54: ENF | AC54: Energisa Nova Friburgo - Distribuidora de Energia S.A. | AD54: 152
J55: Desp. nº 2.495/2024 | K55: Termoceará | L55: PETROB PIE 1LN | M55: COSERN | N55: 16283 | O55: 1º LEN | P55: 2009-T15 | Q55: 80645.27 | R55: 45231 | S55: =Q55*VLOOKUP(CAPA!$C$15,Índices!$B$8:$F$1000,5)/VLOOKUP(EDATE('Multas Geradores'!R55,-1),Índices!$B$8:$F$1000,5) -> 112557.8866 | T55: 40 | U55: N | X55: =IFERROR(V55*VLOOKUP(CAPA!$C$15,Índices!$B$8:$F$1000,5)/VLOOKUP(EDATE('Multas Geradores'!W55,-1),Índices!$B$8:$F$1000,5),0) -> 0 | AA55: 38 | AB55: Equatorial PI | AC55: Equatorial Piauí Distribuidora de Energia S.A. | AD55: 119
J56: Desp. nº 2.495/2024 | K56: Termoceará | L56: PETROB PIE 1LN | M56: CPFL PAULISTA | N56: 16279 | O56: 1º LEN | P56: 2009-T15 | Q56: 366163.95 | R56: 45231 | S56: =Q56*VLOOKUP(CAPA!$C$15,Índices!$B$8:$F$1000,5)/VLOOKUP(EDATE('Multas Geradores'!R56,-1),Índices!$B$8:$F$1000,5) -> 511060.8516 | T56: 63 | U56: S | V56: -351995.5516 | W56: 45748 | X56: =IFERROR(V56*VLOOKUP(CAPA!$C$15,Índices!$B$8:$F$1000,5)/VLOOKUP(EDATE('Multas Geradores'!W56,-1),Índices!$B$8:$F$1000,5),0) -> -422538.2993 | AA56: 369 | AB56: ERO | AC56: Energisa Rondônia - Distribuidora de Energia S.A. | AD56: 120
J57: Desp. nº 2.495/2024 | K57: Termoceará | L57: PETROB PIE 1LN | M57: CPFL SANTA CRUZ | N57: 16288 | O57: 1º LEN | P57: 2009-T15 | Q57: 8518.79 | R57: 45231 | S57: =Q57*VLOOKUP(CAPA!$C$15,Índices!$B$8:$F$1000,5)/VLOOKUP(EDATE('Multas Geradores'!R57,-1),Índices!$B$8:$F$1000,5) -> 11889.81076 | T57: 1000041 | U57: S | V57: =-82230.1*8518.79/(8518.79+72840.76+68.22) -> -8602.727959 | W57: 45717 | X57: =IFERROR(V57*VLOOKUP(CAPA!$C$15,Índices!$B$8:$F$1000,5)/VLOOKUP(EDATE('Multas Geradores'!W57,-1),Índices!$B$8:$F$1000,5),0) -> -10426.33728 | AA57: 83 | AB57: Forcel | AC57: Força e Luz Coronel Vivida Ltda. | AD57: 156
J58: Desp. nº 2.495/2024 | K58: Termoceará | L58: PETROB PIE 1LN | M58: ELEKTRO | N58: 16295 | O58: 1º LEN | P58: 2009-T15 | Q58: 135021.97 | R58: 45231 | S58: =Q58*VLOOKUP(CAPA!$C$15,Índices!$B$8:$F$1000,5)/VLOOKUP(EDATE('Multas Geradores'!R58,-1),Índices!$B$8:$F$1000,5) -> 188452.3121 | T58: 385 | U58: S | V58: =-1153405.38*135021.97/(135021.97+935155.36) -> -145522.6739 | W58: 45870 | X58: =IFERROR(V58*VLOOKUP(CAPA!$C$15,Índices!$B$8:$F$1000,5)/VLOOKUP(EDATE('Multas Geradores'!W58,-1),Índices!$B$8:$F$1000,5),0) -> -166930.7751 | AA58: 399 | AB58: Hidropan | AC58: Hidropan Distribuição de Energia S.A. | AD58: 157
J59: Desp. nº 2.495/2024 | K59: Termoceará | L59: PETROB PIE 1LN | M59: ELETROPAULO | N59: 16298 | O59: 1º LEN | P59: 2009-T15 | Q59: 261941.35 | R59: 45231 | S59: =Q59*VLOOKUP(CAPA!$C$15,Índices!$B$8:$F$1000,5)/VLOOKUP(EDATE('Multas Geradores'!R59,-1),Índices!$B$8:$F$1000,5) -> 365595.7103 | T59: 390 | U59: N | X59: =IFERROR(V59*VLOOKUP(CAPA!$C$15,Índices!$B$8:$F$1000,5)/VLOOKUP(EDATE('Multas Geradores'!W59,-1),Índices!$B$8:$F$1000,5),0) -> 0 | AA59: 88 | AB59: João Cesa | AC59: Empresa Força e Luz João Cesa Ltda. | AD59: 143
J60: Desp. nº 2.495/2024 | K60: Termoceará | L60: PETROB PIE 1LN | M60: ENERGISA BORBOREMA | N60: 16289 | O60: 1º LEN | P60: 2009-T15 | Q60: 5193.13 | R60: 45231 | S60: =Q60*VLOOKUP(CAPA!$C$15,Índices!$B$8:$F$1000,5)/VLOOKUP(EDATE('Multas Geradores'!R60,-1),Índices!$B$8:$F$1000,5) -> 7248.134176 | T60: 6600 | U60: S | V60: =-439557.38*5193.13/(5193.13+32889.97+44113.25+279067.32) -> -6318.59444 | W60: 45809 | X60: =IFERROR(V60*VLOOKUP(CAPA!$C$15,Índices!$B$8:$F$1000,5)/VLOOKUP(EDATE('Multas Geradores'!W60,-1),Índices!$B$8:$F$1000,5),0) -> -7421.131145 | AA60: 401 | AB60: Mux Energia | AC60: Muxfeldt Marin E Cia Ltda | AD60: 161
J61: Desp. nº 2.495/2024 | K61: Termoceara | L61: PETROB PIE 1LN | M61: ENERGISA BR | N61: 16292 | O61: 1º LEN | P61: 2009-T15 | Q61: 4981.23 | R61: 45231 | S61: =Q61*VLOOKUP(CAPA!$C$15,Índices!$B$8:$F$1000,5)/VLOOKUP(EDATE('Multas Geradores'!R61,-1),Índices!$B$8:$F$1000,5) -> 6952.381975 | T61: 1000040 | U61: S | V61: =-276681.523893658*4981.23/(4981.23+65963.88+292.48+9950.3+102128.5+6243.38+68032.54) -> -5350.370542 | W61: 45839 | X61: =IFERROR(V61*VLOOKUP(CAPA!$C$15,Índices!$B$8:$F$1000,5)/VLOOKUP(EDATE('Multas Geradores'!W61,-1),Índices!$B$8:$F$1000,5),0) -> -6215.770874 | AA61: 400 | AB61: Nova Palma | AC61: Nova Palma Energia Ltda. | AD61: 164
J62: Desp. nº 2.495/2024 | K62: Termoceará | L62: PETROB PIE 1LN | M62: ENERGISA MR | N62: 16309 | O62: 1º LEN | P62: 2009-T15 | Q62: 8651.55 | R62: 45231 | S62: =Q62*VLOOKUP(CAPA!$C$15,Índices!$B$8:$F$1000,5)/VLOOKUP(EDATE('Multas Geradores'!R62,-1),Índices!$B$8:$F$1000,5) -> 12075.106 | T62: 6585 | U62: S | V62: -9107.019526 | W62: 45809 | X62: =IFERROR(V62*VLOOKUP(CAPA!$C$15,Índices!$B$8:$F$1000,5)/VLOOKUP(EDATE('Multas Geradores'!W62,-1),Índices!$B$8:$F$1000,5),0) -> -10696.1108 | AA62: 370 | AB62: Roraima Energia | AC62: Roraima Energia S.A. | AD62: 105
J63: Desp. nº 2.495/2024 | K63: Termoceará | L63: PETROB PIE 1LN | M63: ENERGISA MS | N63: 16291 | O63: 1º LEN | P63: 2009-T15 | Q63: 37268.41 | R63: 45231 | S63: =Q63*VLOOKUP(CAPA!$C$15,Índices!$B$8:$F$1000,5)/VLOOKUP(EDATE('Multas Geradores'!R63,-1),Índices!$B$8:$F$1000,5) -> 52016.11287 | T63: 404 | U63: N | X63: =IFERROR(V63*VLOOKUP(CAPA!$C$15,Índices!$B$8:$F$1000,5)/VLOOKUP(EDATE('Multas Geradores'!W63,-1),Índices!$B$8:$F$1000,5),0) -> 0 | AA63: 381 | AB63: Santa Maria | AC63: Empresa Luz e Força Santa Maria S/A | AD63: 149
J64: Desp. nº 2.495/2024 | K64: Termoceará | L64: PETROB PIE 1LN | M64: ENERGISA MT | N64: 16307 | O64: 1º LEN | P64: 2009-T15 | Q64: 65477.12 | R64: 45231 | S64: =Q64*VLOOKUP(CAPA!$C$15,Índices!$B$8:$F$1000,5)/VLOOKUP(EDATE('Multas Geradores'!R64,-1),Índices!$B$8:$F$1000,5) -> 91387.45829 | T64: 405 | U64: N | X64: =IFERROR(V64*VLOOKUP(CAPA!$C$15,Índices!$B$8:$F$1000,5)/VLOOKUP(EDATE('Multas Geradores'!W64,-1),Índices!$B$8:$F$1000,5),0) -> 0 | AA64: 46 | AB64: Sulgipe | AC64: Companhia Sul Sergipana de Eletricidade | AD64: 163
J65: Desp. nº 2.495/2024 | K65: Termoceará | L65: PETROB PIE 1LN | M65: ENERGISA PB | N65: 16300 | O65: 1º LEN | P65: 2009-T15 | Q65: 32889.97 | R65: 45231 | S65: =Q65*VLOOKUP(CAPA!$C$15,Índices!$B$8:$F$1000,5)/VLOOKUP(EDATE('Multas Geradores'!R65,-1),Índices!$B$8:$F$1000,5) -> 45905.05449 | T65: 6600 | U65: S | V65: =-439557.38*32889.97/(5193.13+32889.97+44113.25+279067.32) -> -40017.94324 | W65: 45809 | X65: =IFERROR(V65*VLOOKUP(CAPA!$C$15,Índices!$B$8:$F$1000,5)/VLOOKUP(EDATE('Multas Geradores'!W65,-1),Índices!$B$8:$F$1000,5),0) -> -47000.70684
J66: Desp. nº 2.495/2024 | K66: Termoceará | L66: PETROB PIE 1LN | M66: ENERGISA SE | N66: 16303 | O66: 1º LEN | P66: 2009-T15 | Q66: 29169.57 | R66: 45231 | S66: =Q66*VLOOKUP(CAPA!$C$15,Índices!$B$8:$F$1000,5)/VLOOKUP(EDATE('Multas Geradores'!R66,-1),Índices!$B$8:$F$1000,5) -> 40712.43301 | T66: 6587 | U66: N | X66: =IFERROR(V66*VLOOKUP(CAPA!$C$15,Índices!$B$8:$F$1000,5)/VLOOKUP(EDATE('Multas Geradores'!W66,-1),Índices!$B$8:$F$1000,5),0) -> 0
J67: Desp. nº 2.495/2024 | K67: Termoceará | L67: PETROB PIE 1LN | M67: ENERGISA SS | N67: 16290 | O67: 1º LEN | P67: 2009-T15 | Q67: 9950.3 | R67: 45231 | S67: =Q67*VLOOKUP(CAPA!$C$15,Índices!$B$8:$F$1000,5)/VLOOKUP(EDATE('Multas Geradores'!R67,-1),Índices!$B$8:$F$1000,5) -> 13887.79204 | T67: 1000040 | U67: S | V67: =-276681.523893658*9950.3/(4981.23+65963.88+292.48+9950.3+102128.5+6243.38+68032.54) -> -10687.67995 | W67: 45839 | X67: =IFERROR(V67*VLOOKUP(CAPA!$C$15,Índices!$B$8:$F$1000,5)/VLOOKUP(EDATE('Multas Geradores'!W67,-1),Índices!$B$8:$F$1000,5),0) -> -12416.36803
J68: Desp. nº 2.495/2024 | K68: Termoceará | L68: PETROB PIE 1LN | M68: ENERGISA TO | N68: 16306 | O68: 1º LEN | P68: 2009-T15 | Q68: 13247.46 | R68: 45231 | S68: =Q68*VLOOKUP(CAPA!$C$15,Índices!$B$8:$F$1000,5)/VLOOKUP(EDATE('Multas Geradores'!R68,-1),Índices!$B$8:$F$1000,5) -> 18489.69072 | T68: 32 | U68: S | V68: =-152142.474781536*13247.46/(13247.46+128398.18) -> -14229.18029 | W68: 45839 | X68: =IFERROR(V68*VLOOKUP(CAPA!$C$15,Índices!$B$8:$F$1000,5)/VLOOKUP(EDATE('Multas Geradores'!W68,-1),Índices!$B$8:$F$1000,5),0) -> -16530.69142
J69: Desp. nº 2.495/2024 | K69: Termoceará | L69: PETROB PIE 1LN | M69: ENERGISA VP | N69: 16308 | O69: 1º LEN | P69: 2009-T15 | Q69: 6243.38 | R69: 45231 | S69: =Q69*VLOOKUP(CAPA!$C$15,Índices!$B$8:$F$1000,5)/VLOOKUP(EDATE('Multas Geradores'!R69,-1),Índices!$B$8:$F$1000,5) -> 8713.984814 | T69: 1000040 | U69: S | V69: =-276681.523893658*6243.38/(4981.23+65963.88+292.48+9950.3+102128.5+6243.38+68032.54) -> -6706.053813 | W69: 45839 | X69: =IFERROR(V69*VLOOKUP(CAPA!$C$15,Índices!$B$8:$F$1000,5)/VLOOKUP(EDATE('Multas Geradores'!W69,-1),Índices!$B$8:$F$1000,5),0) -> -7790.730314
J70: Desp. nº 2.495/2024 | K70: Termoceará | L70: PETROB PIE 1LN | M70: ESCELSA | N70: 16282 | O70: 1º LEN | P70: 2009-T15 | Q70: 74919.9 | R70: 45231 | S70: =Q70*VLOOKUP(CAPA!$C$15,Índices!$B$8:$F$1000,5)/VLOOKUP(EDATE('Multas Geradores'!R70,-1),Índices!$B$8:$F$1000,5) -> 104566.8966 | T70: 380 | U70: S | V70: =-1385727.16615225*74919.9/(74919.9+1188922.8) -> -82145.1441 | W70: 01/082025 | X70: =IFERROR(V70*VLOOKUP(CAPA!$C$15,Índices!$B$8:$F$1000,5)/VLOOKUP(EDATE('Multas Geradores'!W70,-1),Índices!$B$8:$F$1000,5),0) -> 0
J71: Desp. nº 2.495/2024 | K71: Termoceará | L71: PETROB PIE 1LN | M71: LIGHT | N71: 16284 | O71: 1º LEN | P71: 2009-T15 | Q71: 173783.63 | R71: 45231 | S71: =Q71*VLOOKUP(CAPA!$C$15,Índices!$B$8:$F$1000,5)/VLOOKUP(EDATE('Multas Geradores'!R71,-1),Índices!$B$8:$F$1000,5) -> 242552.5777 | T71: =VLOOKUP(M71,$Z$7:$AD$64,2) -> 382 | U71: N | X71: =IFERROR(V71*VLOOKUP(CAPA!$C$15,Índices!$B$8:$F$1000,5)/VLOOKUP(EDATE('Multas Geradores'!W71,-1),Índices!$B$8:$F$1000,5),0) -> 0
J72: Desp. nº 2.495/2024 | K72: Termoceará | L72: PETROB PIE 1LN | M72: RGE SUL | N72: 16287 | O72: 1º LEN | P72: 2009-T15 | Q72: 90322.36 | R72: 45231 | S72: =Q72*VLOOKUP(CAPA!$C$15,Índices!$B$8:$F$1000,5)/VLOOKUP(EDATE('Multas Geradores'!R72,-1),Índices!$B$8:$F$1000,5) -> 126064.3551 | T72: 1000042 | U72: S | V72: =-928794.33*90322.36/(90322.36+797751.65+3208.42) -> -94123.80747 | W72: 45809 | X72: =IFERROR(V72*VLOOKUP(CAPA!$C$15,Índices!$B$8:$F$1000,5)/VLOOKUP(EDATE('Multas Geradores'!W72,-1),Índices!$B$8:$F$1000,5),0) -> -110547.5475
J73: Desp. nº 2.495/2024 | K73: Termoceará | L73: PETROB PIE 1LN | M73: AMPLA | N73: 16330 | O73: 1º LEN | P73: 2010-T15 | Q73: 882724.17 | R73: 45231 | S73: =Q73*VLOOKUP(CAPA!$C$15,Índices!$B$8:$F$1000,5)/VLOOKUP(EDATE('Multas Geradores'!R73,-1),Índices!$B$8:$F$1000,5) -> 1232032.17 | T73: 383 | U73: N | X73: =IFERROR(V73*VLOOKUP(CAPA!$C$15,Índices!$B$8:$F$1000,5)/VLOOKUP(EDATE('Multas Geradores'!W73,-1),Índices!$B$8:$F$1000,5),0) -> 0
J74: Desp. nº 2.495/2024 | K74: Termoceará | L74: PETROB PIE 1LN | M74: BANDEIRANTE | N74: 16332 | O74: 1º LEN | P74: 2010-T15 | Q74: 969538.33 | R74: 45231 | S74: =Q74*VLOOKUP(CAPA!$C$15,Índices!$B$8:$F$1000,5)/VLOOKUP(EDATE('Multas Geradores'!R74,-1),Índices!$B$8:$F$1000,5) -> 1353200.075 | T74: 391 | U74: N | X74: =IFERROR(V74*VLOOKUP(CAPA!$C$15,Índices!$B$8:$F$1000,5)/VLOOKUP(EDATE('Multas Geradores'!W74,-1),Índices!$B$8:$F$1000,5),0) -> 0
J75: Desp. nº 2.495/2024 | K75: Termoceará | L75: PETROB PIE 1LN | M75: CEAL | N75: 16328 | O75: 1º LEN | P75: 2010-T15 | Q75: 114293.77 | R75: 45231 | S75: =Q75*VLOOKUP(CAPA!$C$15,Índices!$B$8:$F$1000,5)/VLOOKUP(EDATE('Multas Geradores'!R75,-1),Índices!$B$8:$F$1000,5) -> 159521.6335 | T75: 44 | U75: N | X75: =IFERROR(V75*VLOOKUP(CAPA!$C$15,Índices!$B$8:$F$1000,5)/VLOOKUP(EDATE('Multas Geradores'!W75,-1),Índices!$B$8:$F$1000,5),0) -> 0
J76: Desp. nº 2.495/2024 | K76: Termoceará | L76: PETROB PIE 1LN | M76: CEEE DISTRIB | N76: 16336 | O76: 1º LEN | P76: 2010-T15 | Q76: 817139.55 | R76: 45231 | S76: =Q76*VLOOKUP(CAPA!$C$15,Índices!$B$8:$F$1000,5)/VLOOKUP(EDATE('Multas Geradores'!R76,-1),Índices!$B$8:$F$1000,5) -> 1140494.673 | T76: 5707 | U76: N | X76: =IFERROR(V76*VLOOKUP(CAPA!$C$15,Índices!$B$8:$F$1000,5)/VLOOKUP(EDATE('Multas Geradores'!W76,-1),Índices!$B$8:$F$1000,5),0) -> 0
J77: Desp. nº 2.495/2024 | K77: Termoceará | L77: PETROB PIE 1LN | M77: CELESC DIST | N77: 16312 | O77: 1º LEN | P77: 2010-T15 | Q77: 1717163.29 | R77: 45231 | S77: =Q77*VLOOKUP(CAPA!$C$15,Índices!$B$8:$F$1000,5)/VLOOKUP(EDATE('Multas Geradores'!R77,-1),Índices!$B$8:$F$1000,5) -> 2396672.128 | T77: 5697 | U77: N | X77: =IFERROR(V77*VLOOKUP(CAPA!$C$15,Índices!$B$8:$F$1000,5)/VLOOKUP(EDATE('Multas Geradores'!W77,-1),Índices!$B$8:$F$1000,5),0) -> 0
J78: Desp. nº 2.495/2024 | K78: Termoceará | L78: PETROB PIE 1LN | M78: CELG | N78: 16335 | O78: 1º LEN | P78: 2010-T15 | Q78: 885275.08 | R78: 45231 | S78: =Q78*VLOOKUP(CAPA!$C$15,Índices!$B$8:$F$1000,5)/VLOOKUP(EDATE('Multas Geradores'!R78,-1),Índices!$B$8:$F$1000,5) -> 1235592.516 | T78: 6072 | U78: N | X78: =IFERROR(V78*VLOOKUP(CAPA!$C$15,Índices!$B$8:$F$1000,5)/VLOOKUP(EDATE('Multas Geradores'!W78,-1),Índices!$B$8:$F$1000,5),0) -> 0
J79: Desp. nº 2.495/2024 | K79: Termoceará | L79: PETROB PIE 1LN | M79: CELPA | N79: 16317 | O79: 1º LEN | P79: 2010-T15 | Q79: 941775.92 | R79: 45231 | S79: =Q79*VLOOKUP(CAPA!$C$15,Índices!$B$8:$F$1000,5)/VLOOKUP(EDATE('Multas Geradores'!R79,-1),Índices!$B$8:$F$1000,5) -> 1314451.638 | T79: 371 | U79: N | X79: =IFERROR(V79*VLOOKUP(CAPA!$C$15,Índices!$B$8:$F$1000,5)/VLOOKUP(EDATE('Multas Geradores'!W79,-1),Índices!$B$8:$F$1000,5),0) -> 0
J80: Desp. nº 2.495/2024 | K80: Termoceará | L80: PETROB PIE 1LN | M80: CELPE | N80: 16311 | O80: 1º LEN | P80: 2010-T15 | Q80: 1119228.98 | R80: 45231 | S80: =Q80*VLOOKUP(CAPA!$C$15,Índices!$B$8:$F$1000,5)/VLOOKUP(EDATE('Multas Geradores'!R80,-1),Índices!$B$8:$F$1000,5) -> 1562125.697 | T80: 43 | U80: N | X80: =IFERROR(V80*VLOOKUP(CAPA!$C$15,Índices!$B$8:$F$1000,5)/VLOOKUP(EDATE('Multas Geradores'!W80,-1),Índices!$B$8:$F$1000,5),0) -> 0
J81: Desp. nº 2.495/2024 | K81: Termoceará | L81: PETROB PIE 1LN | M81: CEMAR | N81: 16341 | O81: 1º LEN | P81: 2010-T15 | Q81: 592386.96 | R81: 45231 | S81: =Q81*VLOOKUP(CAPA!$C$15,Índices!$B$8:$F$1000,5)/VLOOKUP(EDATE('Multas Geradores'!R81,-1),Índices!$B$8:$F$1000,5) -> 826803.9064 | T81: 37 | U81: N | X81: =IFERROR(V81*VLOOKUP(CAPA!$C$15,Índices!$B$8:$F$1000,5)/VLOOKUP(EDATE('Multas Geradores'!W81,-1),Índices!$B$8:$F$1000,5),0) -> 0
J82: Desp. nº 2.495/2024 | K82: Termoceará | L82: PETROB PIE 1LN | M82: CEMIG DISTRIB | N82: 16325 | O82: 1º LEN | P82: 2010-T15 | Q82: 2529782.66 | R82: 45231 | S82: =Q82*VLOOKUP(CAPA!$C$15,Índices!$B$8:$F$1000,5)/VLOOKUP(EDATE('Multas Geradores'!R82,-1),Índices!$B$8:$F$1000,5) -> 3530857.914 | T82: 4950 | U82: N | X82: =IFERROR(V82*VLOOKUP(CAPA!$C$15,Índices!$B$8:$F$1000,5)/VLOOKUP(EDATE('Multas Geradores'!W82,-1),Índices!$B$8:$F$1000,5),0) -> 0
J83: Desp. nº 2.495/2024 | K83: Termoceará | L83: PETROB PIE 1LN | M83: CEPISA | N83: 16318 | O83: 1º LEN | P83: 2010-T15 | Q83: 336873.28 | R83: 45231 | S83: =Q83*VLOOKUP(CAPA!$C$15,Índices!$B$8:$F$1000,5)/VLOOKUP(EDATE('Multas Geradores'!R83,-1),Índices!$B$8:$F$1000,5) -> 470179.3974 | T83: 4950 | U83: N | X83: =IFERROR(V83*VLOOKUP(CAPA!$C$15,Índices!$B$8:$F$1000,5)/VLOOKUP(EDATE('Multas Geradores'!W83,-1),Índices!$B$8:$F$1000,5),0) -> 0
J84: Desp. nº 2.495/2024 | K84: Termoceará | L84: PETROB PIE 1LN | M84: COELBA | N84: 16326 | O84: 1º LEN | P84: 2010-T15 | Q84: 1598898.52 | R84: 45231 | S84: =Q84*VLOOKUP(CAPA!$C$15,Índices!$B$8:$F$1000,5)/VLOOKUP(EDATE('Multas Geradores'!R84,-1),Índices!$B$8:$F$1000,5) -> 2231608.107 | T84: 47 | U84: S | V84: =-1801895.84088413*1598898.52/(185312.57+1598898.52) -> -1614746.489 | W84: 45748 | X84: =IFERROR(V84*VLOOKUP(CAPA!$C$15,Índices!$B$8:$F$1000,5)/VLOOKUP(EDATE('Multas Geradores'!W84,-1),Índices!$B$8:$F$1000,5),0) -> -1938354.71
J85: Desp. nº 2.495/2024 | K85: Termoceará | L85: PETROB PIE 1LN | M85: COELCE | N85: 16313 | O85: 1º LEN | P85: 2010-T15 | Q85: 978924.04 | R85: 45231 | S85: =Q85*VLOOKUP(CAPA!$C$15,Índices!$B$8:$F$1000,5)/VLOOKUP(EDATE('Multas Geradores'!R85,-1),Índices!$B$8:$F$1000,5) -> 1366299.86 | T85: 39 | U85: N | X85: =IFERROR(V85*VLOOKUP(CAPA!$C$15,Índices!$B$8:$F$1000,5)/VLOOKUP(EDATE('Multas Geradores'!W85,-1),Índices!$B$8:$F$1000,5),0) -> 0
J86: Desp. nº 2.495/2024 | K86: Termoceará | L86: PETROB PIE 1LN | M86: COPEL DISTRIB | N86: 16333 | O86: 1º LEN | P86: 2010-T15 | Q86: 1852455.66 | R86: 45231 | S86: =Q86*VLOOKUP(CAPA!$C$15,Índices!$B$8:$F$1000,5)/VLOOKUP(EDATE('Multas Geradores'!R86,-1),Índices!$B$8:$F$1000,5) -> 2585501.842 | T86: 2866 | U86: N | X86: =IFERROR(V86*VLOOKUP(CAPA!$C$15,Índices!$B$8:$F$1000,5)/VLOOKUP(EDATE('Multas Geradores'!W86,-1),Índices!$B$8:$F$1000,5),0) -> 0
J87: Desp. nº 2.495/2024 | K87: Termoceará | L87: PETROB PIE 1LN | M87: COSERN | N87: 16315 | O87: 1º LEN | P87: 2010-T15 | Q87: 639559.39 | R87: 45231 | S87: =Q87*VLOOKUP(CAPA!$C$15,Índices!$B$8:$F$1000,5)/VLOOKUP(EDATE('Multas Geradores'!R87,-1),Índices!$B$8:$F$1000,5) -> 892643.2176 | T87: 40 | U87: N | X87: =IFERROR(V87*VLOOKUP(CAPA!$C$15,Índices!$B$8:$F$1000,5)/VLOOKUP(EDATE('Multas Geradores'!W87,-1),Índices!$B$8:$F$1000,5),0) -> 0
J88: Desp. nº 2.495/2024 | K88: Termoceará | L88: PETROB PIE 1LN | M88: CPFL LESTE PAULISTA | N88: 245806 | O88: 1º LEN | P88: 2010-T15 | Q88: 68.22 | R88: 45231 | S88: =Q88*VLOOKUP(CAPA!$C$15,Índices!$B$8:$F$1000,5)/VLOOKUP(EDATE('Multas Geradores'!R88,-1),Índices!$B$8:$F$1000,5) -> 95.21573955 | T88: 1000041 | U88: S | V88: =-82230.1*68.22/(8518.79+72840.76+68.22) -> -68.89219024 | W88: 45717 | X88: =IFERROR(V88*VLOOKUP(CAPA!$C$15,Índices!$B$8:$F$1000,5)/VLOOKUP(EDATE('Multas Geradores'!W88,-1),Índices!$B$8:$F$1000,5),0) -> -83.49598115
J89: Desp. nº 2.495/2024 | K89: Termoceará | L89: PETROB PIE 1LN | M89: CPFL PAULISTA | N89: 245945 | O89: 1º LEN | P89: 2010-T15 | Q89: 182.83 | R89: 45231 | S89: =Q89*VLOOKUP(CAPA!$C$15,Índices!$B$8:$F$1000,5)/VLOOKUP(EDATE('Multas Geradores'!R89,-1),Índices!$B$8:$F$1000,5) -> 255.1787403 | T89: 63 | U89: N | V89: 0 | W89: 45748 | X89: =IFERROR(V89*VLOOKUP(CAPA!$C$15,Índices!$B$8:$F$1000,5)/VLOOKUP(EDATE('Multas Geradores'!W89,-1),Índices!$B$8:$F$1000,5),0) -> 0
J90: Desp. nº 2.495/2024 | K90: Termoceará | L90: PETROB PIE 1LN | M90: CPFL PIRATINGA | N90: 246009 | O90: 1º LEN | P90: 2010-T15 | Q90: 1117.55 | R90: 45231 | S90: =Q90*VLOOKUP(CAPA!$C$15,Índices!$B$8:$F$1000,5)/VLOOKUP(EDATE('Multas Geradores'!R90,-1),Índices!$B$8:$F$1000,5) -> 1559.782318 | T90: 2937 | U90: N | X90: =IFERROR(V90*VLOOKUP(CAPA!$C$15,Índices!$B$8:$F$1000,5)/VLOOKUP(EDATE('Multas Geradores'!W90,-1),Índices!$B$8:$F$1000,5),0) -> 0
J91: Desp. nº 2.495/2024 | K91: Termoceará | L91: PETROB PIE 1LN | M91: CPFL SANTA CRUZ | N91: 16320 | O91: 1º LEN | P91: 2010-T15 | Q91: 72840.76 | R91: 45231 | S91: =Q91*VLOOKUP(CAPA!$C$15,Índices!$B$8:$F$1000,5)/VLOOKUP(EDATE('Multas Geradores'!R91,-1),Índices!$B$8:$F$1000,5) -> 101665.0078 | T91: 1000041 | U91: S | V91: =-82230.1*72840.76/(8518.79+72840.76+68.22) -> -73558.47985 | W91: 45717 | X91: =IFERROR(V91*VLOOKUP(CAPA!$C$15,Índices!$B$8:$F$1000,5)/VLOOKUP(EDATE('Multas Geradores'!W91,-1),Índices!$B$8:$F$1000,5),0) -> -89151.43248
J92: Desp. nº 2.495/2024 | K92: Termoceará | L92: PETROB PIE 1LN | M92: ELEKTRO | N92: 16327 | O92: 1º LEN | P92: 2010-T15 | Q92: 935155.36 | R92: 45231 | S92: =Q92*VLOOKUP(CAPA!$C$15,Índices!$B$8:$F$1000,5)/VLOOKUP(EDATE('Multas Geradores'!R92,-1),Índices!$B$8:$F$1000,5) -> 1305211.217 | T92: 385 | U92: S | V92: =-1153405.38*935155.36/(135021.97+935155.36) -> -1007882.706 | W92: 45870 | X92: =IFERROR(V92*VLOOKUP(CAPA!$C$15,Índices!$B$8:$F$1000,5)/VLOOKUP(EDATE('Multas Geradores'!W92,-1),Índices!$B$8:$F$1000,5),0) -> -1156154.136
J93: Desp. nº 2.495/2024 | K93: Termoceará | L93: PETROB PIE 1LN | M93: ELETROPAULO | N93: 16329 | O93: 1º LEN | P93: 2010-T15 | Q93: 2489755.81 | R93: 45231 | S93: =Q93*VLOOKUP(CAPA!$C$15,Índices!$B$8:$F$1000,5)/VLOOKUP(EDATE('Multas Geradores'!R93,-1),Índices!$B$8:$F$1000,5) -> 3474991.802 | T93: 390 | U93: N | X93: =IFERROR(V93*VLOOKUP(CAPA!$C$15,Índices!$B$8:$F$1000,5)/VLOOKUP(EDATE('Multas Geradores'!W93,-1),Índices!$B$8:$F$1000,5),0) -> 0
J94: Desp. nº 2.495/2024 | K94: Termoceará | L94: PETROB PIE 1LN | M94: ENERGISA BORBOREMA | N94: 16321 | O94: 1º LEN | P94: 2010-T15 | Q94: 44113.25 | R94: 45231 | S94: =Q94*VLOOKUP(CAPA!$C$15,Índices!$B$8:$F$1000,5)/VLOOKUP(EDATE('Multas Geradores'!R94,-1),Índices!$B$8:$F$1000,5) -> 61569.56498 | T94: 6600 | U94: S | V94: =-439557.38*44113.25/(5193.13+32889.97+44113.25+279067.32) -> -53673.5526 | W94: 45809 | X94: =IFERROR(V94*VLOOKUP(CAPA!$C$15,Índices!$B$8:$F$1000,5)/VLOOKUP(EDATE('Multas Geradores'!W94,-1),Índices!$B$8:$F$1000,5),0) -> -63039.09463
J95: Desp. nº 2.495/2024 | K95: 1 | L95: PETROB PIE 1LN | M95: ENERGISA BR | N95: 16324 | O95: 1º LEN | P95: 2010-T15 | Q95: 65963.88 | R95: 45231 | S95: =Q95*VLOOKUP(CAPA!$C$15,Índices!$B$8:$F$1000,5)/VLOOKUP(EDATE('Multas Geradores'!R95,-1),Índices!$B$8:$F$1000,5) -> 92066.83696 | T95: 1000040 | U95: S | V95: =-276681.523893658*65963.88/(4981.23+65963.88+292.48+9950.3+102128.5+6243.38+68032.54) -> -70852.21931 | W95: 45839 | X95: =IFERROR(V95*VLOOKUP(CAPA!$C$15,Índices!$B$8:$F$1000,5)/VLOOKUP(EDATE('Multas Geradores'!W95,-1),Índices!$B$8:$F$1000,5),0) -> -82312.27309
J96: Desp. nº 2.495/2024 | K96: Termoceará | L96: PETROB PIE 1LN | M96: ENERGISA MS | N96: 16323 | O96: 1º LEN | P96: 2010-T15 | Q96: 296566.55 | R96: 45231 | S96: =Q96*VLOOKUP(CAPA!$C$15,Índices!$B$8:$F$1000,5)/VLOOKUP(EDATE('Multas Geradores'!R96,-1),Índices!$B$8:$F$1000,5) -> 413922.6529 | T96: 404 | U96: N | X96: =IFERROR(V96*VLOOKUP(CAPA!$C$15,Índices!$B$8:$F$1000,5)/VLOOKUP(EDATE('Multas Geradores'!W96,-1),Índices!$B$8:$F$1000,5),0) -> 0
J97: Desp. nº 2.495/2024 | K97: Termoceará | L97: PETROB PIE 1LN | M97: ENERGISA MT | N97: 16338 | O97: 1º LEN | P97: 2010-T15 | Q97: 788678.48 | R97: 45231 | S97: =Q97*VLOOKUP(CAPA!$C$15,Índices!$B$8:$F$1000,5)/VLOOKUP(EDATE('Multas Geradores'!R97,-1),Índices!$B$8:$F$1000,5) -> 1100771.104 | T97: 405 | U97: N | X97: =IFERROR(V97*VLOOKUP(CAPA!$C$15,Índices!$B$8:$F$1000,5)/VLOOKUP(EDATE('Multas Geradores'!W97,-1),Índices!$B$8:$F$1000,5),0) -> 0
J98: Desp. nº 2.495/2024 | K98: Termoceará | L98: PETROB PIE 1LN | M98: ENERGISA NA | N98: 245908 | O98: 1º LEN | P98: 2010-T15 | Q98: 292.48 | R98: 45231 | S98: =Q98*VLOOKUP(CAPA!$C$15,Índices!$B$8:$F$1000,5)/VLOOKUP(EDATE('Multas Geradores'!R98,-1),Índices!$B$8:$F$1000,5) -> 408.2189901 | T98: 1000040 | U98: S | V98: =-276681.523893658*292.48/(4981.23+65963.88+292.48+9950.3+102128.5+6243.38+68032.54) -> -314.1546116 | W98: 45839 | X98: =IFERROR(V98*VLOOKUP(CAPA!$C$15,Índices!$B$8:$F$1000,5)/VLOOKUP(EDATE('Multas Geradores'!W98,-1),Índices!$B$8:$F$1000,5),0) -> -364.9678223
J99: Desp. nº 2.495/2024 | K99: Termoceará | L99: PETROB PIE 1LN | M99: ENERGISA PB | N99: 16331 | O99: 1º LEN | P99: 2010-T15 | Q99: 279067.32 | R99: 45231 | S99: =Q99*VLOOKUP(CAPA!$C$15,Índices!$B$8:$F$1000,5)/VLOOKUP(EDATE('Multas Geradores'!R99,-1),Índices!$B$8:$F$1000,5) -> 389498.6992 | T99: 6600 | U99: S | V99: =-439557.38*279067.32/(5193.13+32889.97+44113.25+279067.32) -> -339547.2897 | W99: 45809 | X99: =IFERROR(V99*VLOOKUP(CAPA!$C$15,Índices!$B$8:$F$1000,5)/VLOOKUP(EDATE('Multas Geradores'!W99,-1),Índices!$B$8:$F$1000,5),0) -> -398795.1736
J100: Desp. nº 2.495/2024 | K100: Termoceará | L100: PETROB PIE 1LN | M100: ENERGISA SE | N100: 16334 | O100: 1º LEN | P100: 2010-T15 | Q100: 174425.31 | R100: 45231 | S100: =Q100*VLOOKUP(CAPA!$C$15,Índices!$B$8:$F$1000,5)/VLOOKUP(EDATE('Multas Geradores'!R100,-1),Índices!$B$8:$F$1000,5) -> 243448.1807 | T100: 6587 | U100: N | X100: =IFERROR(V100*VLOOKUP(CAPA!$C$15,Índices!$B$8:$F$1000,5)/VLOOKUP(EDATE('Multas Geradores'!W100,-1),Índices!$B$8:$F$1000,5),0) -> 0
J101: Desp. nº 2.495/2024 | K101: Termoceará | L101: PETROB PIE 1LN | M101: ENERGISA SS | N101: 16322 | O101: 1º LEN | P101: 2010-T15 | Q101: 102128.5 | R101: 45231 | S101: =Q101*VLOOKUP(CAPA!$C$15,Índices!$B$8:$F$1000,5)/VLOOKUP(EDATE('Multas Geradores'!R101,-1),Índices!$B$8:$F$1000,5) -> 142542.3726 | T101: 1000040 | U101: S | V101: =-276681.523893658*102128.5/(4981.23+65963.88+292.48+9950.3+102128.5+6243.38+68032.54) -> -109696.8656 | W101: 45839 | X101: =IFERROR(V101*VLOOKUP(CAPA!$C$15,Índices!$B$8:$F$1000,5)/VLOOKUP(EDATE('Multas Geradores'!W101,-1),Índices!$B$8:$F$1000,5),0) -> -127439.8805
J102: Desp. nº 2.495/2024 | K102: Termoceará | L102: PETROB PIE 1LN | M102: ENERGISA TO | N102: 16337 | O102: 1º LEN | P102: 2010-T15 | Q102: 128398.18 | R102: 45231 | S102: =Q102*VLOOKUP(CAPA!$C$15,Índices!$B$8:$F$1000,5)/VLOOKUP(EDATE('Multas Geradores'!R102,-1),Índices!$B$8:$F$1000,5) -> 179207.383 | T102: 32 | U102: S | V102: =-152142.474781536*128398.18/(13247.46+128398.18) -> -137913.2945 | W102: 45839 | X102: =IFERROR(V102*VLOOKUP(CAPA!$C$15,Índices!$B$8:$F$1000,5)/VLOOKUP(EDATE('Multas Geradores'!W102,-1),Índices!$B$8:$F$1000,5),0) -> -160220.2001
J103: Desp. nº 2.495/2024 | K103: Termoceará | L103: PETROB PIE 1LN | M103: ENERGISA VP | N103: 16339 | O103: 1º LEN | P103: 2010-T15 | Q103: 68032.54 | R103: 45231 | S103: =Q103*VLOOKUP(CAPA!$C$15,Índices!$B$8:$F$1000,5)/VLOOKUP(EDATE('Multas Geradores'!R103,-1),Índices!$B$8:$F$1000,5) -> 94954.09864 | T103: 1000040 | U103: S | V103: =-276681.523893658*68032.54/(4981.23+65963.88+292.48+9950.3+102128.5+6243.38+68032.54) -> -73074.18005 | W103: 45839 | X103: =IFERROR(V103*VLOOKUP(CAPA!$C$15,Índices!$B$8:$F$1000,5)/VLOOKUP(EDATE('Multas Geradores'!W103,-1),Índices!$B$8:$F$1000,5),0) -> -84893.6268
J104: Desp. nº 2.495/2024 | K104: Termoceará | L104: PETROB PIE 1LN | M104: ESCELSA | N104: 16314 | O104: 1º LEN | P104: 2010-T15 | Q104: 1188927.8 | R104: 45231 | S104: =Q104*VLOOKUP(CAPA!$C$15,Índices!$B$8:$F$1000,5)/VLOOKUP(EDATE('Multas Geradores'!R104,-1),Índices!$B$8:$F$1000,5) -> 1659405.449 | T104: 380 | U104: S | V104: =-1385727.16615225*1188922.8/(74919.9+1188922.8) -> -1303582.022 | W104: 45870 | X104: =IFERROR(V104*VLOOKUP(CAPA!$C$15,Índices!$B$8:$F$1000,5)/VLOOKUP(EDATE('Multas Geradores'!W104,-1),Índices!$B$8:$F$1000,5),0) -> -1495354.308
J105: Desp. nº 2.495/2024 | K105: Termoceará | L105: PETROB PIE 1LN | M105: LIGHT | N105: 16316 | O105: 1º LEN | P105: 2010-T15 | Q105: 966965.63 | R105: 45231 | S105: =Q105*VLOOKUP(CAPA!$C$15,Índices!$B$8:$F$1000,5)/VLOOKUP(EDATE('Multas Geradores'!R105,-1),Índices!$B$8:$F$1000,5) -> 1349609.317 | T105: 382 | U105: N | X105: =IFERROR(V105*VLOOKUP(CAPA!$C$15,Índices!$B$8:$F$1000,5)/VLOOKUP(EDATE('Multas Geradores'!W105,-1),Índices!$B$8:$F$1000,5),0) -> 0
J106: Desp. nº 2.495/2024 | K106: Termoceará | L106: PETROB PIE 1LN | M106: RGE DIST | N106: 245979 | O106: 1º LEN | P106: 2010-T15 | Q106: 3208.42 | R106: 45231 | S106: =Q106*VLOOKUP(CAPA!$C$15,Índices!$B$8:$F$1000,5)/VLOOKUP(EDATE('Multas Geradores'!R106,-1),Índices!$B$8:$F$1000,5) -> 4478.042848 | T106: 382 | U106: S | V106: =-928794.33*3208.42/(90322.36+797751.65+3208.42) -> -3343.454559 | W106: 45809 | X106: =IFERROR(V106*VLOOKUP(CAPA!$C$15,Índices!$B$8:$F$1000,5)/VLOOKUP(EDATE('Multas Geradores'!W106,-1),Índices!$B$8:$F$1000,5),0) -> -3926.856676
J107: Desp. nº 2.495/2024 | K107: Termoceará | L107: PETROB PIE 1LN | M107: RGE SUL | N107: 16319 | O107: 1º LEN | P107: 2010-T15 | Q107: 797751.65 | R107: 45231 | S107: =Q107*VLOOKUP(CAPA!$C$15,Índices!$B$8:$F$1000,5)/VLOOKUP(EDATE('Multas Geradores'!R107,-1),Índices!$B$8:$F$1000,5) -> 1113434.672 | T107: 1000042 | U107: S | V107: =-928794.33*797751.65/(90322.36+797751.65+3208.42) -> -831327.068 | W107: 45809 | X107: =IFERROR(V107*VLOOKUP(CAPA!$C$15,Índices!$B$8:$F$1000,5)/VLOOKUP(EDATE('Multas Geradores'!W107,-1),Índices!$B$8:$F$1000,5),0) -> -976386.0071

Sheet CAPA
B1: SPARTA | C1: Entrada e CustoOperacional | R1: DF | S1: Sudeste/Centro Oeste
B2: Helenístico LX | C2: 6.1 | M2: =C23 -> 153 | N2: =C22 -> 6600
C3: Macro Ver.
C4: 2026.1
B6: EPB | L6: CodigoSamp | M6: Empresa | N6: Nome Completo | O6: IdSgtAg | P6: CodigoSamp | Q6: Supridora/suprida | R6: Financeiro 243 (TUSD) | S6: Databse Fin. 243 | T6: Contrato de Concessão | U6: Data Aditivo (Cont Novo) | V6: Cidade Sede | W6: CNPJ | X6: Novo/Antigo | Y6: DtRevisao-2023:2027 | Z6: idCiclo | AA6: Considerar passante DRA | AB6: Considerar passante | AC6: AnoRevisao | AD6: Obs
B7: =VLOOKUP(B6,TabEmpresas[],2,FALSE) -> Energisa Paraíba - Distribuidora de Energia S.A. | C7: Reajuste | G7: Últ. Atualização | L7: 7019 | M7: Amazonas Energia | N7: Amazonas Energia S.A. | O7: 102 | P7: 7019 | Q7: NÃO SUPRIDA | T7: 1/2019 | U7: 42579 | V7: Manaus - AM | W7: 02.341.467/0001-20 | X7: N | Y7: 45438 | Z7: 5 | AA7: N | AB7: N
B8: CÓDIGO DA EMPRESA | C8: ="D" & TEXT(C23-100,"00") -> D53 | F8: Informações iniciais | G8: 2026-08-14T15:42:20 | L8: 31 | M8: Equatorial AP | N8: Companhia de Eletricidade do Amapá | O8: 107 | P8: 31 | Q8: NÃO SUPRIDA | T8: 01/2021 | U8: 42606 | V8: Macapá - AP | W8: 05.965.546/0001-09 | X8: N | Y8: 46369 | Z8: 5 | AA8: N | AB8: S | AC8: RTP-2026
B9: Data do Reajuste/Revisão Anterior | C9: 45897 | F9: Energia do ano anterior (CM compra, MWh Mercado, R$ Mercado) | G9: 2026-08-04T14:47:03 | L9: 5707 | M9: CEEE-D | N9: Companhia Estadual de Distribuição de Energia Elétrica | O9: 110 | P9: 5707 | Q9: NÃO SUPRIDA | T9: 81/1999 | U9: 42347 | V9: Porto Alegre - RS | W9: 08.467.115/0001-00 | X9: N | Y9: 46348 | Z9: 5 | AA9: N | AB9: S | AC9: RTP-2026
B10: Data de Reajuste/Revisão em Processamento | C10: 46262 | F10: Perdas Regulatórias | G10: 2026-08-04T14:47:04 | L10: 5697 | M10: Celesc-Dis | N10: Celesc Distribuição S.A. | O10: 111 | P10: 5697 | Q10: NÃO SUPRIDA | T10: 56/1999 | U10: 42347 | V10: Florianópolis - SC | W10: 08.336.783/0001-90 | X10: N | Y10: 46256 | Z10: 5 | AA10: N | AB10: S | AC10: RTP-2026
F11: TUSDg ONS-RB | G11: 2026-08-04T14:47:04 | L11: 4950 | M11: Cemig-D | N11: Cemig Distribuição S.A. | O11: 118 | P11: 4950 | Q11: NÃO SUPRIDA | T11: 3/1997 | U11: 42359 | V11: Belo Horizonte - MG | W11: 06.981.180/0001-16 | X11: N | Y11: 45074 | Z11: 5 | AA11: N | AB11: N
F12: Perda de RB | G12: 2026-08-14T15:41:22 | L12: 103 | M12: CHESP | N12: Companhia Hidroelétrica São Patrício | O12: 123 | P12: 103 | Q12: SUPRIDA | T12: 44/1999 | U12: 42347 | V12: Ceres - GO | W12: 01.377.555/0001-10 | X12: N | Y12: 46348 | Z12: 5 | AA12: N | AB12: S | AC12: RTP-2026
F13: Perda DIT | G13: 2026-08-14T15:41:22 | L13: 82 | M13: Cocel | N13: Companhia Campolarguense de Energia | O13: 128 | P13: 82 | Q13: SUPRIDA | T13: 27/1998 | U13: 42347 | V13: Campo Largo - PR | W13: 75.805.895/0001-30 | X13: N | Y13: 46202 | Z13: 5 | AA13: N | AB13: S | AC13: RTP-2026
F14: Encargos ano anterior (não RTE) | G14: 2026-08-04T14:47:04 | L14: 2904 | M14: Cooperaliança | N14: Cooperativa Aliança | O14: 131 | P14: 2904 | Q14: SUPRIDA | T14: 145/2002 | U14: 42347 | V14: Iraça - SC | W14: 83.647.990/0001-81 | X14: N | Y14: 46628 | Z14: 5 | AA14: N | AB14: N
B15: Período de Referencia final | C15: =DATE(YEAR($C$10),MONTH($C$10)-1,1) -> 46204 | F15: Dados da Revisão, Fator X e DecFec | G15: 2026-08-04T14:47:31 | L15: 2866 | M15: Copel-Dis | N15: Copel Distribuição S.A. | O15: 132 | P15: 2866 | Q15: NÃO SUPRIDA | T15: 46/1999 | U15: 42347 | V15: Curitiba - PR | W15: 04.368.898/0001-06 | X15: N | Y15: 46197 | Z15: 5 | AA15: N | AB15: S | AC15: RTP-2026
B16: Período de Referencia inicial | C16: =DATE(YEAR($C$10)-1,MONTH($C$10),1) -> 45870 | F16: Custos Operacionais/Beta | G16: 2026-08-04T14:47:44 | L16: 63 | M16: CPFL Paulista | N16: Companhia Paulista de Força e Luz | O16: 136 | P16: 63 | Q16: NÃO SUPRIDA | T16: 14/1997 | U16: 46150 | V16: Campinas - SP | W16: 33.050.196/0001-88 | X16: N | Y16: 45024 | Z16: 5 | AA16: N | AB16: N
B17: Índice IGPM na data Revisão/Reajuste | C17: =VLOOKUP(C15,Índices!$B$7:$F$500,2,FALSE) -> 1209.617 | F17: Previsão de Subsidios dos Processos Anteriores | G17: 2026-08-04T14:47:36 | L17: 2937 | M17: CPFL Piratininga | N17: Companhia Piratininga de Força e Luz | O17: 135 | P17: 2937 | Q17: NÃO SUPRIDA | T17: 9/2002 | U17: 46150 | V17: Sorocaba - SP | W17: 04.172.213/0001-51 | X17: N | Y17: 45222 | Z17: 4 | AA17: N | AB17: N
B18: Índice IPCA na data Revisão/Reajuste | C18: =VLOOKUP(C15,Índices!$B$7:$F$500,3,FALSE) -> 7657.73 | F18: Conexão ano anterior | G18: 2026-08-04T14:47:36 | L18: 1000041 | M18: CPFL Santa Cruz | N18: Companhia Jaguari de Energia | O18: 166 | P18: 1000041 | Q18: NÃO SUPRIDA | T18: 15/1999 | U18: 42347 | V18: Jaguariúna - SP | W18: 53.859.112/0001-69 | X18: N | Y18: 46103 | Z18: 5 | AA18: N | AB18: S | AC18: RTP-2026
B19: IGPM para o período de Referência | C19: =VLOOKUP(DATE(YEAR($C$10),MONTH($C$10)-1,1),Índices!$B$7:$F$500,2,FALSE)/VLOOKUP(DATE(YEAR($C$9),MONTH($C$9)-1,1),Índices!$B$7:$F$500,2,FALSE)-1 -> 0.02756530928 | F19: Receita de Bandeira | G19: 2026-08-14T15:42:19 | L19: 87 | M19: DCELT | N19: Distribuidora Catarinense de Energia Elétrica Ltda | O19: 158 | P19: 87 | Q19: NÃO SUPRIDA | T19: 50/1999 | U19: 42353 | V19: Xanxerê - SC | W19: 83.855.973/0001-30 | X19: N | Y19: 46263 | Z19: 5 | AA19: N | AB19: S | AC19: RTP-2026
B20: IPCA para o período de Referência | C20: =VLOOKUP(DATE(YEAR(C10),MONTH(C10)-1,1),Índices!$B$7:$F$500,3,FALSE)/VLOOKUP(DATE(YEAR($C$9),MONTH($C$9)-1,1),Índices!$B$7:$F$500,3,FALSE)-1 -> 0.04442865365 | F20: Financeiros | G20: 2026-08-04T14:49:03 | L20: 95 | M20: Demei | N20: Departamento Municipal de Energia de Ijuí | O20: 138 | P20: 95 | Q20: SUPRIDA | T20: 85/2000 | U20: 42347 | V20: Ijuí - RS | W20: 95.289.500/0001-00 | X20: N | Y20: 46590 | Z20: 5 | AA20: N | AB20: N
B21: Dados Gerenciais | F21: Financeiros ano anterior (CVA 5º dia útil, RTE restante) | G21: 2026-08-04T14:48:35 | L21: 51 | M21: DME-D | N21: DME Distribuição S.A. | O21: 139 | P21: 51 | Q21: NÃO SUPRIDA | T21: 49/1999 | U21: 42347 | V21: Poços de Caldas - MG | W21: 23.664.303/0001-04 | X21: N | Y21: 45983 | Z21: 5 | AA21: S | AB21: S | AC21: RTP-2025
B22: IdAgente | C22: =VLOOKUP(B6,TabEmpresas[],4,FALSE) -> 6600 | F22: Financeiro Desconcatenação (acessante com acessada) | G22: 2026-08-04T14:48:42 | L22: 26 | M22: EAC | N22: Energisa Acre - Distribuidora de Energia S.A | O22: 146 | P22: 26 | Q22: NÃO SUPRIDA | T22: 3/2018 | U22: 42579 | V22: Rio Branco - AC | W22: 04.065.033/0001-70 | X22: N | Y22: 45273 | Z22: 5 | AA22: N | AB22: N
B23: ID Concessão | C23: =VLOOKUP(B6,TabEmpresas[],3,FALSE) -> 153 | F23: Garantias Financeiras | G23: 2026-08-04T14:48:46 | L23: 6611 | M23: EBO | N23: Energisa Borborema - Distribuidora de Energia S.A | O23: 140 | P23: 6611 | Q23: NÃO SUPRIDA | T23: 8/2000 | U23: 46150 | V23: Campina Grande - PB | W23: 08.826.596/0001-95 | X23: N | Y23: 45897 | Z23: 4 | AA23: N | AB23: N
F24: Itens extraordinários REN1000/Covid/Escassez | G24: 2026-08-04T14:49:03 | L24: 380 | M24: EDP ES | N24: EDP Espírito Santo Distribuição de Energia S.A. | O24: 154 | P24: 380 | Q24: NÃO SUPRIDA | T24: 1/1995 | U24: 45839 | V24: Vitória - ES | W24: 28.152.650/0001-71 | X24: N | Y24: 45876 | Z24: 3 | AA24: S | AB24: S | AC24: RTP-2025
B25: Quadro para vínculos | F25: Energia (CCEAR, Bil., Itaipu) | G25: 2026-08-12T14:15:07 | L25: 391 | M25: EDP SP | N25: EDP São Paulo Distribuição de Energia S.A. | O25: 104 | P25: 391 | Q25: NÃO SUPRIDA | T25: 202/1998 | U25: 46150 | V25: São Paulo - SP | W25: 02.302.100/0001-06 | X25: N | Y25: 45222 | Z25: 4 | AA25: N | AB25: N
B26: Descrição | C26: valor | F26: CCEAR | G26: 2026-08-12T14:15:07 | L26: 86 | M26: EFLUL | N26: Empresa Força e Luz de Urussanga Ltda | O26: 144 | P26: 86 | Q26: SUPRIDA | T26: 25/1999 | U26: 42347 | V26: Urussanga - SC | W26: 86.531.175/0001-40 | X26: N | Y26: 46263 | Z26: 5 | AA26: N | AB26: S | AC26: RTP-2026
B27: Tipo de contrato | C27: =IF(VLOOKUP(B6,TabEmpresas[],12,FALSE)="A", "Antigo","Novo") -> Novo | F27: GSF, PLD, Fator de Rateio de RH e MWm Repactuado | G27: 2026-08-12T14:15:07 | L27: 398 | M27: Eletrocar | N27: Centrais Elétricas de Carazinho S.A. | O27: 147 | P27: 398 | Q27: SUPRIDA | T27: 84/2000 | U27: 42347 | V27: Carazinho - RS | W27: 88.446.034/0001-55 | X27: N | Y27: 46590 | Z27: 5 | AA27: N | AB27: N
B28: Contrato de concessão | C28: =VLOOKUP(B6,TabEmpresas[],8,FALSE) -> 19/2001 | F28: Itaipu (Energia, Transporte, MUST) | G28: 2026-08-12T14:15:07 | L28: 6585 | M28: EMR | N28: Energisa Minas Rio - Distribuidora de Energia S.A. | O28: 150 | P28: 6585 | Q28: NÃO SUPRIDA | T28: 40/1999 | U28: 42347 | V28: Cataguases - MG | W28: 19.527.639/0001-58 | X28: N | Y28: 46195 | Z28: 5 | AA28: N | AB28: S | AC28: RTP-2026 | AD28: Agrupada
B29: Número do Processo | C29: 48500.030945/2025-16 | F29: Cotas Lei/Angra | G29: 2026-08-12T14:15:07 | L29: 404 | M29: EMS | N29: Energisa Mato Grossodo Sul - Distribuidora de Energia S.A. | O29: 151 | P29: 404 | Q29: NÃO SUPRIDA | T29: 1/1997 | U29: 46150 | V29: Campo Grande - MS | W29: 15.413.826/0001-50 | X29: N | Y29: 45024 | Z29: 5 | AA29: N | AB29: N
B30: Período de Referencia | C30: =TEXT(C16,"mmmm/aaaa")& " a "&TEXT(C15,"mmmm/aaaa") -> agosto/2025 a julho/2026 | F30: Encargos DRP | G30: 2026-08-04T14:50:51 | L30: 405 | M30: EMT | N30: Energisa Mato Grosso - Distribuidora de Energia S.A. | O30: 117 | P30: 405 | Q30: NÃO SUPRIDA | T30: 3/1997 | U30: 46150 | V30: Cuibá - MT | W30: 03.467.321/0001-99 | X30: N | Y30: 45024 | Z30: 5 | AA30: N | AB30: N
B31: Início da vigênica por extenso | C31: =DAY(LnkTxtDRPData)&" de "&TEXT(LnkTxtDRPData,"mmmmmm")&" de "&YEAR(LnkTxtDRPData) -> 28 de agosto de 2026 | F31: Indicadores Econômicos / Dólar | G31: 2026-08-17T16:45:54 | L31: 39 | M31: ENEL CE | N31: Companhia Energética do Ceará | O31: 130 | P31: 39 | Q31: NÃO SUPRIDA | T31: 1/1998 | V31: Fortaleza - CE | W31: 07.047.251/0001-70 | X31: A | Y31: 45038 | Z31: 4 | AA31: N | AB31: N
B32: CNPJ | C32: =VLOOKUP(B6,TabEmpresas[],11,FALSE) -> 09.095.183/0001-40 | F32: Tudo Mercado | G32: 2026-08-05T16:40:21 | L32: 6072 | M32: ENEL GO | N32: Enel Distribuição Goiás | O32: 112 | P32: 6072 | Q32: NÃO SUPRIDA | T32: 63/2000 | U32: 42367 | V32: Goiânia - GO | W32: 01.543.032/0001-04 | X32: N | Y32: 45221 | Z32: 5 | AA32: N | AB32: N
B33: Período de competência de previsão de subsídios | C33: =TEXT(EDATE(Aj.Subsidio!G19,12),"mmmmmm")&"/"&TEXT(EDATE(Aj.Subsidio!G19,12),"aaaa")&" a "&TEXT(EDATE(Aj.Subsidio!R19,12),"mmmmmm")&"/"&TEXT(EDATE(Aj.Subsidio!R19,12),"aaaa") -> agosto/2026 a julho/2027 | F33: SAMP_Fornecimento/Receita_Uso e Tab_EnergiaConsumidaMWh | G33: 2026-08-05T16:39:05 | L33: 383 | M33: ENEL RJ | N33: Ampla Energia e Serviços S.A. | O33: 103 | P33: 383 | Q33: NÃO SUPRIDA | T33: 5/1996 | U33: 42808 | V33: Rio de Janeiro - RJ | W33: 33.050.071/0001-58 | X33: N | Y33: 45000 | Z33: 5 | AA33: N | AB33: N
B34: Período de competência de ajuste de subsídios | C34: =TEXT(Aj.Subsidio!G19,"mmmmmm")&"/"&TEXT(Aj.Subsidio!G19,"aaaa")&" a "&TEXT(Aj.Subsidio!R19,"mmmmmm")&"/"&TEXT(Aj.Subsidio!R19,"aaaa") -> agosto/2025 a julho/2026 | F34: SAMP_balanco | G34: 2026-08-05T16:40:07 | L34: 390 | M34: ENEL SP | N34: Eletropaulo Metropolitana Eletricidade de São Paulo S.A. | O34: 148 | P34: 390 | Q34: NÃO SUPRIDA | T34: 162/1998 | V34: São Paulo - SP | W34: 61.695.227/0001-93 | X34: A | Y34: 45111 | Z34: 4 | AA34: N | AB34: N
B35: Cidade Sede | C35: =VLOOKUP(B6,TabEmpresas[],10,FALSE) -> João Pessoa - PB | F35: Subsídio concomitante Irrigante - Fonte incentivada | G35: 2026-08-05T16:40:21 | L35: 6612 | M35: ENF | N35: Energisa Nova Friburgo - Distribuidora de Energia S.A. | O35: 152 | P35: 6612 | Q35: SUPRIDA | T35: 42/1999 | U35: 42347 | V35: Nova Friburgo - RJ | W35: 33.249.046/0001-06 | X35: N | Y35: 46195 | Z35: 5 | AA35: N | AB35: S | AC35: RTP-2026 | AD35: Agrupada
B36: Receita | C36: =IF(Mercado!D24>2000000000,ROUND(Mercado!D24/1000000000,2)&" bilhões",IF(Mercado!D24>1000000000,ROUND(Mercado!D24/1000000000,2)&" bilhão",IF(Mercado!D24>100000000,ROUND(Mercado!D24/1000000,0)&" milhões",IF(Mercado!D24>10000000,ROUND(Mercado!D24/1000000,1)&" milhões",IF(Mercado!D24>2000000,ROUND(Mercado!D24/1000000,2)&" milhões",IF(Mercado!D24>1000000,ROUND(Mercado!D24/1000000,2)&" milhão",ROUND(Mercado!D24/1000,0)&" mil")))))) -> 3,62 bilhões | F36: Rede Básica e Conexão | G36: 2026-08-11T10:33:43 | L36: 6600 | M36: EPB | N36: Energisa Paraíba - Distribuidora de Energia S.A. | O36: 153 | P36: 6600 | Q36: NÃO SUPRIDA | T36: 19/2001 | U36: 46150 | V36: João Pessoa - PB | W36: 09.095.183/0001-40 | X36: N | Y36: 45897 | Z36: 4 | AA36: S | AB36: S | AC36: RTP-2025
B37: Unidades Consumidoras | C37: =IF(Mercado!E38>2000000,ROUND(Mercado!E38/1000000,2)&" milhões de",IF(Mercado!E38>1000000,ROUND(Mercado!E38/1000000,2)&" milhão de",IF(Mercado!E38>100000,ROUND(Mercado!E38/1000,0)&" mil",IF(Mercado!E38>10000,ROUND(Mercado!E38/1000,1)&" mil",IF(Mercado!E38>1000,ROUND(Mercado!E38/1000,2)&" mil",Mercado!E38))))) -> 1,94 milhão de | F37: Histórico de Tarifas B1 Residencial | L37: 44 | M37: Equatorial AL | N37: Equatorial Alagoas Distribuidora de Energia S.A. | O37: 108 | P37: 44 | Q37: NÃO SUPRIDA | T37: 2/2019 | U37: 42579 | V37: Maceió - AL | W37: 12.272.084/0001-00 | X37: N | Y37: 45415 | Z37: 5 | AA37: N | AB37: N
B38: Data SAMP | C38: =TEXT(_xlfn.MAXIFS(Mercado_Receita!K:K,Mercado_Receita!B:B,"regular"),"mmmmmm")&"/"&YEAR(_xlfn.MAXIFS(Mercado_Receita!K:K,Mercado_Receita!B:B,"regular")) -> junho/2026 | F38: CVA | G38: 2026-08-17T16:47:12 | L38: 37 | M38: Equatorial MA | N38: Equatorial Maranhão Distribuidora de Energia S.A. | O38: 116 | P38: 37 | Q38: NÃO SUPRIDA | T38: 60/2000 | U38: 46150 | V38: São Luís - MA | W38: 06.272.793/0001-84 | X38: N | Y38: 45897 | Z38: 4 | AA38: S | AB38: S | AC38: RTP-2025
B39: Classificação mercado próprio | C39: >700 | F39: CUSD | G39: 2026-08-04T15:34:20 | L39: 371 | M39: Equatorial PA | N39: Equatorial Pará Distribuidora de Energia S.A. | O39: 113 | P39: 371 | Q39: NÃO SUPRIDA | T39: 182/1998 | U39: 46150 | V39: Belém - PA | W39: 04.895.728/0001-80 | X39: N | Y39: 45145 | Z39: 4 | AA39: N | AB39: N
B40: Data Reunião Pública - RPO | C40: 46259 | F40: Suprimento: Financeiro de Ultrapassagem e Sobrecontratação | G40: 2026-08-04T16:01:52 | L40: 38 | M40: Equatorial PI | N40: Equatorial Piauí Distribuidora de Energia S.A. | O40: 119 | P40: 38 | Q40: NÃO SUPRIDA | T40: 1/2018 | U40: 42579 | V40: Teresina - PI | W40: 06.840.748/0001-89 | X40: N | Y40: 45262 | Z40: 5 | AA40: N | AB40: N
B41: Data limite Atualização Indicadores Econômicos (RPO-8) | C41: =C40-8 -> 46251 | F41: UDEROR | G41: 2026-08-04T16:03:03 | L41: 369 | M41: ERO | N41: Energisa Rondônia - Distribuidora de Energia S.A. | O41: 120 | P41: 369 | Q41: NÃO SUPRIDA | T41: 2/2018 | U41: 42579 | V41: Porto Velho - RO | W41: 05.914.650/0001-66 | X41: N | Y41: 45273 | Z41: 5 | AA41: N | AB41: N
B42: Resolução Homologatória (processo anterior) | C42: REH nº 3.518, de 26 de agosto de 2025 | F42: BMP/RIT | G42: 2026-08-04T16:04:40 | L42: 6587 | M42: ESE | N42: Energisa Sergipe - Distribuidora de Energia S.A. | O42: 155 | P42: 6587 | Q42: NÃO SUPRIDA | T42: 7/1997 | U42: 46150 | V42: Aracajú - SE | W42: 13.017.462/0001-63 | X42: N | Y42: 45038 | Z42: 5 | AA42: N | AB42: N
B43: Efeito médio do último processo tarifário | C43: 0.1359 | F43: Componente Q do Fator X | G43: 2026-08-04T16:05:25 | L43: 1000040 | M43: ESS | N43: Energisa Sul-Sudeste - Distribuidora de Energia S.A. | O43: 165 | P43: 1000040 | Q43: NÃO SUPRIDA | T43: 13/1999 | U43: 42347 | V43: Presidente Prudente - SP | W43: 07.282.377/0001-20 | X43: N | Y43: 46215 | Z43: 5 | AA43: N | AB43: S | AC43: RTP-2026
B44: Índice Inflacionário do contrato | C44: =IF(VLOOKUP(B6,TabEmpresas[#Data],12,FALSE)="N","IPCA","IGP-M") -> IPCA | F44: GSF e PLD futuros (para previsão de efeito futuro) | G44: 2026-08-04T16:05:47 | L44: 32 | M44: ETO | N44: Energisa Tocantins Distribuidora de Energia S.A. | O44: 115 | P44: 32 | Q44: NÃO SUPRIDA | T44: 52/1999 | U44: 43805 | V44: Palmas - TO | W44: 25.086.034/0001-71 | X44: N | Y44: 45842 | Z44: 5 | AA44: S | AB44: S | AC44: RTP-2025
B45: Variação do Índice Inflacionário (12 meses) | C45: =IF(VLOOKUP(B6,TabEmpresas[#Data],12,FALSE)="N",LnkTxtIPCA,LnkTxtIGPM) -> 0.04442865365 | F45: Compensação DIC FIC | G45: 2026-08-04T16:10:24 | L45: 83 | M45: Pacto Energia PR | N45: Força e Luz Coronel Vivida Ltda. | O45: 156 | P45: 83 | Q45: SUPRIDA | T45: 69/1999 | U45: 42347 | V45: Coronel Vivida - PR | W45: 79.850.574/0001-09 | X45: N | Y45: 46260 | Z45: 5 | AA45: N | AB45: S | AC45: RTP-2026
B46: Resoluções Homologatórias da RAP e TUST | C46: Despachos-STR nos 2.268 e 2.269, ambos de 22 de julho de 2026 | L46: 399 | M46: Hidropan | N46: Hidropan Distribuição de Energia S.A. | O46: 157 | P46: 399 | Q46: SUPRIDA | T46: 86/2000 | U46: 42347 | V46: Panambi - RS | W46: 91.982.348/0001-87 | X46: N | Y46: 46590 | Z46: 5 | AA46: N | AB46: N
B47: Deslocar mercado | C47: Não | L47: 88 | M47: João Cesa | N47: Empresa Força e Luz João Cesa Ltda. | O47: 143 | P47: 88 | Q47: SUPRIDA | T47: 26/1999 | U47: 42347 | V47: Siderópolis - SC | W47: 86.301.124/0001-22 | X47: N | Y47: 46263 | Z47: 5 | AA47: N | AB47: S | AC47: RTP-2026
B48: Data de processamento em simulação | L48: 382 | M48: Light | N48: Light Serviços de Eletricidade S.A. | O48: 160 | P48: 382 | Q48: NÃO SUPRIDA | T48: 1/1996 | U48: 42803 | V48: Rio de Janeiro - RJ | W48: 60.444.437/0001-46 | X48: N | Y48: 46461 | Z48: 5 | AA48: N | AB48: N
L49: 401 | M49: Mux Energia | N49: Muxfeldt Marin E Cia Ltda | O49: 161 | P49: 401 | Q49: SUPRIDA | T49: 87/2000 | U49: 42347 | V49: Tapejara - RS | W49: 97.578.090/0001-34 | X49: N | Y49: 46590 | Z49: 5 | AA49: N | AB49: N
B50: Ano do Reajuste/Revisão em processamento | C50: =YEAR(C10) -> 2026 | L50: 5160 | M50: Neoenergia Brasília | N50: Neoenergia Distribuição Brasília S.A. | O50: 109 | P50: 5160 | Q50: NÃO SUPRIDA | T50: 66/1999 | U50: 42347 | V50: Brasília - DF | W50: 07.522.669/0001-92 | X50: N | Y50: 46317 | Z50: 5 | AA50: N | AB50: S | AC50: RTP-2026
B51: Mudança de contrato | C51: Data de assinatura | L51: 47 | M51: Neoenergia Coelba | N51: Companhia de Eletricidadedo Estado da Bahia | O51: 129 | P51: 47 | Q51: NÃO SUPRIDA | T51: 10/1997 | U51: 46150 | V51: Salvador - BA | W51: 15.139.629/0001-94 | X51: N | Y51: 45038 | Z51: 5 | AA51: N | AB51: N
B52: =IFERROR(VLOOKUP(C22,K63:N75,4,FALSE),"não") -> sim | C52: =IFERROR(VLOOKUP(C22,K63:N75,3,FALSE),"não") -> 46150 | L52: 40 | M52: Neoenergia Cosern | N52: Companhia Energetica do Rio Grande do Norte | O52: 133 | P52: 40 | Q52: NÃO SUPRIDA | T52: 8/1997 | U52: 46150 | V52: Natal - RN | W52: 08.324.196/0001-81 | X52: N | Y52: 45038 | Z52: 5 | AA52: N | AB52: N
L53: 385 | M53: Neoenergia Elektro | N53: Elektro Redes S.A. | O53: 145 | P53: 385 | Q53: NÃO SUPRIDA | T53: 187/1998 | U53: 46150 | V53: Campinas - SP | W53: 02.328.280/0001-97 | X53: N | Y53: 45165 | Z53: 4 | AA53: N | AB53: N
L54: 43 | M54: Neoenergia Pernambuco | N54: Companhia Energética de Pernambuco | O54: 114 | P54: 43 | Q54: NÃO SUPRIDA | T54: 26/2000 | U54: 46082 | V54: Recife - PE | W54: 10.835.932/0001-08 | X54: N | Y54: 45776 | Z54: 4 | AA54: S | AB54: S | AC54: RTP-2025
L55: 400 | M55: Nova Palma | N55: Nova Palma Energia Ltda. | O55: 164 | P55: 400 | Q55: SUPRIDA | T55: 107/2001 | U55: 42347 | V55: Faxinal do Soturno - RS | W55: 89.889.604/0001-44 | X55: N | Y55: 46590 | Z55: 5 | AA55: N | AB55: N
L56: 1000042 | M56: RGE | N56: RGE Sul Distribuidora de Energia S.A. | O56: 167 | P56: 1000042 | Q56: NÃO SUPRIDA | T56: 12/1997 | U56: 46150 | V56: São Leopoldo - RS | W56: 02.016.440/0001-62 | X56: N | Y56: 45096 | Z56: 5 | AA56: N | AB56: N
L57: 370 | M57: Roraima Energia | N57: Roraima Energia S.A. | O57: 105 | P57: 370 | Q57: NÃO SUPRIDA | T57: 4/2018 | U57: 42579 | V57: Boa Vista - RR | W57: 02.341.470/0001-44 | X57: N | Y57: 45316 | Z57: 5 | AA57: N | AB57: N
L58: 381 | M58: Santa Maria | N58: Empresa Luz e Força Santa Maria S/A | O58: 149 | P58: 381 | Q58: SUPRIDA | T58: 20/1999 | U58: 42347 | V58: Colatina - ES | W58: 27.485.069/0001-09 | X58: N | Y58: 46287 | Z58: 5 | AA58: N | AB58: S | AC58: RTP-2026
L59: 46 | M59: Sulgipe | N59: Companhia Sul Sergipana de Eletricidade | O59: 163 | P59: 46 | Q59: SUPRIDA | T59: 91/1999 | U59: 42347 | V59: Estância - SE | W59: 13.255.658/0001-96 | X59: N | Y59: 46529 | Z59: 5 | AA59: N | AB59: N
K62: IDAgente | L62: Concessionaria | M62: data de assinatura
K63: 63 | L63: CPFL Paulista | M63: 46150 | N63: =IF(AND(LnkTxtDRPData>M63,LnkTxtDRAData>M63),"não", "sim") -> sim
K64: 2937 | L64: CPFL Piratininga | M64: 46150 | N64: sim
K65: 1000042 | L65: RGE Sul (grupo CPFL) | M65: 46150 | N65: sim
K66: 405 | L66: Energisa Mato Grosso | M66: 46150 | N66: sim
K67: 404 | L67: Energisa Mato Grosso do Sul | M67: 46150 | N67: sim
K68: 6600 | L68: Energisa Paraíba | M68: 46150 | N68: sim
K69: 6587 | L69: Energisa Sergipe | M69: 46150 | N69: sim
K70: 47 | L70: Neoenergia Coelba | M70: 46150 | N70: sim
K71: 40 | L71: Neoenergia Cosern | M71: 46150 | N71: sim
K72: 385 | L72: Neoenergia Elektro | M72: 46150 | N72: sim
K73: 391 | L73: EDP São Paulo | M73: 46150 | N73: sim
K74: 37 | L74: Equatorial Maranhão | M74: 46150 | N74: sim
K75: 371 | L75: Equatorial Pará | M75: 46150 | N75: sim
L76: EDP ES | M76: 45839 | N76: não

Sheet BD_Uderor
K1: Número de lançamentos por item e por competência
A2: Dados SAMP Opção:Cativo Classe:Industrial | K2: Descrição | L2: =DATE(YEAR(LnkTxtDRPData),MONTH(LnkTxtDRPData),1) -> 2026-08-01 | M2: =EDATE(L2,-1) -> 2026-07-01 | N2: =EDATE(M2,-1) -> 2026-06-01 | O2: 2026-05-01 | P2: 2026-04-01 | Q2: 2026-03-01 | R2: 2026-02-01 | S2: 2026-01-01 | T2: 2025-12-01 | U2: 2025-11-01 | V2: 2025-10-01 | W2: 2025-09-01 | X2: 2025-08-01 | Y2: 2025-07-01 | Z2: 2025-06-01 | AA2: 2025-05-01
A3: Competencia | B3: COFINS (R$) | C3: ICMS (R$) | D3: PIS/PASEP (R$) | E3: Receita Bandeiras (R$) | F3: Receita Demanda (R$) | G3: Receita Energia (R$) | H3: PIS_Cofins_% | I3: ICMS_% | K3: =Entrada!P8 -> Serviços Cobráveis | L3: =IF(COUNTIFS($C$30:$C$200000,$K3,$H$30:$H$200000,L$2)=0,"",COUNTIFS($C$30:$C$200000,$K3,$H$30:$H$200000,L$2)) ->  | M3: =IF(COUNTIFS($C$30:$C$200000,$K3,$H$30:$H$200000,M$2)=0,"",COUNTIFS($C$30:$C$200000,$K3,$H$30:$H$200000,M$2)) -> 1 | N3: 1 | O3: 1 | P3: 1 | Q3: 1 | R3: 1 | S3: 1 | T3: 1 | U3: 1 | V3: 1 | W3: 1 | X3: 1 | Y3: 1 | Z3: 1 | AA3: 1
A4: 45778 | B4: 208568.15 | C4: 1556429.74 | D4: 45268.58 | E4: 105288.54 | F4: 1701979.3 | G4: 4183130.61 | H4: 0.03298561597 | I4: 0.2022551807 | K4: =Entrada!P9 -> Arrecadação de convênios ou valores pela fatura | L4: =IF(COUNTIFS($C$30:$C$200000,$K4,$H$30:$H$200000,L$2)=0,"",COUNTIFS($C$30:$C$200000,$K4,$H$30:$H$200000,L$2)) ->  | M4: 1 | N4: 1 | O4: 1 | P4: 1 | Q4: 1 | R4: 1 | S4: 1 | T4: 1 | U4: 1 | V4: 1 | W4: 1 | X4: 1 | Y4: 1 | Z4: 1 | AA4: 1
A5: 45809 | B5: 218662.1 | C5: 1528501.44 | D5: 47461.2 | E5: 287912.92 | F5: 1679346.08 | G5: 4103866.35 | H5: 0.03511863531 | I5: 0.2017068203 | K5: =Entrada!P10 -> Arrecadação de faturas de terceiros por estrutura própria
A6: 45839 | B6: 267474.02 | C6: 1505327.59 | D6: 58057.68 | E6: 379572.88 | F6: 1653055.62 | G6: 3984075.68 | H6: 0.04359026649 | I6: 0.2015706329 | K6: =Entrada!P11 -> Veiculação de publicidade
A7: 45870 | B7: 278243.43 | C7: 1568597.84 | D7: 60398.72 | E7: 529983.06 | F7: 1617498.39 | G7: 4244631.61 | H7: 0.04358682241 | I7: 0.201895114 | K7: =Entrada!P12 -> Aluguel ou cessão onerosa de imóveis e espaços físicos
A8: 45901 | B8: 274445.6 | C8: 1682707.94 | D8: 59572.8 | E8: 638233.18 | F8: 1608865.65 | G8: 4643003.27 | H8: 0.04039602732 | I8: 0.2035059024 | K8: =Entrada!P13 -> Compartilhamento de infraestrutura | M8: 1 | N8: 1 | O8: 1 | P8: 1 | Q8: 1 | R8: 1 | S8: 1 | T8: 1 | U8: 1 | V8: 1 | W8: 1 | X8: 1 | Y8: 1 | Z8: 1 | AA8: 1
A9: 45931 | B9: 282143.3 | C9: 1817466.86 | D9: 61243.07 | E9: 493562.94 | F9: 1564639.84 | G9: 4913152.85 | H9: 0.03975002254 | I9: 0.2103879331 | K9: =Entrada!P14 -> Serviços de avaliação técnica e aferição de medidores.
A10: 45962 | B10: 286340.12 | C10: 1797219.99 | D10: 62154 | E10: 387954.54 | F10: 1498125.12 | G10: 4836139.46 | H10: 0.04109610799 | I10: 0.2119368522 | K10: =Entrada!P15 -> Operacionalização de serviço de créditos tributários
A11: 45992 | B11: 319535.2 | C11: 1675763.62 | D11: 69359.6 | E11: 217512.27 | F11: 1511377.65 | G11: 4341601.55 | H11: 0.04911752958 | I11: 0.2116494465 | K11: =Entrada!P16 -> Elaboração de projeto, construção, operação, manutenção ou reforma de:
A12: 46023 | B12: 316213.64 | C12: 1563497.74 | D12: 68639.56 | E12: 48905.48 | F12: 1489566.23 | G12: 3952418.88 | H12: 0.05207519623 | I12: 0.2115597626 | K12: =Entrada!P17 -> (1) redes de distribuição de energia elétrica destinadas à regularização fundiária de interesse específico e ao atendimento dos empreendimentos de múltiplas unidades consumidoras;
A13: 46054 | B13: 277261.21 | C13: 1494001.63 | D13: 60186.21 | E13: 718.52 | F13: 1467767.93 | G13: 3833628.6 | H13: 0.04730894791 | I13: 0.2094538026 | K13: =Entrada!P18 -> (2) redes de energia elétrica destinadas ao acesso dos sistemas de distribuição ou transmissão;
A14: 46082 | B14: 203264.69 | C14: 1496874.54 | D14: 44117.04 | E14: 95.53 | F14: 1441258.91 | G14: 3966985.62 | H14: 0.03458674622 | I14: 0.2092798843 | K14: =Entrada!P19 -> (3) subestações de energia;
A15: 46113 | B15: 200525.16 | C15: 1545372.01 | D15: 43521.39 | E15: 140.99 | F15: 1247126.02 | G15: 4116706.41 | H15: 0.03411687222 | I15: 0.2160377166 | K15: =Entrada!P20 -> (4) instalações elétricas internas de unidades consumidoras;
A16: 46143 | B16: 219310.79 | C16: 1536908.73 | D16: 47598.61 | E16: 90015.72 | F16: 1221291.34 | G16: 4243141.58 | H16: 0.03672264458 | I16: 0.2114550969 | K16: =Entrada!P21 -> (5) banco de capacitores;
A17: 46174 | B17: 363426.31 | C17: 1696972.83 | D17: 78884.26 | E17: 156965.63 | F17: 1252271.34 | G17: 4555919.74 | H17: 0.05565422967 | I17: 0.2135235331 | K17: =Entrada!P22 -> (6) padrões de entrada de unidades consumidoras atendidas em baixa tensão;
A18: 46204 | B18: 363426.31 | C18: 1696972.83 | D18: 78884.26 | E18: 156965.63 | F18: 1252271.34 | G18: 4555919.74 | H18: 0.05565422967 | I18: 0.2135235331 | K18: =Entrada!P23 -> (7) sistemas de medição de energia elétrica;
K19: =Entrada!P24 -> (8) geradores, incluindo-se unidades de microgeração e minigeração distribuída; | AA19: =IF(COUNTIFS($C$30:$C$200000,$K19,$H$30:$H$200000,AA$2)=0,"",COUNTIFS($C$30:$C$200000,$K19,$H$30:$H$200000,AA$2)) -> 
K20: =Entrada!P25 -> (9) sistemas de iluminação pública. | L20: =IF(COUNTIFS($C$30:$C$200000,$K20,$H$30:$H$200000,L$2)=0,"",COUNTIFS($C$30:$C$200000,$K20,$H$30:$H$200000,L$2)) -> 
K21: =Entrada!P26 -> (10) estações de recarga de veículos elétricos, incluindo a prestação de serviços aos usuários
K22: =Entrada!P27 -> Eficientização do consumo de energia elétrica e instalação de cogeração qualificada, desde que não enquadráveis nos projetos de Pesquisa e Desenvolvimento (P&D) ou de Eficiência Energética estabelecidos em lei
K23: =Entrada!P28 -> Serviços de comunicação de dados
K24: =Entrada!P29 -> Serviços de consultoria
K25: =Entrada!P30 -> Receita proveniente da comercialização de resultados de projetos de P&D COM comprovação
K26: =Entrada!P31 -> Receita proveniente da comercialização de resultados de projetos de P&D SEM comprovação | N26: 1 | O26: 1 | P26: 1 | Q26: 1 | R26: 1 | S26: 1
A28: Tab_Uderor | K28: Descrição | L28: =L2 -> 2026-08-01 | M28: =M2 -> 2026-07-01 | N28: 2026-06-01 | O28: 2026-05-01 | P28: 2026-04-01 | Q28: 2026-03-01 | R28: 2026-02-01 | S28: 2026-01-01 | T28: 2025-12-01 | U28: 2025-11-01 | V28: 2025-10-01 | W28: 2025-09-01 | X28: 2025-08-01 | Y28: 2025-07-01 | Z28: 2025-06-01 | AA28: =AA2 -> 2025-05-01
A29: IdeTipoReceita | B29: TipoReceitaArquivo | C29: TipoReceita | D29: CompetenciaArquivo | E29: Data_envio_arquivo | F29: NomeArquivo | G29: Data_Lancamento | H29: Competencia | I29: R$ | K29: =Entrada!P51 -> Ultrapassagem de Demanda | L29: =IF(COUNTIFS($C$30:$C$200000,$K29,$H$30:$H$200000,L$2)=0,"",COUNTIFS($C$30:$C$200000,$K29,$H$30:$H$200000,L$2)) ->  | M29: =IF(COUNTIFS($C$30:$C$200000,$K29,$H$30:$H$200000,M$2)=0,"",COUNTIFS($C$30:$C$200000,$K29,$H$30:$H$200000,M$2)) -> 1 | N29: 1 | O29: 1 | P29: 1 | Q29: 1 | R29: 1 | S29: 1 | T29: 1 | U29: 1 | V29: 1 | W29: 1 | X29: 1 | Y29: 1 | Z29: 1 | AA29: 1
A30: 1 | B30: Serviços Cobráveis | C30: Serviços Cobráveis | D30: 202505 | E30: 46212 | F30: APLCVA06600_FLXPAGAMENTOS_052025_S003.XML | G30: 45778 | H30: 45778 | I30: 266092.22 | K30: =Entrada!P52 -> Excedente Reativo | L30: =IF(COUNTIFS($C$30:$C$200000,$K30,$H$30:$H$200000,L$2)=0,"",COUNTIFS($C$30:$C$200000,$K30,$H$30:$H$200000,L$2)) ->  | M30: 1 | N30: 1 | O30: 1 | P30: 1 | Q30: 1 | R30: 1 | S30: 1 | T30: 1 | U30: 1 | V30: 1 | W30: 1 | X30: 1 | Y30: 1 | Z30: 1 | AA30: 1
A31: 1 | B31: Serviços Cobráveis | C31: Serviços Cobráveis | D31: 202506 | E31: 46212 | F31: APLCVA06600_FLXPAGAMENTOS_062025_S005.XML | G31: 45809 | H31: 45809 | I31: 287074.94
A32: 1 | B32: Serviços Cobráveis | C32: Serviços Cobráveis | D32: 202507 | E32: 46226 | F32: APLCVA06600_FLXPAGAMENTOS_072025_S005.XML | G32: 45839 | H32: 45839 | I32: 303430.38
A33: 1 | B33: Serviços Cobráveis | C33: Serviços Cobráveis | D33: 202508 | E33: 46226 | F33: APLCVA06600_FLXPAGAMENTOS_082025_S004.XML | G33: 45870 | H33: 45870 | I33: 390473.76
A34: 1 | B34: Serviços Cobráveis | C34: Serviços Cobráveis | D34: 202509 | E34: 46226 | F34: APLCVA06600_FLXPAGAMENTOS_092025_S004.XML | G34: 45901 | H34: 45901 | I34: 417495.11 | K34: Data do último Lançamento por item e competência
A35: 1 | B35: Serviços Cobráveis | C35: Serviços Cobráveis | D35: 202510 | E35: 46226 | F35: APLCVA06600_FLXPAGAMENTOS_102025_S004.XML | G35: 45931 | H35: 45931 | I35: 543175.55 | K35: Descrição | L35: =DATE(YEAR(LnkTxtDRPData),MONTH(LnkTxtDRPData),1) -> 2026-08-01 | M35: =EDATE(L35,-1) -> 2026-07-01 | N35: =EDATE(M35,-1) -> 2026-06-01 | O35: 2026-05-01 | P35: 2026-04-01 | Q35: 2026-03-01 | R35: 2026-02-01 | S35: 2026-01-01 | T35: 2025-12-01 | U35: 2025-11-01 | V35: 2025-10-01 | W35: 2025-09-01 | X35: 2025-08-01 | Y35: 2025-07-01 | Z35: 2025-06-01 | AA35: 2025-05-01
A36: 1 | B36: Serviços Cobráveis | C36: Serviços Cobráveis | D36: 202511 | E36: 46226 | F36: APLCVA06600_FLXPAGAMENTOS_112025_S004.XML | G36: 45962 | H36: 45962 | I36: 516116.25 | K36: =Entrada!P8 -> Serviços Cobráveis | L36: =IF(_xlfn.MAXIFS($G$30:$G$200000,$C$30:$C$200000,$K36,$H$30:$H$200000,L$2)=0,"",_xlfn.MAXIFS($G$30:$G$200000,$C$30:$C$200000,$K36,$H$30:$H$200000,L$2)) ->  | M36: 46204 | N36: 46174 | O36: 46143 | P36: 46113 | Q36: 46082 | R36: 46054 | S36: 46023 | T36: 45992 | U36: 45962 | V36: 45931 | W36: 45901 | X36: 45870 | Y36: 45839 | Z36: 45809 | AA36: 45778
A37: 1 | B37: Serviços Cobráveis | C37: Serviços Cobráveis | D37: 202512 | E37: 46226 | F37: APLCVA06600_FLXPAGAMENTOS_122025_S004.XML | G37: 45992 | H37: 45992 | I37: 637205.63 | K37: =Entrada!P9 -> Arrecadação de convênios ou valores pela fatura | M37: 46204 | N37: 46174 | O37: 46143 | P37: 46113 | Q37: 46082 | R37: 46054 | S37: 46023 | T37: 45992 | U37: 45962 | V37: 45931 | W37: 45901 | X37: 45870 | Y37: 45839 | Z37: 45809 | AA37: 45778
A38: 1 | B38: Serviços Cobráveis | C38: Serviços Cobráveis | D38: 202601 | E38: 46226 | F38: APLCVA06600_FLXPAGAMENTOS_012026_S003.XML | G38: 46023 | H38: 46023 | I38: 716815.66 | K38: =Entrada!P10 -> Arrecadação de faturas de terceiros por estrutura própria
A39: 1 | B39: Serviços Cobráveis | C39: Serviços Cobráveis | D39: 202602 | E39: 46226 | F39: APLCVA06600_FLXPAGAMENTOS_022026_S003.XML | G39: 46054 | H39: 46054 | I39: 578198.81 | K39: =Entrada!P11 -> Veiculação de publicidade
A40: 1 | B40: Serviços Cobráveis | C40: Serviços Cobráveis | D40: 202603 | E40: 46233 | F40: APLCVA06600_FLXPAGAMENTOS_032026_S005.XML | G40: 46082 | H40: 46082 | I40: 492308.55 | K40: =Entrada!P12 -> Aluguel ou cessão onerosa de imóveis e espaços físicos
A41: 1 | B41: Serviços Cobráveis | C41: Serviços Cobráveis | D41: 202604 | E41: 46233 | F41: APLCVA06600_FLXPAGAMENTOS_042026_S004.XML | G41: 46113 | H41: 46113 | I41: 423630.33 | K41: =Entrada!P13 -> Compartilhamento de infraestrutura | M41: 46204 | N41: 46174 | O41: 46143 | P41: 46113 | Q41: 46082 | R41: 46054 | S41: 46023 | T41: 45992 | U41: 45962 | V41: 45931 | W41: 45901 | X41: 45870 | Y41: 45839 | Z41: 45809 | AA41: 45778
A42: 1 | B42: Serviços Cobráveis | C42: Serviços Cobráveis | D42: 202605 | E42: 46226 | F42: APLCVA06600_FLXPAGAMENTOS_052026_S002.XML | G42: 46143 | H42: 46143 | I42: 447292.56 | K42: =Entrada!P14 -> Serviços de avaliação técnica e aferição de medidores.
A43: 1 | B43: Serviços Cobráveis | C43: Serviços Cobráveis | D43: 202606 | E43: 46237 | F43: APLCVA06600_FLXPAGAMENTOS_062026_S006.XML | G43: 46174 | H43: 46174 | I43: 455633.43 | K43: =Entrada!P15 -> Operacionalização de serviço de créditos tributários
A44: 1 | B44: Serviços Cobráveis | C44: Serviços Cobráveis | D44: 202607 | E44: 46233 | F44: APLCVA06600_FLXPAGAMENTOS_072026_S002.XML | G44: 46204 | H44: 46204 | I44: 0 | K44: =Entrada!P16 -> Elaboração de projeto, construção, operação, manutenção ou reforma de:
A45: 2 | B45: Arrecadação de convênios ou valores pela fatura | C45: Arrecadação de convênios ou valores pela fatura | D45: 202505 | E45: 46212 | F45: APLCVA06600_FLXPAGAMENTOS_052025_S003.XML | G45: 45778 | H45: 45778 | I45: 286751.06 | K45: =Entrada!P17 -> (1) redes de distribuição de energia elétrica destinadas à regularização fundiária de interesse específico e ao atendimento dos empreendimentos de múltiplas unidades consumidoras;
A46: 2 | B46: Arrecadação de convênios ou valores pela fatura | C46: Arrecadação de convênios ou valores pela fatura | D46: 202506 | E46: 46212 | F46: APLCVA06600_FLXPAGAMENTOS_062025_S005.XML | G46: 45809 | H46: 45809 | I46: 309827.84 | K46: =Entrada!P18 -> (2) redes de energia elétrica destinadas ao acesso dos sistemas de distribuição ou transmissão; | L46: =IF(_xlfn.MAXIFS($G$30:$G$200000,$C$30:$C$200000,$K46,$H$30:$H$200000,L$2)=0,"",_xlfn.MAXIFS($G$30:$G$200000,$C$30:$C$200000,$K46,$H$30:$H$200000,L$2)) -> 
A47: 2 | B47: Arrecadação de convênios ou valores pela fatura | C47: Arrecadação de convênios ou valores pela fatura | D47: 202507 | E47: 46226 | F47: APLCVA06600_FLXPAGAMENTOS_072025_S005.XML | G47: 45839 | H47: 45839 | I47: 291606.53 | K47: =Entrada!P19 -> (3) subestações de energia;
A48: 2 | B48: Arrecadação de convênios ou valores pela fatura | C48: Arrecadação de convênios ou valores pela fatura | D48: 202508 | E48: 46226 | F48: APLCVA06600_FLXPAGAMENTOS_082025_S004.XML | G48: 45870 | H48: 45870 | I48: 302096.09 | K48: =Entrada!P20 -> (4) instalações elétricas internas de unidades consumidoras;
A49: 2 | B49: Arrecadação de convênios ou valores pela fatura | C49: Arrecadação de convênios ou valores pela fatura | D49: 202509 | E49: 46226 | F49: APLCVA06600_FLXPAGAMENTOS_092025_S004.XML | G49: 45901 | H49: 45901 | I49: 282201.04 | K49: =Entrada!P21 -> (5) banco de capacitores;
A50: 2 | B50: Arrecadação de convênios ou valores pela fatura | C50: Arrecadação de convênios ou valores pela fatura | D50: 202510 | E50: 46226 | F50: APLCVA06600_FLXPAGAMENTOS_102025_S004.XML | G50: 45931 | H50: 45931 | I50: 291016.99 | K50: =Entrada!P22 -> (6) padrões de entrada de unidades consumidoras atendidas em baixa tensão;
A51: 2 | B51: Arrecadação de convênios ou valores pela fatura | C51: Arrecadação de convênios ou valores pela fatura | D51: 202511 | E51: 46226 | F51: APLCVA06600_FLXPAGAMENTOS_112025_S004.XML | G51: 45962 | H51: 45962 | I51: 292659.8 | K51: =Entrada!P23 -> (7) sistemas de medição de energia elétrica;
A52: 2 | B52: Arrecadação de convênios ou valores pela fatura | C52: Arrecadação de convênios ou valores pela fatura | D52: 202512 | E52: 46226 | F52: APLCVA06600_FLXPAGAMENTOS_122025_S004.XML | G52: 45992 | H52: 45992 | I52: 278370.16 | K52: =Entrada!P24 -> (8) geradores, incluindo-se unidades de microgeração e minigeração distribuída;
A53: 2 | B53: Arrecadação de convênios ou valores pela fatura | C53: Arrecadação de convênios ou valores pela fatura | D53: 202601 | E53: 46226 | F53: APLCVA06600_FLXPAGAMENTOS_012026_S003.XML | G53: 46023 | H53: 46023 | I53: 313823.81 | K53: =Entrada!P25 -> (9) sistemas de iluminação pública.
A54: 2 | B54: Arrecadação de convênios ou valores pela fatura | C54: Arrecadação de convênios ou valores pela fatura | D54: 202602 | E54: 46226 | F54: APLCVA06600_FLXPAGAMENTOS_022026_S003.XML | G54: 46054 | H54: 46054 | I54: 294875.16 | K54: =Entrada!P26 -> (10) estações de recarga de veículos elétricos, incluindo a prestação de serviços aos usuários
A55: 2 | B55: Arrecadação de convênios ou valores pela fatura | C55: Arrecadação de convênios ou valores pela fatura | D55: 202603 | E55: 46233 | F55: APLCVA06600_FLXPAGAMENTOS_032026_S005.XML | G55: 46082 | H55: 46082 | I55: 285821.67 | K55: =Entrada!P27 -> Eficientização do consumo de energia elétrica e instalação de cogeração qualificada, desde que não enquadráveis nos projetos de Pesquisa e Desenvolvimento (P&D) ou de Eficiência Energética estabelecidos em lei
A56: 2 | B56: Arrecadação de convênios ou valores pela fatura | C56: Arrecadação de convênios ou valores pela fatura | D56: 202604 | E56: 46233 | F56: APLCVA06600_FLXPAGAMENTOS_042026_S004.XML | G56: 46113 | H56: 46113 | I56: 312843.39 | K56: =Entrada!P28 -> Serviços de comunicação de dados
A57: 2 | B57: Arrecadação de convênios ou valores pela fatura | C57: Arrecadação de convênios ou valores pela fatura | D57: 202605 | E57: 46226 | F57: APLCVA06600_FLXPAGAMENTOS_052026_S002.XML | G57: 46143 | H57: 46143 | I57: 285498.43 | K57: =Entrada!P29 -> Serviços de consultoria
A58: 2 | B58: Arrecadação de convênios ou valores pela fatura | C58: Arrecadação de convênios ou valores pela fatura | D58: 202606 | E58: 46237 | F58: APLCVA06600_FLXPAGAMENTOS_062026_S006.XML | G58: 46174 | H58: 46174 | I58: 0 | K58: =Entrada!P30 -> Receita proveniente da comercialização de resultados de projetos de P&D COM comprovação
A59: 2 | B59: Arrecadação de convênios ou valores pela fatura | C59: Arrecadação de convênios ou valores pela fatura | D59: 202607 | E59: 46233 | F59: APLCVA06600_FLXPAGAMENTOS_072026_S002.XML | G59: 46204 | H59: 46204 | I59: 0 | K59: =Entrada!P31 -> Receita proveniente da comercialização de resultados de projetos de P&D SEM comprovação | N59: 46174 | O59: 46143 | P59: 46113 | Q59: 46082 | R59: 46054 | S59: 46023
A60: 6 | B60: Compartilhamento de infraestrutura | C60: Compartilhamento de infraestrutura | D60: 202505 | E60: 46212 | F60: APLCVA06600_FLXPAGAMENTOS_052025_S003.XML | G60: 45778 | H60: 45778 | I60: 2236842.22
A61: 6 | B61: Compartilhamento de infraestrutura | C61: Compartilhamento de infraestrutura | D61: 202506 | E61: 46212 | F61: APLCVA06600_FLXPAGAMENTOS_062025_S005.XML | G61: 45809 | H61: 45809 | I61: 2231736.14 | K61: Descrição | L61: =L35 -> 2026-08-01 | M61: =M35 -> 2026-07-01 | N61: 2026-06-01 | O61: 2026-05-01 | P61: 2026-04-01 | Q61: 2026-03-01 | R61: 2026-02-01 | S61: 2026-01-01 | T61: 2025-12-01 | U61: 2025-11-01 | V61: 2025-10-01 | W61: 2025-09-01 | X61: 2025-08-01 | Y61: 2025-07-01 | Z61: 2025-06-01 | AA61: 2025-05-01
A62: 6 | B62: Compartilhamento de infraestrutura | C62: Compartilhamento de infraestrutura | D62: 202507 | E62: 46226 | F62: APLCVA06600_FLXPAGAMENTOS_072025_S005.XML | G62: 45839 | H62: 45839 | I62: 2232083.99 | K62: =Entrada!P51 -> Ultrapassagem de Demanda | L62: =IF(COUNTIFS($C$30:$C$200000,$K62,$H$30:$H$200000,L$2)=0,"",COUNTIFS($C$30:$C$200000,$K62,$H$30:$H$200000,L$2)) ->  | M62: 1 | N62: 1 | O62: 1 | P62: 1 | Q62: 1 | R62: 1 | S62: 1 | T62: 1 | U62: 1 | V62: 1 | W62: 1 | X62: 1 | Y62: 1 | Z62: 1 | AA62: 1
A63: 6 | B63: Compartilhamento de infraestrutura | C63: Compartilhamento de infraestrutura | D63: 202508 | E63: 46226 | F63: APLCVA06600_FLXPAGAMENTOS_082025_S004.XML | G63: 45870 | H63: 45870 | I63: 2365200.64 | K63: =Entrada!P52 -> Excedente Reativo | M63: 1 | N63: =IF(COUNTIFS($C$30:$C$200000,$K63,$H$30:$H$200000,N$2)=0,"",COUNTIFS($C$30:$C$200000,$K63,$H$30:$H$200000,N$2)) -> 1 | O63: 1 | P63: 1 | Q63: 1 | R63: 1 | S63: 1 | T63: 1 | U63: 1 | V63: 1 | W63: 1 | X63: 1 | Y63: 1 | Z63: 1 | AA63: 1
A64: 6 | B64: Compartilhamento de infraestrutura | C64: Compartilhamento de infraestrutura | D64: 202509 | E64: 46226 | F64: APLCVA06600_FLXPAGAMENTOS_092025_S004.XML | G64: 45901 | H64: 45901 | I64: 2259606
A65: 6 | B65: Compartilhamento de infraestrutura | C65: Compartilhamento de infraestrutura | D65: 202510 | E65: 46226 | F65: APLCVA06600_FLXPAGAMENTOS_102025_S004.XML | G65: 45931 | H65: 45931 | I65: 2279701.05
A66: 6 | B66: Compartilhamento de infraestrutura | C66: Compartilhamento de infraestrutura | D66: 202511 | E66: 46226 | F66: APLCVA06600_FLXPAGAMENTOS_112025_S004.XML | G66: 45962 | H66: 45962 | I66: 2286542.98
A67: 6 | B67: Compartilhamento de infraestrutura | C67: Compartilhamento de infraestrutura | D67: 202512 | E67: 46226 | F67: APLCVA06600_FLXPAGAMENTOS_122025_S004.XML | G67: 45992 | H67: 45992 | I67: 2281331.28
A68: 6 | B68: Compartilhamento de infraestrutura | C68: Compartilhamento de infraestrutura | D68: 202601 | E68: 46226 | F68: APLCVA06600_FLXPAGAMENTOS_012026_S003.XML | G68: 46023 | H68: 46023 | I68: 2286804.29
A69: 6 | B69: Compartilhamento de infraestrutura | C69: Compartilhamento de infraestrutura | D69: 202602 | E69: 46226 | F69: APLCVA06600_FLXPAGAMENTOS_022026_S003.XML | G69: 46054 | H69: 46054 | I69: 1933699.26
A70: 6 | B70: Compartilhamento de infraestrutura | C70: Compartilhamento de infraestrutura | D70: 202603 | E70: 46233 | F70: APLCVA06600_FLXPAGAMENTOS_032026_S005.XML | G70: 46082 | H70: 46082 | I70: 1763144.2
A71: 6 | B71: Compartilhamento de infraestrutura | C71: Compartilhamento de infraestrutura | D71: 202604 | E71: 46233 | F71: APLCVA06600_FLXPAGAMENTOS_042026_S004.XML | G71: 46113 | H71: 46113 | I71: 1935303.15
A72: 6 | B72: Compartilhamento de infraestrutura | C72: Compartilhamento de infraestrutura | D72: 202605 | E72: 46226 | F72: APLCVA06600_FLXPAGAMENTOS_052026_S002.XML | G72: 46143 | H72: 46143 | I72: 3439243.38
A73: 6 | B73: Compartilhamento de infraestrutura | C73: Compartilhamento de infraestrutura | D73: 202606 | E73: 46237 | F73: APLCVA06600_FLXPAGAMENTOS_062026_S006.XML | G73: 46174 | H73: 46174 | I73: 2491040.15
A74: 6 | B74: Compartilhamento de infraestrutura | C74: Compartilhamento de infraestrutura | D74: 202607 | E74: 46233 | F74: APLCVA06600_FLXPAGAMENTOS_072026_S002.XML | G74: 46204 | H74: 46204 | I74: 0
A75: 22 | B75: Receita proveniente da comercialização de resultados de projetos de P&D | C75: Receita proveniente da comercialização de resultados de projetos de P&D SEM comprovação | D75: 202601 | E75: 46226 | F75: APLCVA06600_FLXPAGAMENTOS_012026_S003.XML | G75: 46023 | H75: 46023 | I75: 0
A76: 22 | B76: Receita proveniente da comercialização de resultados de projetos de P&D | C76: Receita proveniente da comercialização de resultados de projetos de P&D SEM comprovação | D76: 202602 | E76: 46226 | F76: APLCVA06600_FLXPAGAMENTOS_022026_S003.XML | G76: 46054 | H76: 46054 | I76: 0
A77: 22 | B77: Receita proveniente da comercialização de resultados de projetos de P&D | C77: Receita proveniente da comercialização de resultados de projetos de P&D SEM comprovação | D77: 202603 | E77: 46233 | F77: APLCVA06600_FLXPAGAMENTOS_032026_S005.XML | G77: 46082 | H77: 46082 | I77: 0
A78: 22 | B78: Receita proveniente da comercialização de resultados de projetos de P&D | C78: Receita proveniente da comercialização de resultados de projetos de P&D SEM comprovação | D78: 202604 | E78: 46233 | F78: APLCVA06600_FLXPAGAMENTOS_042026_S004.XML | G78: 46113 | H78: 46113 | I78: 0
A79: 22 | B79: Receita proveniente da comercialização de resultados de projetos de P&D | C79: Receita proveniente da comercialização de resultados de projetos de P&D SEM comprovação | D79: 202605 | E79: 46226 | F79: APLCVA06600_FLXPAGAMENTOS_052026_S002.XML | G79: 46143 | H79: 46143 | I79: 0
A80: 22 | B80: Receita proveniente da comercialização de resultados de projetos de P&D | C80: Receita proveniente da comercialização de resultados de projetos de P&D SEM comprovação | D80: 202606 | E80: 46237 | F80: APLCVA06600_FLXPAGAMENTOS_062026_S006.XML | G80: 46174 | H80: 46174 | I80: 0
A81: 23 | B81: Ultrapassagem de Demanda | C81: Ultrapassagem de Demanda | D81: 202505 | E81: 46212 | F81: APLCVA06600_FLXPAGAMENTOS_052025_S003.XML | G81: 45778 | H81: 45778 | I81: 1352905.53
A82: 23 | B82: Ultrapassagem de Demanda | C82: Ultrapassagem de Demanda | D82: 202506 | E82: 46212 | F82: APLCVA06600_FLXPAGAMENTOS_062025_S005.XML | G82: 45809 | H82: 45809 | I82: 1077697.03
A83: 23 | B83: Ultrapassagem de Demanda | C83: Ultrapassagem de Demanda | D83: 202507 | E83: 46226 | F83: APLCVA06600_FLXPAGAMENTOS_072025_S005.XML | G83: 45839 | H83: 45839 | I83: 739562.02
A84: 23 | B84: Ultrapassagem de Demanda | C84: Ultrapassagem de Demanda | D84: 202508 | E84: 46226 | F84: APLCVA06600_FLXPAGAMENTOS_082025_S004.XML | G84: 45870 | H84: 45870 | I84: 765041.33
A85: 23 | B85: Ultrapassagem de Demanda | C85: Ultrapassagem de Demanda | D85: 202509 | E85: 46226 | F85: APLCVA06600_FLXPAGAMENTOS_092025_S004.XML | G85: 45901 | H85: 45901 | I85: 965657.44
A86: 23 | B86: Ultrapassagem de Demanda | C86: Ultrapassagem de Demanda | D86: 202510 | E86: 46226 | F86: APLCVA06600_FLXPAGAMENTOS_102025_S004.XML | G86: 45931 | H86: 45931 | I86: 988028.86
A87: 23 | B87: Ultrapassagem de Demanda | C87: Ultrapassagem de Demanda | D87: 202511 | E87: 46226 | F87: APLCVA06600_FLXPAGAMENTOS_112025_S004.XML | G87: 45962 | H87: 45962 | I87: 1290181.15
A88: 23 | B88: Ultrapassagem de Demanda | C88: Ultrapassagem de Demanda | D88: 202512 | E88: 46226 | F88: APLCVA06600_FLXPAGAMENTOS_122025_S004.XML | G88: 45992 | H88: 45992 | I88: 1533222.63
A89: 23 | B89: Ultrapassagem de Demanda | C89: Ultrapassagem de Demanda | D89: 202601 | E89: 46226 | F89: APLCVA06600_FLXPAGAMENTOS_012026_S003.XML | G89: 46023 | H89: 46023 | I89: 1567642.68
A90: 23 | B90: Ultrapassagem de Demanda | C90: Ultrapassagem de Demanda | D90: 202602 | E90: 46226 | F90: APLCVA06600_FLXPAGAMENTOS_022026_S003.XML | G90: 46054 | H90: 46054 | I90: 1396103.83
A91: 23 | B91: Ultrapassagem de Demanda | C91: Ultrapassagem de Demanda | D91: 202603 | E91: 46233 | F91: APLCVA06600_FLXPAGAMENTOS_032026_S005.XML | G91: 46082 | H91: 46082 | I91: 1614587.71
A92: 23 | B92: Ultrapassagem de Demanda | C92: Ultrapassagem de Demanda | D92: 202604 | E92: 46233 | F92: APLCVA06600_FLXPAGAMENTOS_042026_S004.XML | G92: 46113 | H92: 46113 | I92: 1630388.36
A93: 23 | B93: Ultrapassagem de Demanda | C93: Ultrapassagem de Demanda | D93: 202605 | E93: 46226 | F93: APLCVA06600_FLXPAGAMENTOS_052026_S002.XML | G93: 46143 | H93: 46143 | I93: 1445823.93
A94: 23 | B94: Ultrapassagem de Demanda | C94: Ultrapassagem de Demanda | D94: 202606 | E94: 46237 | F94: APLCVA06600_FLXPAGAMENTOS_062026_S006.XML | G94: 46174 | H94: 46174 | I94: 0
A95: 23 | B95: Ultrapassagem de Demanda | C95: Ultrapassagem de Demanda | D95: 202607 | E95: 46233 | F95: APLCVA06600_FLXPAGAMENTOS_072026_S002.XML | G95: 46204 | H95: 46204 | I95: 0
A96: 24 | B96: Excedente Reativo | C96: Excedente Reativo | D96: 202505 | E96: 46212 | F96: APLCVA06600_FLXPAGAMENTOS_052025_S003.XML | G96: 45778 | H96: 45778 | I96: 1034087.91
A97: 24 | B97: Excedente Reativo | C97: Excedente Reativo | D97: 202506 | E97: 46212 | F97: APLCVA06600_FLXPAGAMENTOS_062025_S005.XML | G97: 45809 | H97: 45809 | I97: 1040971.53
A98: 24 | B98: Excedente Reativo | C98: Excedente Reativo | D98: 202507 | E98: 46226 | F98: APLCVA06600_FLXPAGAMENTOS_072025_S005.XML | G98: 45839 | H98: 45839 | I98: 1040514.78
A99: 24 | B99: Excedente Reativo | C99: Excedente Reativo | D99: 202508 | E99: 46226 | F99: APLCVA06600_FLXPAGAMENTOS_082025_S004.XML | G99: 45870 | H99: 45870 | I99: 1100421.16
A100: 24 | B100: Excedente Reativo | C100: Excedente Reativo | D100: 202509 | E100: 46226 | F100: APLCVA06600_FLXPAGAMENTOS_092025_S004.XML | G100: 45901 | H100: 45901 | I100: 1179927.12
A101: 24 | B101: Excedente Reativo | C101: Excedente Reativo | D101: 202510 | E101: 46226 | F101: APLCVA06600_FLXPAGAMENTOS_102025_S004.XML | G101: 45931 | H101: 45931 | I101: 1171436.82
A102: 24 | B102: Excedente Reativo | C102: Excedente Reativo | D102: 202511 | E102: 46226 | F102: APLCVA06600_FLXPAGAMENTOS_112025_S004.XML | G102: 45962 | H102: 45962 | I102: 1201149.09
A103: 24 | B103: Excedente Reativo | C103: Excedente Reativo | D103: 202512 | E103: 46226 | F103: APLCVA06600_FLXPAGAMENTOS_122025_S004.XML | G103: 45992 | H103: 45992 | I103: 1163122.29
A104: 24 | B104: Excedente Reativo | C104: Excedente Reativo | D104: 202601 | E104: 46226 | F104: APLCVA06600_FLXPAGAMENTOS_012026_S003.XML | G104: 46023 | H104: 46023 | I104: 1216124.73
A105: 24 | B105: Excedente Reativo | C105: Excedente Reativo | D105: 202602 | E105: 46226 | F105: APLCVA06600_FLXPAGAMENTOS_022026_S003.XML | G105: 46054 | H105: 46054 | I105: 1187293.69
A106: 24 | B106: Excedente Reativo | C106: Excedente Reativo | D106: 202603 | E106: 46233 | F106: APLCVA06600_FLXPAGAMENTOS_032026_S005.XML | G106: 46082 | H106: 46082 | I106: 1158765.39
A107: 24 | B107: Excedente Reativo | C107: Excedente Reativo | D107: 202604 | E107: 46233 | F107: APLCVA06600_FLXPAGAMENTOS_042026_S004.XML | G107: 46113 | H107: 46113 | I107: 1171993.17
A108: 24 | B108: Excedente Reativo | C108: Excedente Reativo | D108: 202605 | E108: 46226 | F108: APLCVA06600_FLXPAGAMENTOS_052026_S002.XML | G108: 46143 | H108: 46143 | I108: 1219222.24
A109: 24 | B109: Excedente Reativo | C109: Excedente Reativo | D109: 202606 | E109: 46237 | F109: APLCVA06600_FLXPAGAMENTOS_062026_S006.XML | G109: 46174 | H109: 46174 | I109: 0
A110: 24 | B110: Excedente Reativo | C110: Excedente Reativo | D110: 202607 | E110: 46233 | F110: APLCVA06600_FLXPAGAMENTOS_072026_S002.XML | G110: 46204 | H110: 46204 | I110: 0

Sheet BD
B1: Banco de Dados | M1: Anexo II | N1: =Resultado!$D$6 -> 0.03864390538
B2: =CAPA!B6 -> EPB | M2: Anexo I | N2: =Resultado!$D$8 -> 0.009719756631
B5: Informações do ano anterior | G5: Dados de abertura (Neutralidade e CVA saldo a compensar) | L5: Dados de Energia | S5: Dados para Revisão | AA5: BMP_RIT | AK5: Avaliação Parcela B | AQ5: Compensação DIC FIC | BF5: Financeiro Desconcatenação Permissionárias
B7: Encargos | G7: Encargo | H7: Valor | I7: Norma | L7: Cotas | M7: Valor da "Cota" | N7: Ano | O7: Custo Médio da Cota | P7: Energia MWh | S7: item | T7: Descrição | U7: Detalhe | V7: Valor | AA7: IDAGENTE | AB7: ANO | AC7: SIGLA | AD7: ContaPrincipal | AE7: ContaDetalhada | AF7: CONTA | AG7: SALDO | AK7: Ano | AL7: DataRevREa | AM7: item | AN7: valor | AQ7: Competência | AR7: IdSariAcessado | AS7: IdSariAcessante | AT7: IdcTipoPontoConexao | AU7: VlrCompensacao | AV7: VlrDIC | AW7: VlrDMICMensal | AX7: VrlCompensasao_compensado | AY7: VlrDIC_compensado | AZ7: VlrDMICMensal_compensado | BA7: VlrCompensacao_a_Compensar | BB7: VlrDIC_a_compensar | BC7: VlrDMICMensal_a_compensar | BD7: Vlr_a_Compensar | BF7: IdAg_acessado | BG7: Sigla_acessada | BH7: IdAg_acessante | BI7: Sigla_acessante | BJ7: Competência | BK7: AnoRef | BL7: NomSubgrupo | BM7: DetalheTarifario | BN7: Posto | BO7: Vlr_Mercado | BP7: Tarifa | BQ7: Tarifa_ant | BR7: Vig_ini_acessada | BS7: Vig_fin_acessada | BT7: Competencia_seg | BU7: Vig_ini_acessante | BV7: Desconto | BW7: Desconto_ant | BX7: Financeiro
B8: CDE Covid TE | C8: 0 | G8: CDE Eletrobras | H8: -3209393.27 | I8: DSP 1894/2026 | L8: Angra | M8: NT 5/2026-STR-ANEEL | N8: 2026 | O8: 361.56 | P8: 112149.2358 | S8: 201 | T8: Financeiro de RTP | U8: Conselho de Consumidor | V8: 0.036 | AA8: 6600 | AB8: 2023 | AC8: EPB | AD8: Pessoal | AE8: Remuneração | AF8: 610530501 | AG8: 34825976.25 | AK8: 2025 | AL8: 23981 | AM8: ANEXO II | AN8: 0.06731740628 | AQ8: 46054 | AR8: 39 | AS8: 6600 | AT8: D | AU8: 0 | AV8: 3.55 | AW8: 0 | AX8: 0 | AY8: 0 | AZ8: 0 | BA8: 0 | BB8: -3.55 | BC8: 0 | BD8: -3.55
B9: CDE Covid TUSD | C9: 0 | G9: CDE | H9: 391327177.6 | I9: REH 3.564/2025 | S9: 202 | T9: Financeiro de RTP | U9: Conselho de Consumidor | V9: 0.191 | AA9: 6600 | AB9: 2023 | AC9: EPB | AD9: Pessoal | AE9: Encargos | AF9: 610530502 | AG9: 23787108.65 | AK9: 2025 | AL9: 23981 | AM9: Base de Remuneração Bruta | AN9: 5023691505 | AQ9: 46054 | AR9: 40 | AS9: 6600 | AT9: D | AU9: 705.41 | AV9: 15.78 | AW9: 0 | AX9: 0 | AY9: 0 | AZ9: 0 | BA9: -705.41 | BB9: -15.78 | BC9: 0 | BD9: -721.19
B10: TFSEE | C10: 4528657.194 | G10: CFURH | S10: 203 | T10: Financeiro de RTP | U10: Conselho de Consumidor | V10: 0.773 | AA10: 6600 | AB10: 2023 | AC10: EPB | AD10: Pessoal | AE10: Previdência Privada - Corrente | AF10: 610530503 | AG10: 1982030.78 | AK10: 2025 | AL10: 23981 | AM10: Base de Remuneração Líquida | AN10: 3018854211 | AQ10: 46054 | AR10: 43 | AS10: 6600 | AT10: D | AU10: 10243.75 | AV10: 177.51 | AW10: 6.65 | AX10: 0 | AY10: 0 | AZ10: 0 | BA10: -10243.75 | BB10: -177.51 | BC10: -6.65 | BD10: -10427.91
B11: CDE | C11: 296824990.2 | G11: PROINFA | H11: 45686360.62 | I11: Anexo I - NT 62/2026 | J11: Previsão STR | L11: Ano | M11: Cota Itaipu | AA11: 6600 | AB11: 2023 | AC11: EPB | AD11: Pessoal | AE11: Despesas Rescisórias | AF11: 610530506 | AG11: 0 | AK11: 2025 | AL11: 23981 | AM11: CONSUMIDOR DISTRIBUIÇÃO | AN11: 49913.355 | AQ11: 46023 | AR11: 43 | AS11: 6600 | AT11: D | AU11: 0 | AV11: 1.45 | AW11: 1.45 | AX11: 0 | AY11: 0 | AZ11: 0 | BA11: 0 | BB11: -1.45 | BC11: -1.45 | BD11: -2.9
B12: ESS/ERR | C12: 108984595 | G12: ONS | H12: 144681.84 | I12: Contribuição 2025 | AA12: 6600 | AB12: 2023 | AC12: EPB | AD12: Pessoal | AE12: Participação nos Lucros e Resultados - PLR | AF12: 610530507 | AG12: 10723273.74 | AK12: 2025 | AL12: 23981 | AM12: CONSUMIDOR LIVRE | AN12: 1331274.391 | AQ12: 45992 | AR12: 40 | AS12: 6600 | AT12: D | AU12: 0 | AV12: 0.15 | AW12: 0.15 | AX12: 0 | AY12: 0 | AZ12: 0 | BA12: 0 | BB12: -0.15 | BC12: -0.15 | BD12: -0.3
B13: PROINFA | C13: 62766502.35 | G13: ERCAP | H13: 53211077.11 | I13: DSP 2.204/2026 | AA13: 6600 | AB13: 2023 | AC13: EPB | AD13: Pessoal | AE13: Outros Benefícios - Corrente | AF13: 610530508 | AG13: 34805770.33 | AK13: 2025 | AL13: 23981 | AM13: ENCARGO | AN13: 566988786.7 | AQ13: 45992 | AR13: 43 | AS13: 6600 | AT13: D | AU13: 115.01 | AV13: 7.36 | AW13: 7.01 | AX13: 0 | AY13: 0 | AZ13: 0 | BA13: -115.01 | BB13: -7.36 | BC13: -7.01 | BD13: -129.38
B14: P&D | C14: 29992907.68 | G14: EER | H14: 85724024.2 | I14: DSP 2.204/2026 | AA14: 6600 | AB14: 2023 | AC14: EPB | AD14: Pessoal | AE14: (-) Créditos de Tributos Recuperáveis | AF14: 610530510 | AG14: 0 | AK14: 2025 | AL14: 23981 | AM14: ENERGIA | AN14: 1378330879 | AQ14: 45962 | AR14: 40 | AS14: 6600 | AT14: D | AU14: 64.34 | AV14: 7.66 | AW14: 2.42 | AX14: 0 | AY14: 0 | AZ14: 0 | BA14: -64.34 | BB14: -7.66 | BC14: -2.42 | BD14: -74.42
B15: ONS | C15: 144681.84 | G15: ESS | H15: 2941621.19 | I15: DSP 2.204/2026 | AA15: 6600 | AB15: 2023 | AC15: EPB | AD15: Pessoal | AE15: Estagiários e Programas de Iniciação ao Trabalho | AF15: 610530511 | AG15: 806262.95 | AK15: 2025 | AL15: 23981 | AM15: FATOR X | AN15: 0.01733848702 | AQ15: 45962 | AR15: 43 | AS15: 6600 | AT15: D | AU15: 9178.74 | AV15: 42.79 | AW15: 8.75 | AX15: 0 | AY15: 0 | AZ15: 0 | BA15: -9178.74 | BB15: -42.79 | BC15: -8.75 | BD15: -9230.28
B16: CDE Eletrobras | C16: -3108566.75 | G16: TFSEE Fator de Carga | H16: 0.919 | AA16: 6600 | AB16: 2023 | AC16: EPB | AD16: Pessoal | AE16: Outros | AF16: 610530599 | AG16: 0 | AK16: 2025 | AL16: 23981 | AM16: Fornecimento | AN16: 4891539.239 | AQ16: 45931 | AR16: 40 | AS16: 6600 | AT16: D | AU16: 16.67 | AV16: 2.82 | AW16: 2.82 | AX16: 0 | AY16: 0 | AZ16: 0 | BA16: -16.67 | BB16: -2.82 | BC16: -2.82 | BD16: -22.31
B17: CDE GD | C17: 48477574.29 | G17: CDE Covid | H17: 0 | I17: Quitação | AA17: 6600 | AB17: 2023 | AC17: EPB | AD17: Pessoal | AE17: Honorários e Encargos (Diretoria e Conselho) | AF17: 610530601 | AG17: 0 | AK17: 2025 | AL17: 23981 | AM17: IGPM | AN17: 0.02961131379 | AQ17: 45931 | AR17: 43 | AS17: 6600 | AT17: D | AU17: 2319.5 | AV17: 5.35 | AW17: 5.68 | AX17: 0 | AY17: 0 | AZ17: 0 | BA17: -2319.5 | BB17: -5.35 | BC17: -5.68 | BD17: -2330.53
B18: CDE Conta - Escassez Hídrica TUSD | C18: 0 | G18: CDE Covid TE% | H18: 0.5889099246 | AA18: 6600 | AB18: 2023 | AC18: EPB | AD18: Pessoal | AE18: Benefícios dos Administradores | AF18: 610530602 | AG18: 0 | AK18: 2025 | AL18: 23981 | AM18: IPCA | AN18: 0.05225254704 | AQ18: 45901 | AR18: 43 | AS18: 6600 | AT18: D | AU18: 2487.42 | AV18: 8.39 | AW18: 6.49 | AX18: 0 | AY18: 0 | AZ18: 0 | BA18: -2487.42 | BB18: -8.39 | BC18: -6.49 | BD18: -2502.3
B19: CDE Conta - Escassez Hídrica TE | C19: 18377444.93 | G19: CDE Covid TUSD% | H19: 0.4110900754 | AA19: 6600 | AB19: 2023 | AC19: EPB | AD19: Materiais | AE19: Materiais | AF19: 610530701 | AG19: 25269433.92 | AK19: 2025 | AL19: 23981 | AM19: Parcela B | AN19: 1235389724 | AQ19: 45870 | AR19: 39 | AS19: 6600 | AT19: D | AU19: 0 | AV19: 0.8 | AW19: 0.33 | AX19: 0 | AY19: 0 | AZ19: 0 | BA19: 0 | BB19: -0.8 | BC19: -0.33 | BD19: -1.13
G20: CDE Escassez Hidrica | H20: 16066845.31 | I20: DSP 510/2023 | AA20: 6600 | AB20: 2023 | AC20: EPB | AD20: Materiais | AE20: (-) Créditos de Tributos Recuperáveis | AF20: 610530710 | AG20: -868956.85 | AK20: 2025 | AL20: 23981 | AM20: Revisão ou Reajuste (1-REVI,0-Reaj) | AN20: 1 | AQ20: 45870 | AR20: 40 | AS20: 6600 | AT20: D | AU20: 1739.69 | AV20: 19.33 | AW20: 6.7 | AX20: 0 | AY20: 0 | AZ20: 0 | BA20: -1739.69 | BB20: -19.33 | BC20: -6.7 | BD20: -1765.72
B21: Pmix | C21: 240.0206176 | G21: CDE Escassez Hidr TE% | H21: 1 | AA21: 6600 | AB21: 2023 | AC21: EPB | AD21: Materiais | AE21: Outros | AF21: 610530799 | AG21: 163297.2 | AK21: 2025 | AL21: 23981 | AM21: SUPRIMENTO (Mercado TUSD) | AN21: 0 | AQ21: 45870 | AR21: 43 | AS21: 6600 | AT21: D | AU21: 1444.82 | AV21: 47.76 | AW21: 14.14 | AX21: 0 | AY21: 0 | AZ21: 0 | BA21: -1444.82 | BB21: -47.76 | BC21: -14.14 | BD21: -1506.72
B22: PN2025 | C22: 0.07915 | G22: CDE Escassez Hidr TUSD% | H22: 0 | L22: Mês | M22: Potência | N22: Tarifa | O22: Perdas | P22: Energia | AA22: 6600 | AB22: 2023 | AC22: EPB | AD22: Serviços | AE22: Serviços de Terceiros | AF22: 610530801 | AG22: 55078845.56 | AK22: 2025 | AL22: 23981 | AM22: SUPRIMENTO (via Rede Básica) | AN22: 0 | AQ22: 45839 | AR22: 39 | AS22: 6600 | AT22: D | AU22: 0 | AV22: 0.14 | AW22: 0.14 | AX22: 0 | AY22: 0 | AZ22: 0 | BA22: 0 | BB22: -0.14 | BC22: -0.14 | BD22: -0.28
B23: PN2026 | C23: 0.07694 | G23: CDE GD | H23: 0.001 | I23: Art. 23, Lei 15.269/2025 | AA23: 6600 | AB23: 2023 | AC23: EPB | AD23: Serviços | AE23: (-) Créditos de Tributos Recuperáveis | AF23: 610530810 | AG23: -1390227.31 | AK23: 2025 | AL23: 23981 | AM23: TRANSPORTE TERCEIROS | AN23: 314873644.9 | AQ23: 45839 | AR23: 40 | AS23: 6600 | AT23: D | AU23: 0 | AV23: 0.94 | AW23: 0.94 | AX23: 0 | AY23: 0 | AZ23: 0 | BA23: 0 | BB23: -0.94 | BC23: -0.94 | BD23: -1.88
B24: PT2025 | C24: 0.08572 | AA24: 6600 | AB24: 2023 | AC24: EPB | AD24: Seguros | AE24: Seguros | AF24: 610531001 | AG24: 0 | AQ24: 45839 | AR24: 43 | AS24: 6600 | AT24: D | AU24: 557.54 | AV24: 14.49 | AW24: 14.49 | AX24: 0 | AY24: 0 | AZ24: 0 | BA24: -557.54 | BB24: -14.49 | BC24: -14.49 | BD24: -586.52
B25: Perda RB total | C25: 0.01965492144 | G25: Informações de Postergação | AA25: 6600 | AB25: 2023 | AC25: EPB | AD25: Seguros | AE25: (-) Créditos de Tributos Recuperáveis | AF25: 610531010 | AG25: 0 | AQ25: 45809 | AR25: 40 | AS25: 6600 | AT25: D | AU25: 0 | AV25: 0.21 | AW25: 0.21 | AX25: 0 | AY25: 0 | AZ25: 0 | BA25: 0 | BB25: -0.21 | BC25: -0.21 | BD25: -0.42
AA26: 6600 | AB26: 2023 | AC26: EPB | AD26: Seguros | AE26: Outros | AF26: 610531099 | AG26: 0 | AQ26: 45809 | AR26: 43 | AS26: 6600 | AT26: D | AU26: 106.47 | AV26: 4.99 | AW26: 4.99 | AX26: 0 | AY26: 0 | AZ26: 0 | BA26: -106.47 | BB26: -4.99 | BC26: -4.99 | BD26: -116.45
B27: CVA RB | C27: 16759489.96 | G27: Tipo | H27: Valor | I27: Coluna1 | AA27: 6600 | AB27: 2023 | AC27: EPB | AD27: Tributos | AE27: Tributos | AF27: 610531601 | AG27: 1202128.68 | AQ27: 45778 | AR27: 39 | AS27: 6600 | AT27: D | AU27: 0 | AV27: 3.08 | AW27: 0 | AX27: 0 | AY27: 0 | AZ27: 0 | BA27: 0 | BB27: -3.08 | BC27: 0 | BD27: -3.08
B28: CVA CDE Covid TUSD | C28: -10185839.63 | G28: Data Postergada | H28: DtAniversario | I28: 46262 | AA28: 6600 | AB28: 2023 | AC28: EPB | AD28: Outros | AE28: Indenização por Perdas e Danos | AF28: 610531901 | AG28: 846062.39 | AQ28: 45778 | AR28: 43 | AS28: 6600 | AT28: D | AU28: 1830.52 | AV28: 74.63 | AW28: 17.95 | AX28: 0 | AY28: 0 | AZ28: 0 | BA28: -1830.52 | BB28: -74.63 | BC28: -17.95 | BD28: -1923.1
B29: CVA CCC | C29: 0 | G29: Data Anterior | I29: 46262 | AA29: 6600 | AB29: 2023 | AC29: EPB | AD29: Outros | AE29: Consumo Próprio de Energia | AF29: 610531902 | AG29: 4246370.96 | AQ29: 45748 | AR29: 39 | AS29: 6600 | AT29: D | AU29: 2035.69 | AV29: 3.08 | AW29: 3.08 | AX29: 0 | AY29: 0 | AZ29: 0 | BA29: -2035.69 | BB29: -3.08 | BC29: -3.08 | BD29: -2041.85
B30: CVA CDE | C30: 41169321.99 | G30: Diferença de Dias | I30: 0 | AA30: 6600 | AB30: 2023 | AC30: EPB | AD30: Outros | AE30: Taxa de Arrecadação | AF30: 610531903 | AG30: 0 | AQ30: 45748 | AR30: 43 | AS30: 6600 | AT30: D | AU30: 443.89 | AV30: 11.81 | AW30: 11.73 | AX30: 0 | AY30: 0 | AZ30: 0 | BA30: -443.89 | BB30: -11.81 | BC30: -11.73 | BD30: -467.43
B31: CVA CFURH | G31: MesesAdin | I31: 0 | AA31: 6600 | AB31: 2023 | AC31: EPB | AD31: Outros | AE31: Taxas Bancárias | AF31: 610531904 | AG31: 0 | AQ31: 45717 | AR31: 43 | AS31: 6600 | AT31: D | AU31: 521.86 | AV31: 13.48 | AW31: 9.38 | AX31: 0 | AY31: 0 | AZ31: 0 | BA31: -521.86 | BB31: -13.48 | BC31: -9.38 | BD31: -544.72
B32: CVA ESS\ERR | C32: 9305176.996 | G32: Reversão Subvenção CDE | AA32: 6600 | AB32: 2023 | AC32: EPB | AD32: Outros | AE32: Despesas com Conselho de Consumidores | AF32: 610531905 | AG32: 0 | AQ32: 45689 | AR32: 39 | AS32: 6600 | AT32: D | AU32: 0 | AV32: 5.3 | AW32: 0 | AX32: 0 | AY32: 0 | AZ32: 0 | BA32: 0 | BB32: -5.3 | BC32: 0 | BD32: -5.3
B33: CVA PROINFA | C33: 8190134.918 | G33: Data 4CRT | I33: 45897 | AA33: 6600 | AB33: 2023 | AC33: EPB | AD33: Outros | AE33: Comunicação e Reprografia | AF33: 610531907 | AG33: 1039503.35 | AQ33: 45689 | AR33: 40 | AS33: 6600 | AT33: D | AU33: 1728.33 | AV33: 33.45 | AW33: 0 | AX33: 0 | AY33: 0 | AZ33: 0 | BA33: -1728.33 | BB33: -33.45 | BC33: 0 | BD33: -1761.78
B34: CVA TRANS. ITAIPU | C34: 0 | AA34: 6600 | AB34: 2023 | AC34: EPB | AD34: Outros | AE34: Contribuição Associativa - CCEE | AF34: 610531908 | AG34: 466041.71 | AQ34: 45689 | AR34: 43 | AS34: 6600 | AT34: D | AU34: 109002.7 | AV34: 299.94 | AW34: 11.49 | AX34: 0 | AY34: 0 | AZ34: 0 | BA34: -109002.7 | BB34: -299.94 | BC34: -11.49 | BD34: -109314.13
B35: CVA ENERGIA | C35: -23153809.87 | G35: Nome | H35: Valor | AA35: 6600 | AB35: 2023 | AC35: EPB | AD35: Outros | AE35: Contribuição Associativa - ONS | AF35: 610531909 | AG35: 138046.71 | AQ35: 45658 | AR35: 39 | AS35: 6600 | AT35: D | AU35: 0 | AV35: 0.08 | AW35: 0.08 | AX35: 0 | AY35: 0 | AZ35: 0 | BA35: 0 | BB35: -0.08 | BC35: -0.08 | BD35: -0.16
B36: CVA CDE Covid TE | C36: -14591794.86 | G36: TUSDg Export DRP | H36: 0 | L36: Mês | M36: Potência | N36: Tarifa DRA | O36: Tarifa DRP | P36: Colunas1 | AA36: 6600 | AB36: 2023 | AC36: EPB | AD36: Outros | AE36: (-) Créditos de Tributos Recuperáveis | AF36: 610531910 | AG36: 0 | AQ36: 45658 | AR36: 40 | AS36: 6600 | AT36: D | AU36: 0 | AV36: 2.56 | AW36: 2.56 | AX36: 0 | AY36: 0 | AZ36: 0 | BA36: 0 | BB36: -2.56 | BC36: -2.56 | BD36: -5.12
G37: TUSDg ONS DRP | H37: 0 | AA37: 6600 | AB37: 2023 | AC37: EPB | AD37: Pessoal | AE37: Remuneração | AF37: 610532501 | AG37: 13801237.61 | AQ37: 45658 | AR37: 43 | AS37: 6600 | AT37: D | AU37: 0 | AV37: 2.59 | AW37: 0.52 | AX37: 0 | AY37: 0 | AZ37: 0 | BA37: 0 | BB37: -2.59 | BC37: -0.52 | BD37: -3.11
G38: TUSDg ONS DRA | H38: 0 | AA38: 6600 | AB38: 2023 | AC38: EPB | AD38: Pessoal | AE38: Encargos | AF38: 610532502 | AG38: 6502150 | AQ38: 45627 | AR38: 39 | AS38: 6600 | AT38: D | AU38: 0 | AV38: 1.06 | AW38: 1.06 | AX38: 0 | AY38: 0 | AZ38: 0 | BA38: 0 | BB38: -1.06 | BC38: -1.06 | BD38: -2.12
B39: Transporte | G39: TUSDg Export DRA | H39: 0 | AA39: 6600 | AB39: 2023 | AC39: EPB | AD39: Pessoal | AE39: Previdência Privada - Corrente | AF39: 610532503 | AG39: 886955.32 | AQ39: 45627 | AR39: 40 | AS39: 6600 | AT39: D | AU39: 539.91 | AV39: 6.43 | AW39: 6.43 | AX39: 0 | AY39: 0 | AZ39: 0 | BA39: -539.91 | BB39: -6.43 | BC39: -6.43 | BD39: -552.77
B40: Conexao | C40: 14278025.39 | AA40: 6600 | AB40: 2023 | AC40: EPB | AD40: Pessoal | AE40: Despesas Rescisórias | AF40: 610532506 | AG40: 0 | AQ40: 45627 | AR40: 43 | AS40: 6600 | AT40: D | AU40: 0 | AV40: 0.14 | AW40: 0.14 | AX40: 0 | AY40: 0 | AZ40: 0 | BA40: 0 | BB40: -0.14 | BC40: -0.14 | BD40: -0.28
AA41: 6600 | AB41: 2023 | AC41: EPB | AD41: Pessoal | AE41: Participação nos Lucros e Resultados - PLR | AF41: 610532507 | AG41: 5154454.96 | AQ41: 45597 | AR41: 40 | AS41: 6600 | AT41: D | AU41: 0 | AV41: 6.68 | AW41: 3.34 | AX41: 0 | AY41: 0 | AZ41: 0 | BA41: 0 | BB41: -6.68 | BC41: -3.34 | BD41: -10.02
G42: Fator X | H42: Valor | AA42: 6600 | AB42: 2023 | AC42: EPB | AD42: Pessoal | AE42: Outros Benefícios - Corrente | AF42: 610532508 | AG42: 5214675.55 | AQ42: 45597 | AR42: 43 | AS42: 6600 | AT42: D | AU42: 4043.07 | AV42: 63.01 | AW42: 5.63 | AX42: 0 | AY42: 0 | AZ42: 0 | BA42: -4043.07 | BB42: -63.01 | BC42: -5.63 | BD42: -4111.71
G43: fatorx_t | H43: 0.01156789417 | AA43: 6600 | AB43: 2023 | AC43: EPB | AD43: Pessoal | AE43: (-) Créditos de Tributos Recuperáveis | AF43: 610532510 | AG43: 0 | AQ43: 45566 | AR43: 43 | AS43: 6600 | AT43: D | AU43: 5359.42 | AV43: 15.47 | AW43: 12.6 | AX43: 0 | AY43: 0 | AZ43: 0 | BA43: -5359.42 | BB43: -15.47 | BC43: -12.6 | BD43: -5387.49
B44: Mercado | G44: fatorx_pd | H44: 0.0146368038 | AA44: 6600 | AB44: 2023 | AC44: EPB | AD44: Pessoal | AE44: Estagiários e programa de iniciação ao trabalho | AF44: 610532511 | AG44: 376260.17 | AQ44: 45536 | AR44: 43 | AS44: 6600 | AT44: D | AU44: 3002.02 | AV44: 27.95 | AW44: 24.32 | AX44: 0 | AY44: 0 | AZ44: 0 | BA44: -3002.02 | BB44: -27.95 | BC44: -24.32 | BD44: -3054.29
B45: RA0_MWh_Tusd | C45: 6272726.985 | AA45: 6600 | AB45: 2023 | AC45: EPB | AD45: Pessoal | AE45: Outros | AF45: 610532599 | AG45: 0 | AQ45: 45505 | AR45: 39 | AS45: 6600 | AT45: D | AU45: 0 | AV45: 3.76 | AW45: 1.88 | AX45: 0 | AY45: 0 | AZ45: 0 | BA45: 0 | BB45: -3.76 | BC45: -1.88 | BD45: -5.64
B46: RA1_R$ | C46: 3495583035 | G46: DecFec Processo Anterior | H46: Valor | AA46: 6600 | AB46: 2023 | AC46: EPB | AD46: Pessoal | AE46: Honorários e Encargos (Diretoria e Conselho) | AF46: 610532601 | AG46: 5333146.72 | AQ46: 45505 | AR46: 40 | AS46: 6600 | AT46: D | AU46: 377.74 | AV46: 17.38 | AW46: 8.69 | AX46: 0 | AY46: 0 | AZ46: 0 | BA46: -377.74 | BB46: -17.38 | BC46: -8.69 | BD46: -403.81
B47: Proinfa | AA47: 6600 | AB47: 2023 | AC47: EPB | AD47: Pessoal | AE47: Benefícios dos Administradores | AF47: 610532602 | AG47: 976820.03 | AQ47: 45505 | AR47: 43 | AS47: 6600 | AT47: D | AU47: 24552.67 | AV47: 24.35 | AW47: 1.03 | AX47: 0 | AY47: 0 | AZ47: 0 | BA47: -24552.67 | BB47: -24.35 | BC47: -1.03 | BD47: -24578.05
B48: 2026 | C48: 104940.6442 | AA48: 6600 | AB48: 2023 | AC48: EPB | AD48: Pessoal | AE48: (-) Créditos de Tributos Recuperáveis | AF48: 610532610 | AG48: 0 | AQ48: 45474 | AR48: 43 | AS48: 6600 | AT48: D | AU48: 30657.41 | AV48: 22.15 | AW48: 21.64 | AX48: 0 | AY48: 0 | AZ48: 0 | BA48: -30657.41 | BB48: -22.15 | BC48: -21.64 | BD48: -30701.2
B49: Detalhamento de Encargos ESS e CDE | AA49: 6600 | AB49: 2023 | AC49: EPB | AD49: Materiais | AE49: Materiais | AF49: 610532701 | AG49: 5325455.39 | AQ49: 45444 | AR49: 43 | AS49: 6600 | AT49: D | AU49: 0 | AV49: 0.14 | AW49: 0.14 | AX49: 0 | AY49: 0 | AZ49: 0 | BA49: 0 | BB49: -0.14 | BC49: -0.14 | BD49: -0.28
L50: Dado | M50: Valor | N50: Início | O50: Fim | AA50: 6600 | AB50: 2023 | AC50: EPB | AD50: Materiais | AE50: (-) Créditos de Tributos Recuperáveis | AF50: 610532710 | AG50: 0 | AQ50: 45413 | AR50: 40 | AS50: 6600 | AT50: D | AU50: 0 | AV50: 3.44 | AW50: 0 | AX50: 0 | AY50: 0 | AZ50: 0 | BA50: 0 | BB50: -3.44 | BC50: 0 | BD50: -3.44
L51: MUST | M51: 7170 | N51: 45839 | O51: 46203 | AA51: 6600 | AB51: 2023 | AC51: EPB | AD51: Materiais | AE51: Outros | AF51: 610532799 | AG51: 0 | AQ51: 45413 | AR51: 43 | AS51: 6600 | AT51: D | AU51: 278785.94 | AV51: 319.6 | AW51: 80.21 | AX51: 0 | AY51: 0 | AZ51: 0 | BA51: -278785.94 | BB51: -319.6 | BC51: -80.21 | BD51: -279185.75
G52: Dados de dólar | H52: Valor | L52: MUST | M52: 6570 | N52: 46204 | O52: 46568 | AA52: 6600 | AB52: 2023 | AC52: EPB | AD52: Serviços | AE52: Serviços de Terceiros | AF52: 610532801 | AG52: 97968835.54 | AQ52: 45383 | AR52: 40 | AS52: 6600 | AT52: D | AU52: 147.82 | AV52: 3.44 | AW52: 3.44 | AX52: 0 | AY52: 0 | AZ52: 0 | BA52: -147.82 | BB52: -3.44 | BC52: -3.44 | BD52: -154.7
B53: Ciclo de Revisão | C53: 4 | G53: Dólar médio | H53: 5.101519048 | L53: Potência Max | M53: 10193 | N53: 45658 | O53: 46022 | AA53: 6600 | AB53: 2023 | AC53: EPB | AD53: Serviços | AE53: (-) Créditos de Tributos Recuperáveis | AF53: 610532810 | AG53: 0 | AQ53: 45383 | AR53: 43 | AS53: 6600 | AT53: D | AU53: 0 | AV53: 4.78 | AW53: 4.78 | AX53: 0 | AY53: 0 | AZ53: 0 | BA53: 0 | BB53: -4.78 | BC53: -4.78 | BD53: -9.56
G54: Data Inicial | H54: 46209 | L54: Potência Max | M54: 9635 | N54: 46023 | O54: 46387 | AA54: 6600 | AB54: 2023 | AC54: EPB | AD54: Seguros | AE54: Seguros | AF54: 610533001 | AG54: 1969973.29 | AQ54: 45352 | AR54: 39 | AS54: 6600 | AT54: D | AU54: 0 | AV54: 2.28 | AW54: 1.14 | AX54: 0 | AY54: 0 | AZ54: 0 | BA54: 0 | BB54: -2.28 | BC54: -1.14 | BD54: -3.42
G55: Data Final | H55: 46237 | AA55: 6600 | AB55: 2023 | AC55: EPB | AD55: Seguros | AE55: (-) Créditos de Tributos Recuperáveis | AF55: 610533010 | AG55: 0 | AQ55: 45352 | AR55: 43 | AS55: 6600 | AT55: D | AU55: 46087.57 | AV55: 23.25 | AW55: 23.25 | AX55: 0 | AY55: 0 | AZ55: 0 | BA55: -46087.57 | BB55: -23.25 | BC55: -23.25 | BD55: -46134.07
L56: Dados de perda | M56: Valor | O56: Agente | P56: Ressarcimento P&D | AA56: 6600 | AB56: 2023 | AC56: EPB | AD56: Seguros | AE56: Outros | AF56: 610533099 | AG56: 0 | AQ56: 45323 | AR56: 39 | AS56: 6600 | AT56: D | AU56: 33700 | AV56: 41.13 | AW56: 0 | AX56: 0 | AY56: 0 | AZ56: 0 | BA56: -33700 | BB56: -41.13 | BC56: 0 | BD56: -33741.13
B57: Subsídios Concedidos (sem ajuste) - Valor Mensal | L57: Perdas RB | M57: 110903.728 | AA57: 6600 | AB57: 2023 | AC57: EPB | AD57: Tributos | AE57: Tributos | AF57: 610533601 | AG57: 900794.86 | AQ57: 45323 | AR57: 40 | AS57: 6600 | AT57: D | AU57: 434.51 | AV57: 33.82 | AW57: 2.79 | AX57: 0 | AY57: 0 | AZ57: 0 | BA57: -434.51 | BB57: -33.82 | BC57: -2.79 | BD57: -471.12
B58: Mês de Início | C58: Carga Fonte | D58: Geração | E58: Distribuição | F58: Água, Esgoto e Saneamento | G58: Rural | H58: Irrigante/Aquicultor | I58: SCEE | J58: Lei 14299/20222 | L58: Perdas DITs | M58: 15858.12176 | AA58: 6600 | AB58: 2023 | AC58: EPB | AD58: Outros | AE58: Indenização por Perdas e Danos | AF58: 610533901 | AG58: 0 | AQ58: 45323 | AR58: 43 | AS58: 6600 | AT58: D | AU58: 82152.81 | AV58: 235.74 | AW58: 19.18 | AX58: 0 | AY58: 0 | AZ58: 0 | BA58: -82152.81 | BB58: -235.74 | BC58: -19.18 | BD58: -82407.73
B59: 2025-08-01 | C59: 5197842.22 | D59: 2018099.867 | E59: 0 | F59: 0 | G59: 0 | H59: 2847684.854 | I59: 3747443.952 | J59: 0 | AA59: 6600 | AB59: 2023 | AC59: EPB | AD59: Outros | AE59: Consumo Próprio de Energia | AF59: 610533902 | AG59: 0 | AQ59: 45292 | AR59: 39 | AS59: 6600 | AT59: D | AU59: 0 | AV59: 2.03 | AW59: 2.03 | AX59: 0 | AY59: 0 | AZ59: 0 | BA59: 0 | BB59: -2.03 | BC59: -2.03 | BD59: -4.06
AA60: 6600 | AB60: 2023 | AC60: EPB | AD60: Outros | AE60: Taxa de Arrecadação | AF60: 610533903 | AG60: 0 | AQ60: 45292 | AR60: 43 | AS60: 6600 | AT60: D | AU60: 439.13 | AV60: 12.33 | AW60: 8.66 | AX60: 0 | AY60: 0 | AZ60: 0 | BA60: -439.13 | BB60: -12.33 | BC60: -8.66 | BD60: -460.12
AA61: 6600 | AB61: 2023 | AC61: EPB | AD61: Outros | AE61: Taxas Bancárias | AF61: 610533904 | AG61: 0 | AQ61: 45261 | AR61: 39 | AS61: 6600 | AT61: D | AU61: 0 | AV61: 0.06 | AW61: 0.06 | AX61: 0 | AY61: 0 | AZ61: 0 | BA61: 0 | BB61: -0.06 | BC61: -0.06 | BD61: -0.12
L62: Informações de DR1 | AA62: 6600 | AB62: 2023 | AC62: EPB | AD62: Outros | AE62: Comunicação e Reprografia | AF62: 610533907 | AG62: 6169135.89 | AQ62: 45261 | AR62: 43 | AS62: 6600 | AT62: D | AU62: 0 | AV62: 4.21 | AW62: 4.11 | AX62: 0 | AY62: 0 | AZ62: 0 | BA62: 0 | BB62: -4.21 | BC62: -4.11 | BD62: -8.32
AA63: 6600 | AB63: 2023 | AC63: EPB | AD63: Outros | AE63: Contribuição Associativa - CCEE | AF63: 610533908 | AG63: 0 | AQ63: 45231 | AR63: 39 | AS63: 6600 | AT63: D | AU63: 44343.49 | AV63: 24.28 | AW63: 12.14 | AX63: 0 | AY63: 0 | AZ63: 0 | BA63: -44343.49 | BB63: -24.28 | BC63: -12.14 | BD63: -44379.91
L64: Informações de RI | AA64: 6600 | AB64: 2023 | AC64: EPB | AD64: Outros | AE64: Contribuição Associativa - ONS | AF64: 610533909 | AG64: 0 | AQ64: 45231 | AR64: 40 | AS64: 6600 | AT64: D | AU64: 0 | AV64: 10.42 | AW64: 0 | AX64: 0 | AY64: 0 | AZ64: 0 | BA64: 0 | BB64: -10.42 | BC64: 0 | BD64: -10.42
B65: Data | C65: Tipo | D65: Valor | E65: Valor IGPM | F65: Valor IPCA | G65: EixoRef | AA65: 6600 | AB65: 2023 | AC65: EPB | AD65: Outros | AE65: (-) Créditos de Tributos Recuperáveis | AF65: 610533910 | AG65: 0 | AQ65: 45231 | AR65: 43 | AS65: 6600 | AT65: D | AU65: 1245.54 | AV65: 46.03 | AW65: 10.55 | AX65: 0 | AY65: 0 | AZ65: 0 | BA65: -1245.54 | BB65: -46.03 | BC65: -10.55 | BD65: -1302.12
B66: =DATE(YEAR(CAPA!C10),MONTH(CAPA!C10),1) -> 2026-08-01 | C66: =IF(CAPA!C7="Revisão",1,0) -> 0 | D66: =Resultado!L11 -> 709.7039645 | E66: =IFERROR(VLOOKUP(EDATE($B66,-1),Índices!$B$6:$F$500,2,FALSE)/VLOOKUP(EDATE(MIN($B$67:$B$81),-1),Índices!$B$6:$F$500,2,FALSE)*VLOOKUP(MIN($B$67:$B$81),$B$67:$D$81,3,FALSE),0) -> 0 | F66: =IFERROR(VLOOKUP(EDATE($B66,-1),Índices!$B$6:$F$500,3,FALSE)/VLOOKUP(EDATE(MIN($B$67:$B$81),-1),Índices!$B$6:$F$500,3,FALSE)*VLOOKUP(MIN($B$67:$B$81),$B$67:$D$81,3,FALSE),0) -> 0 | G66: =IF(B66<>"",150+1,"") -> 151 | L66: Tipo | M66: % RI | O66: Data | P66: Fat Bandeiras | AA66: 6600 | AB66: 2023 | AC66: EPB | AD66: Alienação | AE66: Ganhos na Alienação de Bens Reversíveis | AF66: 611112203 | AG66: 0 | AQ66: 45200 | AR66: 43 | AS66: 6600 | AT66: D | AU66: 427.92 | AV66: 7.55 | AW66: 7.55 | AX66: 0 | AY66: 0 | AZ66: 0 | BA66: -427.92 | BB66: -7.55 | BC66: -7.55 | BD66: -443.02
L67: PctRIResidencial | M67: 0.0136 | O67: 45870 | P67: 20490600.48 | AA67: 6600 | AB67: 2023 | AC67: EPB | AD67: Desativação | AE67: Ganhos na Desativação de Bens Reversíveis | AF67: 611112403 | AG67: 0 | AQ67: 45170 | AR67: 40 | AS67: 6600 | AT67: D | AU67: 219.06 | AV67: 10.42 | AW67: 7.55 | AX67: 0 | AY67: 0 | AZ67: 0 | BA67: -219.06 | BB67: -10.42 | BC67: -7.55 | BD67: -237.03
L68: PctRIIndustrial | M68: 0.0036 | O68: 45901 | P68: 24312872.87 | AA68: 6600 | AB68: 2023 | AC68: EPB | AD68: Desativação | AE68: Perdas na Desativação de Bens Reversíveis | AF68: 611512003 | AG68: 11564059.07 | AQ68: 45170 | AR68: 43 | AS68: 6600 | AT68: D | AU68: 425.31 | AV68: 8.16 | AW68: 5.45 | AX68: 0 | AY68: 0 | AZ68: 0 | BA68: -425.31 | BB68: -8.16 | BC68: -5.45 | BD68: -438.92
L69: PctRICOMERCIAL | M69: 0.0066 | O69: 45931 | P69: 20198627.93 | AA69: 6600 | AB69: 2023 | AC69: EPB | AD69: Alienação | AE69: Perdas na Alienação de Bens Reversíveis | AF69: 611512203 | AG69: 1058950.29 | AQ69: 45139 | AR69: 39 | AS69: 6600 | AT69: D | AU69: 0 | AV69: 20.64 | AW69: 0 | AX69: 0 | AY69: 0 | AZ69: 0 | BA69: 0 | BB69: -20.64 | BC69: 0 | BD69: -20.64
L70: PctRIRURAL | M70: 0.0118 | O70: 45962 | P70: 15857889.7 | AA70: 6600 | AB70: 2024 | AC70: EPB | AD70: Pessoal | AE70: Remuneração | AF70: 610530501 | AG70: 33302633.15 | AQ70: 45139 | AR70: 43 | AS70: 6600 | AT70: D | AU70: 1278.67 | AV70: 48.2 | AW70: 12.85 | AX70: 0 | AY70: 0 | AZ70: 0 | BA70: -1278.67 | BB70: -48.2 | BC70: -12.85 | BD70: -1339.72
L71: PctRILUMPUBLICA | M71: 0.0001 | O71: 45992 | P71: 11275249.6 | AA71: 6600 | AB71: 2024 | AC71: EPB | AD71: Pessoal | AE71: Encargos | AF71: 610530502 | AG71: 28150760.25 | AQ71: 45108 | AR71: 43 | AS71: 6600 | AT71: D | AU71: 294.97 | AV71: 13.91 | AW71: 13.69 | AX71: 0 | AY71: 0 | AZ71: 0 | BA71: -294.97 | BB71: -13.91 | BC71: -13.69 | BD71: -322.57
L72: PctRIPODERPUBLICO | M72: 0.001 | O72: 46023 | P72: 3073285.5 | AA72: 6600 | AB72: 2024 | AC72: EPB | AD72: Pessoal | AE72: Previdência Privada - Corrente | AF72: 610530503 | AG72: 2421354.87 | AQ72: 45078 | AR72: 39 | AS72: 6600 | AT72: D | AU72: 64350.87 | AV72: 24.81 | AW72: 19.81 | AX72: 0 | AY72: 0 | AZ72: 0 | BA72: -64350.87 | BB72: -24.81 | BC72: -19.81 | BD72: -64395.49
L73: PctRISERVPUBLICO | M73: 0 | O73: 46054 | P73: 27280.04 | AA73: 6600 | AB73: 2024 | AC73: EPB | AD73: Pessoal | AE73: Despesas Rescisórias | AF73: 610530506 | AG73: 0 | AQ73: 45078 | AR73: 43 | AS73: 6600 | AT73: D | AU73: 140.94 | AV73: 4.91 | AW73: 4.91 | AX73: 0 | AY73: 0 | AZ73: 0 | BA73: -140.94 | BB73: -4.91 | BC73: -4.91 | BD73: -150.76
O74: 46082 | P74: 38016.35 | AA74: 6600 | AB74: 2024 | AC74: EPB | AD74: Pessoal | AE74: Participação nos Lucros e Resultados - PLR | AF74: 610530507 | AG74: 18607587.75 | AQ74: 45047 | AR74: 40 | AS74: 6600 | AT74: D | AU74: 113 | AV74: 21.31 | AW74: 6.28 | AX74: 0 | AY74: 0 | AZ74: 0 | BA74: -113 | BB74: -21.31 | BC74: -6.28 | BD74: -140.59
L75: Tipo | M75: % RI Anterior | O75: 46113 | P75: 12590.47 | AA75: 6600 | AB75: 2024 | AC75: EPB | AD75: Pessoal | AE75: Outros Benefícios - Corrente | AF75: 610530508 | AG75: 43578812.48 | AQ75: 45047 | AR75: 43 | AS75: 6600 | AT75: D | AU75: 47845.55 | AV75: 77.54 | AW75: 18.21 | AX75: 0 | AY75: 0 | AZ75: 0 | BA75: -47845.55 | BB75: -77.54 | BC75: -18.21 | BD75: -47941.3
L76: PctRIResidencial | M76: 0.0136 | O76: 46143 | P76: 3574069.07 | AA76: 6600 | AB76: 2024 | AC76: EPB | AD76: Pessoal | AE76: (-) Créditos de Tributos Recuperáveis | AF76: 610530510 | AG76: 0 | AQ76: 45017 | AR76: 39 | AS76: 6600 | AT76: D | AU76: 6561.45 | AV76: 4.17 | AW76: 4.17 | AX76: 0 | AY76: 0 | AZ76: 0 | BA76: -6561.45 | BB76: -4.17 | BC76: -4.17 | BD76: -6569.79
L77: PctRIIndustrial | M77: 0.0036 | O77: 46174 | P77: 6354832.35 | AA77: 6600 | AB77: 2024 | AC77: EPB | AD77: Pessoal | AE77: Estagiários e Programas de Iniciação ao Trabalho | AF77: 610530511 | AG77: 789205.31 | AQ77: 45017 | AR77: 43 | AS77: 6600 | AT77: D | AU77: 0 | AV77: 0.47 | AW77: 0.27 | AX77: 0 | AY77: 0 | AZ77: 0 | BA77: 0 | BB77: -0.47 | BC77: -0.27 | BD77: -0.74
L78: PctRICOMERCIAL | M78: 0.0066 | O78: =EDATE(O77,1) -> 46204 | P78: =P77 -> 6354832.35 | AA78: 6600 | AB78: 2024 | AC78: EPB | AD78: Pessoal | AE78: Outros | AF78: 610530599 | AG78: 0 | AQ78: 44986 | AR78: 40 | AS78: 6600 | AT78: D | AU78: 2349.33 | AV78: 8.75 | AW78: 5.42 | AX78: 0 | AY78: 0 | AZ78: 0 | BA78: -2349.33 | BB78: -8.75 | BC78: -5.42 | BD78: -2363.5
L79: PctRIRURAL | M79: 0.0118 | AA79: 6600 | AB79: 2024 | AC79: EPB | AD79: Pessoal | AE79: Honorários e Encargos (Diretoria e Conselho) | AF79: 610530601 | AG79: 0 | AQ79: 44986 | AR79: 43 | AS79: 6600 | AT79: D | AU79: 1498.2 | AV79: 37.99 | AW79: 21.63 | AX79: 0 | AY79: 0 | AZ79: 0 | BA79: -1498.2 | BB79: -37.99 | BC79: -21.63 | BD79: -1557.82
L80: PctRILUMPUBLICA | M80: 0.0001 | AA80: 6600 | AB80: 2024 | AC80: EPB | AD80: Pessoal | AE80: Benefícios dos Administradores | AF80: 610530602 | AG80: 0
L81: PctRIPODERPUBLICO | M81: 0.001 | AA81: 6600 | AB81: 2024 | AC81: EPB | AD81: Materiais | AE81: Materiais | AF81: 610530701 | AG81: 26416481.44
L82: PctRISERVPUBLICO | M82: 0 | AA82: 6600 | AB82: 2024 | AC82: EPB | AD82: Materiais | AE82: (-) Créditos de Tributos Recuperáveis | AF82: 610530710 | AG82: -1054272.76
AA83: 6600 | AB83: 2024 | AC83: EPB | AD83: Materiais | AE83: Outros | AF83: 610530799 | AG83: 54206.41
B84: Tabela de Resumo de Montante DRP ano anterior/ Montante Apurado pelo Mercado | AA84: 6600 | AB84: 2024 | AC84: EPB | AD84: Serviços | AE84: Serviços de Terceiros | AF84: 610530801 | AG84: 55825813.7
B85: detalhe_grupo | C85: GrupoTarifa | D85: tipoBase | E85: tipofatura | F85: ValorCTAnterior_Sum | G85: ValorAnt_Sum | L85: Prcesso Anterior | N85: RTE | AA85: 6600 | AB85: 2024 | AC85: EPB | AD85: Serviços | AE85: (-) Créditos de Tributos Recuperáveis | AF85: 610530810 | AG85: -1046743.39
L86: MWh | M86: R$ | N86: MWh | O86: R$ | S86: DthEfetivaPagamento | T86: VlrGarantiaFinanceira | V86: Conta Escassez | W86: Valor | X86: Legislacao | AA86: 6600 | AB86: 2024 | AC86: EPB | AD86: Seguros | AE86: Seguros | AF86: 610531001 | AG86: 0
I87: CCEAR-DISP | J87: Alternativa | K87: valor | L87: 106691.7455 | M87: 34324798.63 | S87: 45870 | T87: 95077.01 | AA87: 6600 | AB87: 2024 | AC87: EPB | AD87: Seguros | AE87: (-) Créditos de Tributos Recuperáveis | AF87: 610531010 | AG87: 0
I88: CCEAR-DISP | J88: Nova | K88: valor | L88: 1660760.358 | M88: 524739766.4 | S88: 45901 | T88: 95077.01 | AA88: 6600 | AB88: 2024 | AC88: EPB | AD88: Seguros | AE88: Outros | AF88: 610531099 | AG88: 0
I89: CCEAR-QTD | J89: Alternativa | K89: valor | L89: 7424.356 | M89: 2570831.079 | S89: 45931 | T89: 70687.86 | AA89: 6600 | AB89: 2024 | AC89: EPB | AD89: Tributos | AE89: Tributos | AF89: 610531601 | AG89: 1985085.79
I90: CCEAR-QTD | J90: Belo Monte | K90: valor | L90: 442993.437 | M90: 81949715.06 | S90: 45962 | T90: 71738.96 | AA90: 6600 | AB90: 2024 | AC90: EPB | AD90: Outros | AE90: Indenização por Perdas e Danos | AF90: 610531901 | AG90: 989354.48
I91: CCEAR-QTD | J91: Existente | K91: valor | L91: 907261.1538 | M91: 145366050.9 | S91: 45992 | T91: 71607.55 | AA91: 6600 | AB91: 2024 | AC91: EPB | AD91: Outros | AE91: Consumo Próprio de Energia | AF91: 610531902 | AG91: 5076468.73
I92: CCEAR-QTD | J92: Madeira | K92: valor | L92: 315698.101 | M92: 63662918.46 | S92: 46023 | T92: 62738.72 | AA92: 6600 | AB92: 2024 | AC92: EPB | AD92: Outros | AE92: Taxa de Arrecadação | AF92: 610531903 | AG92: 0
I93: CCEAR-QTD | J93: Nova | K93: valor | L93: 873800.6167 | M93: 208849388.6 | S93: 46054 | T93: 72395.88 | AA93: 6600 | AB93: 2024 | AC93: EPB | AD93: Outros | AE93: Taxas Bancárias | AF93: 610531904 | AG93: 0
I94: CCEN | K94: valor | L94: 179537.5737 | M94: 55430430.49 | S94: 46082 | T94: 73381.3 | AA94: 6600 | AB94: 2024 | AC94: EPB | AD94: Outros | AE94: Despesas com Conselho de Consumidores | AF94: 610531905 | AG94: 0
I95: CCGF | K95: valor | L95: 667645.7229 | M95: 145167817.2 | S95: 46113 | T95: 74130 | AA95: 6600 | AB95: 2024 | AC95: EPB | AD95: Outros | AE95: Comunicação e Reprografia | AF95: 610531907 | AG95: 874254.7
I96: PROINFA | K96: valor | L96: 105199.8507 | S96: 46143 | T96: 74130 | AA96: 6600 | AB96: 2024 | AC96: EPB | AD96: Outros | AE96: Contribuição Associativa - CCEE | AF96: 610531908 | AG96: 605697.96
I97: SOBRA/EXPOSIÇÃO | K97: valor | L97: 475539.0904 | M97: 116269162.3 | S97: 46174 | T97: 74130 | AA97: 6600 | AB97: 2024 | AC97: EPB | AD97: Outros | AE97: Contribuição Associativa - ONS | AF97: 610531909 | AG97: 135185.77
S98: 46204 | T98: 72790.08 | AA98: 6600 | AB98: 2024 | AC98: EPB | AD98: Outros | AE98: (-) Créditos de Tributos Recuperáveis | AF98: 610531910 | AG98: 0
AA99: 6600 | AB99: 2024 | AC99: EPB | AD99: Pessoal | AE99: Remuneração | AF99: 610532501 | AG99: 14286465.01
AA100: 6600 | AB100: 2024 | AC100: EPB | AD100: Pessoal | AE100: Encargos | AF100: 610532502 | AG100: 6618241.21
AA101: 6600 | AB101: 2024 | AC101: EPB | AD101: Pessoal | AE101: Previdência Privada - Corrente | AF101: 610532503 | AG101: 1114080.79
AA102: 6600 | AB102: 2024 | AC102: EPB | AD102: Pessoal | AE102: Despesas Rescisórias | AF102: 610532506 | AG102: 0
AA103: 6600 | AB103: 2024 | AC103: EPB | AD103: Pessoal | AE103: Participação nos Lucros e Resultados - PLR | AF103: 610532507 | AG103: 7201748.18
AA104: 6600 | AB104: 2024 | AC104: EPB | AD104: Pessoal | AE104: Outros Benefícios - Corrente | AF104: 610532508 | AG104: 4747682.97
V105: Empresa | W105: AT | X105: MT | Y105: BT | AA105: 6600 | AB105: 2024 | AC105: EPB | AD105: Pessoal | AE105: (-) Créditos de Tributos Recuperáveis | AF105: 610532510 | AG105: 0
V106: 167 | W106: 0.02134 | X106: 0.35825 | Y106: 0.62041 | AA106: 6600 | AB106: 2024 | AC106: EPB | AD106: Pessoal | AE106: Estagiários e programa de iniciação ao trabalho | AF106: 610532511 | AG106: 450644.25
V107: 102 | W107: 0.064 | X107: 0.32003 | Y107: 0.61596 | AA107: 6600 | AB107: 2024 | AC107: EPB | AD107: Pessoal | AE107: Outros | AF107: 610532599 | AG107: 0
V108: 103 | W108: 0.02996 | X108: 0.27106 | Y108: 0.69898 | AA108: 6600 | AB108: 2024 | AC108: EPB | AD108: Pessoal | AE108: Honorários e Encargos (Diretoria e Conselho) | AF108: 610532601 | AG108: 7126825.38
V109: 104 | W109: 0.07171 | X109: 0.2909 | Y109: 0.63739 | AA109: 6600 | AB109: 2024 | AC109: EPB | AD109: Pessoal | AE109: Benefícios dos Administradores | AF109: 610532602 | AG109: 1128126.66
V110: 105 | W110: 0.00823 | X110: 0.24677 | Y110: 0.745 | AA110: 6600 | AB110: 2024 | AC110: EPB | AD110: Pessoal | AE110: (-) Créditos de Tributos Recuperáveis | AF110: 610532610 | AG110: 0
I111: Agente | J111: idagente | K111: indexador | L111: database | M111: RAP do ciclo | N111: Colunas1 | O111: RAP atualizada | V111: 165 | W111: 0.00795 | X111: 0.22554 | Y111: 0.76651 | AA111: 6600 | AB111: 2024 | AC111: EPB | AD111: Materiais | AE111: Materiais | AF111: 610532701 | AG111: 6611903.82
O112: =M112*VLOOKUP(CAPA!C15,Índices!$B$6:$F$626,IF(BD!K112="IPCA",3,2),FALSE)/VLOOKUP(L112,Índices!$B$6:$F$626,IF(BD!K112="IPCA",3,2),FALSE) ->  | V112: 108 | W112: 0.06098 | X112: 0.1711 | Y112: 0.76792 | AA112: 6600 | AB112: 2024 | AC112: EPB | AD112: Materiais | AE112: (-) Créditos de Tributos Recuperáveis | AF112: 610532710 | AG112: 0
O113: =M113*VLOOKUP(CAPA!C16,Índices!$B$6:$F$626,IF(BD!K113="IPCA",3,2),FALSE)/VLOOKUP(L113,Índices!$B$6:$F$626,IF(BD!K113="IPCA",3,2),FALSE) ->  | V113: 109 | W113: 0.01034 | X113: 0.24366 | Y113: 0.746 | AA113: 6600 | AB113: 2024 | AC113: EPB | AD113: Materiais | AE113: Outros | AF113: 610532799 | AG113: 0
O114: =M114*VLOOKUP(CAPA!C17,Índices!$B$6:$F$626,IF(BD!K114="IPCA",3,2),FALSE)/VLOOKUP(L114,Índices!$B$6:$F$626,IF(BD!K114="IPCA",3,2),FALSE) ->  | V114: 110 | W114: 0.01165 | X114: 0.24322 | Y114: 0.74513 | AA114: 6600 | AB114: 2024 | AC114: EPB | AD114: Serviços | AE114: Serviços de Terceiros | AF114: 610532801 | AG114: 98988311.94
O115: =M115*VLOOKUP(CAPA!C18,Índices!$B$6:$F$626,IF(BD!K115="IPCA",3,2),FALSE)/VLOOKUP(L115,Índices!$B$6:$F$626,IF(BD!K115="IPCA",3,2),FALSE) ->  | V115: 111 | W115: 0.03791 | X115: 0.37961 | Y115: 0.58248 | AA115: 6600 | AB115: 2024 | AC115: EPB | AD115: Serviços | AE115: (-) Créditos de Tributos Recuperáveis | AF115: 610532810 | AG115: 0
O116: =M116*VLOOKUP(CAPA!C19,Índices!$B$6:$F$626,IF(BD!K116="IPCA",3,2),FALSE)/VLOOKUP(L116,Índices!$B$6:$F$626,IF(BD!K116="IPCA",3,2),FALSE) ->  | V116: 112 | W116: 0.02273 | X116: 0.26361 | Y116: 0.71367 | AA116: 6600 | AB116: 2024 | AC116: EPB | AD116: Seguros | AE116: Seguros | AF116: 610533001 | AG116: 2020109.51
O117: =M117*VLOOKUP(CAPA!C20,Índices!$B$6:$F$626,IF(BD!K117="IPCA",3,2),FALSE)/VLOOKUP(L117,Índices!$B$6:$F$626,IF(BD!K117="IPCA",3,2),FALSE) ->  | V117: 113 | W117: 0.01263 | X117: 0.23345 | Y117: 0.75392 | AA117: 6600 | AB117: 2024 | AC117: EPB | AD117: Seguros | AE117: (-) Créditos de Tributos Recuperáveis | AF117: 610533010 | AG117: 0
O118: =M118*VLOOKUP(CAPA!C21,Índices!$B$6:$F$626,IF(BD!K118="IPCA",3,2),FALSE)/VLOOKUP(L118,Índices!$B$6:$F$626,IF(BD!K118="IPCA",3,2),FALSE) ->  | V118: 114 | W118: 0.01726 | X118: 0.23794 | Y118: 0.7448 | AA118: 6600 | AB118: 2024 | AC118: EPB | AD118: Seguros | AE118: Outros | AF118: 610533099 | AG118: 0
O119: =M119*VLOOKUP(CAPA!C22,Índices!$B$6:$F$626,IF(BD!K119="IPCA",3,2),FALSE)/VLOOKUP(L119,Índices!$B$6:$F$626,IF(BD!K119="IPCA",3,2),FALSE) ->  | V119: 115 | W119: 0.00993 | X119: 0.23087 | Y119: 0.7592 | AA119: 6600 | AB119: 2024 | AC119: EPB | AD119: Tributos | AE119: Tributos | AF119: 610533601 | AG119: 635442.98
O120: =M120*VLOOKUP(CAPA!C23,Índices!$B$6:$F$626,IF(BD!K120="IPCA",3,2),FALSE)/VLOOKUP(L120,Índices!$B$6:$F$626,IF(BD!K120="IPCA",3,2),FALSE) ->  | S120: iddet1 | T120: valor | V120: 116 | W120: 0.00806 | X120: 0.16835 | Y120: 0.82359 | AA120: 6600 | AB120: 2024 | AC120: EPB | AD120: Outros | AE120: Indenização por Perdas e Danos | AF120: 610533901 | AG120: 0
O121: =M121*VLOOKUP(CAPA!C24,Índices!$B$6:$F$626,IF(BD!K121="IPCA",3,2),FALSE)/VLOOKUP(L121,Índices!$B$6:$F$626,IF(BD!K121="IPCA",3,2),FALSE) ->  | S121: 56-Datalimite_D-25 | T121: 46238 | V121: 117 | W121: 0.03028 | X121: 0.29131 | Y121: 0.67841 | AA121: 6600 | AB121: 2024 | AC121: EPB | AD121: Outros | AE121: Consumo Próprio de Energia | AF121: 610533902 | AG121: 0
O122: =M122*VLOOKUP(CAPA!C25,Índices!$B$6:$F$626,IF(BD!K122="IPCA",3,2),FALSE)/VLOOKUP(L122,Índices!$B$6:$F$626,IF(BD!K122="IPCA",3,2),FALSE) ->  | S122: 57-DthEfetivaPagamento | T122: 46218 | V122: 118 | W122: 0.04215 | X122: 0.2081 | Y122: 0.74975 | AA122: 6600 | AB122: 2024 | AC122: EPB | AD122: Outros | AE122: Taxa de Arrecadação | AF122: 610533903 | AG122: 0
O123: =M123*VLOOKUP(CAPA!C26,Índices!$B$6:$F$626,IF(BD!K123="IPCA",3,2),FALSE)/VLOOKUP(L123,Índices!$B$6:$F$626,IF(BD!K123="IPCA",3,2),FALSE) ->  | S123: 58-DthCompetenciaPagamento | T123: 46174 | V123: 119 | W123: 0.01807 | X123: 0.11713 | Y123: 0.8648 | AA123: 6600 | AB123: 2024 | AC123: EPB | AD123: Outros | AE123: Taxas Bancárias | AF123: 610533904 | AG123: 0
O124: =M124*VLOOKUP(CAPA!C27,Índices!$B$6:$F$626,IF(BD!K124="IPCA",3,2),FALSE)/VLOOKUP(L124,Índices!$B$6:$F$626,IF(BD!K124="IPCA",3,2),FALSE) ->  | V124: 120 | W124: - | X124: 0.17688 | Y124: 0.82312 | AA124: 6600 | AB124: 2024 | AC124: EPB | AD124: Outros | AE124: Comunicação e Reprografia | AF124: 610533907 | AG124: 5930985.65
O125: =M125*VLOOKUP(CAPA!C28,Índices!$B$6:$F$626,IF(BD!K125="IPCA",3,2),FALSE)/VLOOKUP(L125,Índices!$B$6:$F$626,IF(BD!K125="IPCA",3,2),FALSE) ->  | V125: 123 | W125: - | X125: 0.13612 | Y125: 0.86388 | AA125: 6600 | AB125: 2024 | AC125: EPB | AD125: Outros | AE125: Contribuição Associativa - CCEE | AF125: 610533908 | AG125: 0
O126: =M126*VLOOKUP(CAPA!C29,Índices!$B$6:$F$626,IF(BD!K126="IPCA",3,2),FALSE)/VLOOKUP(L126,Índices!$B$6:$F$626,IF(BD!K126="IPCA",3,2),FALSE) ->  | V126: 166 | W126: 0.04257 | X126: 0.29652 | Y126: 0.66092 | AA126: 6600 | AB126: 2024 | AC126: EPB | AD126: Outros | AE126: Contribuição Associativa - ONS | AF126: 610533909 | AG126: 0
O127: =M127*VLOOKUP(CAPA!C30,Índices!$B$6:$F$626,IF(BD!K127="IPCA",3,2),FALSE)/VLOOKUP(L127,Índices!$B$6:$F$626,IF(BD!K127="IPCA",3,2),FALSE) ->  | V127: 128 | W127: - | X127: 0.40427 | Y127: 0.59573 | AA127: 6600 | AB127: 2024 | AC127: EPB | AD127: Outros | AE127: (-) Créditos de Tributos Recuperáveis | AF127: 610533910 | AG127: 0
O128: =M128*VLOOKUP(CAPA!C31,Índices!$B$6:$F$626,IF(BD!K128="IPCA",3,2),FALSE)/VLOOKUP(L128,Índices!$B$6:$F$626,IF(BD!K128="IPCA",3,2),FALSE) ->  | V128: 129 | W128: 0.02905 | X128: 0.24895 | Y128: 0.722 | AA128: 6600 | AB128: 2024 | AC128: EPB | AD128: Alienação | AE128: Ganhos na Alienação de Bens Reversíveis | AF128: 611112203 | AG128: 0
O129: =M129*VLOOKUP(CAPA!C32,Índices!$B$6:$F$626,IF(BD!K129="IPCA",3,2),FALSE)/VLOOKUP(L129,Índices!$B$6:$F$626,IF(BD!K129="IPCA",3,2),FALSE) ->  | V129: 130 | W129: 0.0175 | X129: 0.14397 | Y129: 0.83853 | AA129: 6600 | AB129: 2024 | AC129: EPB | AD129: Desativação | AE129: Ganhos na Desativação de Bens Reversíveis | AF129: 611112403 | AG129: 0
O130: =M130*VLOOKUP(CAPA!C33,Índices!$B$6:$F$626,IF(BD!K130="IPCA",3,2),FALSE)/VLOOKUP(L130,Índices!$B$6:$F$626,IF(BD!K130="IPCA",3,2),FALSE) ->  | S130: Nível | T130: Mercado Faturado A-6 | V130: 131 | W130: - | X130: 0.30099 | Y130: 0.69901 | AA130: 6600 | AB130: 2024 | AC130: EPB | AD130: Desativação | AE130: Perdas na Desativação de Bens Reversíveis | AF130: 611512003 | AG130: 15389035.45
O131: =M131*VLOOKUP(CAPA!C34,Índices!$B$6:$F$626,IF(BD!K131="IPCA",3,2),FALSE)/VLOOKUP(L131,Índices!$B$6:$F$626,IF(BD!K131="IPCA",3,2),FALSE) ->  | S131: AT | T131: 809218.975 | V131: 132 | W131: 0.02757 | X131: 0.26424 | Y131: 0.70819 | AA131: 6600 | AB131: 2024 | AC131: EPB | AD131: Alienação | AE131: Perdas na Alienação de Bens Reversíveis | AF131: 611512203 | AG131: 693823.95
O132: =M132*VLOOKUP(CAPA!C35,Índices!$B$6:$F$626,IF(BD!K132="IPCA",3,2),FALSE)/VLOOKUP(L132,Índices!$B$6:$F$626,IF(BD!K132="IPCA",3,2),FALSE) ->  | S132: BT | T132: 3558836.195 | V132: 133 | W132: 0.01856 | X132: 0.19536 | Y132: 0.78608 | AA132: 6600 | AB132: 2025 | AC132: EPB | AD132: Pessoal | AE132: Remuneração | AF132: 610530501 | AG132: 32812914.43
S133: MT | T133: 1017044.127 | V133: 135 | W133: 0.04788 | X133: 0.27054 | Y133: 0.68158 | AA133: 6600 | AB133: 2025 | AC133: EPB | AD133: Pessoal | AE133: Encargos | AF133: 610530502 | AG133: 31656110.89
V134: 136 | W134: 0.06732 | X134: 0.35547 | Y134: 0.57721 | AA134: 6600 | AB134: 2025 | AC134: EPB | AD134: Pessoal | AE134: Previdência Privada - Corrente | AF134: 610530503 | AG134: 3293192.09
V135: 138 | W135: - | X135: 0.07651 | Y135: 0.92349 | AA135: 6600 | AB135: 2025 | AC135: EPB | AD135: Pessoal | AE135: Despesas Rescisórias | AF135: 610530506 | AG135: 0
V136: 139 | W136: - | X136: 0.35483 | Y136: 0.64517 | AA136: 6600 | AB136: 2025 | AC136: EPB | AD136: Pessoal | AE136: Participação nos Lucros e Resultados - PLR | AF136: 610530507 | AG136: 21265789.07
V137: 140 | W137: 0.01004 | X137: 0.21058 | Y137: 0.77938 | AA137: 6600 | AB137: 2025 | AC137: EPB | AD137: Pessoal | AE137: Outros Benefícios - Corrente | AF137: 610530508 | AG137: 48946069.99
V138: 143 | W138: - | X138: 0.20409 | Y138: 0.79591 | AA138: 6600 | AB138: 2025 | AC138: EPB | AD138: Pessoal | AE138: (-) Créditos de Tributos Recuperáveis | AF138: 610530510 | AG138: 0
V139: 144 | W139: - | X139: 0.48131 | Y139: 0.51869 | AA139: 6600 | AB139: 2025 | AC139: EPB | AD139: Pessoal | AE139: Estagiários e Programas de Iniciação ao Trabalho | AF139: 610530511 | AG139: 1194740.62
A140: NumBar | B140: Nome Conexão | C140: Tensão | D140: Posto Tarifário | E140: Tarifas RB - DRA | F140: Tarifa RB - DRP | G140: Tarifas Fronteira - DRA | H140: Tarifa Fronteira - DRP | I140: M01 | J140: M02 | K140: M03 | L140: M04 | M140: M05 | N140: M06 | O140: M07 | P140: M08 | Q140: M09 | R140: M10 | S140: M11 | T140: M12 | V140: 145 | W140: 0.03725 | X140: 0.29306 | Y140: 0.66969 | AA140: 6600 | AB140: 2025 | AC140: EPB | AD140: Pessoal | AE140: Outros | AF140: 610530599 | AG140: 0
A141: PBCGD-69 | B141: C.GRANDE II - 69 kV (A) | C141: 69.0 | D141: Ponta | E141: 7040 | F141: 5310 | G141: 1900 | H141: 2340 | I141: 228.116 | J141: 228.116 | K141: 228.116 | L141: 228.116 | M141: 228.116 | N141: 230.854 | O141: 230.854 | P141: 230.854 | Q141: 230.854 | R141: 230.854 | S141: 230.854 | T141: 230.854 | W141: - | X141: 0.14124 | Y141: 0.85876 | AA141: 6600 | AB141: 2025 | AC141: EPB | AD141: Pessoal | AE141: Honorários e Encargos (Diretoria e Conselho) | AF141: 610530601 | AG141: 85071
A142: PBCMA-69 | B142: COREMAS - 69 kV (A) | C142: 69.0 | D142: Ponta | E142: 6910 | F142: 5600 | G142: 550 | H142: 1480 | I142: 237 | J142: 237 | K142: 237 | L142: 237 | M142: 237 | N142: 242.162 | O142: 242.162 | P142: 242.162 | Q142: 242.162 | R142: 242.162 | S142: 242.162 | T142: 242.162 | V142: 147 | W142: - | X142: 0.20977 | Y142: 0.79023 | AA142: 6600 | AB142: 2025 | AC142: EPB | AD142: Pessoal | AE142: Benefícios dos Administradores | AF142: 610530602 | AG142: 0
A143: PEGNN-69 | B143: GOIANINHA - 69 kV (A) | C143: 69.0 | D143: Ponta | E143: 7640 | F143: 6090 | G143: 2210 | H143: 1900 | I143: 71.127 | J143: 71.127 | K143: 71.127 | L143: 71.127 | M143: 71.127 | N143: 82.2 | O143: 82.2 | P143: 82.2 | Q143: 82.2 | R143: 82.2 | S143: 82.2 | T143: 82.2 | V143: 148 | W143: 0.03455 | X143: 0.23757 | Y143: 0.72788 | AA143: 6600 | AB143: 2025 | AC143: EPB | AD143: Materiais | AE143: Materiais | AF143: 610530701 | AG143: 25282489.88
A144: PBJPII69--A | B144: JOAO PESSOA II69kVA | C144: 69.0 | D144: Ponta | E144: 7570 | F144: 5940 | G144: 4980 | H144: 4630 | I144: 63 | J144: 63 | K144: 63 | L144: 63 | M144: 63 | N144: 64 | O144: 64 | P144: 64 | Q144: 64 | R144: 64 | S144: 64 | T144: 64 | V144: 149 | W144: - | X144: 0.17399 | Y144: 0.82601 | AA144: 6600 | AB144: 2025 | AC144: EPB | AD144: Materiais | AE144: (-) Créditos de Tributos Recuperáveis | AF144: 610530710 | AG144: -630575.95
A145: PBMRD-69 | B145: MUSSURE II - 69 kV (A) | C145: 69.0 | D145: Ponta | E145: 7760 | F145: 6160 | G145: 900 | H145: 1040 | I145: 315.2 | J145: 315.2 | K145: 315.2 | L145: 315.2 | M145: 315.2 | N145: 320.087 | O145: 320.087 | P145: 320.087 | Q145: 320.087 | R145: 320.087 | S145: 320.087 | T145: 308 | V145: 150 | W145: 0.03635 | X145: 0.17413 | Y145: 0.78952 | AA145: 6600 | AB145: 2025 | AC145: EPB | AD145: Materiais | AE145: Outros | AF145: 610530799 | AG145: 171466.02
A146: PBPLS-138-A | B146: PILOES - 138 kV (A) | C146: 138.0 | D146: Ponta | E146: 6720 | F146: 5040 | G146: 12670 | H146: 12790 | I146: 92 | J146: 92 | K146: 92 | L146: 92 | M146: 92 | N146: 92 | O146: 92 | P146: 92 | Q146: 92 | R146: 92 | S146: 92 | T146: 92 | V146: 151 | W146: 0.02735 | X146: 0.28351 | Y146: 0.68915 | AA146: 6600 | AB146: 2025 | AC146: EPB | AD146: Serviços | AE146: Serviços de Terceiros | AF146: 610530801 | AG146: 57037046.61
A147: RNSTD-69 | B147: SANTA CRUZ II - 69 kV (A) | C147: 69.0 | D147: Ponta | E147: 6570 | F147: 4860 | G147: 12670 | H147: 12790 | I147: 19.2 | J147: 19.2 | K147: 19.2 | L147: 19.2 | M147: 19.2 | N147: 17.025 | O147: 17.025 | P147: 17.025 | Q147: 17.025 | R147: 17.025 | S147: 17.025 | T147: 17.025 | V147: 152 | W147: 0.00215 | X147: 0.1412 | Y147: 0.85665 | AA147: 6600 | AB147: 2025 | AC147: EPB | AD147: Serviços | AE147: (-) Créditos de Tributos Recuperáveis | AF147: 610530810 | AG147: -795869.12
A148: PBSRD-69--A | B148: SANTA RITA II - 69 kV (A) | C148: 69.0 | D148: Ponta | E148: 7690 | F148: 6120 | G148: 1220 | H148: 1290 | I148: 238.5 | J148: 238.5 | K148: 238.5 | L148: 238.5 | M148: 238.5 | N148: 245 | O148: 245 | P148: 245 | Q148: 245 | R148: 245 | S148: 245 | T148: 245 | V148: 153 | W148: 0.03606 | X148: 0.17601 | Y148: 0.78793 | AA148: 6600 | AB148: 2025 | AC148: EPB | AD148: Seguros | AE148: Seguros | AF148: 610531001 | AG148: 0
A149: PBCGD-69 | B149: C.GRANDE II - 69 kV (A) | C149: 69.0 | D149: Fora Ponta | E149: 7100 | F149: 5140 | G149: 1900 | H149: 2340 | I149: 222.318 | J149: 222.318 | K149: 222.318 | L149: 222.318 | M149: 222.318 | N149: 224.963 | O149: 224.963 | P149: 224.963 | Q149: 224.963 | R149: 224.963 | S149: 224.963 | T149: 224.963 | V149: 154 | W149: 0.12913 | X149: 0.26626 | Y149: 0.60462 | AA149: 6600 | AB149: 2025 | AC149: EPB | AD149: Seguros | AE149: (-) Créditos de Tributos Recuperáveis | AF149: 610531010 | AG149: 0
A150: PBCMA-69 | B150: COREMAS - 69 kV (A) | C150: 69.0 | D150: Fora Ponta | E150: 6860 | F150: 5540 | G150: 550 | H150: 1480 | I150: 261.11 | J150: 261.11 | K150: 261.11 | L150: 261.11 | M150: 261.11 | N150: 266.868 | O150: 266.868 | P150: 266.868 | Q150: 266.868 | R150: 266.868 | S150: 266.868 | T150: 266.868 | V150: 155 | W150: 0.04008 | X150: 0.23225 | Y150: 0.72768 | AA150: 6600 | AB150: 2025 | AC150: EPB | AD150: Seguros | AE150: Outros | AF150: 610531099 | AG150: 0
A151: PEGNN-69 | B151: GOIANINHA - 69 kV (A) | C151: 69.0 | D151: Fora Ponta | E151: 7780 | F151: 6000 | G151: 2210 | H151: 1900 | I151: 87.715 | J151: 87.715 | K151: 87.715 | L151: 87.715 | M151: 87.715 | N151: 92 | O151: 92 | P151: 92 | Q151: 92 | R151: 92 | S151: 92 | T151: 92 | V151: 156 | W151: - | X151: 0.35985 | Y151: 0.64015 | AA151: 6600 | AB151: 2025 | AC151: EPB | AD151: Tributos | AE151: Tributos | AF151: 610531601 | AG151: 2230075.84
A152: PBJPII69--A | B152: JOAO PESSOA II69kVA | C152: 69.0 | D152: Fora Ponta | E152: 7690 | F152: 5830 | G152: 4980 | H152: 4630 | I152: 67.78 | J152: 67.78 | K152: 67.78 | L152: 67.78 | M152: 67.78 | N152: 68.247 | O152: 68.247 | P152: 68.247 | Q152: 68.247 | R152: 68.247 | S152: 68.247 | T152: 67 | V152: 157 | W152: - | X152: 0.15963 | Y152: 0.84037 | AA152: 6600 | AB152: 2025 | AC152: EPB | AD152: Outros | AE152: Indenização por Perdas e Danos | AF152: 610531901 | AG152: 1053680.8
A153: PBMRD-69 | B153: MUSSURE II - 69 kV (A) | C153: 69.0 | D153: Fora Ponta | E153: 7900 | F153: 6090 | G153: 900 | H153: 1040 | I153: 328.2 | J153: 328.2 | K153: 328.2 | L153: 328.2 | M153: 328.2 | N153: 333.334 | O153: 333.334 | P153: 333.334 | Q153: 333.334 | R153: 333.334 | S153: 333.334 | T153: 331 | V153: 158 | W153: - | X153: 0.33049 | Y153: 0.66951 | AA153: 6600 | AB153: 2025 | AC153: EPB | AD153: Outros | AE153: Consumo Próprio de Energia | AF153: 610531902 | AG153: 5530730.26
A154: PBPLS-138-A | B154: PILOES - 138 kV (A) | C154: 138.0 | D154: Fora Ponta | E154: 6760 | F154: 4850 | G154: 12670 | H154: 12790 | I154: 92 | J154: 92 | K154: 92 | L154: 92 | M154: 92 | N154: 92 | O154: 92 | P154: 92 | Q154: 92 | R154: 92 | S154: 92 | T154: 92 | V154: 160 | W154: 0.1013 | X154: 0.22818 | Y154: 0.67051 | AA154: 6600 | AB154: 2025 | AC154: EPB | AD154: Outros | AE154: Taxa de Arrecadação | AF154: 610531903 | AG154: 0
A155: RNSTD-69 | B155: SANTA CRUZ II - 69 kV (A) | C155: 69.0 | D155: Fora Ponta | E155: 6600 | F155: 4650 | G155: 12670 | H155: 12790 | I155: 18 | J155: 18 | K155: 18 | L155: 18 | M155: 18 | N155: 15.426 | O155: 15.426 | P155: 15.426 | Q155: 15.426 | R155: 15.426 | S155: 15.426 | T155: 15.426 | V155: 161 | W155: - | X155: 0.28355 | Y155: 0.71645 | AA155: 6600 | AB155: 2025 | AC155: EPB | AD155: Outros | AE155: Taxas Bancárias | AF155: 610531904 | AG155: 0
A156: PBSRD-69--A | B156: SANTA RITA II - 69 kV (A) | C156: 69.0 | D156: Fora Ponta | E156: 7820 | F156: 6030 | G156: 1220 | H156: 1290 | I156: 249.5 | J156: 249.5 | K156: 249.5 | L156: 249.5 | M156: 249.5 | N156: 255 | O156: 255 | P156: 255 | Q156: 255 | R156: 255 | S156: 255 | T156: 255 | V156: 163 | W156: 0.03507 | X156: 0.1664 | Y156: 0.79853 | AA156: 6600 | AB156: 2025 | AC156: EPB | AD156: Outros | AE156: Despesas com Conselho de Consumidores | AF156: 610531905 | AG156: 0
V157: 164 | W157: - | X157: 0.12897 | Y157: 0.87103 | AA157: 6600 | AB157: 2025 | AC157: EPB | AD157: Outros | AE157: Comunicação e Reprografia | AF157: 610531907 | AG157: 810414.69
AA158: 6600 | AB158: 2025 | AC158: EPB | AD158: Outros | AE158: Contribuição Associativa - CCEE | AF158: 610531908 | AG158: 675266.88
AA159: 6600 | AB159: 2025 | AC159: EPB | AD159: Outros | AE159: Contribuição Associativa - ONS | AF159: 610531909 | AG159: 146340.68
AA160: 6600 | AB160: 2025 | AC160: EPB | AD160: Outros | AE160: (-) Créditos de Tributos Recuperáveis | AF160: 610531910 | AG160: 0
AA161: 6600 | AB161: 2025 | AC161: EPB | AD161: Pessoal | AE161: Remuneração | AF161: 610532501 | AG161: 15823297.31
AA162: 6600 | AB162: 2025 | AC162: EPB | AD162: Pessoal | AE162: Encargos | AF162: 610532502 | AG162: 7890144.3
V163: Tab_EnergiaConsumidaMWh | AA163: 6600 | AB163: 2025 | AC163: EPB | AD163: Pessoal | AE163: Previdência Privada - Corrente | AF163: 610532503 | AG163: 1125265.98
V164: Competencia | W164: EnergiaConsumidaMWh | X164: EnergiaFaturadaMWh | Y164: Dif_Consumida_FaturadaMWh | AA164: 6600 | AB164: 2025 | AC164: EPB | AD164: Pessoal | AE164: Despesas Rescisórias | AF164: 610532506 | AG164: 0
V165: 45870 | W165: 72135.957 | X165: 27332.169 | Y165: 44803.788 | AA165: 6600 | AB165: 2025 | AC165: EPB | AD165: Pessoal | AE165: Participação nos Lucros e Resultados - PLR | AF165: 610532507 | AG165: 7678875.35
V166: 45901 | W166: 71171.681 | X166: 24826.184 | Y166: 46345.497 | AA166: 6600 | AB166: 2025 | AC166: EPB | AD166: Pessoal | AE166: Outros Benefícios - Corrente | AF166: 610532508 | AG166: 5597989.14
V167: 45931 | W167: 78134.553 | X167: 25944.804 | Y167: 52189.749 | AA167: 6600 | AB167: 2025 | AC167: EPB | AD167: Pessoal | AE167: (-) Créditos de Tributos Recuperáveis | AF167: 610532510 | AG167: 0
V168: 45962 | W168: 84411.205 | X168: 27884.901 | Y168: 56526.304 | AA168: 6600 | AB168: 2025 | AC168: EPB | AD168: Pessoal | AE168: Estagiários e programa de iniciação ao trabalho | AF168: 610532511 | AG168: 793719.45
V169: 45992 | W169: 88758.971 | X169: 30132.743 | Y169: 58626.228 | AA169: 6600 | AB169: 2025 | AC169: EPB | AD169: Pessoal | AE169: Outros | AF169: 610532599 | AG169: 0
V170: 46023 | W170: 88985.652 | X170: 31006.39 | Y170: 57979.262 | AA170: 6600 | AB170: 2025 | AC170: EPB | AD170: Pessoal | AE170: Honorários e Encargos (Diretoria e Conselho) | AF170: 610532601 | AG170: 6381491.01
V171: 46054 | W171: 84048.107 | X171: 29651.799 | Y171: 54396.308 | AA171: 6600 | AB171: 2025 | AC171: EPB | AD171: Pessoal | AE171: Benefícios dos Administradores | AF171: 610532602 | AG171: 1117471.23
V172: 46082 | W172: 85655.745 | X172: 31132.472 | Y172: 54523.273 | AA172: 6600 | AB172: 2025 | AC172: EPB | AD172: Pessoal | AE172: (-) Créditos de Tributos Recuperáveis | AF172: 610532610 | AG172: 0
V173: 46113 | W173: 90747.473 | X173: 33478.355 | Y173: 57269.118 | AA173: 6600 | AB173: 2025 | AC173: EPB | AD173: Materiais | AE173: Materiais | AF173: 610532701 | AG173: 9231229.45
V174: 46143 | W174: 87158.943 | X174: 33901.239 | Y174: 53257.704 | AA174: 6600 | AB174: 2025 | AC174: EPB | AD174: Materiais | AE174: (-) Créditos de Tributos Recuperáveis | AF174: 610532710 | AG174: 0
V175: 46174 | W175: 88155.011 | X175: 35646.443 | Y175: 52508.568 | AA175: 6600 | AB175: 2025 | AC175: EPB | AD175: Materiais | AE175: Outros | AF175: 610532799 | AG175: 0
V176: 46204 | W176: 88155.011 | X176: 35646.443 | Y176: 52508.568 | AA176: 6600 | AB176: 2025 | AC176: EPB | AD176: Serviços | AE176: Serviços de Terceiros | AF176: 610532801 | AG176: 98072960.51
AA177: 6600 | AB177: 2025 | AC177: EPB | AD177: Serviços | AE177: (-) Créditos de Tributos Recuperáveis | AF177: 610532810 | AG177: 0
AA178: 6600 | AB178: 2025 | AC178: EPB | AD178: Seguros | AE178: Seguros | AF178: 610533001 | AG178: 1925812.39
AA179: 6600 | AB179: 2025 | AC179: EPB | AD179: Seguros | AE179: (-) Créditos de Tributos Recuperáveis | AF179: 610533010 | AG179: 0
AA180: 6600 | AB180: 2025 | AC180: EPB | AD180: Seguros | AE180: Outros | AF180: 610533099 | AG180: 0
AA181: 6600 | AB181: 2025 | AC181: EPB | AD181: Tributos | AE181: Tributos | AF181: 610533601 | AG181: 703676.81
AA182: 6600 | AB182: 2025 | AC182: EPB | AD182: Outros | AE182: Indenização por Perdas e Danos | AF182: 610533901 | AG182: 0
AA183: 6600 | AB183: 2025 | AC183: EPB | AD183: Outros | AE183: Consumo Próprio de Energia | AF183: 610533902 | AG183: 0
AA184: 6600 | AB184: 2025 | AC184: EPB | AD184: Outros | AE184: Taxa de Arrecadação | AF184: 610533903 | AG184: 0
AA185: 6600 | AB185: 2025 | AC185: EPB | AD185: Outros | AE185: Taxas Bancárias | AF185: 610533904 | AG185: 0
AA186: 6600 | AB186: 2025 | AC186: EPB | AD186: Outros | AE186: Comunicação e Reprografia | AF186: 610533907 | AG186: 7217749.09
AA187: 6600 | AB187: 2025 | AC187: EPB | AD187: Outros | AE187: Contribuição Associativa - CCEE | AF187: 610533908 | AG187: 0
AA188: 6600 | AB188: 2025 | AC188: EPB | AD188: Outros | AE188: Contribuição Associativa - ONS | AF188: 610533909 | AG188: 0
AA189: 6600 | AB189: 2025 | AC189: EPB | AD189: Outros | AE189: (-) Créditos de Tributos Recuperáveis | AF189: 610533910 | AG189: 0
AA190: 6600 | AB190: 2025 | AC190: EPB | AD190: Alienação | AE190: Ganhos na Alienação de Bens Reversíveis | AF190: 611112203 | AG190: -457687.69
AA191: 6600 | AB191: 2025 | AC191: EPB | AD191: Desativação | AE191: Ganhos na Desativação de Bens Reversíveis | AF191: 611112403 | AG191: 0
AA192: 6600 | AB192: 2025 | AC192: EPB | AD192: Desativação | AE192: Perdas na Desativação de Bens Reversíveis | AF192: 611512003 | AG192: 22535134.95
AA193: 6600 | AB193: 2025 | AC193: EPB | AD193: Alienação | AE193: Perdas na Alienação de Bens Reversíveis | AF193: 611512203 | AG193: 700956.76
B469: Transmissora | C469: Indice de atualização | D469: ENCARGO DE CONEXÃO repassável | E469: Instalações com Estabelecimento de RAP que entraram em operação | F469: PA para repasse a tarifa | G469: PA Qualidade DIT | H469: ENCARGO DE CONEXÃO ou PA não rapassável a tarifa (REN 67/2004 ou 68/2004) | I469: PA Empreendimento Autorizado sem estabelecimento prévio de RAP | J469: Contrato | K469: Razão Social Transmissora
B470: AXIA Nordeste | C470: IPCA | D470: 2707571.66 | E470: 0 | F470: 108589.74 | G470: 0 | H470: 0 | I470: 0 | J470: 017/2009 | K470: AXIA ENERGIA NORDESTE S.A. - AXIA Nordeste (Contrato nº 017/2009 )
B471: AXIA Nordeste | C471: IPCA | D471: 12399348.04 | E471: 0 | F471: -713843.59 | G471: 0 | H471: 98173.35 | I471: 0 | J471: 061/2001 | K471: AXIA ENERGIA NORDESTE S.A. - AXIA Nordeste (Contrato nº 061/2001 )
B472: BORBOREMA | C472: IPCA | D472: 630850.38 | E472: 0 | F472: 0 | G472: 0 | H472: 0 | I472: 0 | J472: 015/2018 | K472: BORBOREMA TRANSMISSAO DE ENERGIA S.A. - BORBOREMA (Contrato nº 015/2018 )
B498: Tabela de Financeiros para o cálculo da Neutralidade | G498: Tabela para o cálculo da Neutralidade de RB | M498: Tabela de Financeiros para o cálculo da Neutralidade CVA processamento
B499: Grupo Tarifa | C499: Detalhe Grupo | D499: Valor | E499: Percentual | G499: Tipo | H499: Detalhe | I499: Posto | J499: Unidade | K499: Valor | M499: Grupo Tarifa | N499: Detalhe Grupo | O499: Valor | P499: Percentual
B500: ENCARGO | C500: CDE | D500: -9568715.572 | G500: CUSTO | H500: CONEXÃO D | I500: Não se aplica | J500: R$ | K500: 0 | M500: ENCARGO | N500: CDE | O500: 44307698.25
B501: ENCARGO | C501: CDE Covid TE | D501: -39507814.04 | G501: CUSTO | H501: CONEXÃO T | I501: Não se aplica | J501: R$ | K501: 14278025.39 | M501: ENCARGO | N501: ESS/ERR | O501: 10014519.42
B502: ENCARGO | C502: CDE Covid TUSD | D502: -456733.2969 | G502: CUSTO | H502: EUSD | I502: Não se aplica | J502: R$ | K502: 6369296.379 | M502: ENCARGO | N502: PROINFA | O502: 8814476.63
B503: ENCARGO | C503: CDE Eletrobras | D503: -1030981.392 | G503: CUSTO | H503: EUST - CI | I503: Não se aplica | J503: R$ | K503: 1e-06 | M503: ENERGIA | N503: ENERGIA REQUERIDA SEM PERDAS | O503: -19873441.48
... 30 more rows

Sheet Entrada
B1: Entrada de parâmetros para cálculo tarifário
B4: Energia | D4: Últ. Atualização | F4: Parâmetros para Revisão | P4: ="Caso de OR para a empresa é: " &IF(BD!C53=4,"caso 1","caso 3") -> Caso de OR para a empresa é: caso 1
D6: 45931 | F6: CAPEX - Ativos de Distribuição | J6: Custo Operacional Real do(s) último(s) ano(s) | P6: Outras Receitas - Caso 1 e 2 | AC6: =" Diferenças em relação ao RTA "&YEAR(AC7) -> Diferenças em relação ao RTA 2025 | AG6: ="Valores RTA "&YEAR(AG7) -> Valores RTA 2025
B7: Montante de Geração Própria | D7: 45931 | F7: (1) Ativo Imobilizado em Serviço (Valor Novo de Reposição) | G7: =G71*VLOOKUP(DATE(YEAR(CAPA!$C$10),MONTH(CAPA!$C$10)-1,1),Índices!$B$135:$D$638,3,0)/VLOOKUP(DATE(YEAR($G$70),MONTH($G$70)-1,1),Índices!$B$135:$D$638,3,0) ->  | J7: Ano do Custo Operacional | L7: =M7-1 -> 2024 | M7: =IF(SUMIFS(Tab_RIT_BMP[SALDO],Tab_RIT_BMP[ANO],MAX(Tab_RIT_BMP[ANO]))=0,MAX(Tab_RIT_BMP[ANO])-1,MAX(Tab_RIT_BMP[ANO])) -> 2025 | P7: Tipo de Receita | Q7: =DATE(YEAR(LnkTxtDRPData),MONTH(LnkTxtDRPData)-1,1) -> 2026-07-01 | R7: =DATE(YEAR(Q7),MONTH(Q7)-1,1) -> 2026-06-01 | S7: =DATE(YEAR(R7),MONTH(R7)-1,1) -> 2026-05-01 | T7: 2026-04-01 | U7: 2026-03-01 | V7: 2026-02-01 | W7: 2026-01-01 | X7: 2025-12-01 | Y7: 2025-11-01 | Z7: 2025-10-01 | AA7: 2025-09-01 | AB7: 2025-08-01 | AC7: =EDATE(AB7,-1) -> 2025-07-01 | AD7: =EDATE(AC7,-1) -> 2025-06-01 | AE7: 2025-05-01 | AF7: =AC7 -> 2025-07-01 | AG7: =AD7 -> 2025-06-01 | AH7: 2025-05-01 | AI7: =UDEROR!Y12 -> 00:00:00 | AJ7: =UDEROR!Z12 -> 00:00:00 | AK7: =UDEROR!AA12 -> 00:00:00 | AL7: =UDEROR!AB12 -> 00:00:00 | AM7: =UDEROR!AC12 -> 00:00:00 | AN7: =UDEROR!AD12 -> 00:00:00 | AO7: =UDEROR!AE12 -> 00:00:00 | AP7: =UDEROR!AF12 -> 00:00:00 | AQ7: =UDEROR!AG12 -> 00:00:00 | AR7: =UDEROR!AH12 -> 00:00:00 | AS7: =UDEROR!AI12 -> 00:00:00 | AT7: =UDEROR!AJ12 -> 00:00:00 | AU7: =UDEROR!AK12 -> 00:00:00 | AV7: =UDEROR!AL12 -> 00:00:00 | AW7: =UDEROR!AM12 -> 00:00:00 | AX7: =UDEROR!AN12 -> 00:00:00 | AY7: =UDEROR!AO12 -> 00:00:00 | AZ7: =UDEROR!AP12 -> 00:00:00 | BA7: =UDEROR!AQ12 -> 00:00:00 | BB7: =UDEROR!AR12 -> 00:00:00 | BC7: =UDEROR!AS12 -> 00:00:00 | BD7: =UDEROR!AT12 -> 00:00:00
B8: Custo médio da Geração Própria | D8: 45931 | F8: (2) Índice de Aproveitamento Integral | G8: =G72*VLOOKUP(DATE(YEAR(CAPA!$C$10),MONTH(CAPA!$C$10)-1,1),Índices!$B$135:$D$638,3,0)/VLOOKUP(DATE(YEAR($G$70),MONTH($G$70)-1,1),Índices!$B$135:$D$638,3,0) ->  | J8: PESSOAL | P8: Serviços Cobráveis | Q8: =IF((SUMIFS(Tab_Uderor[R$],Tab_Uderor[Competencia],Entrada!Q$7,Tab_Uderor[TipoReceita],Entrada!$P8))=0,R8,SUMIFS(Tab_Uderor[R$],Tab_Uderor[Competencia],Entrada!Q$7,Tab_Uderor[TipoReceita],Entrada!$P8)) -> 455633.43 | R8: =IF((SUMIFS(Tab_Uderor[R$],Tab_Uderor[Competencia],Entrada!R$7,Tab_Uderor[TipoReceita],Entrada!$P8))=0,S8,SUMIFS(Tab_Uderor[R$],Tab_Uderor[Competencia],Entrada!R$7,Tab_Uderor[TipoReceita],Entrada!$P8)) -> 455633.43 | S8: =SUMIFS(Tab_Uderor[R$],Tab_Uderor[Competencia],Entrada!S$7,Tab_Uderor[TipoReceita],Entrada!$P8) -> 447292.56 | T8: =SUMIFS(Tab_Uderor[R$],Tab_Uderor[Competencia],Entrada!T$7,Tab_Uderor[TipoReceita],Entrada!$P8) -> 423630.33 | U8: =SUMIFS(Tab_Uderor[R$],Tab_Uderor[Competencia],Entrada!U$7,Tab_Uderor[TipoReceita],Entrada!$P8) -> 492308.55 | V8: =SUMIFS(Tab_Uderor[R$],Tab_Uderor[Competencia],Entrada!V$7,Tab_Uderor[TipoReceita],Entrada!$P8) -> 578198.81 | W8: =SUMIFS(Tab_Uderor[R$],Tab_Uderor[Competencia],Entrada!W$7,Tab_Uderor[TipoReceita],Entrada!$P8) -> 716815.66 | X8: =SUMIFS(Tab_Uderor[R$],Tab_Uderor[Competencia],Entrada!X$7,Tab_Uderor[TipoReceita],Entrada!$P8) -> 637205.63 | Y8: =SUMIFS(Tab_Uderor[R$],Tab_Uderor[Competencia],Entrada!Y$7,Tab_Uderor[TipoReceita],Entrada!$P8) -> 516116.25 | Z8: =SUMIFS(Tab_Uderor[R$],Tab_Uderor[Competencia],Entrada!Z$7,Tab_Uderor[TipoReceita],Entrada!$P8) -> 543175.55 | AA8: =SUMIFS(Tab_Uderor[R$],Tab_Uderor[Competencia],Entrada!AA$7,Tab_Uderor[TipoReceita],Entrada!$P8) -> 417495.11 | AB8: =SUMIFS(Tab_Uderor[R$],Tab_Uderor[Competencia],Entrada!AB$7,Tab_Uderor[TipoReceita],Entrada!$P8) -> 390473.76 | AC8: =SUMIFS(Tab_Uderor[R$],Tab_Uderor[Competencia],Entrada!AC$7,Tab_Uderor[TipoReceita],Entrada!$P8)-AF8 -> 0 | AD8: =SUMIFS(Tab_Uderor[R$],Tab_Uderor[Competencia],Entrada!AD$7,Tab_Uderor[TipoReceita],Entrada!$P8)-AG8 -> 0 | AE8: =SUMIFS(Tab_Uderor[R$],Tab_Uderor[Competencia],Entrada!AE$7,Tab_Uderor[TipoReceita],Entrada!$P8)-AH8 -> 0 | AF8: 303430.38 | AG8: 287074.94 | AH8: 266092.22
D9: 45931 | F9: (3) Obrigações Especiais Bruta | G9: =G73*VLOOKUP(DATE(YEAR(CAPA!$C$10),MONTH(CAPA!$C$10)-1,1),Índices!$B$135:$D$638,3,0)/VLOOKUP(DATE(YEAR($G$70),MONTH($G$70)-1,1),Índices!$B$135:$D$638,3,0) ->  | J9: BMP - 610530501; 610532501; 610530511; 610532511; | K9: Remuneração/Estagiários | L9: =SUMIFS(Tab_RIT_BMP[SALDO],Tab_RIT_BMP[ContaDetalhada],"Remuneração",Tab_RIT_BMP[ANO],$L$7,Tab_RIT_BMP[ContaPrincipal],"Pessoal") + SUMIFS(Tab_RIT_BMP[SALDO],Tab_RIT_BMP[ContaDetalhada],"Estagiários*",Tab_RIT_BMP[ANO],$L$7,Tab_RIT_BMP[ContaPrincipal],"Pessoal") -> 48828947.72 | M9: =SUMIFS(Tab_RIT_BMP[SALDO],Tab_RIT_BMP[ContaDetalhada],"Remuneração",Tab_RIT_BMP[ANO],$M$7,Tab_RIT_BMP[ContaPrincipal],"Pessoal") + SUMIFS(Tab_RIT_BMP[SALDO],Tab_RIT_BMP[ContaDetalhada],"Estagiários*",Tab_RIT_BMP[ANO],$M$7,Tab_RIT_BMP[ContaPrincipal],"Pessoal") -> 50624671.81 | P9: Arrecadação de convênios ou valores pela fatura | Q9: =IF((SUMIFS(Tab_Uderor[R$],Tab_Uderor[Competencia],Entrada!Q$7,Tab_Uderor[TipoReceita],Entrada!$P9))=0,R9,SUMIFS(Tab_Uderor[R$],Tab_Uderor[Competencia],Entrada!Q$7,Tab_Uderor[TipoReceita],Entrada!$P9)) -> 285498.43 | R9: =IF((SUMIFS(Tab_Uderor[R$],Tab_Uderor[Competencia],Entrada!R$7,Tab_Uderor[TipoReceita],Entrada!$P9))=0,S9,SUMIFS(Tab_Uderor[R$],Tab_Uderor[Competencia],Entrada!R$7,Tab_Uderor[TipoReceita],Entrada!$P9)) -> 285498.43 | S9: =SUMIFS(Tab_Uderor[R$],Tab_Uderor[Competencia],Entrada!S$7,Tab_Uderor[TipoReceita],Entrada!$P9) -> 285498.43 | T9: =SUMIFS(Tab_Uderor[R$],Tab_Uderor[Competencia],Entrada!T$7,Tab_Uderor[TipoReceita],Entrada!$P9) -> 312843.39 | U9: =SUMIFS(Tab_Uderor[R$],Tab_Uderor[Competencia],Entrada!U$7,Tab_Uderor[TipoReceita],Entrada!$P9) -> 285821.67 | V9: =SUMIFS(Tab_Uderor[R$],Tab_Uderor[Competencia],Entrada!V$7,Tab_Uderor[TipoReceita],Entrada!$P9) -> 294875.16 | W9: =SUMIFS(Tab_Uderor[R$],Tab_Uderor[Competencia],Entrada!W$7,Tab_Uderor[TipoReceita],Entrada!$P9) -> 313823.81 | X9: =SUMIFS(Tab_Uderor[R$],Tab_Uderor[Competencia],Entrada!X$7,Tab_Uderor[TipoReceita],Entrada!$P9) -> 278370.16 | Y9: =SUMIFS(Tab_Uderor[R$],Tab_Uderor[Competencia],Entrada!Y$7,Tab_Uderor[TipoReceita],Entrada!$P9) -> 292659.8 | Z9: =SUMIFS(Tab_Uderor[R$],Tab_Uderor[Competencia],Entrada!Z$7,Tab_Uderor[TipoReceita],Entrada!$P9) -> 291016.99 | AA9: =SUMIFS(Tab_Uderor[R$],Tab_Uderor[Competencia],Entrada!AA$7,Tab_Uderor[TipoReceita],Entrada!$P9) -> 282201.04 | AB9: =SUMIFS(Tab_Uderor[R$],Tab_Uderor[Competencia],Entrada!AB$7,Tab_Uderor[TipoReceita],Entrada!$P9) -> 302096.09 | AC9: =SUMIFS(Tab_Uderor[R$],Tab_Uderor[Competencia],Entrada!AC$7,Tab_Uderor[TipoReceita],Entrada!$P9)-AF9 -> 0 | AD9: =SUMIFS(Tab_Uderor[R$],Tab_Uderor[Competencia],Entrada!AD$7,Tab_Uderor[TipoReceita],Entrada!$P9)-AG9 -> 0 | AE9: =SUMIFS(Tab_Uderor[R$],Tab_Uderor[Competencia],Entrada!AE$7,Tab_Uderor[TipoReceita],Entrada!$P9)-AH9 -> 0 | AF9: 291606.53 | AG9: 309827.84 | AH9: 286751.06
D10: 45931 | F10: (4) Bens Totalmente Depreciados | G10: =G74*VLOOKUP(DATE(YEAR(CAPA!$C$10),MONTH(CAPA!$C$10)-1,1),Índices!$B$135:$D$638,3,0)/VLOOKUP(DATE(YEAR($G$70),MONTH($G$70)-1,1),Índices!$B$135:$D$638,3,0) ->  | J10: BMP - 610530502; 610532502; | K10: Encargos | L10: =SUMIFS(Tab_RIT_BMP[SALDO],Tab_RIT_BMP[ContaDetalhada],K10,Tab_RIT_BMP[ANO],$L$7,Tab_RIT_BMP[ContaPrincipal],"Pessoal") -> 34769001.46 | M10: =SUMIFS(Tab_RIT_BMP[SALDO],Tab_RIT_BMP[ContaDetalhada],K10,Tab_RIT_BMP[ANO],$M$7,Tab_RIT_BMP[ContaPrincipal],"Pessoal") -> 39546255.19 | P10: Arrecadação de faturas de terceiros por estrutura própria | Q10: =IF((SUMIFS(Tab_Uderor[R$],Tab_Uderor[Competencia],Entrada!Q$7,Tab_Uderor[TipoReceita],Entrada!$P10))=0,R10,SUMIFS(Tab_Uderor[R$],Tab_Uderor[Competencia],Entrada!Q$7,Tab_Uderor[TipoReceita],Entrada!$P10)) -> 0 | R10: =IF((SUMIFS(Tab_Uderor[R$],Tab_Uderor[Competencia],Entrada!R$7,Tab_Uderor[TipoReceita],Entrada!$P10))=0,S10,SUMIFS(Tab_Uderor[R$],Tab_Uderor[Competencia],Entrada!R$7,Tab_Uderor[TipoReceita],Entrada!$P10)) -> 0 | S10: =SUMIFS(Tab_Uderor[R$],Tab_Uderor[Competencia],Entrada!S$7,Tab_Uderor[TipoReceita],Entrada!$P10) -> 0 | T10: =SUMIFS(Tab_Uderor[R$],Tab_Uderor[Competencia],Entrada!T$7,Tab_Uderor[TipoReceita],Entrada!$P10) -> 0 | U10: =SUMIFS(Tab_Uderor[R$],Tab_Uderor[Competencia],Entrada!U$7,Tab_Uderor[TipoReceita],Entrada!$P10) -> 0 | V10: =SUMIFS(Tab_Uderor[R$],Tab_Uderor[Competencia],Entrada!V$7,Tab_Uderor[TipoReceita],Entrada!$P10) -> 0 | W10: =SUMIFS(Tab_Uderor[R$],Tab_Uderor[Competencia],Entrada!W$7,Tab_Uderor[TipoReceita],Entrada!$P10) -> 0 | X10: =SUMIFS(Tab_Uderor[R$],Tab_Uderor[Competencia],Entrada!X$7,Tab_Uderor[TipoReceita],Entrada!$P10) -> 0 | Y10: =SUMIFS(Tab_Uderor[R$],Tab_Uderor[Competencia],Entrada!Y$7,Tab_Uderor[TipoReceita],Entrada!$P10) -> 0 | Z10: =SUMIFS(Tab_Uderor[R$],Tab_Uderor[Competencia],Entrada!Z$7,Tab_Uderor[TipoReceita],Entrada!$P10) -> 0 | AA10: =SUMIFS(Tab_Uderor[R$],Tab_Uderor[Competencia],Entrada!AA$7,Tab_Uderor[TipoReceita],Entrada!$P10) -> 0 | AB10: =SUMIFS(Tab_Uderor[R$],Tab_Uderor[Competencia],Entrada!AB$7,Tab_Uderor[TipoReceita],Entrada!$P10) -> 0 | AC10: =SUMIFS(Tab_Uderor[R$],Tab_Uderor[Competencia],Entrada!AC$7,Tab_Uderor[TipoReceita],Entrada!$P10)-AF10 -> 0 | AD10: =SUMIFS(Tab_Uderor[R$],Tab_Uderor[Competencia],Entrada!AD$7,Tab_Uderor[TipoReceita],Entrada!$P10)-AG10 -> 0 | AE10: =SUMIFS(Tab_Uderor[R$],Tab_Uderor[Competencia],Entrada!AE$7,Tab_Uderor[TipoReceita],Entrada!$P10)-AH10 -> 0 | AF10: 0 | AG10: 0 | AH10: 0
F11: (5) Base de Remuneração Bruta = (1)-(2)-(3)-(4) | G11: =G7-G8-G9-G10 ->  | J11: BMP - 610530503; 610532503; | K11: Previdência Privada - Corrente | L11: =SUMIFS(Tab_RIT_BMP[SALDO],Tab_RIT_BMP[ContaDetalhada],K11,Tab_RIT_BMP[ANO],$L$7,Tab_RIT_BMP[ContaPrincipal],"Pessoal") -> 3535435.66 | M11: =SUMIFS(Tab_RIT_BMP[SALDO],Tab_RIT_BMP[ContaDetalhada],K11,Tab_RIT_BMP[ANO],$M$7,Tab_RIT_BMP[ContaPrincipal],"Pessoal") -> 4418458.07 | P11: Veiculação de publicidade | Q11: =IF((SUMIFS(Tab_Uderor[R$],Tab_Uderor[Competencia],Entrada!Q$7,Tab_Uderor[TipoReceita],Entrada!$P11))=0,R11,SUMIFS(Tab_Uderor[R$],Tab_Uderor[Competencia],Entrada!Q$7,Tab_Uderor[TipoReceita],Entrada!$P11)) -> 0 | R11: =IF((SUMIFS(Tab_Uderor[R$],Tab_Uderor[Competencia],Entrada!R$7,Tab_Uderor[TipoReceita],Entrada!$P11))=0,S11,SUMIFS(Tab_Uderor[R$],Tab_Uderor[Competencia],Entrada!R$7,Tab_Uderor[TipoReceita],Entrada!$P11)) -> 0 | S11: =SUMIFS(Tab_Uderor[R$],Tab_Uderor[Competencia],Entrada!S$7,Tab_Uderor[TipoReceita],Entrada!$P11) -> 0 | T11: =SUMIFS(Tab_Uderor[R$],Tab_Uderor[Competencia],Entrada!T$7,Tab_Uderor[TipoReceita],Entrada!$P11) -> 0 | U11: =SUMIFS(Tab_Uderor[R$],Tab_Uderor[Competencia],Entrada!U$7,Tab_Uderor[TipoReceita],Entrada!$P11) -> 0 | V11: =SUMIFS(Tab_Uderor[R$],Tab_Uderor[Competencia],Entrada!V$7,Tab_Uderor[TipoReceita],Entrada!$P11) -> 0 | W11: =SUMIFS(Tab_Uderor[R$],Tab_Uderor[Competencia],Entrada!W$7,Tab_Uderor[TipoReceita],Entrada!$P11) -> 0 | X11: =SUMIFS(Tab_Uderor[R$],Tab_Uderor[Competencia],Entrada!X$7,Tab_Uderor[TipoReceita],Entrada!$P11) -> 0 | Y11: =SUMIFS(Tab_Uderor[R$],Tab_Uderor[Competencia],Entrada!Y$7,Tab_Uderor[TipoReceita],Entrada!$P11) -> 0 | Z11: =SUMIFS(Tab_Uderor[R$],Tab_Uderor[Competencia],Entrada!Z$7,Tab_Uderor[TipoReceita],Entrada!$P11) -> 0 | AA11: =SUMIFS(Tab_Uderor[R$],Tab_Uderor[Competencia],Entrada!AA$7,Tab_Uderor[TipoReceita],Entrada!$P11) -> 0 | AB11: =SUMIFS(Tab_Uderor[R$],Tab_Uderor[Competencia],Entrada!AB$7,Tab_Uderor[TipoReceita],Entrada!$P11) -> 0 | AC11: =SUMIFS(Tab_Uderor[R$],Tab_Uderor[Competencia],Entrada!AC$7,Tab_Uderor[TipoReceita],Entrada!$P11)-AF11 -> 0 | AD11: =SUMIFS(Tab_Uderor[R$],Tab_Uderor[Competencia],Entrada!AD$7,Tab_Uderor[TipoReceita],Entrada!$P11)-AG11 -> 0 | AE11: =SUMIFS(Tab_Uderor[R$],Tab_Uderor[Competencia],Entrada!AE$7,Tab_Uderor[TipoReceita],Entrada!$P11)-AH11 -> 0 | AF11: 0 | AG11: 0 | AH11: 0
F12: (6) Depreciação Acumulada | G12: =G76*VLOOKUP(DATE(YEAR(CAPA!$C$10),MONTH(CAPA!$C$10)-1,1),Índices!$B$135:$D$638,3,0)/VLOOKUP(DATE(YEAR($G$70),MONTH($G$70)-1,1),Índices!$B$135:$D$638,3,0) ->  | J12: BMP - 610530508; 610532508; | K12: Outros Benefícios | L12: =SUMIFS(Tab_RIT_BMP[SALDO],Tab_RIT_BMP[ContaDetalhada],"Outros benefícios*",Tab_RIT_BMP[ANO],$L$7,Tab_RIT_BMP[ContaPrincipal],"Pessoal") -> 48326495.45 | M12: =SUMIFS(Tab_RIT_BMP[SALDO],Tab_RIT_BMP[ContaDetalhada],"Outros benefícios*",Tab_RIT_BMP[ANO],$M$7,Tab_RIT_BMP[ContaPrincipal],"Pessoal") -> 54544059.13 | P12: Aluguel ou cessão onerosa de imóveis e espaços físicos | Q12: =IF((SUMIFS(Tab_Uderor[R$],Tab_Uderor[Competencia],Entrada!Q$7,Tab_Uderor[TipoReceita],Entrada!$P12))=0,R12,SUMIFS(Tab_Uderor[R$],Tab_Uderor[Competencia],Entrada!Q$7,Tab_Uderor[TipoReceita],Entrada!$P12)) -> 0 | R12: =IF((SUMIFS(Tab_Uderor[R$],Tab_Uderor[Competencia],Entrada!R$7,Tab_Uderor[TipoReceita],Entrada!$P12))=0,S12,SUMIFS(Tab_Uderor[R$],Tab_Uderor[Competencia],Entrada!R$7,Tab_Uderor[TipoReceita],Entrada!$P12)) -> 0 | S12: =SUMIFS(Tab_Uderor[R$],Tab_Uderor[Competencia],Entrada!S$7,Tab_Uderor[TipoReceita],Entrada!$P12) -> 0 | T12: =SUMIFS(Tab_Uderor[R$],Tab_Uderor[Competencia],Entrada!T$7,Tab_Uderor[TipoReceita],Entrada!$P12) -> 0 | U12: =SUMIFS(Tab_Uderor[R$],Tab_Uderor[Competencia],Entrada!U$7,Tab_Uderor[TipoReceita],Entrada!$P12) -> 0 | V12: =SUMIFS(Tab_Uderor[R$],Tab_Uderor[Competencia],Entrada!V$7,Tab_Uderor[TipoReceita],Entrada!$P12) -> 0 | W12: =SUMIFS(Tab_Uderor[R$],Tab_Uderor[Competencia],Entrada!W$7,Tab_Uderor[TipoReceita],Entrada!$P12) -> 0 | X12: =SUMIFS(Tab_Uderor[R$],Tab_Uderor[Competencia],Entrada!X$7,Tab_Uderor[TipoReceita],Entrada!$P12) -> 0 | Y12: =SUMIFS(Tab_Uderor[R$],Tab_Uderor[Competencia],Entrada!Y$7,Tab_Uderor[TipoReceita],Entrada!$P12) -> 0 | Z12: =SUMIFS(Tab_Uderor[R$],Tab_Uderor[Competencia],Entrada!Z$7,Tab_Uderor[TipoReceita],Entrada!$P12) -> 0 | AA12: =SUMIFS(Tab_Uderor[R$],Tab_Uderor[Competencia],Entrada!AA$7,Tab_Uderor[TipoReceita],Entrada!$P12) -> 0 | AB12: =SUMIFS(Tab_Uderor[R$],Tab_Uderor[Competencia],Entrada!AB$7,Tab_Uderor[TipoReceita],Entrada!$P12) -> 0 | AC12: =SUMIFS(Tab_Uderor[R$],Tab_Uderor[Competencia],Entrada!AC$7,Tab_Uderor[TipoReceita],Entrada!$P12)-AF12 -> 0 | AD12: =SUMIFS(Tab_Uderor[R$],Tab_Uderor[Competencia],Entrada!AD$7,Tab_Uderor[TipoReceita],Entrada!$P12)-AG12 -> 0 | AE12: =SUMIFS(Tab_Uderor[R$],Tab_Uderor[Competencia],Entrada!AE$7,Tab_Uderor[TipoReceita],Entrada!$P12)-AH12 -> 0 | AF12: 0 | AG12: 0 | AH12: 0
F13: (7) AIS Líquido (Valor de Mercado em Uso) | G13: =G7-G12 ->  | J13: BMP - 610530506; 610532506; | K13: Despesas Rescisórias | L13: =SUMIFS(Tab_RIT_BMP[SALDO],Tab_RIT_BMP[ContaDetalhada],K13,Tab_RIT_BMP[ANO],$L$7,Tab_RIT_BMP[ContaPrincipal],"Pessoal") -> 0 | M13: =SUMIFS(Tab_RIT_BMP[SALDO],Tab_RIT_BMP[ContaDetalhada],K13,Tab_RIT_BMP[ANO],$M$7,Tab_RIT_BMP[ContaPrincipal],"Pessoal") -> 0 | P13: Compartilhamento de infraestrutura | Q13: =IF((SUMIFS(Tab_Uderor[R$],Tab_Uderor[Competencia],Entrada!Q$7,Tab_Uderor[TipoReceita],Entrada!$P13))=0,R13,SUMIFS(Tab_Uderor[R$],Tab_Uderor[Competencia],Entrada!Q$7,Tab_Uderor[TipoReceita],Entrada!$P13)) -> 2491040.15 | R13: =IF((SUMIFS(Tab_Uderor[R$],Tab_Uderor[Competencia],Entrada!R$7,Tab_Uderor[TipoReceita],Entrada!$P13))=0,S13,SUMIFS(Tab_Uderor[R$],Tab_Uderor[Competencia],Entrada!R$7,Tab_Uderor[TipoReceita],Entrada!$P13)) -> 2491040.15 | S13: =SUMIFS(Tab_Uderor[R$],Tab_Uderor[Competencia],Entrada!S$7,Tab_Uderor[TipoReceita],Entrada!$P13) -> 3439243.38 | T13: =SUMIFS(Tab_Uderor[R$],Tab_Uderor[Competencia],Entrada!T$7,Tab_Uderor[TipoReceita],Entrada!$P13) -> 1935303.15 | U13: =SUMIFS(Tab_Uderor[R$],Tab_Uderor[Competencia],Entrada!U$7,Tab_Uderor[TipoReceita],Entrada!$P13) -> 1763144.2 | V13: =SUMIFS(Tab_Uderor[R$],Tab_Uderor[Competencia],Entrada!V$7,Tab_Uderor[TipoReceita],Entrada!$P13) -> 1933699.26 | W13: =SUMIFS(Tab_Uderor[R$],Tab_Uderor[Competencia],Entrada!W$7,Tab_Uderor[TipoReceita],Entrada!$P13) -> 2286804.29 | X13: =SUMIFS(Tab_Uderor[R$],Tab_Uderor[Competencia],Entrada!X$7,Tab_Uderor[TipoReceita],Entrada!$P13) -> 2281331.28 | Y13: =SUMIFS(Tab_Uderor[R$],Tab_Uderor[Competencia],Entrada!Y$7,Tab_Uderor[TipoReceita],Entrada!$P13) -> 2286542.98 | Z13: =SUMIFS(Tab_Uderor[R$],Tab_Uderor[Competencia],Entrada!Z$7,Tab_Uderor[TipoReceita],Entrada!$P13) -> 2279701.05 | AA13: =SUMIFS(Tab_Uderor[R$],Tab_Uderor[Competencia],Entrada!AA$7,Tab_Uderor[TipoReceita],Entrada!$P13) -> 2259606 | AB13: =SUMIFS(Tab_Uderor[R$],Tab_Uderor[Competencia],Entrada!AB$7,Tab_Uderor[TipoReceita],Entrada!$P13) -> 2365200.64 | AC13: =SUMIFS(Tab_Uderor[R$],Tab_Uderor[Competencia],Entrada!AC$7,Tab_Uderor[TipoReceita],Entrada!$P13)-AF13 -> 0 | AD13: =SUMIFS(Tab_Uderor[R$],Tab_Uderor[Competencia],Entrada!AD$7,Tab_Uderor[TipoReceita],Entrada!$P13)-AG13 -> 0 | AE13: =SUMIFS(Tab_Uderor[R$],Tab_Uderor[Competencia],Entrada!AE$7,Tab_Uderor[TipoReceita],Entrada!$P13)-AH13 -> 0 | AF13: 2232083.99 | AG13: 2231736.14 | AH13: 2236842.22
F14: (8) Índice de Aproveitamento Depreciado | G14: =G78*VLOOKUP(DATE(YEAR(CAPA!$C$10),MONTH(CAPA!$C$10)-1,1),Índices!$B$135:$D$638,3,0)/VLOOKUP(DATE(YEAR($G$70),MONTH($G$70)-1,1),Índices!$B$135:$D$638,3,0) ->  | J14: BMP - 610530507; 610532507; | K14: Participação nos Lucros e Resultados - PLR | L14: =SUMIFS(Tab_RIT_BMP[SALDO],Tab_RIT_BMP[ContaDetalhada],K14,Tab_RIT_BMP[ANO],$L$7,Tab_RIT_BMP[ContaPrincipal],"Pessoal") -> 25809335.93 | M14: =SUMIFS(Tab_RIT_BMP[SALDO],Tab_RIT_BMP[ContaDetalhada],K14,Tab_RIT_BMP[ANO],$M$7,Tab_RIT_BMP[ContaPrincipal],"Pessoal") -> 28944664.42 | P14: Serviços de avaliação técnica e aferição de medidores. | Q14: =IF((SUMIFS(Tab_Uderor[R$],Tab_Uderor[Competencia],Entrada!Q$7,Tab_Uderor[TipoReceita],Entrada!$P14))=0,R14,SUMIFS(Tab_Uderor[R$],Tab_Uderor[Competencia],Entrada!Q$7,Tab_Uderor[TipoReceita],Entrada!$P14)) -> 0 | R14: =IF((SUMIFS(Tab_Uderor[R$],Tab_Uderor[Competencia],Entrada!R$7,Tab_Uderor[TipoReceita],Entrada!$P14))=0,S14,SUMIFS(Tab_Uderor[R$],Tab_Uderor[Competencia],Entrada!R$7,Tab_Uderor[TipoReceita],Entrada!$P14)) -> 0 | S14: =SUMIFS(Tab_Uderor[R$],Tab_Uderor[Competencia],Entrada!S$7,Tab_Uderor[TipoReceita],Entrada!$P14) -> 0 | T14: =SUMIFS(Tab_Uderor[R$],Tab_Uderor[Competencia],Entrada!T$7,Tab_Uderor[TipoReceita],Entrada!$P14) -> 0 | U14: =SUMIFS(Tab_Uderor[R$],Tab_Uderor[Competencia],Entrada!U$7,Tab_Uderor[TipoReceita],Entrada!$P14) -> 0 | V14: =SUMIFS(Tab_Uderor[R$],Tab_Uderor[Competencia],Entrada!V$7,Tab_Uderor[TipoReceita],Entrada!$P14) -> 0 | W14: =SUMIFS(Tab_Uderor[R$],Tab_Uderor[Competencia],Entrada!W$7,Tab_Uderor[TipoReceita],Entrada!$P14) -> 0 | X14: =SUMIFS(Tab_Uderor[R$],Tab_Uderor[Competencia],Entrada!X$7,Tab_Uderor[TipoReceita],Entrada!$P14) -> 0 | Y14: =SUMIFS(Tab_Uderor[R$],Tab_Uderor[Competencia],Entrada!Y$7,Tab_Uderor[TipoReceita],Entrada!$P14) -> 0 | Z14: =SUMIFS(Tab_Uderor[R$],Tab_Uderor[Competencia],Entrada!Z$7,Tab_Uderor[TipoReceita],Entrada!$P14) -> 0 | AA14: =SUMIFS(Tab_Uderor[R$],Tab_Uderor[Competencia],Entrada!AA$7,Tab_Uderor[TipoReceita],Entrada!$P14) -> 0 | AB14: =SUMIFS(Tab_Uderor[R$],Tab_Uderor[Competencia],Entrada!AB$7,Tab_Uderor[TipoReceita],Entrada!$P14) -> 0 | AC14: =SUMIFS(Tab_Uderor[R$],Tab_Uderor[Competencia],Entrada!AC$7,Tab_Uderor[TipoReceita],Entrada!$P14)-AF14 -> 0 | AD14: =SUMIFS(Tab_Uderor[R$],Tab_Uderor[Competencia],Entrada!AD$7,Tab_Uderor[TipoReceita],Entrada!$P14)-AG14 -> 0 | AE14: =SUMIFS(Tab_Uderor[R$],Tab_Uderor[Competencia],Entrada!AE$7,Tab_Uderor[TipoReceita],Entrada!$P14)-AH14 -> 0
F15: (9) Valor da Base de Remuneração (VBR) | G15: =G13-G14 ->  | J15: BMP - 610530599; 610532599; | K15: Outros | L15: =SUMIFS(Tab_RIT_BMP[SALDO],Tab_RIT_BMP[ContaDetalhada],K15,Tab_RIT_BMP[ANO],$L$7,Tab_RIT_BMP[ContaPrincipal],"Pessoal") -> 0 | M15: =SUMIFS(Tab_RIT_BMP[SALDO],Tab_RIT_BMP[ContaDetalhada],K15,Tab_RIT_BMP[ANO],$M$7,Tab_RIT_BMP[ContaPrincipal],"Pessoal") -> 0 | P15: Operacionalização de serviço de créditos tributários | Q15: =IF((SUMIFS(Tab_Uderor[R$],Tab_Uderor[Competencia],Entrada!Q$7,Tab_Uderor[TipoReceita],Entrada!$P15))=0,R15,SUMIFS(Tab_Uderor[R$],Tab_Uderor[Competencia],Entrada!Q$7,Tab_Uderor[TipoReceita],Entrada!$P15)) -> 0 | R15: =IF((SUMIFS(Tab_Uderor[R$],Tab_Uderor[Competencia],Entrada!R$7,Tab_Uderor[TipoReceita],Entrada!$P15))=0,S15,SUMIFS(Tab_Uderor[R$],Tab_Uderor[Competencia],Entrada!R$7,Tab_Uderor[TipoReceita],Entrada!$P15)) -> 0 | S15: =SUMIFS(Tab_Uderor[R$],Tab_Uderor[Competencia],Entrada!S$7,Tab_Uderor[TipoReceita],Entrada!$P15) -> 0 | T15: =SUMIFS(Tab_Uderor[R$],Tab_Uderor[Competencia],Entrada!T$7,Tab_Uderor[TipoReceita],Entrada!$P15) -> 0 | U15: =SUMIFS(Tab_Uderor[R$],Tab_Uderor[Competencia],Entrada!U$7,Tab_Uderor[TipoReceita],Entrada!$P15) -> 0 | V15: =SUMIFS(Tab_Uderor[R$],Tab_Uderor[Competencia],Entrada!V$7,Tab_Uderor[TipoReceita],Entrada!$P15) -> 0 | W15: =SUMIFS(Tab_Uderor[R$],Tab_Uderor[Competencia],Entrada!W$7,Tab_Uderor[TipoReceita],Entrada!$P15) -> 0 | X15: =SUMIFS(Tab_Uderor[R$],Tab_Uderor[Competencia],Entrada!X$7,Tab_Uderor[TipoReceita],Entrada!$P15) -> 0 | Y15: =SUMIFS(Tab_Uderor[R$],Tab_Uderor[Competencia],Entrada!Y$7,Tab_Uderor[TipoReceita],Entrada!$P15) -> 0 | Z15: =SUMIFS(Tab_Uderor[R$],Tab_Uderor[Competencia],Entrada!Z$7,Tab_Uderor[TipoReceita],Entrada!$P15) -> 0 | AA15: =SUMIFS(Tab_Uderor[R$],Tab_Uderor[Competencia],Entrada!AA$7,Tab_Uderor[TipoReceita],Entrada!$P15) -> 0 | AB15: =SUMIFS(Tab_Uderor[R$],Tab_Uderor[Competencia],Entrada!AB$7,Tab_Uderor[TipoReceita],Entrada!$P15) -> 0 | AC15: =SUMIFS(Tab_Uderor[R$],Tab_Uderor[Competencia],Entrada!AC$7,Tab_Uderor[TipoReceita],Entrada!$P15)-AF15 -> 0 | AD15: =SUMIFS(Tab_Uderor[R$],Tab_Uderor[Competencia],Entrada!AD$7,Tab_Uderor[TipoReceita],Entrada!$P15)-AG15 -> 0 | AE15: =SUMIFS(Tab_Uderor[R$],Tab_Uderor[Competencia],Entrada!AE$7,Tab_Uderor[TipoReceita],Entrada!$P15)-AH15 -> 0
F16: (10) Almoxarifado em Operação | G16: =G80*VLOOKUP(DATE(YEAR(CAPA!$C$10),MONTH(CAPA!$C$10)-1,1),Índices!$B$135:$D$638,3,0)/VLOOKUP(DATE(YEAR($G$70),MONTH($G$70)-1,1),Índices!$B$135:$D$638,3,0) ->  | J16: BMP - 610530510; 610532510; 610532610; | K16: (-) Créditos de Tributos Recuperáveis | L16: =SUMIFS(Tab_RIT_BMP[SALDO],Tab_RIT_BMP[ContaDetalhada],K16,Tab_RIT_BMP[ANO],$L$7,Tab_RIT_BMP[ContaPrincipal],"Pessoal") -> 0 | M16: =SUMIFS(Tab_RIT_BMP[SALDO],Tab_RIT_BMP[ContaDetalhada],K16,Tab_RIT_BMP[ANO],$M$7,Tab_RIT_BMP[ContaPrincipal],"Pessoal") -> 0 | P16: Elaboração de projeto, construção, operação, manutenção ou reforma de: | Q16: =IF((SUMIFS(Tab_Uderor[R$],Tab_Uderor[Competencia],Entrada!Q$7,Tab_Uderor[TipoReceita],Entrada!$P16))=0,R16,SUMIFS(Tab_Uderor[R$],Tab_Uderor[Competencia],Entrada!Q$7,Tab_Uderor[TipoReceita],Entrada!$P16)) -> 0 | R16: =IF((SUMIFS(Tab_Uderor[R$],Tab_Uderor[Competencia],Entrada!R$7,Tab_Uderor[TipoReceita],Entrada!$P16))=0,S16,SUMIFS(Tab_Uderor[R$],Tab_Uderor[Competencia],Entrada!R$7,Tab_Uderor[TipoReceita],Entrada!$P16)) -> 0 | S16: =SUMIFS(Tab_Uderor[R$],Tab_Uderor[Competencia],Entrada!S$7,Tab_Uderor[TipoReceita],Entrada!$P16) -> 0 | T16: =SUMIFS(Tab_Uderor[R$],Tab_Uderor[Competencia],Entrada!T$7,Tab_Uderor[TipoReceita],Entrada!$P16) -> 0 | U16: =SUMIFS(Tab_Uderor[R$],Tab_Uderor[Competencia],Entrada!U$7,Tab_Uderor[TipoReceita],Entrada!$P16) -> 0 | V16: =SUMIFS(Tab_Uderor[R$],Tab_Uderor[Competencia],Entrada!V$7,Tab_Uderor[TipoReceita],Entrada!$P16) -> 0 | W16: =SUMIFS(Tab_Uderor[R$],Tab_Uderor[Competencia],Entrada!W$7,Tab_Uderor[TipoReceita],Entrada!$P16) -> 0 | X16: =SUMIFS(Tab_Uderor[R$],Tab_Uderor[Competencia],Entrada!X$7,Tab_Uderor[TipoReceita],Entrada!$P16) -> 0 | Y16: =SUMIFS(Tab_Uderor[R$],Tab_Uderor[Competencia],Entrada!Y$7,Tab_Uderor[TipoReceita],Entrada!$P16) -> 0 | Z16: =SUMIFS(Tab_Uderor[R$],Tab_Uderor[Competencia],Entrada!Z$7,Tab_Uderor[TipoReceita],Entrada!$P16) -> 0 | AA16: =SUMIFS(Tab_Uderor[R$],Tab_Uderor[Competencia],Entrada!AA$7,Tab_Uderor[TipoReceita],Entrada!$P16) -> 0 | AB16: =SUMIFS(Tab_Uderor[R$],Tab_Uderor[Competencia],Entrada!AB$7,Tab_Uderor[TipoReceita],Entrada!$P16) -> 0 | AC16: =SUMIFS(Tab_Uderor[R$],Tab_Uderor[Competencia],Entrada!AC$7,Tab_Uderor[TipoReceita],Entrada!$P16)-AF16 -> 0 | AD16: =SUMIFS(Tab_Uderor[R$],Tab_Uderor[Competencia],Entrada!AD$7,Tab_Uderor[TipoReceita],Entrada!$P16)-AG16 -> 0 | AE16: =SUMIFS(Tab_Uderor[R$],Tab_Uderor[Competencia],Entrada!AE$7,Tab_Uderor[TipoReceita],Entrada!$P16)-AH16 -> 0
F17: (11) Ativo Diferido | G17: =G81*VLOOKUP(DATE(YEAR(CAPA!$C$10),MONTH(CAPA!$C$10)-1,1),Índices!$B$135:$D$638,3,0)/VLOOKUP(DATE(YEAR($G$70),MONTH($G$70)-1,1),Índices!$B$135:$D$638,3,0) ->  | J17: BMP - 610530602; 610532602; 610530601; 610532601; | K17: Honorários/Administradores | L17: =SUMIFS(Tab_RIT_BMP[SALDO],Tab_RIT_BMP[ContaDetalhada],"Honorários*",Tab_RIT_BMP[ANO],$L$7,Tab_RIT_BMP[ContaPrincipal],"Pessoal") + SUMIFS(Tab_RIT_BMP[SALDO],Tab_RIT_BMP[ContaDetalhada],"*Administradores",Tab_RIT_BMP[ANO],$L$7,Tab_RIT_BMP[ContaPrincipal],"Pessoal") -> 8254952.04 | M17: =SUMIFS(Tab_RIT_BMP[SALDO],Tab_RIT_BMP[ContaDetalhada],"Honorários*",Tab_RIT_BMP[ANO],$M$7,Tab_RIT_BMP[ContaPrincipal],"Pessoal") + SUMIFS(Tab_RIT_BMP[SALDO],Tab_RIT_BMP[ContaDetalhada],"*Administradores",Tab_RIT_BMP[ANO],$M$7,Tab_RIT_BMP[ContaPrincipal],"Pessoal") -> 7584033.24 | P17: (1) redes de distribuição de energia elétrica destinadas à regularização fundiária de interesse específico e ao atendimento dos empreendimentos de múltiplas unidades consumidoras; | Q17: =IF((SUMIFS(Tab_Uderor[R$],Tab_Uderor[Competencia],Entrada!Q$7,Tab_Uderor[TipoReceita],Entrada!$P17))=0,R17,SUMIFS(Tab_Uderor[R$],Tab_Uderor[Competencia],Entrada!Q$7,Tab_Uderor[TipoReceita],Entrada!$P17)) -> 0 | R17: =IF((SUMIFS(Tab_Uderor[R$],Tab_Uderor[Competencia],Entrada!R$7,Tab_Uderor[TipoReceita],Entrada!$P17))=0,S17,SUMIFS(Tab_Uderor[R$],Tab_Uderor[Competencia],Entrada!R$7,Tab_Uderor[TipoReceita],Entrada!$P17)) -> 0 | S17: =SUMIFS(Tab_Uderor[R$],Tab_Uderor[Competencia],Entrada!S$7,Tab_Uderor[TipoReceita],Entrada!$P17) -> 0 | T17: =SUMIFS(Tab_Uderor[R$],Tab_Uderor[Competencia],Entrada!T$7,Tab_Uderor[TipoReceita],Entrada!$P17) -> 0 | U17: =SUMIFS(Tab_Uderor[R$],Tab_Uderor[Competencia],Entrada!U$7,Tab_Uderor[TipoReceita],Entrada!$P17) -> 0 | V17: =SUMIFS(Tab_Uderor[R$],Tab_Uderor[Competencia],Entrada!V$7,Tab_Uderor[TipoReceita],Entrada!$P17) -> 0 | W17: =SUMIFS(Tab_Uderor[R$],Tab_Uderor[Competencia],Entrada!W$7,Tab_Uderor[TipoReceita],Entrada!$P17) -> 0 | X17: =SUMIFS(Tab_Uderor[R$],Tab_Uderor[Competencia],Entrada!X$7,Tab_Uderor[TipoReceita],Entrada!$P17) -> 0 | Y17: =SUMIFS(Tab_Uderor[R$],Tab_Uderor[Competencia],Entrada!Y$7,Tab_Uderor[TipoReceita],Entrada!$P17) -> 0 | Z17: =SUMIFS(Tab_Uderor[R$],Tab_Uderor[Competencia],Entrada!Z$7,Tab_Uderor[TipoReceita],Entrada!$P17) -> 0 | AA17: =SUMIFS(Tab_Uderor[R$],Tab_Uderor[Competencia],Entrada!AA$7,Tab_Uderor[TipoReceita],Entrada!$P17) -> 0 | AB17: =SUMIFS(Tab_Uderor[R$],Tab_Uderor[Competencia],Entrada!AB$7,Tab_Uderor[TipoReceita],Entrada!$P17) -> 0 | AC17: =SUMIFS(Tab_Uderor[R$],Tab_Uderor[Competencia],Entrada!AC$7,Tab_Uderor[TipoReceita],Entrada!$P17)-AF17 -> 0 | AD17: =SUMIFS(Tab_Uderor[R$],Tab_Uderor[Competencia],Entrada!AD$7,Tab_Uderor[TipoReceita],Entrada!$P17)-AG17 -> 0 | AE17: =SUMIFS(Tab_Uderor[R$],Tab_Uderor[Competencia],Entrada!AE$7,Tab_Uderor[TipoReceita],Entrada!$P17)-AH17 -> 0
F18: (12) Obrigações Especiais Líquida | G18: =G82*VLOOKUP(DATE(YEAR(CAPA!$C$10),MONTH(CAPA!$C$10)-1,1),Índices!$B$135:$D$638,3,0)/VLOOKUP(DATE(YEAR($G$70),MONTH($G$70)-1,1),Índices!$B$135:$D$638,3,0) ->  | K18: Subtotal | L18: =SUM(L9:L17) -> 169524168.3 | M18: =SUM(M9:M17) -> 185662141.9 | P18: (2) redes de energia elétrica destinadas ao acesso dos sistemas de distribuição ou transmissão; | Q18: =IF((SUMIFS(Tab_Uderor[R$],Tab_Uderor[Competencia],Entrada!Q$7,Tab_Uderor[TipoReceita],Entrada!$P18))=0,R18,SUMIFS(Tab_Uderor[R$],Tab_Uderor[Competencia],Entrada!Q$7,Tab_Uderor[TipoReceita],Entrada!$P18)) -> 0 | R18: =IF((SUMIFS(Tab_Uderor[R$],Tab_Uderor[Competencia],Entrada!R$7,Tab_Uderor[TipoReceita],Entrada!$P18))=0,S18,SUMIFS(Tab_Uderor[R$],Tab_Uderor[Competencia],Entrada!R$7,Tab_Uderor[TipoReceita],Entrada!$P18)) -> 0 | S18: =SUMIFS(Tab_Uderor[R$],Tab_Uderor[Competencia],Entrada!S$7,Tab_Uderor[TipoReceita],Entrada!$P18) -> 0 | T18: =SUMIFS(Tab_Uderor[R$],Tab_Uderor[Competencia],Entrada!T$7,Tab_Uderor[TipoReceita],Entrada!$P18) -> 0 | U18: =SUMIFS(Tab_Uderor[R$],Tab_Uderor[Competencia],Entrada!U$7,Tab_Uderor[TipoReceita],Entrada!$P18) -> 0 | V18: =SUMIFS(Tab_Uderor[R$],Tab_Uderor[Competencia],Entrada!V$7,Tab_Uderor[TipoReceita],Entrada!$P18) -> 0 | W18: =SUMIFS(Tab_Uderor[R$],Tab_Uderor[Competencia],Entrada!W$7,Tab_Uderor[TipoReceita],Entrada!$P18) -> 0 | X18: =SUMIFS(Tab_Uderor[R$],Tab_Uderor[Competencia],Entrada!X$7,Tab_Uderor[TipoReceita],Entrada!$P18) -> 0 | Y18: =SUMIFS(Tab_Uderor[R$],Tab_Uderor[Competencia],Entrada!Y$7,Tab_Uderor[TipoReceita],Entrada!$P18) -> 0 | Z18: =SUMIFS(Tab_Uderor[R$],Tab_Uderor[Competencia],Entrada!Z$7,Tab_Uderor[TipoReceita],Entrada!$P18) -> 0 | AA18: =SUMIFS(Tab_Uderor[R$],Tab_Uderor[Competencia],Entrada!AA$7,Tab_Uderor[TipoReceita],Entrada!$P18) -> 0 | AB18: =SUMIFS(Tab_Uderor[R$],Tab_Uderor[Competencia],Entrada!AB$7,Tab_Uderor[TipoReceita],Entrada!$P18) -> 0 | AC18: =SUMIFS(Tab_Uderor[R$],Tab_Uderor[Competencia],Entrada!AC$7,Tab_Uderor[TipoReceita],Entrada!$P18)-AF18 -> 0 | AD18: =SUMIFS(Tab_Uderor[R$],Tab_Uderor[Competencia],Entrada!AD$7,Tab_Uderor[TipoReceita],Entrada!$P18)-AG18 -> 0 | AE18: =SUMIFS(Tab_Uderor[R$],Tab_Uderor[Competencia],Entrada!AE$7,Tab_Uderor[TipoReceita],Entrada!$P18)-AH18 -> 0
F19: (13) Terrenos e Servidões | G19: =G83*VLOOKUP(DATE(YEAR(CAPA!$C$10),MONTH(CAPA!$C$10)-1,1),Índices!$B$135:$D$638,3,0)/VLOOKUP(DATE(YEAR($G$70),MONTH($G$70)-1,1),Índices!$B$135:$D$638,3,0) ->  | J19: MATERIAIS | P19: (3) subestações de energia; | Q19: =IF((SUMIFS(Tab_Uderor[R$],Tab_Uderor[Competencia],Entrada!Q$7,Tab_Uderor[TipoReceita],Entrada!$P19))=0,R19,SUMIFS(Tab_Uderor[R$],Tab_Uderor[Competencia],Entrada!Q$7,Tab_Uderor[TipoReceita],Entrada!$P19)) -> 0 | R19: =IF((SUMIFS(Tab_Uderor[R$],Tab_Uderor[Competencia],Entrada!R$7,Tab_Uderor[TipoReceita],Entrada!$P19))=0,S19,SUMIFS(Tab_Uderor[R$],Tab_Uderor[Competencia],Entrada!R$7,Tab_Uderor[TipoReceita],Entrada!$P19)) -> 0 | S19: =SUMIFS(Tab_Uderor[R$],Tab_Uderor[Competencia],Entrada!S$7,Tab_Uderor[TipoReceita],Entrada!$P19) -> 0 | T19: =SUMIFS(Tab_Uderor[R$],Tab_Uderor[Competencia],Entrada!T$7,Tab_Uderor[TipoReceita],Entrada!$P19) -> 0 | U19: =SUMIFS(Tab_Uderor[R$],Tab_Uderor[Competencia],Entrada!U$7,Tab_Uderor[TipoReceita],Entrada!$P19) -> 0 | V19: =SUMIFS(Tab_Uderor[R$],Tab_Uderor[Competencia],Entrada!V$7,Tab_Uderor[TipoReceita],Entrada!$P19) -> 0 | W19: =SUMIFS(Tab_Uderor[R$],Tab_Uderor[Competencia],Entrada!W$7,Tab_Uderor[TipoReceita],Entrada!$P19) -> 0 | X19: =SUMIFS(Tab_Uderor[R$],Tab_Uderor[Competencia],Entrada!X$7,Tab_Uderor[TipoReceita],Entrada!$P19) -> 0 | Y19: =SUMIFS(Tab_Uderor[R$],Tab_Uderor[Competencia],Entrada!Y$7,Tab_Uderor[TipoReceita],Entrada!$P19) -> 0 | Z19: =SUMIFS(Tab_Uderor[R$],Tab_Uderor[Competencia],Entrada!Z$7,Tab_Uderor[TipoReceita],Entrada!$P19) -> 0 | AA19: =SUMIFS(Tab_Uderor[R$],Tab_Uderor[Competencia],Entrada!AA$7,Tab_Uderor[TipoReceita],Entrada!$P19) -> 0 | AB19: =SUMIFS(Tab_Uderor[R$],Tab_Uderor[Competencia],Entrada!AB$7,Tab_Uderor[TipoReceita],Entrada!$P19) -> 0 | AC19: =SUMIFS(Tab_Uderor[R$],Tab_Uderor[Competencia],Entrada!AC$7,Tab_Uderor[TipoReceita],Entrada!$P19)-AF19 -> 0 | AD19: =SUMIFS(Tab_Uderor[R$],Tab_Uderor[Competencia],Entrada!AD$7,Tab_Uderor[TipoReceita],Entrada!$P19)-AG19 -> 0 | AE19: =SUMIFS(Tab_Uderor[R$],Tab_Uderor[Competencia],Entrada!AE$7,Tab_Uderor[TipoReceita],Entrada!$P19)-AH19 -> 0
F20: (14) Base de Rem. Líquida Total = (1)-(6)-(8)+(10)+(11)-(12)+(13) | G20: =G15+G16+G17-G18+G19 ->  | J20: BMP - 610530701; 610532701; | K20: Materiais | L20: =SUMIFS(Tab_RIT_BMP[SALDO],Tab_RIT_BMP[ContaDetalhada],K20,Tab_RIT_BMP[ANO],$L$7,Tab_RIT_BMP[ContaPrincipal],"Materiais") -> 33028385.26 | M20: =SUMIFS(Tab_RIT_BMP[SALDO],Tab_RIT_BMP[ContaDetalhada],K20,Tab_RIT_BMP[ANO],$M$7,Tab_RIT_BMP[ContaPrincipal],"Materiais") -> 34513719.33 | P20: (4) instalações elétricas internas de unidades consumidoras; | Q20: =IF((SUMIFS(Tab_Uderor[R$],Tab_Uderor[Competencia],Entrada!Q$7,Tab_Uderor[TipoReceita],Entrada!$P20))=0,R20,SUMIFS(Tab_Uderor[R$],Tab_Uderor[Competencia],Entrada!Q$7,Tab_Uderor[TipoReceita],Entrada!$P20)) -> 0 | R20: =IF((SUMIFS(Tab_Uderor[R$],Tab_Uderor[Competencia],Entrada!R$7,Tab_Uderor[TipoReceita],Entrada!$P20))=0,S20,SUMIFS(Tab_Uderor[R$],Tab_Uderor[Competencia],Entrada!R$7,Tab_Uderor[TipoReceita],Entrada!$P20)) -> 0 | S20: =SUMIFS(Tab_Uderor[R$],Tab_Uderor[Competencia],Entrada!S$7,Tab_Uderor[TipoReceita],Entrada!$P20) -> 0 | T20: =SUMIFS(Tab_Uderor[R$],Tab_Uderor[Competencia],Entrada!T$7,Tab_Uderor[TipoReceita],Entrada!$P20) -> 0 | U20: =SUMIFS(Tab_Uderor[R$],Tab_Uderor[Competencia],Entrada!U$7,Tab_Uderor[TipoReceita],Entrada!$P20) -> 0 | V20: =SUMIFS(Tab_Uderor[R$],Tab_Uderor[Competencia],Entrada!V$7,Tab_Uderor[TipoReceita],Entrada!$P20) -> 0 | W20: =SUMIFS(Tab_Uderor[R$],Tab_Uderor[Competencia],Entrada!W$7,Tab_Uderor[TipoReceita],Entrada!$P20) -> 0 | X20: =SUMIFS(Tab_Uderor[R$],Tab_Uderor[Competencia],Entrada!X$7,Tab_Uderor[TipoReceita],Entrada!$P20) -> 0 | Y20: =SUMIFS(Tab_Uderor[R$],Tab_Uderor[Competencia],Entrada!Y$7,Tab_Uderor[TipoReceita],Entrada!$P20) -> 0 | Z20: =SUMIFS(Tab_Uderor[R$],Tab_Uderor[Competencia],Entrada!Z$7,Tab_Uderor[TipoReceita],Entrada!$P20) -> 0 | AA20: =SUMIFS(Tab_Uderor[R$],Tab_Uderor[Competencia],Entrada!AA$7,Tab_Uderor[TipoReceita],Entrada!$P20) -> 0 | AB20: =SUMIFS(Tab_Uderor[R$],Tab_Uderor[Competencia],Entrada!AB$7,Tab_Uderor[TipoReceita],Entrada!$P20) -> 0 | AC20: =SUMIFS(Tab_Uderor[R$],Tab_Uderor[Competencia],Entrada!AC$7,Tab_Uderor[TipoReceita],Entrada!$P20)-AF20 -> 0 | AD20: =SUMIFS(Tab_Uderor[R$],Tab_Uderor[Competencia],Entrada!AD$7,Tab_Uderor[TipoReceita],Entrada!$P20)-AG20 -> 0 | AE20: =SUMIFS(Tab_Uderor[R$],Tab_Uderor[Competencia],Entrada!AE$7,Tab_Uderor[TipoReceita],Entrada!$P20)-AH20 -> 0
F21: (15) Saldo RGR PLPT | G21: =G85*VLOOKUP(DATE(YEAR(CAPA!$C$10),MONTH(CAPA!$C$10)-1,1),Índices!$B$135:$D$638,3,0)/VLOOKUP(DATE(YEAR($G$70),MONTH($G$70)-1,1),Índices!$B$135:$D$638,3,0) ->  | J21: BMP - 610530799; 610532799; | K21: Outros | L21: =SUMIFS(Tab_RIT_BMP[SALDO],Tab_RIT_BMP[ContaDetalhada],K21,Tab_RIT_BMP[ANO],$L$7,Tab_RIT_BMP[ContaPrincipal],"Materiais") -> 54206.41 | M21: =SUMIFS(Tab_RIT_BMP[SALDO],Tab_RIT_BMP[ContaDetalhada],K21,Tab_RIT_BMP[ANO],$M$7,Tab_RIT_BMP[ContaPrincipal],"Materiais") -> 171466.02 | P21: (5) banco de capacitores; | Q21: =IF((SUMIFS(Tab_Uderor[R$],Tab_Uderor[Competencia],Entrada!Q$7,Tab_Uderor[TipoReceita],Entrada!$P21))=0,R21,SUMIFS(Tab_Uderor[R$],Tab_Uderor[Competencia],Entrada!Q$7,Tab_Uderor[TipoReceita],Entrada!$P21)) -> 0 | R21: =IF((SUMIFS(Tab_Uderor[R$],Tab_Uderor[Competencia],Entrada!R$7,Tab_Uderor[TipoReceita],Entrada!$P21))=0,S21,SUMIFS(Tab_Uderor[R$],Tab_Uderor[Competencia],Entrada!R$7,Tab_Uderor[TipoReceita],Entrada!$P21)) -> 0 | S21: =SUMIFS(Tab_Uderor[R$],Tab_Uderor[Competencia],Entrada!S$7,Tab_Uderor[TipoReceita],Entrada!$P21) -> 0 | T21: =SUMIFS(Tab_Uderor[R$],Tab_Uderor[Competencia],Entrada!T$7,Tab_Uderor[TipoReceita],Entrada!$P21) -> 0 | U21: =SUMIFS(Tab_Uderor[R$],Tab_Uderor[Competencia],Entrada!U$7,Tab_Uderor[TipoReceita],Entrada!$P21) -> 0 | V21: =SUMIFS(Tab_Uderor[R$],Tab_Uderor[Competencia],Entrada!V$7,Tab_Uderor[TipoReceita],Entrada!$P21) -> 0 | W21: =SUMIFS(Tab_Uderor[R$],Tab_Uderor[Competencia],Entrada!W$7,Tab_Uderor[TipoReceita],Entrada!$P21) -> 0 | X21: =SUMIFS(Tab_Uderor[R$],Tab_Uderor[Competencia],Entrada!X$7,Tab_Uderor[TipoReceita],Entrada!$P21) -> 0 | Y21: =SUMIFS(Tab_Uderor[R$],Tab_Uderor[Competencia],Entrada!Y$7,Tab_Uderor[TipoReceita],Entrada!$P21) -> 0 | Z21: =SUMIFS(Tab_Uderor[R$],Tab_Uderor[Competencia],Entrada!Z$7,Tab_Uderor[TipoReceita],Entrada!$P21) -> 0 | AA21: =SUMIFS(Tab_Uderor[R$],Tab_Uderor[Competencia],Entrada!AA$7,Tab_Uderor[TipoReceita],Entrada!$P21) -> 0 | AB21: =SUMIFS(Tab_Uderor[R$],Tab_Uderor[Competencia],Entrada!AB$7,Tab_Uderor[TipoReceita],Entrada!$P21) -> 0 | AC21: =SUMIFS(Tab_Uderor[R$],Tab_Uderor[Competencia],Entrada!AC$7,Tab_Uderor[TipoReceita],Entrada!$P21)-AF21 -> 0 | AD21: =SUMIFS(Tab_Uderor[R$],Tab_Uderor[Competencia],Entrada!AD$7,Tab_Uderor[TipoReceita],Entrada!$P21)-AG21 -> 0 | AE21: =SUMIFS(Tab_Uderor[R$],Tab_Uderor[Competencia],Entrada!AE$7,Tab_Uderor[TipoReceita],Entrada!$P21)-AH21 -> 0
F22: (16) Saldo RGR Demais Investimentos | G22: =G86*VLOOKUP(DATE(YEAR(CAPA!$C$10),MONTH(CAPA!$C$10)-1,1),Índices!$B$135:$D$638,3,0)/VLOOKUP(DATE(YEAR($G$70),MONTH($G$70)-1,1),Índices!$B$135:$D$638,3,0) ->  | J22: BMP - 610530710; 610532710; | K22: (-) Créditos de Tributos Recuperáveis | L22: =SUMIFS(Tab_RIT_BMP[SALDO],Tab_RIT_BMP[ContaDetalhada],K22,Tab_RIT_BMP[ANO],$L$7,Tab_RIT_BMP[ContaPrincipal],"Materiais") -> -1054272.76 | M22: =SUMIFS(Tab_RIT_BMP[SALDO],Tab_RIT_BMP[ContaDetalhada],K22,Tab_RIT_BMP[ANO],$M$7,Tab_RIT_BMP[ContaPrincipal],"Materiais") -> -630575.95 | P22: (6) padrões de entrada de unidades consumidoras atendidas em baixa tensão; | Q22: =IF((SUMIFS(Tab_Uderor[R$],Tab_Uderor[Competencia],Entrada!Q$7,Tab_Uderor[TipoReceita],Entrada!$P22))=0,R22,SUMIFS(Tab_Uderor[R$],Tab_Uderor[Competencia],Entrada!Q$7,Tab_Uderor[TipoReceita],Entrada!$P22)) -> 0 | R22: =IF((SUMIFS(Tab_Uderor[R$],Tab_Uderor[Competencia],Entrada!R$7,Tab_Uderor[TipoReceita],Entrada!$P22))=0,S22,SUMIFS(Tab_Uderor[R$],Tab_Uderor[Competencia],Entrada!R$7,Tab_Uderor[TipoReceita],Entrada!$P22)) -> 0 | S22: =SUMIFS(Tab_Uderor[R$],Tab_Uderor[Competencia],Entrada!S$7,Tab_Uderor[TipoReceita],Entrada!$P22) -> 0 | T22: =SUMIFS(Tab_Uderor[R$],Tab_Uderor[Competencia],Entrada!T$7,Tab_Uderor[TipoReceita],Entrada!$P22) -> 0 | U22: =SUMIFS(Tab_Uderor[R$],Tab_Uderor[Competencia],Entrada!U$7,Tab_Uderor[TipoReceita],Entrada!$P22) -> 0 | V22: =SUMIFS(Tab_Uderor[R$],Tab_Uderor[Competencia],Entrada!V$7,Tab_Uderor[TipoReceita],Entrada!$P22) -> 0 | W22: =SUMIFS(Tab_Uderor[R$],Tab_Uderor[Competencia],Entrada!W$7,Tab_Uderor[TipoReceita],Entrada!$P22) -> 0 | X22: =SUMIFS(Tab_Uderor[R$],Tab_Uderor[Competencia],Entrada!X$7,Tab_Uderor[TipoReceita],Entrada!$P22) -> 0 | Y22: =SUMIFS(Tab_Uderor[R$],Tab_Uderor[Competencia],Entrada!Y$7,Tab_Uderor[TipoReceita],Entrada!$P22) -> 0 | Z22: =SUMIFS(Tab_Uderor[R$],Tab_Uderor[Competencia],Entrada!Z$7,Tab_Uderor[TipoReceita],Entrada!$P22) -> 0 | AA22: =SUMIFS(Tab_Uderor[R$],Tab_Uderor[Competencia],Entrada!AA$7,Tab_Uderor[TipoReceita],Entrada!$P22) -> 0 | AB22: =SUMIFS(Tab_Uderor[R$],Tab_Uderor[Competencia],Entrada!AB$7,Tab_Uderor[TipoReceita],Entrada!$P22) -> 0 | AC22: =SUMIFS(Tab_Uderor[R$],Tab_Uderor[Competencia],Entrada!AC$7,Tab_Uderor[TipoReceita],Entrada!$P22)-AF22 -> 0 | AD22: =SUMIFS(Tab_Uderor[R$],Tab_Uderor[Competencia],Entrada!AD$7,Tab_Uderor[TipoReceita],Entrada!$P22)-AG22 -> 0 | AE22: =SUMIFS(Tab_Uderor[R$],Tab_Uderor[Competencia],Entrada!AE$7,Tab_Uderor[TipoReceita],Entrada!$P22)-AH22 -> 0
F23: (17) Taxa de Depreciação | G23: =G87 -> 0 | K23: Subtotal | L23: =SUM(L20:L22) -> 32028318.91 | M23: =SUM(M20:M22) -> 34054609.4 | P23: (7) sistemas de medição de energia elétrica; | Q23: =IF((SUMIFS(Tab_Uderor[R$],Tab_Uderor[Competencia],Entrada!Q$7,Tab_Uderor[TipoReceita],Entrada!$P23))=0,R23,SUMIFS(Tab_Uderor[R$],Tab_Uderor[Competencia],Entrada!Q$7,Tab_Uderor[TipoReceita],Entrada!$P23)) -> 0 | R23: =IF((SUMIFS(Tab_Uderor[R$],Tab_Uderor[Competencia],Entrada!R$7,Tab_Uderor[TipoReceita],Entrada!$P23))=0,S23,SUMIFS(Tab_Uderor[R$],Tab_Uderor[Competencia],Entrada!R$7,Tab_Uderor[TipoReceita],Entrada!$P23)) -> 0 | S23: =SUMIFS(Tab_Uderor[R$],Tab_Uderor[Competencia],Entrada!S$7,Tab_Uderor[TipoReceita],Entrada!$P23) -> 0 | T23: =SUMIFS(Tab_Uderor[R$],Tab_Uderor[Competencia],Entrada!T$7,Tab_Uderor[TipoReceita],Entrada!$P23) -> 0 | U23: =SUMIFS(Tab_Uderor[R$],Tab_Uderor[Competencia],Entrada!U$7,Tab_Uderor[TipoReceita],Entrada!$P23) -> 0 | V23: =SUMIFS(Tab_Uderor[R$],Tab_Uderor[Competencia],Entrada!V$7,Tab_Uderor[TipoReceita],Entrada!$P23) -> 0 | W23: =SUMIFS(Tab_Uderor[R$],Tab_Uderor[Competencia],Entrada!W$7,Tab_Uderor[TipoReceita],Entrada!$P23) -> 0 | X23: =SUMIFS(Tab_Uderor[R$],Tab_Uderor[Competencia],Entrada!X$7,Tab_Uderor[TipoReceita],Entrada!$P23) -> 0 | Y23: =SUMIFS(Tab_Uderor[R$],Tab_Uderor[Competencia],Entrada!Y$7,Tab_Uderor[TipoReceita],Entrada!$P23) -> 0 | Z23: =SUMIFS(Tab_Uderor[R$],Tab_Uderor[Competencia],Entrada!Z$7,Tab_Uderor[TipoReceita],Entrada!$P23) -> 0 | AA23: =SUMIFS(Tab_Uderor[R$],Tab_Uderor[Competencia],Entrada!AA$7,Tab_Uderor[TipoReceita],Entrada!$P23) -> 0 | AB23: =SUMIFS(Tab_Uderor[R$],Tab_Uderor[Competencia],Entrada!AB$7,Tab_Uderor[TipoReceita],Entrada!$P23) -> 0 | AC23: =SUMIFS(Tab_Uderor[R$],Tab_Uderor[Competencia],Entrada!AC$7,Tab_Uderor[TipoReceita],Entrada!$P23)-AF23 -> 0 | AD23: =SUMIFS(Tab_Uderor[R$],Tab_Uderor[Competencia],Entrada!AD$7,Tab_Uderor[TipoReceita],Entrada!$P23)-AG23 -> 0 | AE23: =SUMIFS(Tab_Uderor[R$],Tab_Uderor[Competencia],Entrada!AE$7,Tab_Uderor[TipoReceita],Entrada!$P23)-AH23 -> 0
F24: (18) Quota de Reintegração Regulatória = (5) * (17) | G24: =G23*G11 ->  | J24: SERVIÇOS | P24: (8) geradores, incluindo-se unidades de microgeração e minigeração distribuída; | Q24: =IF((SUMIFS(Tab_Uderor[R$],Tab_Uderor[Competencia],Entrada!Q$7,Tab_Uderor[TipoReceita],Entrada!$P24))=0,R24,SUMIFS(Tab_Uderor[R$],Tab_Uderor[Competencia],Entrada!Q$7,Tab_Uderor[TipoReceita],Entrada!$P24)) -> 0 | R24: =IF((SUMIFS(Tab_Uderor[R$],Tab_Uderor[Competencia],Entrada!R$7,Tab_Uderor[TipoReceita],Entrada!$P24))=0,S24,SUMIFS(Tab_Uderor[R$],Tab_Uderor[Competencia],Entrada!R$7,Tab_Uderor[TipoReceita],Entrada!$P24)) -> 0 | S24: =SUMIFS(Tab_Uderor[R$],Tab_Uderor[Competencia],Entrada!S$7,Tab_Uderor[TipoReceita],Entrada!$P24) -> 0 | T24: =SUMIFS(Tab_Uderor[R$],Tab_Uderor[Competencia],Entrada!T$7,Tab_Uderor[TipoReceita],Entrada!$P24) -> 0 | U24: =SUMIFS(Tab_Uderor[R$],Tab_Uderor[Competencia],Entrada!U$7,Tab_Uderor[TipoReceita],Entrada!$P24) -> 0 | V24: =SUMIFS(Tab_Uderor[R$],Tab_Uderor[Competencia],Entrada!V$7,Tab_Uderor[TipoReceita],Entrada!$P24) -> 0 | W24: =SUMIFS(Tab_Uderor[R$],Tab_Uderor[Competencia],Entrada!W$7,Tab_Uderor[TipoReceita],Entrada!$P24) -> 0 | X24: =SUMIFS(Tab_Uderor[R$],Tab_Uderor[Competencia],Entrada!X$7,Tab_Uderor[TipoReceita],Entrada!$P24) -> 0 | Y24: =SUMIFS(Tab_Uderor[R$],Tab_Uderor[Competencia],Entrada!Y$7,Tab_Uderor[TipoReceita],Entrada!$P24) -> 0 | Z24: =SUMIFS(Tab_Uderor[R$],Tab_Uderor[Competencia],Entrada!Z$7,Tab_Uderor[TipoReceita],Entrada!$P24) -> 0 | AA24: =SUMIFS(Tab_Uderor[R$],Tab_Uderor[Competencia],Entrada!AA$7,Tab_Uderor[TipoReceita],Entrada!$P24) -> 0 | AB24: =SUMIFS(Tab_Uderor[R$],Tab_Uderor[Competencia],Entrada!AB$7,Tab_Uderor[TipoReceita],Entrada!$P24) -> 0 | AC24: =SUMIFS(Tab_Uderor[R$],Tab_Uderor[Competencia],Entrada!AC$7,Tab_Uderor[TipoReceita],Entrada!$P24)-AF24 -> 0 | AD24: =SUMIFS(Tab_Uderor[R$],Tab_Uderor[Competencia],Entrada!AD$7,Tab_Uderor[TipoReceita],Entrada!$P24)-AG24 -> 0 | AE24: =SUMIFS(Tab_Uderor[R$],Tab_Uderor[Competencia],Entrada!AE$7,Tab_Uderor[TipoReceita],Entrada!$P24)-AH24 -> 0
J25: BMP - 610530801; 610532801; | K25: (-) Créditos de Tributos Recuperáveis | L25: =SUMIFS(Tab_RIT_BMP[SALDO],Tab_RIT_BMP[ContaDetalhada],"Serviços de Terceiros",Tab_RIT_BMP[ANO],$L$7,Tab_RIT_BMP[ContaPrincipal],"Serviços") -> 154814125.6 | M25: =SUMIFS(Tab_RIT_BMP[SALDO],Tab_RIT_BMP[ContaDetalhada],"Serviços de Terceiros",Tab_RIT_BMP[ANO],$M$7,Tab_RIT_BMP[ContaPrincipal],"Serviços") -> 155110007.1 | P25: (9) sistemas de iluminação pública. | Q25: =IF((SUMIFS(Tab_Uderor[R$],Tab_Uderor[Competencia],Entrada!Q$7,Tab_Uderor[TipoReceita],Entrada!$P25))=0,R25,SUMIFS(Tab_Uderor[R$],Tab_Uderor[Competencia],Entrada!Q$7,Tab_Uderor[TipoReceita],Entrada!$P25)) -> 0 | R25: =IF((SUMIFS(Tab_Uderor[R$],Tab_Uderor[Competencia],Entrada!R$7,Tab_Uderor[TipoReceita],Entrada!$P25))=0,S25,SUMIFS(Tab_Uderor[R$],Tab_Uderor[Competencia],Entrada!R$7,Tab_Uderor[TipoReceita],Entrada!$P25)) -> 0 | S25: =SUMIFS(Tab_Uderor[R$],Tab_Uderor[Competencia],Entrada!S$7,Tab_Uderor[TipoReceita],Entrada!$P25) -> 0 | T25: =SUMIFS(Tab_Uderor[R$],Tab_Uderor[Competencia],Entrada!T$7,Tab_Uderor[TipoReceita],Entrada!$P25) -> 0 | U25: =SUMIFS(Tab_Uderor[R$],Tab_Uderor[Competencia],Entrada!U$7,Tab_Uderor[TipoReceita],Entrada!$P25) -> 0 | V25: =SUMIFS(Tab_Uderor[R$],Tab_Uderor[Competencia],Entrada!V$7,Tab_Uderor[TipoReceita],Entrada!$P25) -> 0 | W25: =SUMIFS(Tab_Uderor[R$],Tab_Uderor[Competencia],Entrada!W$7,Tab_Uderor[TipoReceita],Entrada!$P25) -> 0 | X25: =SUMIFS(Tab_Uderor[R$],Tab_Uderor[Competencia],Entrada!X$7,Tab_Uderor[TipoReceita],Entrada!$P25) -> 0 | Y25: =SUMIFS(Tab_Uderor[R$],Tab_Uderor[Competencia],Entrada!Y$7,Tab_Uderor[TipoReceita],Entrada!$P25) -> 0 | Z25: =SUMIFS(Tab_Uderor[R$],Tab_Uderor[Competencia],Entrada!Z$7,Tab_Uderor[TipoReceita],Entrada!$P25) -> 0 | AA25: =SUMIFS(Tab_Uderor[R$],Tab_Uderor[Competencia],Entrada!AA$7,Tab_Uderor[TipoReceita],Entrada!$P25) -> 0 | AB25: =SUMIFS(Tab_Uderor[R$],Tab_Uderor[Competencia],Entrada!AB$7,Tab_Uderor[TipoReceita],Entrada!$P25) -> 0 | AC25: =SUMIFS(Tab_Uderor[R$],Tab_Uderor[Competencia],Entrada!AC$7,Tab_Uderor[TipoReceita],Entrada!$P25)-AF25 -> 0 | AD25: =SUMIFS(Tab_Uderor[R$],Tab_Uderor[Competencia],Entrada!AD$7,Tab_Uderor[TipoReceita],Entrada!$P25)-AG25 -> 0 | AE25: =SUMIFS(Tab_Uderor[R$],Tab_Uderor[Competencia],Entrada!AE$7,Tab_Uderor[TipoReceita],Entrada!$P25)-AH25 -> 0
F26: Gasto do Conselho de Consumidores | J26: BMP - 610530810; 610532810; | K26: Transferências da Administração Central | L26: =SUMIFS(Tab_RIT_BMP[SALDO],Tab_RIT_BMP[ContaDetalhada],"*Créditos*",Tab_RIT_BMP[ANO],$L$7,Tab_RIT_BMP[ContaPrincipal],"Serviços") -> -1046743.39 | M26: =SUMIFS(Tab_RIT_BMP[SALDO],Tab_RIT_BMP[ContaDetalhada],"*Créditos*",Tab_RIT_BMP[ANO],$M$7,Tab_RIT_BMP[ContaPrincipal],"Serviços") -> -795869.12 | P26: (10) estações de recarga de veículos elétricos, incluindo a prestação de serviços aos usuários | Q26: =IF((SUMIFS(Tab_Uderor[R$],Tab_Uderor[Competencia],Entrada!Q$7,Tab_Uderor[TipoReceita],Entrada!$P26))=0,R26,SUMIFS(Tab_Uderor[R$],Tab_Uderor[Competencia],Entrada!Q$7,Tab_Uderor[TipoReceita],Entrada!$P26)) -> 0 | R26: =IF((SUMIFS(Tab_Uderor[R$],Tab_Uderor[Competencia],Entrada!R$7,Tab_Uderor[TipoReceita],Entrada!$P26))=0,S26,SUMIFS(Tab_Uderor[R$],Tab_Uderor[Competencia],Entrada!R$7,Tab_Uderor[TipoReceita],Entrada!$P26)) -> 0 | S26: =SUMIFS(Tab_Uderor[R$],Tab_Uderor[Competencia],Entrada!S$7,Tab_Uderor[TipoReceita],Entrada!$P26) -> 0 | T26: =SUMIFS(Tab_Uderor[R$],Tab_Uderor[Competencia],Entrada!T$7,Tab_Uderor[TipoReceita],Entrada!$P26) -> 0 | U26: =SUMIFS(Tab_Uderor[R$],Tab_Uderor[Competencia],Entrada!U$7,Tab_Uderor[TipoReceita],Entrada!$P26) -> 0 | V26: =SUMIFS(Tab_Uderor[R$],Tab_Uderor[Competencia],Entrada!V$7,Tab_Uderor[TipoReceita],Entrada!$P26) -> 0 | W26: =SUMIFS(Tab_Uderor[R$],Tab_Uderor[Competencia],Entrada!W$7,Tab_Uderor[TipoReceita],Entrada!$P26) -> 0 | X26: =SUMIFS(Tab_Uderor[R$],Tab_Uderor[Competencia],Entrada!X$7,Tab_Uderor[TipoReceita],Entrada!$P26) -> 0 | Y26: =SUMIFS(Tab_Uderor[R$],Tab_Uderor[Competencia],Entrada!Y$7,Tab_Uderor[TipoReceita],Entrada!$P26) -> 0 | Z26: =SUMIFS(Tab_Uderor[R$],Tab_Uderor[Competencia],Entrada!Z$7,Tab_Uderor[TipoReceita],Entrada!$P26) -> 0 | AA26: =SUMIFS(Tab_Uderor[R$],Tab_Uderor[Competencia],Entrada!AA$7,Tab_Uderor[TipoReceita],Entrada!$P26) -> 0 | AB26: =SUMIFS(Tab_Uderor[R$],Tab_Uderor[Competencia],Entrada!AB$7,Tab_Uderor[TipoReceita],Entrada!$P26) -> 0 | AC26: =SUMIFS(Tab_Uderor[R$],Tab_Uderor[Competencia],Entrada!AC$7,Tab_Uderor[TipoReceita],Entrada!$P26)-AF26 -> 0 | AD26: =SUMIFS(Tab_Uderor[R$],Tab_Uderor[Competencia],Entrada!AD$7,Tab_Uderor[TipoReceita],Entrada!$P26)-AG26 -> 0 | AE26: =SUMIFS(Tab_Uderor[R$],Tab_Uderor[Competencia],Entrada!AE$7,Tab_Uderor[TipoReceita],Entrada!$P26)-AH26 -> 0
F27: =Indexador!D132 -> Despesa 2025 | H27: 45931 | K27: Subtotal | L27: =SUM(L25:L26) -> 153767382.2 | M27: =SUM(M25:M26) -> 154314138 | P27: Eficientização do consumo de energia elétrica e instalação de cogeração qualificada, desde que não enquadráveis nos projetos de Pesquisa e Desenvolvimento (P&D) ou de Eficiência Energética estabelecidos em lei | Q27: =IF((SUMIFS(Tab_Uderor[R$],Tab_Uderor[Competencia],Entrada!Q$7,Tab_Uderor[TipoReceita],Entrada!$P27))=0,R27,SUMIFS(Tab_Uderor[R$],Tab_Uderor[Competencia],Entrada!Q$7,Tab_Uderor[TipoReceita],Entrada!$P27)) -> 0 | R27: =IF((SUMIFS(Tab_Uderor[R$],Tab_Uderor[Competencia],Entrada!R$7,Tab_Uderor[TipoReceita],Entrada!$P27))=0,S27,SUMIFS(Tab_Uderor[R$],Tab_Uderor[Competencia],Entrada!R$7,Tab_Uderor[TipoReceita],Entrada!$P27)) -> 0 | S27: =SUMIFS(Tab_Uderor[R$],Tab_Uderor[Competencia],Entrada!S$7,Tab_Uderor[TipoReceita],Entrada!$P27) -> 0 | T27: =SUMIFS(Tab_Uderor[R$],Tab_Uderor[Competencia],Entrada!T$7,Tab_Uderor[TipoReceita],Entrada!$P27) -> 0 | U27: =SUMIFS(Tab_Uderor[R$],Tab_Uderor[Competencia],Entrada!U$7,Tab_Uderor[TipoReceita],Entrada!$P27) -> 0 | V27: =SUMIFS(Tab_Uderor[R$],Tab_Uderor[Competencia],Entrada!V$7,Tab_Uderor[TipoReceita],Entrada!$P27) -> 0 | W27: =SUMIFS(Tab_Uderor[R$],Tab_Uderor[Competencia],Entrada!W$7,Tab_Uderor[TipoReceita],Entrada!$P27) -> 0 | X27: =SUMIFS(Tab_Uderor[R$],Tab_Uderor[Competencia],Entrada!X$7,Tab_Uderor[TipoReceita],Entrada!$P27) -> 0 | Y27: =SUMIFS(Tab_Uderor[R$],Tab_Uderor[Competencia],Entrada!Y$7,Tab_Uderor[TipoReceita],Entrada!$P27) -> 0 | Z27: =SUMIFS(Tab_Uderor[R$],Tab_Uderor[Competencia],Entrada!Z$7,Tab_Uderor[TipoReceita],Entrada!$P27) -> 0 | AA27: =SUMIFS(Tab_Uderor[R$],Tab_Uderor[Competencia],Entrada!AA$7,Tab_Uderor[TipoReceita],Entrada!$P27) -> 0 | AB27: =SUMIFS(Tab_Uderor[R$],Tab_Uderor[Competencia],Entrada!AB$7,Tab_Uderor[TipoReceita],Entrada!$P27) -> 0 | AC27: =SUMIFS(Tab_Uderor[R$],Tab_Uderor[Competencia],Entrada!AC$7,Tab_Uderor[TipoReceita],Entrada!$P27)-AF27 -> 0 | AD27: =SUMIFS(Tab_Uderor[R$],Tab_Uderor[Competencia],Entrada!AD$7,Tab_Uderor[TipoReceita],Entrada!$P27)-AG27 -> 0 | AE27: =SUMIFS(Tab_Uderor[R$],Tab_Uderor[Competencia],Entrada!AE$7,Tab_Uderor[TipoReceita],Entrada!$P27)-AH27 -> 0
F28: =Indexador!E132 -> Despesa 2024 | J28: SEGUROS | P28: Serviços de comunicação de dados | Q28: =IF((SUMIFS(Tab_Uderor[R$],Tab_Uderor[Competencia],Entrada!Q$7,Tab_Uderor[TipoReceita],Entrada!$P28))=0,R28,SUMIFS(Tab_Uderor[R$],Tab_Uderor[Competencia],Entrada!Q$7,Tab_Uderor[TipoReceita],Entrada!$P28)) -> 0 | R28: =IF((SUMIFS(Tab_Uderor[R$],Tab_Uderor[Competencia],Entrada!R$7,Tab_Uderor[TipoReceita],Entrada!$P28))=0,S28,SUMIFS(Tab_Uderor[R$],Tab_Uderor[Competencia],Entrada!R$7,Tab_Uderor[TipoReceita],Entrada!$P28)) -> 0 | S28: =SUMIFS(Tab_Uderor[R$],Tab_Uderor[Competencia],Entrada!S$7,Tab_Uderor[TipoReceita],Entrada!$P28) -> 0 | T28: =SUMIFS(Tab_Uderor[R$],Tab_Uderor[Competencia],Entrada!T$7,Tab_Uderor[TipoReceita],Entrada!$P28) -> 0 | U28: =SUMIFS(Tab_Uderor[R$],Tab_Uderor[Competencia],Entrada!U$7,Tab_Uderor[TipoReceita],Entrada!$P28) -> 0 | V28: =SUMIFS(Tab_Uderor[R$],Tab_Uderor[Competencia],Entrada!V$7,Tab_Uderor[TipoReceita],Entrada!$P28) -> 0 | W28: =SUMIFS(Tab_Uderor[R$],Tab_Uderor[Competencia],Entrada!W$7,Tab_Uderor[TipoReceita],Entrada!$P28) -> 0 | X28: =SUMIFS(Tab_Uderor[R$],Tab_Uderor[Competencia],Entrada!X$7,Tab_Uderor[TipoReceita],Entrada!$P28) -> 0 | Y28: =SUMIFS(Tab_Uderor[R$],Tab_Uderor[Competencia],Entrada!Y$7,Tab_Uderor[TipoReceita],Entrada!$P28) -> 0 | Z28: =SUMIFS(Tab_Uderor[R$],Tab_Uderor[Competencia],Entrada!Z$7,Tab_Uderor[TipoReceita],Entrada!$P28) -> 0 | AA28: =SUMIFS(Tab_Uderor[R$],Tab_Uderor[Competencia],Entrada!AA$7,Tab_Uderor[TipoReceita],Entrada!$P28) -> 0 | AB28: =SUMIFS(Tab_Uderor[R$],Tab_Uderor[Competencia],Entrada!AB$7,Tab_Uderor[TipoReceita],Entrada!$P28) -> 0 | AC28: =SUMIFS(Tab_Uderor[R$],Tab_Uderor[Competencia],Entrada!AC$7,Tab_Uderor[TipoReceita],Entrada!$P28)-AF28 -> 0 | AD28: =SUMIFS(Tab_Uderor[R$],Tab_Uderor[Competencia],Entrada!AD$7,Tab_Uderor[TipoReceita],Entrada!$P28)-AG28 -> 0 | AE28: =SUMIFS(Tab_Uderor[R$],Tab_Uderor[Competencia],Entrada!AE$7,Tab_Uderor[TipoReceita],Entrada!$P28)-AH28 -> 0
F29: =Indexador!F132 -> Despesa 2023 | J29: BMP - 610531001; 610533001; | K29: Seguros | L29: =SUMIFS(Tab_RIT_BMP[SALDO],Tab_RIT_BMP[ContaDetalhada],"Seguros",Tab_RIT_BMP[ANO],$L$7,Tab_RIT_BMP[ContaPrincipal],"Seguros") -> 2020109.51 | M29: =SUMIFS(Tab_RIT_BMP[SALDO],Tab_RIT_BMP[ContaDetalhada],"Seguros",Tab_RIT_BMP[ANO],$M$7,Tab_RIT_BMP[ContaPrincipal],"Seguros") -> 1925812.39 | P29: Serviços de consultoria | Q29: =IF((SUMIFS(Tab_Uderor[R$],Tab_Uderor[Competencia],Entrada!Q$7,Tab_Uderor[TipoReceita],Entrada!$P29))=0,R29,SUMIFS(Tab_Uderor[R$],Tab_Uderor[Competencia],Entrada!Q$7,Tab_Uderor[TipoReceita],Entrada!$P29)) -> 0 | R29: =IF((SUMIFS(Tab_Uderor[R$],Tab_Uderor[Competencia],Entrada!R$7,Tab_Uderor[TipoReceita],Entrada!$P29))=0,S29,SUMIFS(Tab_Uderor[R$],Tab_Uderor[Competencia],Entrada!R$7,Tab_Uderor[TipoReceita],Entrada!$P29)) -> 0 | S29: =SUMIFS(Tab_Uderor[R$],Tab_Uderor[Competencia],Entrada!S$7,Tab_Uderor[TipoReceita],Entrada!$P29) -> 0 | T29: =SUMIFS(Tab_Uderor[R$],Tab_Uderor[Competencia],Entrada!T$7,Tab_Uderor[TipoReceita],Entrada!$P29) -> 0 | U29: =SUMIFS(Tab_Uderor[R$],Tab_Uderor[Competencia],Entrada!U$7,Tab_Uderor[TipoReceita],Entrada!$P29) -> 0 | V29: =SUMIFS(Tab_Uderor[R$],Tab_Uderor[Competencia],Entrada!V$7,Tab_Uderor[TipoReceita],Entrada!$P29) -> 0 | W29: =SUMIFS(Tab_Uderor[R$],Tab_Uderor[Competencia],Entrada!W$7,Tab_Uderor[TipoReceita],Entrada!$P29) -> 0 | X29: =SUMIFS(Tab_Uderor[R$],Tab_Uderor[Competencia],Entrada!X$7,Tab_Uderor[TipoReceita],Entrada!$P29) -> 0 | Y29: =SUMIFS(Tab_Uderor[R$],Tab_Uderor[Competencia],Entrada!Y$7,Tab_Uderor[TipoReceita],Entrada!$P29) -> 0 | Z29: =SUMIFS(Tab_Uderor[R$],Tab_Uderor[Competencia],Entrada!Z$7,Tab_Uderor[TipoReceita],Entrada!$P29) -> 0 | AA29: =SUMIFS(Tab_Uderor[R$],Tab_Uderor[Competencia],Entrada!AA$7,Tab_Uderor[TipoReceita],Entrada!$P29) -> 0 | AB29: =SUMIFS(Tab_Uderor[R$],Tab_Uderor[Competencia],Entrada!AB$7,Tab_Uderor[TipoReceita],Entrada!$P29) -> 0 | AC29: =SUMIFS(Tab_Uderor[R$],Tab_Uderor[Competencia],Entrada!AC$7,Tab_Uderor[TipoReceita],Entrada!$P29)-AF29 -> 0 | AD29: =SUMIFS(Tab_Uderor[R$],Tab_Uderor[Competencia],Entrada!AD$7,Tab_Uderor[TipoReceita],Entrada!$P29)-AG29 -> 0 | AE29: =SUMIFS(Tab_Uderor[R$],Tab_Uderor[Competencia],Entrada!AE$7,Tab_Uderor[TipoReceita],Entrada!$P29)-AH29 -> 0
F30: =Indexador!G132 -> Despesa 2022 | J30: BMP - 610531099; 610533099; | K30: Outros | L30: =SUMIFS(Tab_RIT_BMP[SALDO],Tab_RIT_BMP[ContaDetalhada],"Outros",Tab_RIT_BMP[ANO],$L$7,Tab_RIT_BMP[ContaPrincipal],"Seguros") -> 0 | M30: =SUMIFS(Tab_RIT_BMP[SALDO],Tab_RIT_BMP[ContaDetalhada],"Outros",Tab_RIT_BMP[ANO],$M$7,Tab_RIT_BMP[ContaPrincipal],"Seguros") -> 0 | P30: Receita proveniente da comercialização de resultados de projetos de P&D COM comprovação | Q30: =IF((SUMIFS(Tab_Uderor[R$],Tab_Uderor[Competencia],Entrada!Q$7,Tab_Uderor[TipoReceita],Entrada!$P30))=0,R30,SUMIFS(Tab_Uderor[R$],Tab_Uderor[Competencia],Entrada!Q$7,Tab_Uderor[TipoReceita],Entrada!$P30)) -> 0 | R30: =IF((SUMIFS(Tab_Uderor[R$],Tab_Uderor[Competencia],Entrada!R$7,Tab_Uderor[TipoReceita],Entrada!$P30))=0,S30,SUMIFS(Tab_Uderor[R$],Tab_Uderor[Competencia],Entrada!R$7,Tab_Uderor[TipoReceita],Entrada!$P30)) -> 0 | S30: =SUMIFS(Tab_Uderor[R$],Tab_Uderor[Competencia],Entrada!S$7,Tab_Uderor[TipoReceita],Entrada!$P30) -> 0 | T30: =SUMIFS(Tab_Uderor[R$],Tab_Uderor[Competencia],Entrada!T$7,Tab_Uderor[TipoReceita],Entrada!$P30) -> 0 | U30: =SUMIFS(Tab_Uderor[R$],Tab_Uderor[Competencia],Entrada!U$7,Tab_Uderor[TipoReceita],Entrada!$P30) -> 0 | V30: =SUMIFS(Tab_Uderor[R$],Tab_Uderor[Competencia],Entrada!V$7,Tab_Uderor[TipoReceita],Entrada!$P30) -> 0 | W30: =SUMIFS(Tab_Uderor[R$],Tab_Uderor[Competencia],Entrada!W$7,Tab_Uderor[TipoReceita],Entrada!$P30) -> 0 | X30: =SUMIFS(Tab_Uderor[R$],Tab_Uderor[Competencia],Entrada!X$7,Tab_Uderor[TipoReceita],Entrada!$P30) -> 0 | Y30: =SUMIFS(Tab_Uderor[R$],Tab_Uderor[Competencia],Entrada!Y$7,Tab_Uderor[TipoReceita],Entrada!$P30) -> 0 | Z30: =SUMIFS(Tab_Uderor[R$],Tab_Uderor[Competencia],Entrada!Z$7,Tab_Uderor[TipoReceita],Entrada!$P30) -> 0 | AA30: =SUMIFS(Tab_Uderor[R$],Tab_Uderor[Competencia],Entrada!AA$7,Tab_Uderor[TipoReceita],Entrada!$P30) -> 0 | AB30: =SUMIFS(Tab_Uderor[R$],Tab_Uderor[Competencia],Entrada!AB$7,Tab_Uderor[TipoReceita],Entrada!$P30) -> 0 | AC30: =SUMIFS(Tab_Uderor[R$],Tab_Uderor[Competencia],Entrada!AC$7,Tab_Uderor[TipoReceita],Entrada!$P30)-AF30 -> 0 | AD30: =SUMIFS(Tab_Uderor[R$],Tab_Uderor[Competencia],Entrada!AD$7,Tab_Uderor[TipoReceita],Entrada!$P30)-AG30 -> 0 | AE30: =SUMIFS(Tab_Uderor[R$],Tab_Uderor[Competencia],Entrada!AE$7,Tab_Uderor[TipoReceita],Entrada!$P30)-AH30 -> 0
F31: =Indexador!H132 -> Despesa 2021 | J31: BMP - 610531010; 610533010; | K31: (-) Créditos de Tributos Recuperáveis | L31: =SUMIFS(Tab_RIT_BMP[SALDO],Tab_RIT_BMP[ContaDetalhada],"*Créditos*",Tab_RIT_BMP[ANO],$L$7,Tab_RIT_BMP[ContaPrincipal],"Seguros") -> 0 | M31: =SUMIFS(Tab_RIT_BMP[SALDO],Tab_RIT_BMP[ContaDetalhada],"*Créditos*",Tab_RIT_BMP[ANO],$M$7,Tab_RIT_BMP[ContaPrincipal],"Seguros") -> 0 | P31: Receita proveniente da comercialização de resultados de projetos de P&D SEM comprovação | Q31: =IF((SUMIFS(Tab_Uderor[R$],Tab_Uderor[Competencia],Entrada!Q$7,Tab_Uderor[TipoReceita],Entrada!$P31))=0,R31,SUMIFS(Tab_Uderor[R$],Tab_Uderor[Competencia],Entrada!Q$7,Tab_Uderor[TipoReceita],Entrada!$P31)) -> 0 | R31: =IF((SUMIFS(Tab_Uderor[R$],Tab_Uderor[Competencia],Entrada!R$7,Tab_Uderor[TipoReceita],Entrada!$P31))=0,S31,SUMIFS(Tab_Uderor[R$],Tab_Uderor[Competencia],Entrada!R$7,Tab_Uderor[TipoReceita],Entrada!$P31)) -> 0 | S31: =SUMIFS(Tab_Uderor[R$],Tab_Uderor[Competencia],Entrada!S$7,Tab_Uderor[TipoReceita],Entrada!$P31) -> 0 | T31: =SUMIFS(Tab_Uderor[R$],Tab_Uderor[Competencia],Entrada!T$7,Tab_Uderor[TipoReceita],Entrada!$P31) -> 0 | U31: =SUMIFS(Tab_Uderor[R$],Tab_Uderor[Competencia],Entrada!U$7,Tab_Uderor[TipoReceita],Entrada!$P31) -> 0 | V31: =SUMIFS(Tab_Uderor[R$],Tab_Uderor[Competencia],Entrada!V$7,Tab_Uderor[TipoReceita],Entrada!$P31) -> 0 | W31: =SUMIFS(Tab_Uderor[R$],Tab_Uderor[Competencia],Entrada!W$7,Tab_Uderor[TipoReceita],Entrada!$P31) -> 0 | X31: =SUMIFS(Tab_Uderor[R$],Tab_Uderor[Competencia],Entrada!X$7,Tab_Uderor[TipoReceita],Entrada!$P31) -> 0 | Y31: =SUMIFS(Tab_Uderor[R$],Tab_Uderor[Competencia],Entrada!Y$7,Tab_Uderor[TipoReceita],Entrada!$P31) -> 0 | Z31: =SUMIFS(Tab_Uderor[R$],Tab_Uderor[Competencia],Entrada!Z$7,Tab_Uderor[TipoReceita],Entrada!$P31) -> 0 | AA31: =SUMIFS(Tab_Uderor[R$],Tab_Uderor[Competencia],Entrada!AA$7,Tab_Uderor[TipoReceita],Entrada!$P31) -> 0 | AB31: =SUMIFS(Tab_Uderor[R$],Tab_Uderor[Competencia],Entrada!AB$7,Tab_Uderor[TipoReceita],Entrada!$P31) -> 0 | AC31: =SUMIFS(Tab_Uderor[R$],Tab_Uderor[Competencia],Entrada!AC$7,Tab_Uderor[TipoReceita],Entrada!$P31)-AF31 -> 0 | AD31: =SUMIFS(Tab_Uderor[R$],Tab_Uderor[Competencia],Entrada!AD$7,Tab_Uderor[TipoReceita],Entrada!$P31)-AG31 -> 0 | AE31: =SUMIFS(Tab_Uderor[R$],Tab_Uderor[Competencia],Entrada!AE$7,Tab_Uderor[TipoReceita],Entrada!$P31)-AH31 -> 0
F32: Perdas Regulatórias | K32: Subtotal | L32: =SUM(L29:L31) -> 2020109.51 | M32: =SUM(M29:M31) -> 1925812.39
F33: Perdas Não Técnicas | H33: 45931 | J33: TRIBUTOS
F34: Perdas Técnicas | J34: BMP - 610531601; 610533601; | K34: Tributos | L34: =SUMIFS(Tab_RIT_BMP[SALDO],Tab_RIT_BMP[ContaDetalhada],"Tributos",Tab_RIT_BMP[ANO],$L$7,Tab_RIT_BMP[ContaPrincipal],"Tributos") -> 2620528.77 | M34: =SUMIFS(Tab_RIT_BMP[SALDO],Tab_RIT_BMP[ContaDetalhada],"Tributos",Tab_RIT_BMP[ANO],$M$7,Tab_RIT_BMP[ContaPrincipal],"Tributos") -> 2933752.65 | P34: Outras Receitas - Caso 3
K35: Subtotal | L35: =L34 -> 2620528.77 | M35: =M34 -> 2933752.65 | P35: Alíquota ISS
F36: Dados da Revisão Anterior - Componente Pd | J36: OUTROS
F37: Data Base Ativos e Consumidores | H37: 45931 | J37: BMP - 610531901; 610533901; | K37: Indenização por Perdas e Danos | L37: =SUMIFS(Tab_RIT_BMP[SALDO],Tab_RIT_BMP[ContaDetalhada],"Indenização*",Tab_RIT_BMP[ANO],L$7,Tab_RIT_BMP[ContaPrincipal],"Outros") -> 989354.48 | M37: =SUMIFS(Tab_RIT_BMP[SALDO],Tab_RIT_BMP[ContaDetalhada],"Indenização*",Tab_RIT_BMP[ANO],$M$7,Tab_RIT_BMP[ContaPrincipal],"Outros") -> 1053680.8 | P37: Tipo de Receita | Q37: =Q7 -> 2026-07-01 | R37: 2026-06-01 | S37: 2026-05-01 | T37: 2026-04-01 | U37: 2026-03-01 | V37: 2026-02-01 | W37: 2026-01-01 | X37: 2025-12-01 | Y37: 2025-11-01 | Z37: 2025-10-01 | AA37: 2025-09-01 | AB37: 2025-08-01
F38: Mercado AT (MWh) | J38: BMP - 610531902; 610533902; | K38: Consumo Próprio de Energia | L38: =SUMIFS(Tab_RIT_BMP[SALDO],Tab_RIT_BMP[ContaDetalhada],"Consumo*",Tab_RIT_BMP[ANO],L$7,Tab_RIT_BMP[ContaPrincipal],"Outros") -> 5076468.73 | M38: =SUMIFS(Tab_RIT_BMP[SALDO],Tab_RIT_BMP[ContaDetalhada],"Consumo*",Tab_RIT_BMP[ANO],$M$7,Tab_RIT_BMP[ContaPrincipal],"Outros") -> 5530730.26 | P38: Serviços Cobráveis
D39: 45308 | F39: Mercado MT (MWh) | J39: BMP - 610531905; | K39: Despesas com Conselho de Consumidores | L39: =SUMIFS(Tab_RIT_BMP[SALDO],Tab_RIT_BMP[ContaDetalhada],"*Conselho*",Tab_RIT_BMP[ANO],$L$7,Tab_RIT_BMP[ContaPrincipal],"Outros") -> 0 | M39: =SUMIFS(Tab_RIT_BMP[SALDO],Tab_RIT_BMP[ContaDetalhada],"*Conselho*",Tab_RIT_BMP[ANO],$M$7,Tab_RIT_BMP[ContaPrincipal],"Outros") -> 0 | P39: Encargos de Conexão
D40: 45308 | F40: Mercado BT (MWh) | J40: BMP - 610531907; 610533907; | K40: Comunicação e Reprografia | L40: =SUMIFS(Tab_RIT_BMP[SALDO],Tab_RIT_BMP[ContaDetalhada],"Comunicação*",Tab_RIT_BMP[ANO],$L$7,Tab_RIT_BMP[ContaPrincipal],"Outros") -> 6805240.35 | M40: =SUMIFS(Tab_RIT_BMP[SALDO],Tab_RIT_BMP[ContaDetalhada],"Comunicação*",Tab_RIT_BMP[ANO],$M$7,Tab_RIT_BMP[ContaPrincipal],"Outros") -> 8028163.78 | P40: Compartilhamento de Infraestrutura
D41: 45308 | F41: Número de unidades consumidoras | J41: BMP - 610531903; 610533903; | K41: Taxa de Arrecadação | L41: =SUMIFS(Tab_RIT_BMP[SALDO],Tab_RIT_BMP[ContaDetalhada],"*Arrecadação",Tab_RIT_BMP[ANO],$L$7,Tab_RIT_BMP[ContaPrincipal],"Outros") -> 0 | M41: =SUMIFS(Tab_RIT_BMP[SALDO],Tab_RIT_BMP[ContaDetalhada],"*Arrecadação",Tab_RIT_BMP[ANO],$M$7,Tab_RIT_BMP[ContaPrincipal],"Outros") -> 0 | P41: Sistemas de Comunicação (PLC)
D42: 45308 | J42: BMP - 610531904; 610533904; | K42: Taxas Bancárias | L42: =SUMIFS(Tab_RIT_BMP[SALDO],Tab_RIT_BMP[ContaDetalhada],"*bancárias",Tab_RIT_BMP[ANO],$L$7,Tab_RIT_BMP[ContaPrincipal],"Outros") -> 0 | M42: =SUMIFS(Tab_RIT_BMP[SALDO],Tab_RIT_BMP[ContaDetalhada],"*bancárias",Tab_RIT_BMP[ANO],$M$7,Tab_RIT_BMP[ContaPrincipal],"Outros") -> 0 | P42: Serviços de Consultoria
F43: OPEX | J43: BMP - 610531910; 610533910; | K43: (-) Créditos de Tributos Recuperáveis | L43: =SUMIFS(Tab_RIT_BMP[SALDO],Tab_RIT_BMP[ContaDetalhada],"*Créditos*",Tab_RIT_BMP[ANO],$L$7,Tab_RIT_BMP[ContaPrincipal],"Outros") -> 0 | M43: =SUMIFS(Tab_RIT_BMP[SALDO],Tab_RIT_BMP[ContaDetalhada],"*Créditos*",Tab_RIT_BMP[ANO],$M$7,Tab_RIT_BMP[ContaPrincipal],"Outros") -> 0 | P43: Serviços de O&M
F44: Extensão de redes não urbanas (Km) | H44: 45931 | J44: BMP - 610531908; 610533908; | K44: Contribuição Associativa - CCEE | L44: =SUMIFS(Tab_RIT_BMP[SALDO],Tab_RIT_BMP[ContaDetalhada],"*CCEE",Tab_RIT_BMP[ANO],$L$7,Tab_RIT_BMP[ContaPrincipal],"Outros") -> 605697.96 | M44: =SUMIFS(Tab_RIT_BMP[SALDO],Tab_RIT_BMP[ContaDetalhada],"*CCEE",Tab_RIT_BMP[ANO],$M$7,Tab_RIT_BMP[ContaPrincipal],"Outros") -> 675266.88 | P44: Serviços de Comunicação
F45: Extensão de rede urbana (Km) | J45: BMP - 610531909; 610533909; | K45: Contrbuição Associativa - ONS | L45: =SUMIFS(Tab_RIT_BMP[SALDO],Tab_RIT_BMP[ContaDetalhada],"*ONS",Tab_RIT_BMP[ANO],$L$7,Tab_RIT_BMP[ContaPrincipal],"Outros") -> 135185.77 | M45: =SUMIFS(Tab_RIT_BMP[SALDO],Tab_RIT_BMP[ContaDetalhada],"*ONS",Tab_RIT_BMP[ANO],$M$7,Tab_RIT_BMP[ContaPrincipal],"Outros") -> 146340.68 | P45: Serviços de Engenharia
K46: Subtotal | L46: =SUM(L37:L45) -> 13611947.29 | M46: =SUM(M37:M45) -> 15434182.4 | P46: Convênios
F47: ="% PNT / BT Real de "&IF(MONTH(LnkTxtDRPData)>6,YEAR(LnkTxtDRPData)-1,YEAR(LnkTxtDRPData)-2) & " (Medido)" -> % PNT / BT Real de 2025 (Medido) | J47: Perdas e Alienações
F48: ="% PNT / BT Real de "&IF(MONTH(LnkTxtDRPData)>6,YEAR(LnkTxtDRPData)-1,YEAR(LnkTxtDRPData)-2)-1 & " (Medido)" -> % PNT / BT Real de 2024 (Medido) | J48: BMP - 611512203; 611512003; | K48: Perdas na Alienação e Desativação | L48: =SUMIFS(Tab_RIT_BMP[SALDO],Tab_RIT_BMP[ANO],$L$7,Tab_RIT_BMP[ContaPrincipal],"Desativação") -> 15389035.45 | M48: =SUMIFS(Tab_RIT_BMP[SALDO],Tab_RIT_BMP[ANO],$M$7,Tab_RIT_BMP[ContaPrincipal],"Desativação") -> 22535134.95 | P48: UDER
F49: ="% PNT / BT Real de "&IF(MONTH(LnkTxtDRPData)>6,YEAR(LnkTxtDRPData)-1,YEAR(LnkTxtDRPData)-2)-2 & " (Medido)" -> % PNT / BT Real de 2023 (Medido) | J49: BMP - 611112203; 611112403; | K49: Ganhos na Alienação de Materiais | L49: =SUMIFS(Tab_RIT_BMP[SALDO],Tab_RIT_BMP[ANO],$L$7,Tab_RIT_BMP[ContaPrincipal],"Alienação") -> 693823.95 | M49: =SUMIFS(Tab_RIT_BMP[SALDO],Tab_RIT_BMP[ANO],$M$7,Tab_RIT_BMP[ContaPrincipal],"Alienação") -> 243269.07 | AC49: =AC6 -> Diferenças em relação ao RTA 2025 | AG49: =AG6 -> Valores RTA 2025
F50: ="DEC Apurado "&IF(MONTH(LnkTxtDRPData)>3,YEAR(LnkTxtDRPData)-1,YEAR(LnkTxtDRPData)-2) -> DEC Apurado 2025 | K50: Subtotal | L50: =SUM(L48:L49) -> 16082859.4 | M50: =SUM(M48:M49) -> 22778404.02 | Q50: =$Q$7 -> 2026-07-01 | R50: =DATE(YEAR(Q50),MONTH(Q50)-1,1) -> 2026-06-01 | S50: =DATE(YEAR(R50),MONTH(R50)-1,1) -> 2026-05-01 | T50: 2026-04-01 | U50: 2026-03-01 | V50: 2026-02-01 | W50: 2026-01-01 | X50: 2025-12-01 | Y50: 2025-11-01 | Z50: 2025-10-01 | AA50: 2025-09-01 | AB50: 2025-08-01 | AC50: =EDATE(AB50,-1) -> 2025-07-01 | AD50: =EDATE(AC50,-1) -> 2025-06-01 | AE50: 2025-05-01 | AF50: =AC50 -> 2025-07-01 | AG50: =AD50 -> 2025-06-01 | AH50: 2025-05-01
F51: ="DEC Apurado "&IF(MONTH(LnkTxtDRPData)>3,YEAR(LnkTxtDRPData)-1,YEAR(LnkTxtDRPData)-2)-1 -> DEC Apurado 2024 | L51: =SUM(L18,L23,L32,L35,L46,L50,L27)-SUMIFS(Tab_RIT_BMP[SALDO],Tab_RIT_BMP[ANO],L7) -> 0 | M51: =SUM(M18,M23,M32,M35,M46,M50,M27)-SUMIFS(Tab_RIT_BMP[SALDO],Tab_RIT_BMP[ANO],M7) -> 0 | P51: Ultrapassagem de Demanda | Q51: 1445823.93 | R51: 1445823.93
F52: ="DEC Apurado "&IF(MONTH(LnkTxtDRPData)>3,YEAR(LnkTxtDRPData)-1,YEAR(LnkTxtDRPData)-2)-2 -> DEC Apurado 2023 | P52: Excedente Reativo | Q52: 1219222.24 | R52: 1219222.24
F53: Meta de % PNT / BT (Medido)
F54: DEC 8 anos (Limite V8)
P55: UDER "Limbo"
F57: Dados da última Revisão Tarifária | P57: Preenchimento necessário apenas para cálculos de concessionárias que passaram por alteração contratual, conforme parágrafo 38 do Proret 2.1A.
F58: Custos Operacionais (CO3) | H58: 45931 | P58: Mês correspondente à Data de Referência de Alteração Contratual - DRAC
F59: Receitas Irrecuperáveis - Encargos Setoriais (Vi) | P59: Sexto mês anterior à data da última RTP
F60: Demais Receitas Irrecuperáveis (Vse)
F61: Remuneração do Capital (RC) | P61: Preenchimento necessário apenas para cálculos de concessionárias que passaram por alteração contratual, conforme parágrafo 38 do Proret 2.1A.
F62: Quota de Reintegração Regulatória (QRR) | Q62: =Q58 -> 00:00:00 | R62: =DATE(YEAR(Q62),MONTH(Q62)-1,1) ->  | X62: =DATE(YEAR(W62),MONTH(W62)-1,1) ->  | Y62: =DATE(YEAR(X62),MONTH(X62)-1,1) ->  | Z62: =DATE(YEAR(Y62),MONTH(Y62)-1,1) ->  | AA62: =DATE(YEAR(Z62),MONTH(Z62)-1,1) ->  | AB62: =DATE(YEAR(AA62),MONTH(AA62)-1,1) ->  | AC62: =DATE(YEAR(AB62),MONTH(AB62)-1,1) ->  | AD62: =DATE(YEAR(AC62),MONTH(AC62)-1,1) ->  | AE62: =DATE(YEAR(AD62),MONTH(AD62)-1,1) ->  | AF62: =DATE(YEAR(AE62),MONTH(AE62)-1,1) ->  | AG62: =DATE(YEAR(AF62),MONTH(AF62)-1,1) ->  | AH62: =DATE(YEAR(AG62),MONTH(AG62)-1,1) ->  | AI62: =DATE(YEAR(AH62),MONTH(AH62)-1,1) -> 
F63: Custo anual das instalações móveis e imóveis (CAIMI) | P63: Ultrapassagem de Demanda (valores brutos)
F64: Ajuste em função dos investimentos realizados (valor negativo) | J64: Custo Médio do Capital - Atual | P64: Excedente Reativo (valores brutos)
F65: Índice de Produtividade + Mecanismo de Qualidade | J65: Tipo | K65: Norma | L65: Valor
F66: UDEROR (inserir o valor positivo) | J66: WACC real antes de impostos | K66: Despacho n° 675/2026-STR | L66: 0.1228 | M66: <- Confirmar se os valores são os mais recentes
F67: Componente T - Última Revisão | J67: Taxa RGR/PLPT real | K67: Despacho n° 675/2026-STR | L67: -0.0045 | M67: <- Confirmar se os valores são os mais recentes
J68: Taxa RGR Demais Investimentos | K68: Despacho n° 675/2026-STR | L68: -0.0045 | M68: <- Confirmar se os valores são os mais recentes
J69: Participação do Capital Próprio | K69: Despacho n° 675/2026-STR | L69: 0.5824 | M69: <- Confirmar se os valores são os mais recentes
F70: Base de Ativios - SFF | H70: 45931 | J70: Prêmio de Risco do negócio e financeiro após impostos | K70: Despacho n° 675/2026-STR | L70: 0.057 | M70: <- Confirmar se os valores são os mais recentes
F71: (1) Ativo Imobilizado em Serviço (Valor Novo de Reposição)
F72: (2) Índice de Aproveitamento Integral
F73: (3) Obrigações Especiais Bruta | J73: Custo Médio do Capital - Ultima Revisão
F74: (4) Bens Totalmente Depreciados | J74: Tipo | K74: Norma | L74: Valor
F75: (5) Base de Remuneração Bruta = (1)-(2)-(3)-(4) | G75: =G71-G72-G73-G74 -> 0 | J75: WACC real antes de impostos | M75: <- Conferir valor na sparta da última revisão!
F76: (6) Depreciação Acumulada | J76: Taxa RGR/PLPT real | M76: <- Conferir valor na sparta da última revisão!
F77: (7) AIS Líquido (Valor de Mercado em Uso) | G77: =G71-G76 -> 0 | J77: Taxa RGR Demais Investimentos | M77: <- Conferir valor na sparta da última revisão!
F78: (8) Índice de Aproveitamento Depreciado | J78: Participação do Capital Próprio | M78: <- Conferir valor na sparta da última revisão!
F79: (9) Valor da Base de Remuneração (VBR) | G79: =G77-G78 -> 0 | J79: Prêmio de Risco do negócio e financeiro após impostos | M79: <- Conferir valor na sparta da última revisão!
F80: (10) Almoxarifado em Operação
F81: (11) Ativo Diferido | G81: =G102*I81 -> 0
F82: (12) Obrigações Especiais Líquida
F83: (13) Terrenos e Servidões
F84: (14) Base de Rem. Líquida Total = (9)+(10)+(11)-(12)+(13) | G84: =G79+G80+G81-G82+G83 -> 0
F85: (15) Saldo RGR PLPT
F86: (16) Saldo RGR Demais Investimentos
F87: (17) Taxa de Depreciação
F88: (18) Quota de Reintegração Regulatória = (5) * (17) | G88: =G87*G75 -> 0
F91: Base de Ativios - Ciclo anterior | H91: 45931
F92: (1) Ativo Imobilizado em Serviço (Valor Novo de Reposição)
F93: (2) Índice de Aproveitamento Integral
F94: (3) Obrigações Especiais Bruta
F95: (4) Bens Totalmente Depreciados
F96: (5) Base de Remuneração Bruta = (1)-(2)-(3)-(4) | G96: =G92-G93-G94-G95 -> 0
F97: (6) Depreciação Acumulada
F98: (7) AIS Líquido (Valor de Mercado em Uso)
F99: (8) Índice de Aproveitamento Depreciado
F100: (9) Valor da Base de Remuneração (VBR)
F101: (10) Almoxarifado em Operação
F102: (11) Ativo Diferido
F103: (12) Obrigações Especiais Líquida
F104: (13) Terrenos e Servidões
F105: (14) Base de Rem. Líquida Total = (1)-(6)-(8)+(10)+(11)-(12)+(13) | G105: =G92-G97-G99+G101+G102-G103+G104 -> 0
F106: (15) Saldo RGR PLPT
F107: (16) Saldo RGR Demais Investimentos
F109: (17) Taxa de Depreciação
F110: (18) Quota de Reintegração Regulatória = (5) * (17) | G110: =G96*G109 -> 0
F111: Base de Anuidade Regulatória (BAR)
F113: Dados do último Reajuste Anual - Contrato Novo
F114: Parcela B sem desconto UDEROR | G114: =SUM(G115:G118) -> 0
F115: Outras Receitas (OR)
F116: Excedente de Reativos (ER)
F117: Ultrapassagem de Demanda (UD)
F118: Parcela B
F119: Fator PB | G119: =G114/G118 -> 
F121: Dados do último Ciclo - Contrato Novo
F122: Número de processos até o primeiro reajuste contrato novo
F123: Número de processos no contrato novo antes da atual revisão
F125: Participação dos componentes da Parcela B no Ano Teste
F126: Descrição | G126: Valor
F127: Custos Operacionais | G127: =(G58*(1-G65)-(SUM(G58:G63)*(1-G65)-G66)*(1-(1-G67)^G122)-((SUM(G58:G63)*(1-G65)-G66)*(1-G67)^G122+G66-SUM(G59:G60)*(1-G65))*(1-(1-G67)^G123))/((((SUM(G58:G63)*(1-G65)-G66)*(1-G67)^G122)+G66-SUM(G59:G60)*(1-G65))*(1-G67)^G123) -> 
F128: Anuidades | G128: =(G63*(1-G65)/((((SUM(G58:G63)*(1-G65)-G66)*(1-G67)^G122)+G66-SUM(G59:G60)*(1-G65))*(1-G67)^G123)) -> 
F129: Remuneração | G129: =(G61*(1-G65)/((((SUM(G58:G63)*(1-G65)-G66)*(1-G67)^G122)+G66-SUM(G59:G60)*(1-G65))*(1-G67)^G123)) -> 
F130: Depreciação | G130: =(G62*(1-G65)/((((SUM(G58:G63)*(1-G65)-G66)*(1-G67)^G122)+G66-SUM(G59:G60)*(1-G65))*(1-G67)^G123)) -> 

Sheet Resultado
B1: =LnkTxtNomeCompleto -> Energisa Paraíba - Distribuidora de Energia S.A.
B2: Resultado | F2: Parâmetros a serem considerados para os Reajustes subsequentes
E3: Versão anterior
B4: RA1 | D4: =D40+D45 -> 3759735022 | E4: 3759825899 | F4: FATOR X | H4: =D4-E4 -> -90877.3272 | K4: Última versão enviada: | L4: 20
B5: RA0 | D5: =Mercado!D24 -> 3619849885 | E5: 3619849885 | F5: Componente T do Fator X | G5: ='VPB e Fator X'!C36 ->  | H5: =D5-E5 -> 0 | K5: Data de envio | L5: 2026-08-19T17:25:05
B6: Índice de Reposição/Reajuste | D6: =D4/D5-1 -> 0.03864390538 | E6: 0.03866901066 | F6: Componente Pd do Fator X | G6: ='VPB e Fator X'!C33 -> 0.01554230279 | H6: -2.51052751e-05 | O6: Efeito Consumidor por subgrupo
B7: Componentes Financeiros | D7: =Financeiros!E8 -> -0.02892414875 | E7: -0.02784162452 | H7: -0.00108252423 | K7: Efeito Consumidor | O7: Subgrupo | P7: Variação
B8: Índice de Reposição/Reajuste com Financeiros | D8: =D6+D7 -> 0.009719756631 | E8: 0.01082738614 | F8: PERDAS | H8: -0.001107629505 | K8: Efeito Grupo A - Alta tensão | L8: 0.09713994487 | O8: A3 | P8: 0.14631286
F9: Perdas Não Técnicas | G9: =Entrada!G33 -> 0 | H9: 0 | K9: Efeito Grupo B - Baixa tensão | L9: 0.04850120534 | O9: A4 | P9: 0.08639102114
C10: DRA | D10: DRP | E10: DRP | K10: Efeito tarifário médio AT+BT | L10: 0.05743060257 | O10: B1 | P10: 0.0481235317
B11: TOTAL (Parcela A + Parcela B) | C11: =C45+C40 -> 3619849885 | D11: =D45+D40 -> 3759735022 | E11: 3759825899 | H11: -90877.3272 | I11: =H11/LnkTxtRA -> -2.51052751e-05 | K11: Tarifa B1 - Residencial (R$)/MWh | L11: 709.7039645 | O11: B2 | P11: 0.04952874941
B12: Financeiros | D12: =Financeiros!D8 -> -104701076.5 | E12: -100782501.3 | H12: -3918575.209 | I12: =H12/LnkTxtRA -> -0.00108252423 | O12: B3 | P12: 0.04899867443
B13: Total com financeiros | D13: =D11+D12 -> 3655033945 | E13: 3659043398 | H13: -4009452.537 | K13: Subvenção da CDE para descontos tarifários (Valores anuais) | M13: Ano anterior | O13: B4 | P13: 0.05040080782
H14: 0 | K14: SUBSIDIO CARGA FONTE INCENTIVADA | L14: 72327183.15 | M14: =BD!$C$59*12 -> 62374106.64 | O14: A | P14: 0.09713994487
H15: 0 | K15: SUBSIDIO GERAÇÃO FONTE INCENTIVADA | L15: 25083527.24 | M15: =BD!$D$59*12 -> 24217198.41 | O15: B | P15: 0.04850120534
B16: Parcela A | F16: Formação da Parcela B e Reposicionamento (Resumo) | H16: 0 | K16: SUBSIDIO DISTRIBUIÇÃO | L16: 0 | M16: =BD!$E$59*12 -> 0 | O16: A+B | P16: 0.05743060257
H17: 0 | K17: SUBSIDIO ÁGUA, ESGOTO E SANEAMENTO | L17: 0 | M17: =BD!$F$59*12 -> 0
C18: Processo Anterior | D18: Processo Atual | E18: Processo Atual | K18: SUBSIDIO RURAL | L18: 0 | M18: =BD!$G$59*12 -> 0
B19: ENCARGOS | C19: =SUM(C20:C28) -> 589721448.9 | D19: =SUM(D20:D28) -> 628090239.5 | E19: 628128955.8 | F19: Custo de Administração, Operação e Manutenção (CAOM) | G19: =SUM(G20:G20) ->  | H19: -38716.25841 | K19: SUBSIDIO IRRIGANTE/AQUICULTOR | L19: 16867082.04 | M19: =BD!$H$59*12 -> 34172218.25
B20: Reserva Global de Reversão – RGR | D20: =Encargos!C16 -> 0 | E20: 0 | F20: Custos Operacionais (CO) | G20: ='VPB e Fator X'!C130 ->  | H20: 0 | K20: SUBSIDIO BAIXA RENDA | L20: 319100085.3
B21: Conta de Consumo de Combustíveis – CCC | D21: =Encargos!C9 -> 0 | E21: 0 | F21: Custo Anual dos Ativos (CAA) | G21: =SUM(G22:G24) ->  | H21: 0 | K21: SUBSIDIO SCEE | L21: 74582824.78 | M21: =BD!$I$59*12 -> 44969327.42
B22: Taxa de Fisc. de Serviços de E.E. – TFSEE | C22: ='Votos e NTs'!D49 -> 4762428.572 | D22: =Encargos!C17 -> 4750594.933 | E22: 4750594.933 | F22: Remuneração do Capital (RC) | G22: ='VPB e Fator X'!C95 ->  | H22: 0 | K22: SUBSIDIO LEI 14.299/22 | L22: 0 | M22: =BD!$J$59*12 -> 0
B23: Conta de Desenvolvimento Energético – CDE | C23: =SUM('Votos e NTs'!D50:D54) -> 375062896.7 | D23: =Encargos!C10 -> 404184629.6 | E23: 404184629.6 | F23: Quota de Reintegração Regulatória (QRR) | G23: ='VPB e Fator X'!C77 ->  | H23: 0
B24: Compensação financeira - CFURH | C24: ='Votos e NTs'!D55 -> 0 | D24: =Encargos!C11 -> 0 | E24: 0 | F24: Custo anual das instalações móveis e imóveis (CAIMI) | G24: ='VPB e Fator X'!C67 ->  | H24: 0
B25: Encargos Serv. Sist. - ESS e Energ. Reserv. - EER | C25: ='Votos e NTs'!D56 -> 112398555.7 | D25: =Encargos!C12 -> 141876722.5 | E25: 141876722.5 | F25: Parcela B (VPB) | G25: =SUM(G21,G19) ->  | H25: 0 | K25: Versão de Mercado
B26: PROINFA | C26: ='Votos e NTs'!D57 -> 66174373.63 | D26: =Encargos!C13 -> 45686360.62 | E26: 45686360.62 | F26: Índice de Produtividade da Parcela B | G26: ='VPB e Fator X'!C33 -> 0.01554230279 | H26: 0 | K26: Status de Sincronização de BDL
B27: P&D e Eficiência Energética | C27: ='Votos e NTs'!D58 -> 31323194.4 | D27: =Encargos!C15 -> 31591931.85 | E27: 31630648.11 | F27: Mecanismo de Incentivo à Qualidade | G27: ='VPB1'!F42 -> -0.004462337623 | H27: -38716.25841 | K27: Última Sincronização
F28: Parcela B com ajustes | G28: =((1-G26-G27)*G25) ->  | H28: 0 | L28: Trabalha na pasta de rede
B29: TRANSPORTE | C29: =SUM(C30:C37) -> 329621242.6 | D29: =SUM(D30:D37) -> 287358222.7 | E29: 287358222.7 | F29: Outras Receitas (OR) | G29: =UDEROR!C2 -> 23029300.53 | H29: 0
B30: Rede Básica | C30: ='Votos e NTs'!D61 -> 234059849.7 | D30: ='RB e Conexão'!E6 -> 180197214.7 | E30: 180197214.7 | F30: Ultrapassagem de Demanda (UD) | G30: =UDEROR!C6+'VPB e Fator X'!D188 -> 1381709.733 | H30: 0
B31: Rede Básica Fronteira | C31: ='Votos e NTs'!D62 -> 74156574.45 | D31: ='RB e Conexão'!E7 -> 82104477.79 | E31: 82104477.79 | F31: Excedente de Reativos (ER) | G31: =UDEROR!C7+'VPB e Fator X'!D189 -> 1165156.559 | H31: 0
B32: Rede Básica ONS (A2) | C32: ='Votos e NTs'!D63 -> 0 | D32: =VLOOKUP("TUSDg ONS DRP",TUSDG[],2,FALSE) -> 0 | E32: 0 | F32: Parcela B deduzidas as outras receitas | G32: =G28-SUM(G29:G31) ->  | H32: 0
B33: Rede Básica Export. (A2) | C33: ='Votos e NTs'!D64 -> 0 | D33: =VLOOKUP("TUSDg Export DRP",TUSDG[],2,FALSE) -> 0 | E33: 0 | H33: 0
B34: MUST Itaipu | C34: ='Votos e NTs'!D65 -> 0 | D34: ='RB e Conexão'!E8 -> 0 | E34: 0 | F34: 1. Receita Requerida (RR) | G34: =G28+D40 ->  | H34: 0
B35: Transporte de Itaipu | C35: ='Votos e NTs'!D66 -> 0 | D35: =SUMPRODUCT(itaiputransporte[Potência],itaiputransporte[Tarifa DRP]) -> 0 | E35: 0 | F35: 2. Outras Receitas (OR) | G35: =G29 -> 23029300.53 | H35: 0
B36: Conexão | C36: ='Votos e NTs'!D67 -> 14920181.8 | D36: ='RB e Conexão'!E9 -> 15167336.18 | E36: 15167336.18 | F36: 3. Receita Verificada (RV) | G36: =Mercado!D24 -> 3619849885 | H36: 0
B37: Uso do sistema de distribuição e CCD | C37: ='Votos e NTs'!D68 -> 6484636.679 | D37: =CUSD!D14+CUSD!E14 -> 9889194.081 | E37: 9889194.081 | H37: 0
B38: ENERGIA | C38: ='Votos e NTs'!D69 -> 1399484110 | D38: =Energia!I36 -> 1497618965 | E38: 1497618965 | H38: 0
B39: RECEITA IRRECUPERÁVEL | C39: ='Votos e NTs'!D70 -> 0 | D39: =Mercado!H38 -> 49001726.13 | E39: 49053887.2 | H39: -52161.06879
B40: VPA (ENCARGO + TRANSPORTE + ENERGIA+RI) | C40: =C19+C29+C38+C39 -> 2318826801 | D40: =D19+D29+D38+D39 -> 2462069153 | E40: 2462160030 | H40: -90877.3272
H41: =D41-E41 -> 0
B42: Parcela B | H42: 0
H43: 0
D44: VPB1 | E44: VPB1
B45: ="Parcela B "&IF(CAPA!C7="Revisão","(menos Outras Receitas)",) -> Parcela B | C45: ='Votos e NTs'!D71 -> 1301023084 | D45: =IF(CAPA!$C$7="Revisão",Resultado!$G$32,'VPB1'!$C$43) -> 1297665869 | E45: 1297665869 | H45: 0

Sheet Subvenção Permissionária (hidden)
A1: Cooperativa
S2: Outras Receitas
A3: Cálculo PB | D3: Receita Agregada | K3: Subvenção
A4: UC | D4: Subgrupo | E4: Modalidade | F4: Classe | G4: Mercado TUSD | H4: Tarifa Fio B eco | I4: Receita | K4: Subvenção | R4: OUTRAS RECEITAS (R$) | W4: 44013 | X4: 43983 | Y4: 43952 | Z4: 43922 | AA4: 43891 | AB4: 43862 | AC4: 43831 | AD4: 43800 | AE4: 43770 | AF4: 43739 | AG4: 43709 | AH4: 43678
A5: Data Base | D5: A3 | E5: Azul | F5: Demanda azul P | I5: =G5*H5 -> 0 | K5: PB COM COOPERATIVA | L5: ='VPB e Fator X - Subvenção'!C26 ->  | R5: Tipo de Receita | Y5: 3 meses antes | Z5: 4 meses antes | AA5: 5 meses antes | AB5: 6 meses antes | AC5: 7 meses antes | AD5: 8 meses antes | AE5: 9 meses antes | AF5: 10 meses antes | AG5: 11 meses antes | AH5: 12 meses antes
A6: (1) Ativo Imobilizado em Serviço (Valor Novo de Reposição) | F6: Demanda azul FP | I6: =G6*H6 -> 0 | K6: PB ORIGINAL SUPRIDORA | L6: =Resultado!D45 -> 1297665869 | R6: Serviços Cobráveis | V6: Atividade inerente ao serviço
A7: (2) Obrigações Especiais Bruta | F7: Energia TUSD azul | I7: 0 | K7: Diferença | L7: =L5-L6 ->  | R7: Arrecadação de convênios ou valores pela fatura | V7: Atividades acessórias próprias
A8: (3) Bens Totalmente Depreciados | E8: Geração | F8: Demanda Geração | I8: 0 | K8: Receita Agregada | L8: =I24 -> 0 | R8: Arrecadação de faturas de terceiros por estrutura própria
A9: (4) Base de Remuneração Bruta = (1)-(2)-(3) | K9: Subvenção | L9: =L7-L8 ->  | R9: Veiculação de publicidade
A10: (5) Depreciação Acumulada | D10: A4 | E10: Azul | F10: Demanda azul P | I10: 0 | R10: Aluguel ou cessão onerosa de imóveis e espaços físicos
A11: (6) Valor da Base de Remuneração (VBR) | F11: Demanda azul FP | I11: 0 | K11: subvenção de 2016 | R11: Compartilhamento de infraestrutura
A12: (7) Obrigações Especiais Líquida | F12: Energia TUSD azul E | I12: 0 | L12: =L9/L11-1 ->  | R12: Serviços de avaliação técnica e aferição de medidores.
A13: (8) Terrenos e Servidões | E13: Verde | F13: Demanda verde | I13: 0 | R13: Operacionalização de serviço de créditos tributários
A14: (9) Almoxarifado em Operação | F14: Energia TUSD verde EP | I14: 0 | K14: Item | L14: 2023 | M14: Calculo anterior | N14: variação | R14: Elaboração de projeto, construção, operação, manutenção ou reforma de: | V14: Atividades acessórias complementares
A15: (10) Base de Remuneração Líquida Total = (1)-(5)-(7)+(8)+(9) | F15: Energia TUSD verde EFP | I15: 0 | K15: Densidade Cooperativa | L15: =G24/B21 ->  | N15: =L15/M15-1 ->  | R15: (1) redes de distribuição de energia elétrica destinadas à regularização fundiária de interesse específico e ao atendimento dos empreendimentos de múltiplas unidades consumidoras;
A16: (11) Taxa de Depreciação | E16: Geração | F16: Demanda geração | I16: 0 | K16: Densidade Supridora | L16: =(Mercado!C24-Mercado!C17)/(Entrada!G44+Entrada!G45+Entrada!G46) ->  | N16: =L16/M16-1 ->  | R16: (2) redes de energia elétrica destinadas ao acesso dos sistemas de distribuição ou transmissão;
A17: (12) Quota de Reintegração Regulatória | K17: Mercado | L17: =G24 -> 0 | R17: (3) subestações de energia;
A18: (13) Remuneração de Capital (RC) = BRR líq x WACC | D18: BT | E18: Convencional | F18: Energia TUSD B | I18: =G18*H18 -> 0 | K18: Km de rede | L18: =B21 -> 0 | R18: (4) instalações elétricas internas de unidades consumidoras;
E19: Branca | F19: Ponta | I19: 0 | R19: (5) banco de capacitores:
B20: Valores | E20: Branca | F20: Fora Ponta | I20: 0 | R20: (6) padrões de entrada de unidades consumidoras atendidas em baixa tensão;
A21: Total de km de rede (linhas e redes de distribuição) | E21: Branca | F21: Intermediário | I21: 0 | R21: (7) sistemas de medição de energia elétrica;
E22: Iluminação | F22: Energia TUSD B4a | I22: 0 | R22: (8) geradores, incluindo-se unidades de microgeração e minigeração distribuída;
F23: Energia TUSD B4b | I23: =G23*H23 -> 0 | R23: (9) sistemas de iluminação pública.
D24: Total Energia | G24: =G7+G12+G14+G15+G18+G22+G23 -> 0 | H24: Receita total | I24: =SUM(I5:I23) -> 0 | R24: Eficientização do consumo de energia elétrica e instalação de cogeração qualificada, desde que não enquadráveis nos projetos de Pesquisa e Desenvolvimento (P&D) ou de Eficiência Energética estabelecidos em lei
D25: Total demanda | G25: =G5+G6+G8+G10+G11+G13+G16 -> 0 | R25: Serviços de comunicação de dados
R26: Serviços de consultoria

Sheet Votos e NTs
B2: Tabelas | D2: Gráficos
D4: Análise de Impacto da RTA na Tarfia | K4: Composição da Receita | P4: Composição da Receita com Tributos | U4: Composição da Receita com detalhamento de Encargos | Z4: Evolução da Tarifa B1 Residencial
B6: Avaliação RTA
B7: Financeiros
B8: Consumidores
B9: Mercado
B10: Encargos
B11: Custo do Transporte de Energia
B12: Perdas
B13: Energia Requerida
B14: Energia na DRA
B15: Contratos
B16: Fator X
B17: Parcela B
B18: CVA em Processamento
B20: Subsídios
B21: Efeito Médio AT + BT
B22: Variação do Custo de Energia
E23: Impacto da RTA na Tarifa | I23: 1 | K23: Composição da Receita
E24: Encargos | H24: ='Votos e NTs'!G48 -> 0.01059955296 | I24: 1 | K24: Distribuição | M24: =Resultado!D45 -> 1297665869
E25: Transporte | H25: ='Votos e NTs'!G60 -> -0.01167535153 | I25: 1 | K25: Energia | M25: =Resultado!D38 -> 1497618965
E26: Energia | H26: ='Votos e NTs'!G69 -> 0.02711020023 | I26: 1 | K26: Transporte | M26: =Resultado!D29 -> 287358222.7
E27: RI | H27: ='Votos e NTs'!G70 -> 0.01353694979 | I27: 1 | K27: Encargos | M27: =Resultado!D19 -> 628090239.5
E28: Distribuição | H28: ='Votos e NTs'!G71 -> -0.0009274460725 | I28: 1 | K28: RI | M28: =Resultado!D39 -> 49001726.13
E29: Financeiros | H29: ='Votos e NTs'!G80 -> -0.02892414875 | I29: 1
E30: Financeiros Anteriores | H30: ='Votos e NTs'!G137 -> 0.0477 | I30: 1
E31: Efeito Lei 14.299 | H31: ='Votos e NTs'!G138 -> 0 | I31: =IFERROR(IF(H31=0,0,1),0) -> 0
E32: Efeito Médio | H32: =G139 -> 0.05743060257 | I32: 1
P33: Composição da Receita com Tributos | U33: Composição da Receita com detalhamento de Encargos
P34: Distribuição | R34: =M24/$R$42 -> 0.2583164093 | U34: Distribuição | W34: =Resultado!D45 -> 1297665869
P35: Energia | R35: =M25/$R$42 -> 0.2981195413 | U35: Energia | W35: =Resultado!D38 -> 1497618965
P36: Transmissão | R36: =M26/$R$42 -> 0.05720220132 | U36: Transmissão | W36: =Resultado!D29 -> 287358222.7
P37: Encargos | R37: =M27/$R$42 -> 0.1250291152 | U37: RI | W37: =Resultado!D39 -> 49001726.13
P38: RI | R38: =M28/R42 -> 0.009754398455 | U38: PROINFA | W38: =Resultado!D26 -> 45686360.62
P39: ICMS | R39: =Mercado!G9 -> 0.2077430262 | U39: CDE | W39: =Resultado!D23 -> 404184629.6
P40: PIS/COFINS | R40: =Mercado!$G$10 -> 0.04383530822 | U40: ESS/EER | W40: =Resultado!D25 -> 141876722.5 | Z40: Data | AA40: Tipo | AC40: B1 - Residencial | AD40: IGPM | AE40: IPCA | AF40: Data
P41: Tributos por dentro | R41: =LnkTxtPisCofins+LnkTxtICMS -> 0.2515783344 | U41: Outros | W41: =Resultado!D27+Resultado!D28+Resultado!D24+Resultado!D22 -> 36342526.78 | Z41: =YEAR(BD!B79) -> 1900 | AA41: =(BD!C79) -> 0 | AB41: =CONCATENATE(AA41," ",Z41) -> 0 1900 | AC41: =BD!D79 -> 0 | AD41: =AC41 -> 0 | AE41: =AD41 -> 0 | AF41: =DATE(YEAR(BD!B79),MONTH(BD!B79)-1,1) -> 
P42: Receita com Tributos | R42: =SUM(W34:W41)/(1-R39-R40) -> 5023551822 | Z42: =YEAR(BD!B78) -> 1900 | AA42: =(BD!C78) -> 0 | AB42: 0 1900 | AC42: =BD!D78 -> 0 | AD42: =AD41*VLOOKUP(AF42,Índices!$B$135:$F$627,2,0)/VLOOKUP(AF41,Índices!$B$135:$F$627,2,0) ->  | AE42: =AE41*VLOOKUP(AF42,Índices!$B$135:$F$627,3,0)/VLOOKUP(AF41,Índices!$B$135:$F$627,3,0) ->  | AF42: =DATE(YEAR(BD!B78),MONTH(BD!B78)-1,1) -> 
P43: Tributos Totais por Fora | R43: =(R39+R40)/(1-R39-R40) -> 0.3361451786 | Z43: =YEAR(BD!B77) -> 1900 | AA43: =(BD!C77) -> 0 | AB43: 0 1900 | AC43: =BD!D77 -> 0 | AD43: =AD42*VLOOKUP(AF43,Índices!$B$135:$F$627,2,0)/VLOOKUP(AF42,Índices!$B$135:$F$627,2,0) ->  | AE43: =AE42*VLOOKUP(AF43,Índices!$B$135:$F$627,3,0)/VLOOKUP(AF42,Índices!$B$135:$F$627,3,0) ->  | AF43: =DATE(YEAR(BD!B77),MONTH(BD!B77)-1,1) -> 
Z44: =YEAR(BD!B76) -> 1900 | AA44: =(BD!C76) -> 0 | AB44: 0 1900 | AC44: =BD!D76 -> 0 | AD44: =AD43*VLOOKUP(AF44,Índices!$B$135:$F$627,2,0)/VLOOKUP(AF43,Índices!$B$135:$F$627,2,0) ->  | AE44: =AE43*VLOOKUP(AF44,Índices!$B$135:$F$627,3,0)/VLOOKUP(AF43,Índices!$B$135:$F$627,3,0) ->  | AF44: =DATE(YEAR(BD!B76),MONTH(BD!B76)-1,1) -> 
B45: TabRevAvalRTE | H45: Voltar | Z45: =YEAR(BD!B75) -> 1900 | AA45: =(BD!C75) -> 0 | AB45: 0 1900 | AC45: =BD!D75 -> 0 | AD45: =AD44*VLOOKUP(AF45,Índices!$B$135:$F$627,2,0)/VLOOKUP(AF44,Índices!$B$135:$F$627,2,0) ->  | AE45: =AE44*VLOOKUP(AF45,Índices!$B$135:$F$627,3,0)/VLOOKUP(AF44,Índices!$B$135:$F$627,3,0) ->  | AF45: =DATE(YEAR(BD!B75),MONTH(BD!B75)-1,1) -> 
C46: Receita Verificada (R$) | D46: Receita Verificada (R$) | E46: Receita Requerida (R$) | F46: Variação | G46: Participação no Efeito | H46: Participação na Receita | J46: =E47/E78 -> 0.6548517751 | Z46: =YEAR(BD!B74) -> 1900 | AA46: =(BD!C74) -> 0 | AB46: 0 1900 | AC46: =BD!D74 -> 0 | AD46: =AD45*VLOOKUP(AF46,Índices!$B$135:$F$627,2,0)/VLOOKUP(AF45,Índices!$B$135:$F$627,2,0) ->  | AE46: =AE45*VLOOKUP(AF46,Índices!$B$135:$F$627,3,0)/VLOOKUP(AF45,Índices!$B$135:$F$627,3,0) ->  | AF46: =DATE(YEAR(BD!B74),MONTH(BD!B74)-1,1) -> 
B47: PARCELA A [Encargos+Transmissão+Energia+RI] | C47: =C48+C60+C69+C70 -> 2318691078 | D47: =D48+D60+D69+D70 -> 2318826801 | E47: =E48+E60+E69+E70 -> 2462069153 | F47: =IFERROR(E47/D47-1,0) -> 0.06177363137 | G47: =IFERROR((E47-D47)/$D$78,0) -> 0.03957135145 | H47: =IFERROR(E47/$E$78,0) -> 0.6548517751 | Z47: =YEAR(BD!B73) -> 1900 | AA47: =(BD!C73) -> 0 | AB47: 0 1900 | AC47: =BD!D73 -> 0 | AD47: =AD46*VLOOKUP(AF47,Índices!$B$135:$F$627,2,0)/VLOOKUP(AF46,Índices!$B$135:$F$627,2,0) ->  | AE47: =AE46*VLOOKUP(AF47,Índices!$B$135:$F$627,3,0)/VLOOKUP(AF46,Índices!$B$135:$F$627,3,0) ->  | AF47: =DATE(YEAR(BD!B73),MONTH(BD!B73)-1,1) -> 
B48: Encargos Setoriais | C48: =SUM(C49:C59) -> 589686932.1 | D48: =SUM(D49:D59) -> 589721448.9 | E48: =SUM(E49:E59) -> 628090239.5 | F48: 0.0650625658 | G48: 0.01059955296 | H48: 0.1670570495 | I48: Colunas1 | J48: Colunas2 | Z48: =YEAR(BD!B72) -> 1900 | AA48: =(BD!C72) -> 0 | AB48: =CONCATENATE(AA48," ",Z48) -> 0 1900 | AC48: =BD!D72 -> 0 | AD48: =AD47*VLOOKUP(AF48,Índices!$B$135:$F$627,2,0)/VLOOKUP(AF47,Índices!$B$135:$F$627,2,0) ->  | AE48: =AE47*VLOOKUP(AF48,Índices!$B$135:$F$627,3,0)/VLOOKUP(AF47,Índices!$B$135:$F$627,3,0) ->  | AF48: =DATE(YEAR(BD!B72),MONTH(BD!B72)-1,1) -> 
B49: Taxa de Fisc. de Serviços de E.E. – TFSEE | C49: =SUM(DADOS_MercadoBase[TFSEE]) -> 4762149.824 | D49: =C49+C49*($D$78-$C$78)/$C$47 -> 4762428.572 | E49: =Resultado!D22 -> 4750594.933 | F49: -0.002484790893 | G49: -3.269096653e-06 | H49: 0.001263545145 | I49: =IF(SUM(C49:E49)<>0,1,0) -> 1 | Z49: =YEAR(BD!B71) -> 1900 | AA49: =(BD!C71) -> 0 | AB49: 0 1900 | AC49: =BD!D71 -> 0 | AD49: =AD48*VLOOKUP(AF49,Índices!$B$135:$F$627,2,0)/VLOOKUP(AF48,Índices!$B$135:$F$627,2,0) ->  | AE49: =AE48*VLOOKUP(AF49,Índices!$B$135:$F$627,3,0)/VLOOKUP(AF48,Índices!$B$135:$F$627,3,0) ->  | AF49: =DATE(YEAR(BD!B71),MONTH(BD!B71)-1,1) -> 
B50: Conta de Desenv. Energético – CDE (USO) | C50: =SUM(DADOS_MercadoBase[CDE],DADOS_MercadoBase[RTE_CDE_E]) -> 309935958.2 | D50: 309954100.1 | E50: =Encargos!G23 -> 391327177.6 | F50: 0.26253267 | G50: 0.02247968288 | H50: 0.1040837121 | I50: =IF(SUM(C50:E50)<>0,1,0) -> 1 | Z50: =YEAR(BD!B70) -> 1900 | AA50: =(BD!C70) -> 0 | AB50: 0 1900 | AC50: =BD!D70 -> 0 | AD50: =AD49*VLOOKUP(AF50,Índices!$B$135:$F$627,2,0)/VLOOKUP(AF49,Índices!$B$135:$F$627,2,0) ->  | AE50: =AE49*VLOOKUP(AF50,Índices!$B$135:$F$627,3,0)/VLOOKUP(AF49,Índices!$B$135:$F$627,3,0) ->  | AF50: =DATE(YEAR(BD!B70),MONTH(BD!B70)-1,1) -> 
B51: Conta de Desenv. Energético – CDE Conta-Covid (TE) | C51: =IFERROR(SUM(DADOS_MercadoBase[covidTeEco])*(IFERROR(VLOOKUP("CDE Covid TE",BD!$B$8:$C$53,2,FALSE),0) /(IFERROR(VLOOKUP("CDE Covid TE",BD!$B$8:$C$53,2,FALSE),0)+IFERROR(VLOOKUP("CDE Conta - Escassez Hídrica TE",BD!$B$8:$C$53,2,FALSE),0)))+ SUM(DADOS_MercadoBase[covidTusdEco])*(IFERROR(VLOOKUP("CDE Covid TUSD",BD!$B$8:$C$53,2,FALSE),0) /(IFERROR(VLOOKUP("CDE Covid TUSD",BD!$B$8:$C$53,2,FALSE),0)+IFERROR(VLOOKUP("CDE Conta - Escassez Hídrica TUSD",BD!$B$8:$C$53,2,FALSE),0))),0) -> 0 | D51: 0 | E51: =Encargos!G24+Encargos!G25 -> 0 | F51: 0 | G51: 0 | H51: 0 | I51: 0 | Z51: =YEAR(BD!B69) -> 1900 | AA51: =(BD!C69) -> 0 | AB51: 0 1900 | AC51: =BD!D69 -> 0 | AD51: =AD50*VLOOKUP(AF51,Índices!$B$135:$F$627,2,0)/VLOOKUP(AF50,Índices!$B$135:$F$627,2,0) ->  | AE51: =AE50*VLOOKUP(AF51,Índices!$B$135:$F$627,3,0)/VLOOKUP(AF50,Índices!$B$135:$F$627,3,0) ->  | AF51: =DATE(YEAR(BD!B69),MONTH(BD!B69)-1,1) -> 
B52: Conta de Desenv. Energético – CDE Eletrobrás | C52: =SUM(DADOS_MercadoBase[CDE_Elet_Eco]) -> -3205755.479 | D52: -3205943.125 | E52: =Encargos!G26 -> -3209393.27 | F52: 0.001076171535 | G52: -9.531181799e-07 | H52: -0.0008536221971 | I52: 1 | Z52: =YEAR(BD!B68) -> 1900 | AA52: =(BD!C68) -> 0 | AB52: 0 1900 | AC52: =BD!D68 -> 0 | AD52: =AD51*VLOOKUP(AF52,Índices!$B$135:$F$627,2,0)/VLOOKUP(AF51,Índices!$B$135:$F$627,2,0) ->  | AE52: =AE51*VLOOKUP(AF52,Índices!$B$135:$F$627,3,0)/VLOOKUP(AF51,Índices!$B$135:$F$627,3,0) ->  | AF52: =DATE(YEAR(BD!B68),MONTH(BD!B68)-1,1) -> 
B53: Conta de Desenv. Energético – CDE Conta-Escassez Hídrica (TE) | C53: =IFERROR(SUM(DADOS_MercadoBase[covidTeEco])*(IFERROR(VLOOKUP("CDE Conta - Escassez Hídrica TE",BD!$B$8:$C$53,2,FALSE),0) /(IFERROR(VLOOKUP("CDE Covid TE",BD!$B$8:$C$53,2,FALSE),0)+IFERROR(VLOOKUP("CDE Conta - Escassez Hídrica TE",BD!$B$8:$C$53,2,FALSE),0))),0)+ IFERROR(SUM(DADOS_MercadoBase[covidTusdEco])*(IFERROR(VLOOKUP("CDE Conta - Escassez Hídrica TUSD",BD!$B$8:$C$53,2,FALSE),0) /(IFERROR(VLOOKUP("CDE Covid TUSD",BD!$B$8:$C$53,2,FALSE),0)+IFERROR(VLOOKUP("CDE Conta - Escassez Hídrica TUSD",BD!$B$8:$C$53,2,FALSE),0))),0) -> 18952012.14 | D53: 18953121.48 | E53: =Encargos!G27+Encargos!G28 -> 16066845.31 | F53: -0.1522850033 | G53: -0.0007973469229 | H53: 0.004273398317 | I53: 1 | Z53: =YEAR(BD!B67) -> 1900 | AA53: =(BD!C67) -> 0 | AB53: 0 1900 | AC53: =BD!D67 -> 0 | AD53: =AD52*VLOOKUP(AF53,Índices!$B$135:$F$627,2,0)/VLOOKUP(AF52,Índices!$B$135:$F$627,2,0) ->  | AE53: =AE52*VLOOKUP(AF53,Índices!$B$135:$F$627,3,0)/VLOOKUP(AF52,Índices!$B$135:$F$627,3,0) ->  | AF53: =DATE(YEAR(BD!B67),MONTH(BD!B67)-1,1) -> 
B54: Conta de Desenv. Energético – CDE GD | C54: =SUM(DADOS_MercadoBase[CDE_GD_Eco]) -> 49358729.06 | D54: 49361618.23 | E54: =Encargos!G29 -> 0.001 | F54: -1 | G54: -0.01363637161 | H54: 2.659761909e-13 | I54: 1 | Z54: =YEAR(BD!B66) -> 2026 | AA54: =(BD!C66) -> 0 | AB54: =CONCATENATE(IF(AA54=1,"Revisão","Reajuste")," ",Z54) -> Reajuste 2026 | AC54: =BD!D66 -> 709.7039645 | AD54: =AD53*VLOOKUP(AF54,Índices!$B$135:$F$627,2,0)/VLOOKUP(AF53,Índices!$B$135:$F$627,2,0) ->  | AE54: =AE53*VLOOKUP(AF54,Índices!$B$135:$F$627,3,0)/VLOOKUP(AF53,Índices!$B$135:$F$627,3,0) ->  | AF54: =DATE(YEAR(BD!B66),MONTH(BD!B66)-1,1) -> 2026-07-01
B55: Compensação financeira - CFURH | C55: =SUM(DADOS_MercadoBase[CFURH]) -> 0 | D55: 0 | E55: =Resultado!D24 -> 0 | F55: 0 | G55: 0 | H55: 0 | I55: 0 | AC55: =AC54/AC41-1 ->  | AD55: =AD54/AD41-1 ->  | AE55: =AE54/AE41-1 -> 
B56: Encargos Serv. Sist. - ESS/Energ. Reserv. - EER/ERCAP | C56: =SUM(DADOS_MercadoBase[ESSERR]) -> 112391976.9 | D56: 112398555.7 | E56: =Resultado!D25 -> 141876722.5 | F56: 0.2622646407 | G56: 0.0081434777 | H56: 0.03773583023 | I56: 1
B57: PROINFA | C57: =SUM(DADOS_MercadoBase[PROINFA]) -> 66170500.39 | D57: 66174373.63 | E57: =Resultado!D26 -> 45686360.62 | F57: -0.3096064516 | G57: -0.005659906807 | H57: 0.01215148417 | I57: 1
B58: P&D, Efic.Energ e Ressarc.ICMS Sist.Isol. | C58: =SUM(DADOS_MercadoBase[PeD],DADOS_MercadoBase[RTE_PeD]) -> 31321361.03 | D58: 31323194.4 | E58: =Resultado!D27 -> 31591931.85 | F58: 0.008579503472 | G58: 7.423994463e-05 | H58: 0.008402701698 | I58: 1
B59: ONS | C59: =Resultado!C28 -> 0 | D59: 0 | E59: =Resultado!D28 -> 0 | F59: 0 | G59: 0 | H59: 0 | I59: 0
B60: Custos de Transmissão | C60: =SUM(C61:C68) -> 329601949.6 | D60: =SUM(D61:D68) -> 329621242.6 | E60: =SUM(E61:E68) -> 287358222.7 | F60: -0.1282169182 | G60: -0.01167535153 | H60: 0.0764304455 | I60: 1
B61: Rede Básica | C61: =SUM(DADOS_MercadoBase[TUST_RB]) -> 234046150 | D61: =C61+C61*($D$78-$C$78)/$C$47 -> 234059849.7 | E61: =Resultado!D30 -> 180197214.7 | F61: -0.2301233428 | G61: -0.01487979798 | H61: 0.04792816877 | I61: 1 | K61: Total RB e RBF
B62: Rede Básica Fronteira | C62: =SUM(DADOS_MercadoBase[TUST_FR]) -> 74152234.01 | D62: 74156574.45 | E62: =Resultado!D31 -> 82104477.79 | F62: 0.1071773258 | G62: 0.002195644459 | H62: 0.02183783626 | I62: 1 | K62: =SUM(G61:G62) -> -0.01268415352
B63: Rede Básica ONS (A2) | C63: =SUM(DADOS_MercadoBase[TUSDG_ONS]) -> 0 | D63: 0 | E63: =Resultado!D32 -> 0 | F63: 0 | G63: 0 | H63: 0 | I63: 0
B64: Rede Básica Export. (A2) | C64: =SUM(DADOS_MercadoBase[TUSDG_T]) -> 0 | D64: 0 | E64: =Resultado!D33 -> 0 | F64: 0 | G64: 0 | H64: 0 | I64: 0
B65: MUST Itaipu | C65: =SUM(DADOS_MercadoBase[TUST_ITAIPU]) -> 0 | D65: 0 | E65: =Resultado!D34 -> 0 | F65: 0 | G65: 0 | H65: 0 | I65: 0
B66: Transporte de Itaipu | C66: =SUM(DADOS_MercadoBase[ITAIPU]) -> 0 | D66: 0 | E66: =Resultado!D35 -> 0 | F66: 0 | G66: 0 | H66: 0 | I66: 0
B67: Conexão | C67: =SUM(DADOS_MercadoBase[Conexao_T]) -> 14919308.52 | D67: 14920181.8 | E67: =Resultado!D36 -> 15167336.18 | F67: 0.01656510477 | G67: 6.827752052e-05 | H67: 0.004034150303 | I67: 1
B68: Uso do sistema de distribuição | C68: =SUM(DADOS_MercadoBase[CUSD],DADOS_MercadoBase[RTE_CUSD]) -> 6484257.128 | D68: 6484636.679 | E68: =Resultado!D37 -> 9889194.081 | F68: 0.5250189904 | G68: 0.000940524472 | H68: 0.002630290173 | I68: 1
B69: Custos de Aquisição de Energia | C69: =SUM(DADOS_MercadoBase[RTE_Energia],DADOS_MercadoBase[EnergiaRevenda],DADOS_MercadoBase[perdasnt],DADOS_MercadoBase[perdasrb_d],DADOS_MercadoBase[perdasrb_c],DADOS_MercadoBase[perdastec]) -> 1399402197 | D69: 1399484110 | E69: =Resultado!D38 -> 1497618965 | F69: 0.07012216469 | G69: 0.02711020023 | H69: 0.3983309877 | I69: 1
B70: Receitas Irrecuperáveis | C70: =SUM(DADOS_MercadoBase[RI]) -> 0 | D70: 0 | E70: =Resultado!D39 -> 49001726.13 | F70: 0 | G70: 0.01353694979 | H70: 0.01303329247 | I70: 1
B71: PARCELA B | C71: =IF(CAPA!$C$7="Reajuste",SUM(DADOS_MercadoBase[DISTRIBUICAO]),SUM(C72:C77)) -> 1301023084 | D71: =Mercado!Z66 -> 1301023084 | E71: =IF(CAPA!$C$7="Reajuste",Resultado!D45,SUM(E72:E77)) -> 1297665869 | F71: -0.00258044273 | G71: -0.0009274460725 | H71: 0.3451482249 | I71: 1
B72: Custos Operacionais | C72: ='VPB e Fator X'!C107 ->  | D72: =IF(CAPA!C7="Reajuste",0,C72) -> 0 | E72: =IF(CAPA!C7="Reajuste",0,Resultado!G20*(1-Resultado!$G$26-Resultado!$G$27)) -> 0 | F72: 0 | G72: 0 | H72: 0
B73: Anuidades | C73: =Entrada!G63*('VPB e Fator X'!$C$102-'VPB e Fator X'!$C$107)/SUM(Entrada!$G$61:$G$63) ->  | D73: =IF(CAPA!C8="Reajuste",0,C73) ->  | E73: =IF(CAPA!C7="Reajuste",0,Resultado!G24*(1-Resultado!$G$26-Resultado!$G$27)) -> 0 | F73: 0 | G73: 0 | H73: 0
B74: Remuneração | C74: =Entrada!G61*('VPB e Fator X'!$C$102-'VPB e Fator X'!$C$107)/SUM(Entrada!$G$61:$G$63) ->  | D74: =IF(CAPA!C9="Reajuste",0,C74) ->  | E74: =IF(CAPA!C7="Reajuste",0,Resultado!G22*(1-Resultado!$G$26-Resultado!$G$27)) -> 0 | F74: 0 | G74: 0 | H74: 0
B75: Depreciação | C75: =Entrada!G62*('VPB e Fator X'!$C$102-'VPB e Fator X'!$C$107)/SUM(Entrada!$G$61:$G$63) ->  | D75: =IF(CAPA!C10="Reajuste",0,C75) ->  | E75: =IF(CAPA!C7="Reajuste",0,Resultado!G23*(1-Resultado!$G$26-Resultado!$G$27)) -> 0 | F75: 0 | G75: 0 | H75: 0
B76: UD+ER+OR | C76: =-Entrada!G115*'VPB e Fator X'!$C$102/Entrada!$G$114-SUM(Entrada!G116:'Entrada'!G117)*'VPB e Fator X'!C102/Entrada!G114 ->  | D76: =IF(CAPA!C11="Reajuste",0,C76) ->  | E76: =IF(CAPA!C7="Reajuste",0,-(SUM(Resultado!$G$29:$G$31))) -> 0 | F76: 0 | G76: 0 | H76: 0
I77: 0
B78: RT considerando a varição tarifária da RTE | C78: =C71+C47 -> 3619714163 | D78: =Mercado!D24 -> 3619849885 | E78: =E71+E47 -> 3759735022 | G78: =IFERROR((E78-D78)/$D$78,0) -> 0.03864390538 | H78: =IFERROR(E78/$E$78,0) -> 1 | I78: 1
I79: 1 | K79: TabFin | M79: Voltar
B80: Efeito dos Componentes Financeiros do Processo Atual | E80: =SUM(E81:E136) -> -104701076.5 | G80: =SUM(G81:G136) -> -0.02892414875 | I80: 1 | K80: Componentes Financeiros | L80: Valor (R$) | M80: Participação | N80: Colunas1 | O80: Colunas2
B81: ='Votos e NTs'!K81 -> CVA em processamento - Energia | E81: =L81 -> 66449363.96 | G81: =M81 -> 0.01835693912 | I81: 1 | K81: CVA em processamento - Energia | L81: =SUMIFS(Financeiros[Valor],Financeiros[idDet1],19,Financeiros[id_Grupo_TARIFA],2,Financeiros[idDet2],60,Financeiros[idDet3],999) -> 66449363.96 | M81: =L81/Financeiros!$D$5 -> 0.01835693912 | O81: Total CVA
B82: ='Votos e NTs'!K82 -> CVA em processamento - Transporte | E82: =L82 -> 31641011.58 | G82: =M82 -> 0.008740973405 | I82: 1 | K82: CVA em processamento - Transporte | L82: =SUMIFS(Financeiros[Valor],Financeiros[idDet1],19,Financeiros[id_Grupo_TARIFA],1,Financeiros[idDet2],60, Financeiros[idDet3],999) -> 31641011.58 | M82: =L82/Financeiros!$D$5 -> 0.008740973405 | O82: =SUM(M81:M83) -> 0.05559435924
B83: ='Votos e NTs'!K83 -> CVA em processamento - Encargos Setoriais | E83: 103152859.4 | G83: 0.02849644671 | I83: 1 | K83: CVA em processamento - Encargos Setoriais | L83: =SUMIFS(Financeiros[Valor],Financeiros[idDet1],19,Financeiros[id_Grupo_TARIFA],3,Financeiros[idDet2],60,Financeiros[idDet3],999)+ SUMIFS(Financeiros[Valor],Financeiros[idDet1],19,Financeiros[id_Grupo_TARIFA],3,Financeiros[idDet2],60,Financeiros[idDet3],73)+ SUMIFS(Financeiros[Valor],Financeiros[idDet1],19,Financeiros[id_Grupo_TARIFA],3,Financeiros[idDet2],60,Financeiros[idDet3],74) -> 103152859.4 | M83: =L83/Financeiros!$D$5 -> 0.02849644671
B84: ='Votos e NTs'!K84 -> Saldo a Compensar CVA-Ano Anterior + Ajustes | E84: -850107.2262 | G84: -0.000234845989 | I84: 1 | K84: Saldo a Compensar CVA-Ano Anterior + Ajustes | L84: =SUMIFS(Financeiros[Valor],Financeiros[idDet1],19,Financeiros[idDet2],64, Financeiros[idDet3],999)+ SUMIFS(Financeiros[Valor],Financeiros[idDet1],19,Financeiros[idDet2],64, Financeiros[idDet3],73)+ SUMIFS(Financeiros[Valor],Financeiros[idDet1],19,Financeiros[idDet2],64, Financeiros[idDet3],74) -> -850107.2262 | M84: =L84/Financeiros!$D$5 -> -0.000234845989
B85: ='Votos e NTs'!K85 -> Neutralidade de Parcela A- Energia | E85: 7444261.342 | G85: 0.002056511065 | I85: 1 | K85: Neutralidade de Parcela A- Energia | L85: =SUMIFS(Financeiros[Valor],Financeiros[idDet1],20,Financeiros[id_Grupo_TARIFA],2,Financeiros[idDet2],60,Financeiros[idDet3],999) -> 7444261.342 | M85: =L85/Financeiros!$D$5 -> 0.002056511065
B86: ='Votos e NTs'!K86 -> Neutralidade de Parcela A - Transporte | E86: 873959.9885 | G86: 0.000241435423 | I86: 1 | K86: Neutralidade de Parcela A - Transporte | L86: =SUMIFS(Financeiros[Valor],Financeiros[idDet1],20,Financeiros[id_Grupo_TARIFA],1,Financeiros[idDet2],60, Financeiros[idDet3],999) -> 873959.9885 | M86: =L86/Financeiros!$D$5 -> 0.000241435423
B87: ='Votos e NTs'!K87 -> Neutralidade de Parcela A - Encargos Setoriais | E87: -23855920.56 | G87: -0.006590306591 | I87: 1 | K87: Neutralidade de Parcela A - Encargos Setoriais | L87: =SUMIFS(Financeiros[Valor],Financeiros[idDet1],20,Financeiros[id_Grupo_TARIFA],3,Financeiros[idDet2],60,Financeiros[idDet3],999)+ SUMIFS(Financeiros[Valor],Financeiros[idDet1],20,Financeiros[idDet2],60,Financeiros[idDet3],73)+ SUMIFS(Financeiros[Valor],Financeiros[idDet1],20,Financeiros[idDet2],60,Financeiros[idDet3],74)+ SUMIFS(Financeiros[Valor],Financeiros[idDet1],20,Financeiros[idDet2],60,Financeiros[idDet3],81)+ SUMIFS(Financeiros[Valor],Financeiros[idDet1],20,Financeiros[idDet2],60,Financeiros[idDet3],82) -> -23855920.56 | M87: =L87/Financeiros!$D$5 -> -0.006590306591
B88: ='Votos e NTs'!K88 -> Neutralidade de Parcela A - Receita Irrecuperável | E88: 0 | G88: 0 | I88: 0 | K88: Neutralidade de Parcela A - Receita Irrecuperável | L88: =SUMIFS(Financeiros[Valor],Financeiros[idDet1],20,Financeiros[id_Grupo_TARIFA],5,Financeiros[idDet2],60, Financeiros[idDet3],999) -> 0 | M88: =L88/Financeiros!$D$5 -> 0
B89: ='Votos e NTs'!K89 -> Neutralidade de Fin. Parcela B - Conta Covid | E89: 0 | G89: 0 | I89: 0 | K89: Neutralidade de Fin. Parcela B - Conta Covid | L89: =SUMIFS(Financeiros[Valor],Financeiros[idDet1],20,Financeiros[id_Grupo_TARIFA],4,Financeiros[idDet2],60, Financeiros[idDet3],999) -> 0 | M89: =L89/Financeiros!$D$5 -> 0
B90: ='Votos e NTs'!K90 -> Neutralidade de Créditos de PIS/COFINS | E90: -1231548.425 | G90: -0.0003402208557 | I90: 1 | K90: Neutralidade de Créditos de PIS/COFINS | L90: =SUMIFS(Financeiros[Valor],Financeiros[idDet1],20,Financeiros[idDet2],60,Financeiros[idDet3],503,Financeiros[id_Grupo_TARIFA],99) -> -1231548.425 | M90: =L90/Financeiros!$D$5 -> -0.0003402208557
B91: ='Votos e NTs'!K91 -> Financeiro CDE Eletrobras | E91: -238898.6473 | G91: -6.599683823e-05 | I91: 1 | K91: Financeiro CDE Eletrobras | L91: =SUMIFS(Financeiros[Valor],Financeiros[idDet1],22,Financeiros[idDet2],60, Financeiros[idDet3],512,Financeiros[id_Detalhe_Grupo_TARIFA],28) -> -238898.6473 | M91: =L91/Financeiros!$D$5 -> -6.599683823e-05
B92: ='Votos e NTs'!K92 -> Restituição de encargo do ONS | E92: 12485189.3 | G92: 0.003449090347 | I92: 1 | K92: Restituição de encargo do ONS | L92: =SUMIFS(Financeiros[Valor],Financeiros[idDet1],22,Financeiros[idDet2],60, Financeiros[idDet3],123,Financeiros[id_Grupo_TARIFA],4) -> 12485189.3 | M92: =L92/Financeiros!$D$5 -> 0.003449090347
B93: ='Votos e NTs'!K93 -> Financeiros residuais do encargo de ONS | E93: -5641.032902 | G93: -1.558361004e-06 | I93: 1 | K93: Financeiros residuais do encargo de ONS | L93: =SUMIFS(Financeiros[Valor],Financeiros[idDet1],22,Financeiros[idDet2],60, Financeiros[idDet3],513,Financeiros[id_Grupo_TARIFA],4) -> -5641.032902 | M93: =L93/Financeiros!$D$5 -> -1.558361004e-06
B94: ='Votos e NTs'!K94 -> Neutralidade de Fin. Parcela B - Conta Covid | E94: 0 | G94: 0 | I94: 0 | K94: Neutralidade de Fin. Parcela B - Conta Covid | L94: =SUMIFS(Financeiros[Valor],Financeiros[idDet1],20,Financeiros[id_Grupo_TARIFA],4,Financeiros[idDet2],60, Financeiros[idDet3],999) -> 0 | M94: =L94/Financeiros!$D$5 -> 0
B95: ='Votos e NTs'!K95 -> Sobrecontratação | E95: 9890324.662 | G95: 0.002732247186 | I95: 1 | K95: Sobrecontratação | L95: =SUMIFS(Financeiros[Valor],Financeiros[idDet1],22,Financeiros[idDet2],60,Financeiros[idDet3],106) -> 9890324.662 | M95: =L95/Financeiros!$D$5 -> 0.002732247186
B96: ='Votos e NTs'!K96 -> Garantias financeiras na contratação regulada de energia (CCEAR) | E96: 980452.122 | G96: 0.0002708543594 | I96: 1 | K96: Garantias financeiras na contratação regulada de energia (CCEAR) | L96: =SUMIFS(Financeiros[Valor],Financeiros[idDet1],22,Financeiros[idDet2],60,Financeiros[idDet3],102) -> 980452.122 | M96: =L96/Financeiros!$D$5 -> 0.0002708543594
B97: ='Votos e NTs'!K97 -> Reversão Sobrecontratação | E97: 0 | G97: 0 | I97: 0 | K97: Reversão Sobrecontratação | L97: =SUMIFS(Financeiros[Valor],Financeiros[idDet1],22,Financeiros[idDet2],62,Financeiros[idDet3],106) -> 0 | M97: =L97/Financeiros!$D$5 -> 0
B98: ='Votos e NTs'!K98 -> Recálculo Exposição CCEAR entre Submercados | E98: 0 | G98: 0 | I98: 0 | K98: Recálculo Exposição CCEAR entre Submercados | L98: =SUMIFS(Financeiros[Valor],Financeiros[idDet1],22,Financeiros[idDet2],60,Financeiros[idDet3],101) -> 0 | M98: =L98/Financeiros!$D$5 -> 0
B99: ='Votos e NTs'!K99 -> Compensação ref. acordos bilaterais de CCEAR | E99: 0 | G99: 0 | I99: 0 | K99: Compensação ref. acordos bilaterais de CCEAR | L99: =SUMIFS(Financeiros[Valor],Financeiros[idDet1],22,Financeiros[idDet2],60,Financeiros[idDet3],230) -> 0 | M99: =L99/Financeiros!$D$5 -> 0
B100: ='Votos e NTs'!K100 -> Reversão de Risco Hidrológico | E100: -67427609.83 | G100: -0.01862718399 | I100: 1 | K100: Reversão de Risco Hidrológico | L100: =SUMIFS(Financeiros[Valor],Financeiros[idDet1],22,Financeiros[idDet2],62,Financeiros[idDet3],220) -> -67427609.83 | M100: =L100/Financeiros!$D$5 -> -0.01862718399
B101: ='Votos e NTs'!K101 -> Risco Hidrológico | E101: 49333526.95 | G101: 0.01362861127 | I101: 1 | K101: Risco Hidrológico | L101: =SUMIFS(Financeiros[Valor],Financeiros[idDet1],22,Financeiros[idDet2],60,Financeiros[idDet3],220) -> 49333526.95 | M101: =L101/Financeiros!$D$5 -> 0.01362861127
B102: ='Votos e NTs'!K102 -> Repasse de ultrapassagem de Supridas/Permissionárias | E102: 0 | G102: 0 | I102: 0 | K102: Repasse de ultrapassagem de Supridas/Permissionárias | L102: =SUMIFS(Financeiros[Valor],Financeiros[idDet1],22,Financeiros[idDet2],60,Financeiros[idDet3],187) -> 0 | M102: =L102/Financeiros!$D$5 -> 0
B103: ='Votos e NTs'!K103 -> Ajuste CUSD | E103: 598459.5859 | G103: 0.0001653271834 | I103: 1 | K103: Ajuste CUSD | L103: =SUMIFS(Financeiros[Valor],Financeiros[idDet1],22,Financeiros[idDet2],60,Financeiros[idDet3],119) -> 598459.5859 | M103: =L103/Financeiros!$D$5 -> 0.0001653271834
B104: ='Votos e NTs'!K104 -> Conselho de Consumidores | E104: 0 | G104: 0 | I104: 0 | K104: Conselho de Consumidores | L104: =SUMIFS(Financeiros[Valor],Financeiros[idDet1],22,Financeiros[idDet2],60,Financeiros[idDet3],188) -> 0 | M104: =L104/Financeiros!$D$5 -> 0
B105: ='Votos e NTs'!K105 -> Ajuste TUSDg | E105: 0 | G105: 0 | I105: 0 | K105: Ajuste TUSDg | L105: =SUMIFS(Financeiros[Valor],Financeiros[idDet1],22,Financeiros[idDet2],60,Financeiros[idDet3],136) -> 0 | M105: =L105/Financeiros!$D$5 -> 0
B106: ='Votos e NTs'!K106 -> Repasse de compensação DIC/FIC | E106: -1104237.251 | G106: -0.0003050505645 | I106: 1 | K106: Repasse de compensação DIC/FIC | L106: =SUMIFS(Financeiros[Valor],Financeiros[idDet1],22,Financeiros[idDet2],60,Financeiros[idDet3],178) -> -1104237.251 | M106: =L106/Financeiros!$D$5 -> -0.0003050505645
B107: ='Votos e NTs'!K107 -> Acordo REN 824/2018 | E107: 0 | G107: 0 | I107: 0 | K107: Acordo REN 824/2018 | L107: =SUMIFS(Financeiros[Valor],Financeiros[idDet1],22,Financeiros[idDet2],60,Financeiros[idDet3],232) -> 0 | M107: =L107/Financeiros!$D$5 -> 0
B108: ='Votos e NTs'!K108 -> Custo Distribuidora - Conta Covid - Art 4º - REN 952/2021 - Tusd | E108: 0 | G108: 0 | I108: 0 | K108: Custo Distribuidora - Conta Covid - Art 4º - REN 952/2021 - Tusd | L108: =SUMIFS(Financeiros[Valor],Financeiros[idDet1],22,Financeiros[idDet2],60,Financeiros[idDet3],518) -> 0 | M108: =L108/Financeiros!$D$5 -> 0
B109: ='Votos e NTs'!K109 -> Custo Distribuidora - Conta Covid - Art 4º - REN 952/2021 - TE | E109: 0 | G109: 0 | I109: 0 | K109: Custo Distribuidora - Conta Covid - Art 4º - REN 952/2021 - TE | L109: =SUMIFS(Financeiros[Valor],Financeiros[idDet1],22,Financeiros[idDet2],60,Financeiros[idDet3],519) -> 0 | M109: =L109/Financeiros!$D$5 -> 0
B110: ='Votos e NTs'!K110 -> Diferimento Parcela B | E110: 0 | G110: 0 | I110: 0 | K110: Diferimento Parcela B | L110: =SUMIFS(Financeiros[Valor],Financeiros[idDet1],22,Financeiros[idDet2],60,Financeiros[idDet3],501) -> 0 | M110: =L110/Financeiros!$D$5 -> 0
B111: ='Votos e NTs'!K111 -> Recomposição à conta de comercialização de Itaipu - Reversão Bônus Itaipu | E111: 0 | G111: 0 | I111: 0 | K111: Recomposição à conta de comercialização de Itaipu - Reversão Bônus Itaipu | L111: =SUMIFS(Financeiros[Valor],Financeiros[idDet1],22,Financeiros[idDet2],62,Financeiros[idDet3],507) -> 0 | M111: =L111/Financeiros!$D$5 -> 0
B112: ='Votos e NTs'!K112 -> Neutralidade Mitigação Itaipu - Energia de Revenda | E112: 0 | G112: 0 | I112: 0 | K112: Neutralidade Mitigação Itaipu - Energia de Revenda | L112: =SUMIFS(Financeiros[Valor],Financeiros[idDet1],22,Financeiros[idDet2],60,Financeiros[idDet3],509) -> 0 | M112: =L112/Financeiros!$D$5 -> 0
B113: ='Votos e NTs'!K113 -> Frustração de repasse Decreto 10.665/2021 - Ajuste Bônus Itaipu | E113: 0 | G113: 0 | I113: 0 | K113: Frustração de repasse Decreto 10.665/2021 - Ajuste Bônus Itaipu | L113: =SUMIFS(Financeiros[Valor],Financeiros[idDet1],22,Financeiros[idDet2],60,Financeiros[idDet3],508) -> 0 | M113: =L113/Financeiros!$D$5 -> 0
B114: ='Votos e NTs'!K114 -> Financeiro referente ajuste encargo conexão | E114: 0 | G114: 0 | I114: =IF(SUM(C114:E114)<>0,1,0) -> 0 | K114: Financeiro referente ajuste encargo conexão | L114: =SUMIFS(Financeiros[Valor],Financeiros[idDet1],22,Financeiros[idDet2],60,Financeiros[idDet3],516,Financeiros[id_Detalhe_Grupo_TARIFA],1) -> 0 | M114: =L114/Financeiros!$D$5 -> 0
B115: ='Votos e NTs'!K115 -> Reversão diferimento Rede Básica | E115: 0 | G115: 0 | I115: 0 | K115: Reversão diferimento Rede Básica | L115: =SUMIFS(Financeiros[Valor],Financeiros[idDet1],22,Financeiros[idDet2],62,Financeiros[idDet3],501,Financeiros[id_Detalhe_Grupo_TARIFA],1) -> 0 | M115: =L115/Financeiros!$D$5 -> 0
B116: ='Votos e NTs'!K116 -> Spread sobre a antecipação de créditos de UDER | E116: 0 | G116: 0 | I116: 0 | K116: Spread sobre a antecipação de créditos de UDER | L116: =SUMIFS(Financeiros[Valor],Financeiros[idDet1],22,Financeiros[idDet2],60,Financeiros[idDet3],517) -> 0 | M116: =L116/Financeiros!$D$5 -> 0
B117: ='Votos e NTs'!K117 -> Reversão da antecipação de créditos de UDER | E117: 0 | G117: 0 | I117: 0 | K117: Reversão da antecipação de créditos de UDER | L117: =SUMIFS(Financeiros[Valor],Financeiros[idDet1],22,Financeiros[idDet2],62,Financeiros[idDet3],504) -> 0 | M117: =L117/Financeiros!$D$5 -> 0
G118: 0 | I118: 0 | M118: =L118/Financeiros!$D$5 -> 0
G119: 0 | I119: 0 | M119: =L119/Financeiros!$D$5 -> 0
G120: 0 | I120: 0 | M120: =L120/Financeiros!$D$5 -> 0
B121: ='Votos e NTs'!K121 -> Descasamento de tarifas de permissionárias | E121: 0 | G121: 0 | I121: 0 | K121: Descasamento de tarifas de permissionárias | L121: =SUMIFS(Financeiros[Valor],Financeiros[idDet1],22,Financeiros[idDet2],60,Financeiros[idDet3],536) -> 0 | M121: =L121/Financeiros!$D$5 -> 0
B122: ='Votos e NTs'!K122 -> Financeiro de Postergação Encargo | E122: 0 | G122: 0 | I122: 0 | K122: Financeiro de Postergação Encargo | L122: =SUMIFS(Financeiros[Valor],Financeiros[idDet1],22,Financeiros[idDet2],60,Financeiros[idDet3],502,Financeiros[id_Grupo_TARIFA],3) -> 0 | M122: =L122/Financeiros!$D$5 -> 0
B123: ='Votos e NTs'!K123 -> Financeiro de Postergação Energia | E123: 0 | G123: 0 | I123: 0 | K123: Financeiro de Postergação Energia | L123: =SUMIFS(Financeiros[Valor],Financeiros[idDet1],22,Financeiros[idDet2],60,Financeiros[idDet3],502,Financeiros[id_Grupo_TARIFA],2) -> 0 | M123: =L123/Financeiros!$D$5 -> 0
B124: ='Votos e NTs'!K124 -> Financeiro de Postergação Transporte | E124: 0 | G124: 0 | I124: 0 | K124: Financeiro de Postergação Transporte | L124: =SUMIFS(Financeiros[Valor],Financeiros[idDet1],22,Financeiros[idDet2],60,Financeiros[idDet3],502,Financeiros[id_Grupo_TARIFA],1) -> 0 | M124: =L124/Financeiros!$D$5 -> 0
B125: ='Votos e NTs'!K125 -> Financeiro de Postergação Parcela B | E125: 0 | G125: 0 | I125: 0 | K125: Financeiro de Postergação Parcela B | L125: =SUMIFS(Financeiros[Valor],Financeiros[idDet1],22,Financeiros[idDet2],60,Financeiros[idDet3],502,Financeiros[id_Grupo_TARIFA],4) -> 0 | M125: =L125/Financeiros!$D$5 -> 0
B126: ='Votos e NTs'!K126 -> Itens de modicidade da REN 1.000/2021 | E126: -3825961.45 | G126: -0.001056939257 | I126: 1 | K126: Itens de modicidade da REN 1.000/2021 | L126: =SUMIFS(Financeiros[Valor],Financeiros[idDet1],22,Financeiros[idDet2],60,Financeiros[idDet3],510) -> -3825961.45 | M126: =L126/Financeiros!$D$5 -> -0.001056939257
B127: ='Votos e NTs'!K127 -> Arrecadação de CDE Covid de migrantes (REN 885/2020) | E127: -481038.5129 | G127: -0.0001328890778 | I127: 1 | K127: Arrecadação de CDE Covid de migrantes (REN 885/2020) | L127: =SUMIFS(Financeiros[Valor],Financeiros[idDet1],22,Financeiros[idDet2],60,Financeiros[idDet3],505) -> -481038.5129 | M127: =L127/Financeiros!$D$5 -> -0.0001328890778
B128: ='Votos e NTs'!K128 -> Arrecadação de CDE Escassez de migrantes (REN 1.008/2022). | E128: -2226872.439 | G128: -0.0006151836429 | I128: 1 | K128: Arrecadação de CDE Escassez de migrantes (REN 1.008/2022). | L128: =SUMIFS(Financeiros[Valor],Financeiros[idDet1],22,Financeiros[idDet2],60,Financeiros[idDet3],527) -> -2226872.439 | M128: =L128/Financeiros!$D$5 -> -0.0006151836429
B129: ='Votos e NTs'!K129 -> Crédito de PIS/COFINS | E129: -747503.6466 | G129: -0.0002065012833 | I129: 1 | K129: Crédito de PIS/COFINS | L129: =SUMIFS(Financeiros[Valor],Financeiros[idDet1],22,Financeiros[idDet2],60, Financeiros[idDet3],503,Financeiros[id_Grupo_TARIFA],99) -> -747503.6466 | M129: =L129/Financeiros!$D$5 -> -0.0002065012833
B130: ='Votos e NTs'!K130 -> Quitação cta. Escassez Hídrica - Reversão de componente econômico | E130: -16066845.31 | G130: -0.004438539117 | I130: 1 | K130: Quitação cta. Escassez Hídrica - Reversão de componente econômico | L130: =SUMIFS(Financeiros[Valor],Financeiros[idDet1],22,Financeiros[id_Detalhe_Grupo_TARIFA],25,Financeiros[idDet3],531) -> -16066845.31 | M130: =L130/Financeiros!$D$5 -> -0.004438539117
B131: ='Votos e NTs'!K131 -> Recomposição de diferimento tarifário | E131: =L131 -> 0 | G131: 0 | I131: 0 | K131: Recomposição de diferimento tarifário | L131: =SUMIFS(Financeiros[Valor],Financeiros[idDet1],22,Financeiros[idDet3],501) -> 0 | M131: =L131/Financeiros!$D$5 -> 0
B132: ='Votos e NTs'!K132 -> Recomposição de diferença de cobertura CDE GD - RTA 2025 | E132: 0 | G132: 0 | I132: 0 | K132: Recomposição de diferença de cobertura CDE GD - RTA 2025 | L132: =SUMIFS(Financeiros[Valor],Financeiros[idDet1],22,Financeiros[id_Detalhe_Grupo_TARIFA],29,Financeiros[idDet3],516) -> 0 | M132: =L132/Financeiros!$D$5 -> 0
B133: ='Votos e NTs'!K133 -> Multa CCEAR - Goiânia II - Desp. nº 4.863/2023 | E133: =L133 -> -1759.333731 | G133: -4.860239475e-07 | I133: 1 | K133: Multa CCEAR - Goiânia II - Desp. nº 4.863/2023 | L133: =SUM(Financeiros!D252:D256) -> -1759.333731 | M133: =L133/Financeiros!$D$5 -> -4.860239475e-07
B134: ='Votos e NTs'!K134 -> Multa CCEAR - Termoceará - Desp. nº 2.495/2024 | E134: 12034.65344 | G134: 3.324627767e-06 | I134: 1 | K134: Multa CCEAR - Termoceará - Desp. nº 2.495/2024 | L134: =SUM(Financeiros!D257:D261) -> 12034.65344 | M134: =L134/Financeiros!$D$5 -> 3.324627767e-06
B135: ='Votos e NTs'!K135 -> Antecipação de Recursos de UBP - Lei 15.235/25 | E135: -269498576.4 | G135: -0.07445020786 | I135: 1 | K135: Antecipação de Recursos de UBP - Lei 15.235/25 | L135: =SUMIFS(Financeiros[Valor],Financeiros[idDet1],22,Financeiros[id_Detalhe_Grupo_TARIFA],16,Financeiros[idDet3],541) -> -269498576.4 | M135: =L135/Financeiros!$D$5 -> -0.07445020786
B136: ='Votos e NTs'!K136 -> 0 | E136: 0 | G136: 0 | I136: 0 | L136: =SUMIFS(Financeiros[Valor],Financeiros[idDet1],22,Financeiros[id_Detalhe_Grupo_TARIFA],29,Financeiros[idDet3],541) -> 0 | M136: =L136/Financeiros!$D$5 -> 0
B137: Efeito da retirada dos Componentes Financeiros do Processo Anterior | G137: =ROUND(G139-G78-G80-G138,4) -> 0.0477 | I137: 1 | K137: Total | L137: =SUM(L81:L136) -> -104701076.5 | M137: =SUM(M81:M136) -> -0.02892414875
B138: Subsídios da Lei 14.299/2022 | D138: =-Resultado!M22 -> 0 | E138: =-Resultado!L22 -> 0 | G138: =(E138-D138)/D78 -> 0 | I138: 0
B139: Efeito Médio a ser percebido pelos Consumidores | G139: =Resultado!L10 -> 0.05743060257 | I139: 1
O144: TabCons | R144: Voltar
O145: Classe de Consumo | P145: Nº de Unidades Consumidoras* | Q145: Consumo de Energia (MWh) | R145: Participação no Consumo (%)
O146: Residencial | P146: =Mercado!E30 -> 1697081 | Q146: =Mercado!F30 -> 260186.424 | R146: =Q146/$Q$154 -> 0.4800080708
O147: Industrial | P147: =Mercado!E31 -> 5127 | Q147: =Mercado!F31 -> 126616.243 | R147: 0.2335895071
O148: Comercial | P148: =Mercado!E32 -> 116601 | Q148: =Mercado!F32 -> 66835.494 | R148: 0.1233022693
O149: Rural | P149: =Mercado!E33 -> 101176 | Q149: =Mercado!F33 -> 20483.469 | R149: 0.03778917549
O150: Iluminação Pública | P150: =Mercado!E34 -> 1026 | Q150: =Mercado!F34 -> 21579.849 | R150: 0.03981184539
O151: Poder Público | P151: =Mercado!E35 -> 20629 | Q151: =Mercado!F35 -> 28588.07 | R151: 0.05274104666
O152: Serviço Público | P152: =Mercado!E36 -> 1737 | Q152: =Mercado!F36 -> 13175.505 | R152: 0.02430698973
O153: Demais classes | P153: =Mercado!E37 -> 599 | Q153: =Mercado!F37 -> 4580.882 | R153: 0.008451095554
O154: Total | P154: =SUM(P146:P153) -> 1943976 | Q154: =SUM(Q146:Q153) -> 542045.936 | R154: =SUM(R146:R153) -> 1
O155: * Nota: dados do último mês informado pela empresa
T158: TabMercado | V158: Voltar
T159: Subgrupos | U159: Mercado (MWh) | V159: Receita (R$) | W159: Colunas1
T160: Fornecimento | U160: =SUM(U161:U167) -> 5041711.901 | V160: =SUM(V161:V167) -> 3267329911 | W160: =IF(ABS(U160)+ABS(V160)>0,1,0) -> 1
T161: A1 (230 kV ou mais) | U161: =Mercado!C10 -> 0 | V161: =Mercado!D10 -> 0 | W161: 0
T162: A2 (88 a 138 kV) | U162: =Mercado!C11 -> 0 | V162: =Mercado!D11 -> 0 | W162: 0
T163: A3 (69 kV) | U163: =Mercado!C12 -> 12476.104 | V163: =Mercado!D12 -> 5774850.974 | W163: 1
T164: A3a (30 kV a 44 kV) | U164: =Mercado!C13 -> 0 | V164: =Mercado!D13 -> 0 | W164: 0
T165: A4 (2,3 kV a 25 kV) | U165: =Mercado!C14 -> 466398.857 | V165: =Mercado!D14 -> 298752160.7 | W165: 1
T166: As | U166: =Mercado!C15 -> 0 | V166: =Mercado!D15 -> 0 | W166: 0
T167: BT (menor que 2,3 kV) | U167: =Mercado!C16 -> 4562836.94 | V167: =Mercado!D16 -> 2962802899 | W167: 1
T168: Suprimento | U168: =Mercado!C17 -> 0 | V168: =Mercado!D17 -> 0 | W168: 0
T169: Livres A1 | U169: =Mercado!C18 -> 0 | V169: =Mercado!D18 -> 0 | W169: 0
T170: Demais Livres | U170: =Mercado!C19 -> 1458122.821 | V170: =Mercado!D19 -> 293954825.4 | W170: 1
T171: Distribuição | U171: =Mercado!C20 -> 47713.763 | V171: =Mercado!D20 -> 4438620.422 | W171: 1
T172: Geração | U172: =Mercado!C21 -> 0 | V172: =Mercado!D21 -> 54126528.84 | W172: 1
T173: Total | U173: =SUM(U161:U172) -> 6547548.485 | V173: =SUM(V161:V172) -> 3619849885
Y177: TabEnc | AB177: Voltar
Y178: Encargos Setoriais | Z178: Processo Anterior (R$) | AA178: Processo Atual (R$) | AB178: Dispositivo Legal | AC178: Colunas1
Y179: Taxa de Fisc. de Serviços de E.E. – TFSEE | Z179: =D49 -> 4762428.572 | AA179: =E49 -> 4750594.933 | AB179: =Encargos!D17 -> Submódulo 5.5 do PRORET | AC179: =IF(ABS(Z179)+ABS(AA179)>0,1,0) -> 1
Y180: CDE Uso | Z180: 309954100.1 | AA180: =E50 -> 391327177.6 | AB180: =VLOOKUP("CDE",EncargoDRP[],3,FALSE) -> REH 3.564/2025 | AC180: =IF(ABS(Z180)+ABS(AA180)>0,1,0) -> 1
Y181: CDE Conta-Covid | Z181: 0 | AA181: 0 | AB181: =VLOOKUP("CDE Covid",EncargoDRP[],3,FALSE) -> Quitação | AC181: =IF(ABS(Z181)+ABS(AA181)>0,1,0) -> 0
Y182: CDE Eletrobrás | Z182: -3205943.125 | AA182: -3209393.27 | AB182: =VLOOKUP("CDE Eletrobras",EncargoDRP[],3,FALSE) -> DSP 1894/2026 | AC182: =IF(ABS(Z182)+ABS(AA182)>0,1,0) -> 1
Y183: CDE Conta Escassez Hídrica | Z183: 18953121.48 | AA183: 16066845.31 | AB183: =VLOOKUP("CDE Escassez Hidrica",EncargoDRP[],3,FALSE) -> DSP 510/2023 | AC183: =IF(ABS(Z183)+ABS(AA183)>0,1,0) -> 1
Y184: CDE GD | Z184: 49361618.23 | AA184: 0.001 | AB184: =VLOOKUP("CDE GD",EncargoDRP[],3,FALSE) -> Art. 23, Lei 15.269/2025 | AC184: =IF(ABS(Z184)+ABS(AA184)>0,1,0) -> 1
Y185: Compensação financeira - CFURH | Z185: 0 | AA185: 0 | AB185: Submódulo 3.4 do Proret | AC185: 0
Y186: ESS / ERR / ERCAP | Z186: 112398555.7 | AA186: 141876722.5 | AB186: =Encargos!D12 -> DSP 2.204/2026 | AC186: 1
Y187: PROINFA | Z187: 66174373.63 | AA187: 45686360.62 | AB187: =Encargos!$D$13 -> Anexo I - NT 62/2026 | AC187: 1
Y188: P&D e Eficiência Energética | Z188: 31323194.4 | AA188: 31591931.85 | AB188: Submódulo 5.6 do PRORET | AC188: 1
Y189: Contribuição ONS | Z189: 0 | AA189: 0 | AB189: 0 | AC189: 0
Y190: Total de Encargos Tarifários | Z190: =SUM(Z179:Z189) -> 589721448.9 | AA190: =SUM(AA179:AA189) -> 628090239.5
AD193: TabTrans | AF193: Voltar
AD194: Componente | AE194: Processo Anterior (R$) | AF194: Processo Atual (R$) | AG194: Colunas1
AD195: Rede Básica | AE195: =+Resultado!C30 -> 234059849.7 | AF195: =+Resultado!D30 -> 180197214.7 | AG195: =IF(ABS(AE195)+ABS(AF195)>0,1,0) -> 1
AD196: Rede Básica Fronteira | AE196: =+Resultado!C31 -> 74156574.45 | AF196: =+Resultado!D31 -> 82104477.79 | AG196: 1
AD197: Rede Básica ONS (A2) | AE197: =+Resultado!C32 -> 0 | AF197: =+Resultado!D32 -> 0 | AG197: 0
AD198: Rede Básica Export. (A2) | AE198: =+Resultado!C33 -> 0 | AF198: =+Resultado!D33 -> 0 | AG198: 0
AD199: MUST Itaipu | AE199: =+Resultado!C34 -> 0 | AF199: =+Resultado!D34 -> 0 | AG199: 0
AD200: Transporte de Itaipu | AE200: =+Resultado!C35 -> 0 | AF200: =+Resultado!D35 -> 0 | AG200: 0
AD201: Conexão | AE201: =+Resultado!C36 -> 14920181.8 | AF201: =+Resultado!D36 -> 15167336.18 | AG201: 1
AD202: Uso do sistema de distribuição | AE202: =+Resultado!C37 -> 6484636.679 | AF202: =+Resultado!D37 -> 9889194.081 | AG202: 1
AD203: Total dos Custos de Transporte | AE203: =SUM(AE195:AE202) -> 329621242.6 | AF203: =SUM(AF195:AF202) -> 287358222.7
AH207: TabPerdas | AK207: Voltar
AH208: Perdas | AI208: Processo anterior | AJ208: Processo atual | AK208: Referência
Z209: =Energia!I8 -> 1458195.201 | AA209: =Z209 -> 1458195.201 | AH209: Não Técnica (s/ Baixa Tensão) | AI209: =Neutralidade!H15 -> 0.07915 | AJ209: =Energia!I16 -> 0.07694 | AK209: REH XXX/2017 e DSP. 1.220
AH210: Técnica (s/ Energia injetada) | AI210: =Neutralidade!H16 -> 0.08572 | AJ210: =Energia!I17 -> 0.08572 | AK210: =AK209 -> REH XXX/2017 e DSP. 1.220
AH211: Rede Básica (s/ merc. Injetado) | AI211: =Neutralidade!H17 -> 0.01957341595 | AJ211: =Energia!I18 -> 0.01957341595 | AK211: CCEE (últimos 12 meses)
AH212: Mercado Baixa Tensão (MWh) | AI212: =Mercado!$C$16 -> 4562836.94 | AJ212: =Energia!I11 -> 4813917.882 | AK212: SAMP
AH213: Energia Injetada (MWh) | AI213: =SUM($J$5:$J$8,-$J$9,J17,K5)/(1-J15) -> 0 | AJ213: =SUM($H$5:$H$8,-$H$9,H17)/(1-H15) -> 0 | AK213: SAMP
AM215: TabEnergia | AO215: Voltar
AM216: Descrição | AN216: Processo Anterior (MWh) | AO216: Processo Atual (MWh)
AM217: (i) - Mercado cativo total (fornecimento + suprimento - GD) | AN217: =SUM(AN218:AN221) -> 4578723.432 | AO217: =SUM(AO218:AO221) -> 4578723.432 | AP217: Colunas1 | AQ217: Colunas2
AM218: Fornecimento BT | AN218: =Energia!I11 -> 4813917.882 | AO218: =Energia!I11 -> 4813917.882 | AP218: =IF(OR(AN218<>0,AO218<>0),1,0) -> 1
AM219: Fornecimento MT + AT | AN219: =Energia!I5-AN218 -> 525737.305 | AO219: =Energia!I5-AO218 -> 525737.305 | AP219: =IF(OR(AN219<>0,AO219<>0),1,0) -> 1
... 195 more rows

Sheet NT Revisao (hidden)
B2: Tabelas
B4: Custo Operacional
B5: Remuneração do Capital e Quota de Reintegração
B6: CAIMI
B7: Parcela B Ajustada
B8: Outras Receitas
B9: Cálculo das Perdas
B10: Energia Requerida
B11: Transmissão
B12: Encargos Setoriais
B15: Custo Operacional | E15: Voltar
B16: Limites de Eficiência
B17: Descrição | C17: Limite Inferior | D17: Centro | E17: Limite Superior
B18: 1. Eficiência | C18: ='VPB e Fator X'!C142 -> 0.969045119 | D18: ='VPB e Fator X'!C140 -> 1 | E18: ='VPB e Fator X'!C141 -> 1
B19: 2. OPEX Benchmarking (Atualizado) - R$ | C19: ='VPB e Fator X'!C145 -> 264146529.8 | D19: =(E19+C19)/2 -> 268365437.8 | E19: ='VPB e Fator X'!C144 -> 272584345.8
B21: Comparação com intervalo de CO eficientes
B22: Descrição | E22: Valor
B23: 3. OPEX nas tarifas - R$ | E23: ='VPB e Fator X'!C111 -> 
B24: 4. Meta estudo de eficiência - R$ | E24: ='VPB e Fator X'!C114 -> 
B25: 5. Número de anos no ciclo | E25: ='VPB e Fator X'!C11 -> 
B26: 6. Variação anual necessária para a meta (%) | E26: ='VPB e Fator X'!C115 -> 
B27: 7. Meta do estudo de eficiência aplicada variação anual máxima de 5% a.a. | E27: ='VPB e Fator X'!C117 -> 
B29: Avaliação do compartilhamento de eficiência (se Meta OPEX / OPEX Real > % passível de compartilhamento)
B30: Descrição | E30: Valor
B31: 8. OPEX Real (R$) | E31: ='VPB e Fator X'!C118 -> 433313231.9
B32: 9. Meta OPEX (R$) | E32: ='VPB e Fator X'!C114 -> 
B33: 10. Relação Meta OPEX/ OPEX Real | E33: ='VPB e Fator X'!C119 -> 
B34: 11. qcom: mín ( 120% ; 1/qref ) | E34: ='VPB e Fator X'!C120 -> 1.14107067
B35: 12. Excedente passível de compartilhamento | E35: ='VPB e Fator X'!C121 -> 
B36: 13. Cálculo do % de benefício apropriado (beta) | E36: ='VPB e Fator X'!C122 -> 0.377114
B37: 11. Meta OPEX aplicada a regra de compartilhamento (R$) | E37: ='VPB e Fator X'!C123 -> 
B39: Limitação do repasse dos Custos Operacionais | G39: Remuneração do Capital e Quota de Reintegração | H39: Voltar
B40: Descrição | E40: Reais | G40: Descrição | I40: Colunas1
B41: 15. Limite minimo para Meta e Ano Teste (60% do OPEX Real) | E41: ='VPB e Fator X'!C124 -> 259987939.2 | G41: (1) Ativo Imobilizado em Serviço (Valor Novo de Reposição) | H41: =Entrada!G7 ->  | I41: =IF(H41=0,0,1) -> 
B42: 16. Limite máximo para a Meta e Ano Teste (140% do OPEX Real) | E42: ='VPB e Fator X'!C125 -> 606638524.7 | G42: (2) Índice de Aproveitamento Integral | H42: =Entrada!G8 -> 
B43: 17. Meta OPEX Regulatórios aplicados os limites mínimo e máximo (R$) | E43: ='VPB e Fator X'!C126 ->  | G43: (3) Obrigações Especiais Bruta | H43: =Entrada!G9 -> 
G44: (4) Bens Totalmente Depreciados | H44: =Entrada!G10 -> 
B45: Verificação de repasse de 5% na revisão | G45: (5) Base de Remuneração Bruta = (1)-(2)-(3)-(4) | H45: =Entrada!G11 -> 
B46: Descrição | E46: Valor | G46: (6) Depreciação Acumulada | H46: =Entrada!G12 -> 
B47: 18. Variação no ciclo entre meta e custo operacinal ano teste | E47: ='VPB e Fator X'!C127 ->  | G47: (7) AIS Líquido (Valor de Mercado em Uso) | H47: =Entrada!G13 -> 
B48: 19. Variação anual no ciclo entre meta e custo operacional ano teste | E48: ='VPB e Fator X'!C128 ->  | G48: (8) Índice de Aproveitamento Depreciado | H48: =Entrada!G14 -> 
B49: 20. Limite de Custos Operacionais Regulatórios considerando variação de 5% na RTP (R$) | E49: ='VPB e Fator X'!C129 ->  | G49: (9) Valor da Base de Remuneração (VBR) = (1)-(6)-(8) | H49: =Entrada!G15 -> 
B50: 21. Partida OPEX Regulatório considerando variação inicial de até 5% | E50: ='VPB e Fator X'!C130 ->  | G50: (10) Almoxarifado em Operação | H50: =Entrada!G16 -> 
G51: (11) Ativo Diferido | H51: =Entrada!G17 -> 
G52: (12) Obrigações Especiais Líquida | H52: =Entrada!G18 ->  | I52: =IF(H52=0,0,1) -> 
G53: (13) Terrenos e Servidões | H53: =Entrada!G19 -> 
G54: (14) Base de Remuneração Líquida Total = (9)+(10)+(11)-(12)+(13) | H54: =Entrada!G20 -> 
G55: (15) Base de Remuneração Ativos Concessionária | H55: =H54-H61-H64 -> 
G56: (16) WACC antes de impostos | H56: ='VPB e Fator X'!F81 -> 0.1228 | I56: 1
G57: (17) Remuneração Ativos Concessionária | H57: =H55*H56 -> 
G58: (18) Base Obrigações Especiais | H58: ='VPB e Fator X'!G91 -> 
G59: (19) Taxa de Remuneração das Obrigações Especiais | H59: =H60/H58 ->  | I59: =IF(H58=0,0,1) -> 
G60: (20) Remuneração de Obrigações Especiais | H60: ='VPB e Fator X'!G95 ->  | I60: =IF(H60=0,0,1) -> 
G61: (21) Saldo RGR/PLPT | H61: ='VPB e Fator X'!C91 ->  | I61: =IF(H61=0,0,1) -> 
G62: (22) Taxa RGR/PLPT | H62: ='VPB e Fator X'!F82 -> -0.0045 | I62: =IF(H61=0,0,1) -> 
G63: (23) Remuneração RGR/PLPT | H63: =H61*H62 ->  | I63: =IF(H63=0,0,1) -> 
G64: (24) Saldo RGR/Demais Investimentos | H64: ='VPB e Fator X'!C92 ->  | I64: =IF(H64=0,0,1) -> 
G65: (25) Saldo RGR/Demais Investimentos | H65: ='VPB e Fator X'!F83 -> -0.0045 | I65: =IF(H64=0,0,1) -> 
G66: (23) Remuneração RGR Demais Investimentos | H66: =H64*H65 ->  | I66: =IF(H66=0,0,1) -> 
G67: (24) Remuneração do Capital = (17)+(20)+(23) | H67: =H57+H60+H63+H66 ->  | I67: =IF(H67=0,0,1) -> 
G68: (25) Taxa de Depreciação | H68: ='VPB e Fator X'!C76 -> 0 | I68: =IF(H68=0,0,1) -> 0
G69: (29) Quota de Reintegração Regulatória = (5) * (25) | H69: =H45*H68 ->  | I69: =IF(H69=0,0,1) -> 
J71: CAIMI | K71: Voltar
J72: Descrição | K72: Valores (R$)
J73: ='VPB e Fator X'!B60 -> (1) Base de Anuidade Regulatória (BAR) | K73: ='VPB e Fator X'!C60 -> 
J74: ='VPB e Fator X'!B61 -> (2) Base de Anuidade - Infraestrutura de imóveis e móveis administrativos (BARA) | K74: ='VPB e Fator X'!C61 -> 
J75: ='VPB e Fator X'!B62 -> (3) Base de Anuidade - Veículos (BARV) | K75: ='VPB e Fator X'!C62 -> 
J76: ='VPB e Fator X'!B63 -> (4) Base de Anuidade - Sistemas de Informática (BARI) | K76: ='VPB e Fator X'!C63 -> 
J77: ='VPB e Fator X'!B64 -> (5) Anuidade - Infraestrutura de imóveis e móveis administrativos (CAL) | K77: ='VPB e Fator X'!C64 -> 
J78: ='VPB e Fator X'!B65 -> (6) Anuidade - Veículos (CAV) | K78: ='VPB e Fator X'!C65 -> 
J79: ='VPB e Fator X'!B66 -> (7) Anuidade - Sistemas de Informática (CAI) | K79: ='VPB e Fator X'!C66 -> 
J80: ='VPB e Fator X'!B67 -> (8) CAIMI = (5)+(6)+(7) | K80: ='VPB e Fator X'!C67 -> 
M82: Parcela B ajustada | N82: Voltar
M83: Descrição | N83: Valores
M84: Custo de Administração, Operação e Manutenção (CAOM) | N84: =Resultado!G19 -> 
M85: Custos Operacionais (CO) | N85: =Resultado!G20 -> 
M86: Custo Anual dos Ativos (CAA) | N86: =Resultado!G21 -> 
M87: Remuneração do Capital (RC) | N87: =Resultado!G22 -> 
M88: Quota de Reintegração Regulatória (QRR) | N88: =Resultado!G23 -> 
M89: Custo anual das instalações móveis e imóveis (CAIMI) | N89: =Resultado!G24 -> 
M90: Parcela B (VPB) | N90: =Resultado!G25 -> 
M91: Índice de Produtividade da Parcela B | N91: =Resultado!G26 -> 0.01554230279
M92: Mecanismo de Incentivo à Qualidade | N92: =Resultado!G27 -> -0.004462337623
M93: Parcela B com ajustes PM e MIQ | N93: =N90*(1-LnkTxtFatorAjusteMercado-N92) -> 
M94: Outras Receitas (OR) | N94: =Resultado!G29 -> 23029300.53
M95: Excedente de Reativos (ER) | N95: =Resultado!G30 -> 1381709.733
M96: Ultrapassagem de Demanda (UD) | N96: =Resultado!G31 -> 1165156.559
M97: Parcela B deduzido UDEROR | N97: =N93-SUM(N94:N96) -> 
P99: Outras Receitas | R99: Voltar
P100: Descrição das atividades | Q100: Compartilhamento | R100: Receita Regulatória | S100: Colunas1
P101: Serviços Cobráveis | Q101: =UDEROR!E14 -> 0.6 | R101: =UDEROR!D14 -> 3745496.75 | S101: =IF(R101=0,0,1) -> 1
P102: =UDEROR!B15 -> Arrecadação de convênios ou valores pela fatura | Q102: =UDEROR!E15 -> 0.6 | R102: =UDEROR!D15 -> 2162979.088 | S102: 1
P103: =UDEROR!B16 -> Arrecadação de faturas de terceiros por estrutura própria | Q103: =UDEROR!E16 -> 0.6 | R103: =UDEROR!D16 -> 0 | S103: 0
